Workbook

Sheet LinkIn
A1: KY American Water Revenue Drivers
A3: Customer Count
A4: Central | B4: 2018-01-01 | C4: 2018-02-01 | D4: 2018-03-01 | E4: 2018-04-01 | F4: 2018-05-01 | G4: 2018-06-01 | H4: 2018-07-01 | I4: 2018-08-01 | J4: 2018-09-01 | K4: 2018-10-01 | L4: 2018-11-01 | M4: 2018-12-01 | N4: 2019-01-01 | O4: 2019-02-01 | P4: 2019-03-01 | Q4: 2019-04-01 | R4: 2019-05-01 | S4: 2019-06-01 | T4: 2019-07-01 | U4: 2019-08-01 | V4: 2019-09-01 | W4: 2019-10-01 | X4: 2019-11-01 | Y4: 2019-12-01 | Z4: 2020-01-01 | AA4: 2020-02-01 | AB4: 2020-03-01 | AC4: 2020-04-01 | AD4: 2020-05-01 | AE4: 2020-06-01 | AF4: 2020-07-01 | AG4: 2020-08-01 | AH4: 2020-09-01 | AI4: 2020-10-01 | AJ4: 2020-11-01 | AK4: 2020-12-01 | AL4: 2021-01-01 | AM4: 2021-02-01 | AN4: 2021-03-01 | AO4: 2021-04-01 | AP4: 2021-05-01 | AQ4: 2021-06-01 | AR4: 2021-07-01 | AS4: 2021-08-01 | AT4: 2021-09-01 | AU4: 2021-10-01 | AV4: 2021-11-01 | AW4: 2021-12-01 | AX4: 2022-01-01 | AY4: 2022-02-01 | AZ4: 2022-03-01 | BA4: 2022-04-01 | BB4: 2022-05-01 | BC4: 2022-06-01 | BD4: 2022-07-01 | BE4: 2022-08-01 | BF4: 2022-09-01 | BG4: 2022-10-01 | BH4: 2022-11-01 | BI4: 2022-12-01
A5: Residential | B5: 115586 | C5: 115507 | D5: 115615 | E5: 115791 | F5: 115828 | G5: 115859 | H5: 115858 | I5: 116024 | J5: 116153 | K5: 116202 | L5: 116181 | M5: 116237 | N5: 116317 | O5: 116353 | P5: 116473 | Q5: 116646 | R5: 116722 | S5: 116864 | T5: 116861 | U5: 117157 | V5: 117282 | W5: 117354 | X5: 117331 | Y5: 117379 | Z5: 117300 | AA5: 117335 | AB5: 117451 | AC5: 117624 | AD5: 117700 | AE5: 117843 | AF5: 117840 | AG5: 118144 | AH5: 118273 | AI5: 118345 | AJ5: 118321 | AK5: 118370 | AL5: 118281 | AM5: 118317 | AN5: 118437 | AO5: 118610 | AP5: 118684 | AQ5: 118830 | AR5: 118828 | AS5: 119135 | AT5: 119265 | AU5: 119336 | AV5: 119312 | AW5: 119361 | AX5: 119259 | AY5: 119296 | AZ5: 119416 | BA5: 119591 | BB5: 119666 | BC5: 119813 | BD5: 119810 | BE5: 120120 | BF5: 120251 | BG5: 120323 | BH5: 120299 | BI5: 120348
A6: Commercial | B6: 9023 | C6: 9006 | D6: 8997 | E6: 9012 | F6: 9035 | G6: 9047 | H6: 9045 | I6: 9062 | J6: 9052 | K6: 9030 | L6: 9012 | M6: 9010 | N6: 9010 | O6: 9007 | P6: 8998 | Q6: 9013 | R6: 9036 | S6: 9049 | T6: 9046 | U6: 9063 | V6: 9053 | W6: 9031 | X6: 9013 | Y6: 9012 | Z6: 9012 | AA6: 9009 | AB6: 9000 | AC6: 9015 | AD6: 9038 | AE6: 9050 | AF6: 9047 | AG6: 9064 | AH6: 9054 | AI6: 9032 | AJ6: 9014 | AK6: 9012 | AL6: 9012 | AM6: 9009 | AN6: 9000 | AO6: 9015 | AP6: 9038 | AQ6: 9050.5 | AR6: 9047.5 | AS6: 9064.5 | AT6: 9054.5 | AU6: 9032.5 | AV6: 9014.5 | AW6: 9013 | AX6: 9012 | AY6: 9009 | AZ6: 9000 | BA6: 9015 | BB6: 9038 | BC6: 9050.5 | BD6: 9047.5 | BE6: 9064.5 | BF6: 9054.5 | BG6: 9032.5 | BH6: 9014.5 | BI6: 9013
A7: Industrial | B7: 30 | C7: 31 | D7: 31 | E7: 31 | F7: 30 | G7: 30 | H7: 29 | I7: 29 | J7: 29 | K7: 29 | L7: 29 | M7: 29 | N7: 29 | O7: 29 | P7: 29 | Q7: 29 | R7: 29 | S7: 29 | T7: 29 | U7: 29 | V7: 29 | W7: 29 | X7: 29 | Y7: 29 | Z7: 28 | AA7: 28 | AB7: 28 | AC7: 28 | AD7: 28 | AE7: 28 | AF7: 28 | AG7: 28 | AH7: 28 | AI7: 28 | AJ7: 28 | AK7: 28 | AL7: 28 | AM7: 28 | AN7: 28 | AO7: 28 | AP7: 28 | AQ7: 28 | AR7: 28 | AS7: 28 | AT7: 28 | AU7: 28 | AV7: 28 | AW7: 28 | AX7: =+AW7 -> 28 | AY7: =+AX7 -> 28 | AZ7: 28 | BA7: 28 | BB7: 28 | BC7: 28 | BD7: 28 | BE7: 28 | BF7: 28 | BG7: 28 | BH7: 28 | BI7: 28
A8: OPA | B8: 717 | C8: 718 | D8: 713 | E8: 712 | F8: 712 | G8: 722 | H8: 740 | I8: 740 | J8: 740 | K8: 740 | L8: 740 | M8: 740 | N8: 740 | O8: 740 | P8: 740 | Q8: 740 | R8: 740 | S8: 740 | T8: 740 | U8: 740 | V8: 740 | W8: 740 | X8: 740 | Y8: 740 | Z8: 740 | AA8: 740 | AB8: 740 | AC8: 740 | AD8: 740 | AE8: 740 | AF8: 740 | AG8: 740 | AH8: 740 | AI8: 740 | AJ8: 740 | AK8: 740 | AL8: 740 | AM8: 740 | AN8: 740 | AO8: 740 | AP8: 740 | AQ8: 740 | AR8: 740 | AS8: 740 | AT8: 740 | AU8: 740 | AV8: 740 | AW8: 740 | AX8: 740 | AY8: =+AX8 -> 740 | AZ8: 740 | BA8: 740 | BB8: 740 | BC8: 740 | BD8: 740 | BE8: 740 | BF8: 740 | BG8: 740 | BH8: 740 | BI8: 740
A9: SFR | B9: 13 | C9: 13 | D9: 13 | E9: 12 | F9: 12 | G9: 12 | H9: 12 | I9: 12 | J9: 12 | K9: 12 | L9: 12 | M9: 12 | N9: 12 | O9: 12 | P9: 12 | Q9: 12 | R9: 12 | S9: 12 | T9: 12 | U9: 12 | V9: 12 | W9: 12 | X9: 12 | Y9: 12 | Z9: 12 | AA9: 12 | AB9: 12 | AC9: 12 | AD9: 12 | AE9: 12 | AF9: 12 | AG9: 12 | AH9: 12 | AI9: 12 | AJ9: 12 | AK9: 12 | AL9: 12 | AM9: 12 | AN9: 12 | AO9: 12 | AP9: 12 | AQ9: 12 | AR9: 12 | AS9: 12 | AT9: 12 | AU9: 12 | AV9: 12 | AW9: 12 | AX9: 12 | AY9: =+AX9 -> 12 | AZ9: 12 | BA9: 12 | BB9: 12 | BC9: 12 | BD9: 12 | BE9: 12 | BF9: 12 | BG9: 12 | BH9: 12 | BI9: 12
A10: Other Water | B10: 35 | C10: 36 | D10: 34 | E10: 37 | F10: 36 | G10: 43 | H10: 43 | I10: 39 | J10: 39 | K10: 39 | L10: 39 | M10: 39 | N10: 39 | O10: 39 | P10: 39 | Q10: 39 | R10: 39 | S10: 39 | T10: 39 | U10: 39 | V10: 39 | W10: 39 | X10: 39 | Y10: 39 | Z10: 39 | AA10: 39 | AB10: 39 | AC10: 39 | AD10: 39 | AE10: 39 | AF10: 39 | AG10: 39 | AH10: 39 | AI10: 39 | AJ10: 39 | AK10: 39 | AL10: 39 | AM10: 39 | AN10: 39 | AO10: 39 | AP10: 39 | AQ10: 39 | AR10: 39 | AS10: 39 | AT10: 39 | AU10: 39 | AV10: 39 | AW10: 39 | AX10: 39 | AY10: =+AX10 -> 39 | AZ10: 39 | BA10: 39 | BB10: 39 | BC10: 39 | BD10: 39 | BE10: 39 | BF10: 39 | BG10: 39 | BH10: 39 | BI10: 39
A11: Public Fire | B11: 56 | C11: 56 | D11: 56 | E11: 56 | F11: 56 | G11: 56 | H11: 56 | I11: 56 | J11: 56 | K11: 56 | L11: 56 | M11: 56 | N11: 56 | O11: 56 | P11: 56 | Q11: 56 | R11: 56 | S11: 56 | T11: 56 | U11: 56 | V11: 56 | W11: 56 | X11: 56 | Y11: 56 | Z11: 56 | AA11: 56 | AB11: 56 | AC11: 56 | AD11: 56 | AE11: 56 | AF11: 56 | AG11: 56 | AH11: 56 | AI11: 56 | AJ11: 56 | AK11: 56 | AL11: 56 | AM11: 56 | AN11: 56 | AO11: 56 | AP11: 56 | AQ11: 56 | AR11: 56 | AS11: 56 | AT11: 56 | AU11: 56 | AV11: 56 | AW11: 56 | AX11: 56 | AY11: =+AX11 -> 56 | AZ11: 56 | BA11: 56 | BB11: 56 | BC11: 56 | BD11: 56 | BE11: 56 | BF11: 56 | BG11: 56 | BH11: 56 | BI11: 56
A12: Private Fire | B12: 2293 | C12: 2292 | D12: 2294 | E12: 2296 | F12: 2298 | G12: 2298 | H12: 2298 | I12: 2305 | J12: 2305 | K12: 2305 | L12: 2305 | M12: 2305 | N12: 2305 | O12: 2305 | P12: 2305 | Q12: 2305 | R12: 2305 | S12: 2305 | T12: 2305 | U12: 2305 | V12: 2305 | W12: 2305 | X12: 2305 | Y12: 2305 | Z12: 2305 | AA12: 2305 | AB12: 2305 | AC12: 2305 | AD12: 2305 | AE12: 2305 | AF12: 2305 | AG12: 2305 | AH12: 2305 | AI12: 2305 | AJ12: 2305 | AK12: 2305 | AL12: 2305 | AM12: 2305 | AN12: 2305 | AO12: 2305 | AP12: 2305 | AQ12: 2305 | AR12: 2305 | AS12: 2305 | AT12: 2305 | AU12: 2305 | AV12: 2305 | AW12: 2305 | AX12: 2305 | AY12: =+AX12 -> 2305 | AZ12: 2305 | BA12: 2305 | BB12: 2305 | BC12: 2305 | BD12: 2305 | BE12: 2305 | BF12: 2305 | BG12: 2305 | BH12: 2305 | BI12: 2305
A14: Central - SFR
A15: SFR | B15: 1 | C15: 1 | D15: 1 | E15: 1 | F15: 1 | G15: 1 | H15: 1 | I15: 1 | J15: 1 | K15: 1 | L15: 1 | M15: 1 | N15: 1 | O15: 1 | P15: 1 | Q15: 1 | R15: 1 | S15: 1 | T15: 1 | U15: 1 | V15: 1 | W15: 1 | X15: 1 | Y15: 1 | Z15: 1 | AA15: 1 | AB15: 1 | AC15: 1 | AD15: 1 | AE15: 1 | AF15: 1 | AG15: 1 | AH15: 1 | AI15: 1 | AJ15: 1 | AK15: 1 | AL15: 1 | AM15: 1 | AN15: 1 | AO15: 1 | AP15: 1 | AQ15: 1 | AR15: 1 | AS15: 1 | AT15: 1 | AU15: 1 | AV15: 1 | AW15: 1 | AX15: =+AW15 -> 1 | AY15: =+AX15 -> 1 | AZ15: 1 | BA15: 1 | BB15: 1 | BC15: 1 | BD15: 1 | BE15: 1 | BF15: 1 | BG15: 1 | BH15: 1 | BI15: 1
A17: Northern
A18: Residential | B18: 2962 | C18: 2961 | D18: 2971 | E18: 2978 | F18: 2987 | G18: 2994 | H18: 2998 | I18: 2998 | J18: 3004 | K18: 2998 | L18: 2989 | M18: 2983 | N18: 2981 | O18: 2982 | P18: 2985 | Q18: 2990 | R18: 3002 | S18: 3007 | T18: 3011 | U18: 3016 | V18: 3021 | W18: 3015 | X18: 3008 | Y18: 3004 | Z18: 3001 | AA18: 3003 | AB18: 3011 | AC18: 3018 | AD18: 3031 | AE18: 3036 | AF18: 3040 | AG18: 3039 | AH18: 3041 | AI18: 3036 | AJ18: 3030 | AK18: 3025 | AL18: 3023 | AM18: 3024 | AN18: 3030 | AO18: 3038 | AP18: 3053 | AQ18: 3057 | AR18: 3060 | AS18: 3059 | AT18: 3061 | AU18: 3057 | AV18: 3050 | AW18: 3046 | AX18: 3048 | AY18: 3049 | AZ18: 3055 | BA18: 3063 | BB18: 3078 | BC18: 3082 | BD18: 3085 | BE18: 3084 | BF18: 3086 | BG18: 3082 | BH18: 3075 | BI18: 3071
A19: Commercial | B19: 52 | C19: 52 | D19: 52 | E19: 52 | F19: 52 | G19: 52 | H19: 50 | I19: 50 | J19: 50 | K19: 50 | L19: 50 | M19: 51 | N19: 51 | O19: 51 | P19: 51 | Q19: 51 | R19: 51 | S19: 50 | T19: 49 | U19: 49 | V19: 49 | W19: 49 | X19: 49 | Y19: 49 | Z19: 49 | AA19: 49 | AB19: 49 | AC19: 49 | AD19: 49 | AE19: 49 | AF19: 48 | AG19: 48 | AH19: 48 | AI19: 48 | AJ19: 48 | AK19: 49 | AL19: 49 | AM19: 49 | AN19: 49 | AO19: 49 | AP19: 49 | AQ19: 48.5 | AR19: 47.5 | AS19: 47.5 | AT19: 47.5 | AU19: 47.5 | AV19: 47.5 | AW19: 48 | AX19: 49 | AY19: 49 | AZ19: 49 | BA19: 49 | BB19: 49 | BC19: 48.5 | BD19: 47.5 | BE19: 47.5 | BF19: 47.5 | BG19: 47.5 | BH19: 47.5 | BI19: 48
A20: Industrial
A21: OPA | B21: 8 | C21: 8 | D21: 8 | E21: 8 | F21: 8 | G21: 8 | H21: 8 | I21: 8 | J21: 8 | K21: 8 | L21: 8 | M21: 8 | N21: 8 | O21: 8 | P21: 8 | Q21: 8 | R21: 8 | S21: 8 | T21: 8 | U21: 8 | V21: 8 | W21: 8 | X21: 8 | Y21: 8 | Z21: 8 | AA21: 8 | AB21: 8 | AC21: 8 | AD21: 8 | AE21: 8 | AF21: 8 | AG21: 8 | AH21: 8 | AI21: 8 | AJ21: 8 | AK21: 8 | AL21: 8 | AM21: 8 | AN21: 8 | AO21: 8 | AP21: 8 | AQ21: 8 | AR21: 8 | AS21: 8 | AT21: 8 | AU21: 8 | AV21: 8 | AW21: 8 | AX21: =+AL21 -> 8 | AY21: =+AM21 -> 8 | AZ21: 8 | BA21: 8 | BB21: 8 | BC21: 8 | BD21: 8 | BE21: 8 | BF21: 8 | BG21: 8 | BH21: 8 | BI21: 8
A22: SFR | B22: 1 | C22: 1 | D22: 1 | E22: 1 | F22: 1 | G22: 1 | H22: 1 | I22: 1 | J22: 1 | K22: 1 | L22: 1 | M22: 1 | N22: 1 | O22: 1 | P22: 1 | Q22: 1 | R22: 1 | S22: 1 | T22: 1 | U22: 1 | V22: 1 | W22: 1 | X22: 1 | Y22: 1 | Z22: 1 | AA22: 1 | AB22: 1 | AC22: 1 | AD22: 1 | AE22: 1 | AF22: 1 | AG22: 1 | AH22: 1 | AI22: 1 | AJ22: 1 | AK22: 1 | AL22: 1 | AM22: 1 | AN22: 1 | AO22: 1 | AP22: 1 | AQ22: 1 | AR22: 1 | AS22: 1 | AT22: 1 | AU22: 1 | AV22: 1 | AW22: 1 | AX22: =+AL22 -> 1 | AY22: 1 | AZ22: 1 | BA22: 1 | BB22: 1 | BC22: 1 | BD22: 1 | BE22: 1 | BF22: 1 | BG22: 1 | BH22: 1 | BI22: 1
A23: Other Water
A25: East Rockcastle
A26: Residential | B26: 578 | C26: 578 | D26: 584 | E26: 590 | F26: 599 | G26: 599 | H26: 594 | I26: 595 | J26: 595 | K26: 595 | L26: 595 | M26: 595 | N26: 595 | O26: 595 | P26: 595 | Q26: 595 | R26: 595 | S26: 595 | T26: 595 | U26: 595 | V26: 595 | W26: 595 | X26: 595 | Y26: 595 | Z26: 595 | AA26: 595 | AB26: 595 | AC26: 595 | AD26: 595 | AE26: 595 | AF26: 595 | AG26: 595 | AH26: 595 | AI26: 595 | AJ26: 595 | AK26: 595 | AL26: 595 | AM26: 595 | AN26: 595 | AO26: 595 | AP26: 595 | AQ26: 595 | AR26: 595 | AS26: 595 | AT26: 595 | AU26: 595 | AV26: 595 | AW26: 595 | AX26: =+AL26 -> 595 | AY26: =+AM26 -> 595 | AZ26: 595 | BA26: 595 | BB26: 595 | BC26: 595 | BD26: 595 | BE26: 595 | BF26: 595 | BG26: 595 | BH26: 595 | BI26: 595
A27: Commercial | B27: 22 | C27: 22 | D27: 22 | E27: 22 | F27: 22 | G27: 22 | H27: 22 | I27: 22 | J27: 22 | K27: 22 | L27: 22 | M27: 22 | N27: 22 | O27: 22 | P27: 22 | Q27: 22 | R27: 22 | S27: 22 | T27: 22 | U27: 22 | V27: 22 | W27: 22 | X27: 22 | Y27: 22 | Z27: 22 | AA27: 22 | AB27: 22 | AC27: 22 | AD27: 22 | AE27: 22 | AF27: 22 | AG27: 22 | AH27: 22 | AI27: 22 | AJ27: 22 | AK27: 22 | AL27: 22 | AM27: 22 | AN27: 22 | AO27: 22 | AP27: 22 | AQ27: 22 | AR27: 22 | AS27: 22 | AT27: 22 | AU27: 22 | AV27: 22 | AW27: 22 | AX27: =+AL27 -> 22 | AY27: 22 | AZ27: 22 | BA27: 22 | BB27: 22 | BC27: 22 | BD27: 22 | BE27: 22 | BF27: 22 | BG27: 22 | BH27: 22 | BI27: 22
A29: Usage per Customer Per Day
A30: Central
A31: Residential | B31: 0.120673265 | C31: 0.1224533239 | D31: 0.1195277732 | E31: 0.1220103574 | F31: 0.1338737374 | G31: 0.1447659484 | H31: 0.1444401431 | I31: 0.1466125248 | J31: 0.1480492333 | K31: 0.1354169455 | L31: 0.1224319228 | M31: 0.1201312597 | N31: 0.1184434063 | O31: 0.1200712633 | P31: 0.1171913436 | Q31: 0.1196298165 | R31: 0.1312181794 | S31: 0.1417598455 | T31: 0.1414432159 | U31: 0.1434129758 | V31: 0.1448248255 | W31: 0.1324422355 | X31: 0.119744284 | Y31: 0.1175026879 | Z31: 0.1159432856 | AA31: 0.1134850506 | AB31: 0.114723823 | AC31: 0.1171123989 | AD31: 0.1284575988 | AE31: 0.1387777119 | AF31: 0.1384677135 | AG31: 0.1403894761 | AH31: 0.141768028 | AI31: 0.1296474621 | AJ31: 0.1172182589 | AK31: 0.1150233715 | AL31: 0.1134522761 | AM31: 0.1150121271 | AN31: 0.112255471 | AO31: 0.1145940585 | AP31: 0.1256980884 | AQ31: 0.1357944439 | AR31: 0.1354899406 | AS31: 0.1373698551 | AT31: 0.1387188514 | AU31: 0.1268606821 | AV31: 0.1146984522 | AW31: 0.1125511347 | AX31: 0.1109641535 | AY31: 0.1124891332 | AZ31: 0.1097938621 | BA31: 0.1120806334 | BB31: 0.1229407167 | BC31: 0.1328158245 | BD31: 0.1325190882 | BE31: 0.1343572645 | BF31: 0.135676761 | BG31: 0.1240782143 | BH31: 0.1121825566 | BI31: 0.1100827109
A32: Commercial | B32: 0.9904104256 | C32: 1.040827983 | D32: 1.036103647 | E32: 1.085038884 | F32: 1.165440322 | G32: 1.273051331 | H32: 1.31936652 | I32: 1.341971523 | J32: 1.353646442 | K32: 1.25795721 | L32: 1.072145499 | M32: 0.9816788464 | N32: 0.9857867615 | O32: 1.03436151 | P32: 1.029666412 | Q32: 1.078297816 | R32: 1.158200069 | S32: 1.265002924 | T32: 1.311170166 | U32: 1.333635016 | V32: 1.345237244 | W32: 1.250142122 | X32: 1.065484535 | Y32: 0.975471651 | Z32: 0.9796279414 | AA32: 0.9924543396 | AB32: 1.023233145 | AC32: 1.071561102 | AD32: 1.150964811 | AE32: 1.257239776 | AF32: 1.303123649 | AG32: 1.325450909 | AH32: 1.336981775 | AI32: 1.2424699 | AJ32: 1.058945337 | AK32: 0.9695924539 | AL32: 0.973703967 | AM32: 1.021683259 | AN32: 1.017045483 | AO32: 1.065081192 | AP32: 1.144004734 | AQ32: 1.249568 | AR32: 1.295171861 | AS32: 1.317363015 | AT32: 1.328823439 | AU32: 1.234888114 | AV32: 1.052483336 | AW32: 0.9636222392 | AX32: 0.9677800701 | AY32: 1.015467462 | AZ32: 1.010857901 | BA32: 1.058601367 | BB32: 1.137044747 | BC32: 1.24196578 | BD32: 1.287292193 | BE32: 1.309348338 | BF32: 1.320739038 | BG32: 1.227375204 | BH32: 1.046080155 | BI32: 0.9577596784
A33: Industrial | B33: 49.66946237 | C33: 53.84354839 | D33: 67.73798127 | E33: 52.32924731 | F33: 53.0648086 | G33: 68.89511111 | H33: 76.88539933 | I33: 62.32836485 | J33: 67.24555907 | K33: 64.56905135 | L33: 56.71153371 | M33: 49.61914287 | N33: 52.11807742 | O33: 54.50553421 | P33: 54.07046771 | Q33: 56.22726817 | R33: 58.30255209 | S33: 64.93398897 | T33: 66.15567063 | U33: 69.37749755 | V33: 66.22654847 | W33: 63.59059942 | X33: 55.85215125 | Y33: 48.86723549 | Z33: 52.35152503 | AA33: 52.86175588 | AB33: 54.31266048 | AC33: 56.4791217 | AD33: 58.56370124 | AE33: 65.22484169 | AF33: 66.45199552 | AG33: 69.68825367 | AH33: 66.52319084 | AI33: 63.87543482 | AJ33: 56.10232455 | AK33: 49.08612191 | AL33: 52.35152503 | AM33: 54.74967573 | AN33: 54.31266048 | AO33: 56.4791217 | AP33: 58.56370124 | AQ33: 65.22484169 | AR33: 66.45199552 | AS33: 69.68825367 | AT33: 66.52319084 | AU33: 63.87543482 | AV33: 56.10232455 | AW33: 49.08612191 | AX33: =+AL33 -> 52.35152503 | AY33: =+AM33 -> 54.74967573 | AZ33: 54.31266048 | BA33: 56.4791217 | BB33: 58.56370124 | BC33: 65.22484169 | BD33: 66.45199552 | BE33: 69.68825367 | BF33: 66.52319084 | BG33: 63.87543482 | BH33: 56.10232455 | BI33: 49.08612191
A34: OPA | B34: 3.391563088 | C34: 3.483011033 | D34: 3.46913243 | E34: 3.986250275 | F34: 4.702992116 | G34: 5.320046362 | H34: 5.578911659 | I34: 5.777351311 | J34: 5.334630536 | K34: 4.490579588 | L34: 3.645340076 | M34: 3.195573285 | N34: 3.287950354 | O34: 3.381313902 | P34: 3.344387599 | Q34: 3.83752088 | R34: 4.527520651 | S34: 5.193484146 | T34: 5.581968738 | U34: 5.780517129 | V34: 5.337553756 | W34: 4.493040293 | X34: 3.647337614 | Y34: 3.197324364 | Z34: 3.287950354 | AA34: 3.264716871 | AB34: 3.344387599 | AC34: 3.83752088 | AD34: 4.527520651 | AE34: 5.193484146 | AF34: 5.581968738 | AG34: 5.780517129 | AH34: 5.337553756 | AI34: 4.493040293 | AJ34: 3.647337614 | AK34: 3.197324364 | AL34: 3.287950354 | AM34: 3.381313902 | AN34: 3.344387599 | AO34: 3.83752088 | AP34: 4.527520651 | AQ34: 5.193484146 | AR34: 5.581968738 | AS34: 5.780517129 | AT34: 5.337553756 | AU34: 4.493040293 | AV34: 3.647337614 | AW34: 3.197324364 | AX34: =+AL34 -> 3.287950354 | AY34: 3.381313902 | AZ34: 3.344387599 | BA34: 3.83752088 | BB34: 4.527520651 | BC34: 5.193484146 | BD34: 5.581968738 | BE34: 5.780517129 | BF34: 5.337553756 | BG34: 4.493040293 | BH34: 3.647337614 | BI34: 3.197324364
A35: SFR | B35: 77.42857047 | C35: 79.73947424 | D35: 76.20319637 | E35: 87.0917259 | F35: 109.0843837 | G35: 120.262511 | H35: 119.9289869 | I35: 125.3296099 | J35: 122.9717708 | K35: 108.1188775 | L35: 91.02698487 | M35: 87.85807552 | N35: 83.00738847 | O35: 85.49440961 | P35: 81.68734956 | Q35: 86.17408618 | R35: 107.9238063 | S35: 118.9581815 | T35: 118.6225711 | U35: 123.9560053 | V35: 121.619236 | W35: 106.9273284 | X35: 90.04167535 | Y35: 86.91462053 | Z35: 83.00738847 | AA35: 82.54632652 | AB35: 81.68734956 | AC35: 86.17408618 | AD35: 107.9238063 | AE35: 118.9581815 | AF35: 118.6225711 | AG35: 123.9560053 | AH35: 121.619236 | AI35: 106.9273284 | AJ35: 90.04167535 | AK35: 86.91462053 | AL35: 83.00738847 | AM35: 85.49440961 | AN35: 81.68734956 | AO35: 86.17408618 | AP35: 107.9238063 | AQ35: 118.9581815 | AR35: 118.6225711 | AS35: 123.9560053 | AT35: 121.619236 | AU35: 106.9273284 | AV35: 90.04167535 | AW35: 86.91462053 | AX35: 83.00738847 | AY35: 85.49440961 | AZ35: 81.68734956 | BA35: 86.17408618 | BB35: 107.9238063 | BC35: 118.9581815 | BD35: 118.6225711 | BE35: 123.9560053 | BF35: 121.619236 | BG35: 106.9273284 | BH35: 90.04167535 | BI35: 86.91462053
A36: Other Water | B36: -0.01437788018 | C36: 0.9692460317 | D36: 0.1722049336 | E36: 0.3697297297 | F36: 1.858804659 | G36: 0.4318604651 | H36: 0.1290322581 | I36: 0.8731182796 | J36: 0.2774606068 | K36: 0.1729856824 | L36: 0.2258889658 | M36: 0.1244765385 | N36: 0.1237157279 | O36: 0.309602967 | P36: 0.1277702481 | Q36: 0.2252120385 | R36: 0.1482309264 | S36: 0.3397546197 | T36: 0.2895837138 | U36: 0.3079678577 | V36: 0.2774606068 | W36: 0.1729856824 | X36: 0.2258889658 | Y36: 0.1244765385 | Z36: 0.1237157279 | AA36: 0.2989270027 | AB36: 0.1277702481 | AC36: 0.2252120385 | AD36: 0.1482309264 | AE36: 0.3397546197 | AF36: 0.2895837138 | AG36: 0.3079678577 | AH36: 0.2774606068 | AI36: 0.1729856824 | AJ36: 0.2258889658 | AK36: 0.1244765385 | AL36: 0.1237157279 | AM36: 0.309602967 | AN36: 0.1277702481 | AO36: 0.2252120385 | AP36: 0.1482309264 | AQ36: 0.3397546197 | AR36: 0.2895837138 | AS36: 0.3079678577 | AT36: 0.2774606068 | AU36: 0.1729856824 | AV36: 0.2258889658 | AW36: 0.1244765385 | AX36: 0.1237157279 | AY36: 0.309602967 | AZ36: 0.1277702481 | BA36: 0.2252120385 | BB36: 0.1482309264 | BC36: 0.3397546197 | BD36: 0.2895837138 | BE36: 0.3079678577 | BF36: 0.2774606068 | BG36: 0.1729856824 | BH36: 0.2258889658 | BI36: 0.1244765385
A38: Central SFR
A39: SFR | B39: 23.86325194 | C39: 24.57546551 | D39: 23.48559533 | E39: 24.77668366 | F39: 31.03336441 | G39: 34.21342452 | H39: 34.11854043 | I39: 35.65496108 | J39: 34.98418058 | K39: 30.75868802 | L39: 25.89622362 | M39: 24.9947021 | N39: 23.61473245 | O39: 24.32226391 | P39: 23.23919521 | Q39: 24.51562478 | R39: 30.70319231 | S39: 33.84235646 | T39: 33.7468788 | U39: 35.26418497 | V39: 34.59939859 | W39: 30.41970478 | X39: 25.61591338 | Y39: 24.72629904 | Z39: 23.61473245 | AA39: 23.48356516 | AB39: 23.23919521 | AC39: 24.51562478 | AD39: 30.70319231 | AE39: 33.84235646 | AF39: 33.7468788 | AG39: 35.26418497 | AH39: 34.59939859 | AI39: 30.41970478 | AJ39: 25.61591338 | AK39: 24.72629904 | AL39: 23.61473245 | AM39: 24.32226391 | AN39: 23.23919521 | AO39: 24.51562478 | AP39: 30.70319231 | AQ39: 33.84235646 | AR39: 33.7468788 | AS39: 35.26418497 | AT39: 34.59939859 | AU39: 30.41970478 | AV39: 25.61591338 | AW39: 24.72629904 | AX39: =+AL39 -> 23.61473245 | AY39: =+AM39 -> 24.32226391 | AZ39: 23.23919521 | BA39: 24.51562478 | BB39: 30.70319231 | BC39: 33.84235646 | BD39: 33.7468788 | BE39: 35.26418497 | BF39: 34.59939859 | BG39: 30.41970478 | BH39: 25.61591338 | BI39: 24.72629904
A41: Northern
A42: Residential | B42: 0.1094850474 | C42: 0.1113803112 | D42: 0.1081233813 | E42: 0.1076603166 | F42: 0.1208128724 | G42: 0.1308817482 | H42: 0.1228302636 | I42: 0.1211361792 | J42: 0.1159761901 | K42: 0.1107613948 | L42: 0.1055728259 | M42: 0.1115681347 | N42: 0.1074522891 | O42: 0.1092388145 | P42: 0.1062957054 | Q42: 0.105912432 | R42: 0.1187341173 | S42: 0.1287168012 | T42: 0.1207991949 | U42: 0.1189356214 | V42: 0.113908419 | W42: 0.1087853745 | X42: 0.1036186698 | Y42: 0.1094287102 | Z42: 0.1053661683 | AA42: 0.1033900756 | AB42: 0.1040252654 | AC42: 0.1035829864 | AD42: 0.1160886642 | AE42: 0.1258509312 | AF42: 0.1181111087 | AG42: 0.1165204403 | AH42: 0.1117068135 | AI42: 0.1066462514 | AJ42: 0.1015459836 | AK42: 0.1072742196 | AL42: 0.1032080613 | AM42: 0.1049245101 | AN42: 0.1019979738 | AO42: 0.1015323595 | AP42: 0.1137191307 | AQ42: 0.1233239275 | AR42: 0.1157783853 | AS42: 0.1142188874 | AT42: 0.1095008119 | AU42: 0.104504865 | AV42: 0.0995382784 | AW42: 0.1051175982 | AX42: 0.100944456 | AY42: 0.1026235372 | AZ42: 0.0997627991 | BA42: 0.09930952828 | BB42: 0.1112339571 | BC42: 0.1206301364 | BD42: 0.1132503138 | BE42: 0.1117245722 | BF42: 0.1071100974 | BG42: 0.1022221427 | BH42: 0.09736222977 | BI42: 0.10281848
A43: Commercial | B43: 0.241856612 | C43: 0.2531395581 | D43: 0.2733193125 | E43: 0.2960530186 | F43: 0.3228873256 | G43: 0.4138655437 | H43: 0.4018338616 | I43: 0.4139439609 | J43: 0.3968917211 | K43: 0.319987958 | L43: 0.2735782604 | M43: 0.2664442991 | N43: 0.2450940365 | O43: 0.2565280129 | P43: 0.2769778878 | Q43: 0.3000159008 | R43: 0.3272094043 | S43: 0.4277935399 | T43: 0.4075323296 | U43: 0.4198141641 | V43: 0.4025201039 | W43: 0.3245257566 | X43: 0.277457916 | Y43: 0.2756272426 | Z43: 0.2535603921 | AA43: 0.2562379793 | AB43: 0.2865456167 | AC43: 0.3103794386 | AD43: 0.3385122953 | AE43: 0.4338930768 | AF43: 0.4135152058 | AG43: 0.4259773466 | AH43: 0.4084293969 | AI43: 0.3292900348 | AJ43: 0.2815312035 | AK43: 0.2739660289 | AL43: 0.2520270699 | AM43: 0.2637844819 | AN43: 0.2848128273 | AO43: 0.3085025221 | AP43: 0.3364652547 | AQ43: 0.4357153274 | AR43: 0.4153410796 | AS43: 0.427858247 | AT43: 0.4102328143 | AU43: 0.3307440129 | AV43: 0.2827743028 | AW43: 0.277982421 | AX43: 0.2504937677 | AY43: 0.2621796491 | AZ43: 0.2830800606 | BA43: 0.3066256302 | BB43: 0.3344182409 | BC43: 0.4330644882 | BD43: 0.4128141948 | BE43: 0.4252552093 | BF43: 0.4077370076 | BG43: 0.3287318065 | BH43: 0.2810539382 | BI43: 0.2762912096
A44: Industrial
A45: OPA | B45: 0.8526317035 | C45: 0.8603736308 | D45: 0.875189951 | E45: 0.9923859406 | F45: 0.9532325811 | G45: 0.7036437006 | H45: 0.7391545156 | I45: 1.286298012 | J45: 1.450691803 | K45: 1.208941584 | L45: 0.8869409845 | M45: 0.600933067 | N45: 0.8530989205 | O45: 0.8608450902 | P45: 0.8756695292 | Q45: 0.9929297387 | R45: 0.9537549243 | S45: 0.7040292766 | T45: 0.7395595505 | U45: 1.287002866 | V45: 1.45148674 | W45: 1.209604048 | X45: 0.887427002 | Y45: 0.6012623606 | Z45: 0.8530989205 | AA45: 0.8311607767 | AB45: 0.8756695292 | AC45: 0.9929297387 | AD45: 0.9537549243 | AE45: 0.7040292766 | AF45: 0.7395595505 | AG45: 1.287002866 | AH45: 1.45148674 | AI45: 1.209604048 | AJ45: 0.887427002 | AK45: 0.6012623606 | AL45: 0.8530989205 | AM45: 0.8608450902 | AN45: 0.8756695292 | AO45: 0.9929297387 | AP45: 0.9537549243 | AQ45: 0.7040292766 | AR45: 0.7395595505 | AS45: 1.287002866 | AT45: 1.45148674 | AU45: 1.209604048 | AV45: 0.887427002 | AW45: 0.6012623606 | AX45: =+AL45 -> 0.8530989205 | AY45: =+AM45 -> 0.8608450902 | AZ45: 0.8756695292 | BA45: 0.9929297387 | BB45: 0.9537549243 | BC45: 0.7040292766 | BD45: 0.7395595505 | BE45: 1.287002866 | BF45: 1.45148674 | BG45: 1.209604048 | BH45: 0.887427002 | BI45: 0.6012623606
A46: SFR | B46: 1.458256966 | C46: 1.621295422 | D46: 1.35592667 | E46: 1.381820824 | F46: 1.591374944 | G46: 1.445838106 | H46: 1.370923637 | I46: 1.328753045 | J46: 1.244432519 | K46: 1.064571382 | L46: 1.118482589 | M46: 1.173440113 | N46: 1.443070215 | O46: 1.604591177 | P46: 1.341700908 | Q46: 1.367261304 | R46: 1.574443889 | S46: 1.430157 | T46: 1.35598983 | U46: 1.314189996 | V46: 1.230745327 | W46: 1.052839027 | X46: 1.106375723 | Y46: 1.160839246 | Z46: 1.443070215 | AA46: 1.549260447 | AB46: 1.341700908 | AC46: 1.367261304 | AD46: 1.574443889 | AE46: 1.430157 | AF46: 1.35598983 | AG46: 1.314189996 | AH46: 1.230745327 | AI46: 1.052839027 | AJ46: 1.106375723 | AK46: 1.160839246 | AL46: 1.443070215 | AM46: 1.604591177 | AN46: 1.341700908 | AO46: 1.367261304 | AP46: 1.574443889 | AQ46: 1.430157 | AR46: 1.35598983 | AS46: 1.314189996 | AT46: 1.230745327 | AU46: 1.052839027 | AV46: 1.106375723 | AW46: 1.160839246 | AX46: =+AL46 -> 1.443070215 | AY46: 1.604591177 | AZ46: 1.341700908 | BA46: 1.367261304 | BB46: 1.574443889 | BC46: 1.430157 | BD46: 1.35598983 | BE46: 1.314189996 | BF46: 1.230745327 | BG46: 1.052839027 | BH46: 1.106375723 | BI46: 1.160839246
A47: Other Water
A49: East Rockcastle
A50: Residential
A51: Block 1 | B51: 0 | C51: 0 | D51: 0.01248342908 | E51: 0.09552542373 | F51: 0.03353438527 | G51: 0.05584863662 | H51: 0.05070055393 | I51: 0.04874491732 | J51: 0.05019421102 | K51: 0.04857504292 | L51: 0.05019421102 | M51: 0.04857504292 | N51: 0.04857504292 | O51: 0.0537795118 | P51: 0.04857504292 | Q51: 0.05019421102 | R51: 0.04857504292 | S51: 0.05019421102 | T51: 0.04857504292 | U51: 0.04857504292 | V51: 0.05019421102 | W51: 0.04857504292 | X51: 0.05019421102 | Y51: 0.04857504292 | Z51: 0.04857504292 | AA51: 0.05192504588 | AB51: 0.04857504292 | AC51: 0.05019421102 | AD51: 0.04857504292 | AE51: 0.05019421102 | AF51: 0.04857504292 | AG51: 0.04857504292 | AH51: 0.05019421102 | AI51: 0.04857504292 | AJ51: 0.05019421102 | AK51: 0.04857504292 | AL51: 0.04857504292 | AM51: 0.0537795118 | AN51: 0.04857504292 | AO51: 0.05019421102 | AP51: 0.04857504292 | AQ51: 0.05019421102 | AR51: 0.04857504292 | AS51: 0.04857504292 | AT51: 0.05019421102 | AU51: 0.04857504292 | AV51: 0.05019421102 | AW51: 0.04857504292 | AX51: =+AL51 -> 0.04857504292 | AY51: =+AM51 -> 0.0537795118 | AZ51: 0.04857504292 | BA51: 0.05019421102 | BB51: 0.04857504292 | BC51: 0.05019421102 | BD51: 0.04857504292 | BE51: 0.04857504292 | BF51: 0.05019421102 | BG51: 0.04857504292 | BH51: 0.05019421102 | BI51: 0.04857504292
A52: Block 2 | B52: 0 | C52: 0 | D52: 0.01524524967 | E52: -0.01501394054 | F52: 0.09173688795 | G52: 0.03950493764 | H52: 0.07251628277 | I52: 0.03401603934 | J52: 0.04095574165 | K52: 0.03963458869 | L52: 0.04095574165 | M52: 0.03963458869 | N52: 0.03963458869 | O52: 0.04388115177 | P52: 0.03963458869 | Q52: 0.04095574165 | R52: 0.03963458869 | S52: 0.04095574165 | T52: 0.03963458869 | U52: 0.03963458869 | V52: 0.04095574165 | W52: 0.03963458869 | X52: 0.04095574165 | Y52: 0.03963458869 | Z52: 0.03963458869 | AA52: 0.0423680086 | AB52: 0.03963458869 | AC52: 0.04095574165 | AD52: 0.03963458869 | AE52: 0.04095574165 | AF52: 0.03963458869 | AG52: 0.03963458869 | AH52: 0.04095574165 | AI52: 0.03963458869 | AJ52: 0.04095574165 | AK52: 0.03963458869 | AL52: 0.03963458869 | AM52: 0.04388115177 | AN52: 0.03963458869 | AO52: 0.04095574165 | AP52: 0.03963458869 | AQ52: 0.04095574165 | AR52: 0.03963458869 | AS52: 0.03963458869 | AT52: 0.04095574165 | AU52: 0.03963458869 | AV52: 0.04095574165 | AW52: 0.03963458869 | AX52: =+AL52 -> 0.03963458869 | AY52: 0.04388115177 | AZ52: 0.03963458869 | BA52: 0.04095574165 | BB52: 0.03963458869 | BC52: 0.04095574165 | BD52: 0.03963458869 | BE52: 0.03963458869 | BF52: 0.04095574165 | BG52: 0.03963458869 | BH52: 0.04095574165 | BI52: 0.03963458869
A53: Commercial
A54: Block 1 | B54: 0 | C54: 0 | D54: 0.005865102639 | E54: 0.1812121212 | F54: 0.03592375367 | G54: 0.03378787879 | H54: 0.03299120235 | I54: 0.04296187683 | J54: 0.05611111111 | K54: 0.05430107527 | L54: 0.05611111111 | M54: 0.05430107527 | N54: 0.05430107527 | O54: 0.06011904762 | P54: 0.05430107527 | Q54: 0.05611111111 | R54: 0.05430107527 | S54: 0.05611111111 | T54: 0.05430107527 | U54: 0.05430107527 | V54: 0.05611111111 | W54: 0.05430107527 | X54: 0.05611111111 | Y54: 0.05430107527 | Z54: 0.05430107527 | AA54: 0.05804597701 | AB54: 0.05430107527 | AC54: 0.05611111111 | AD54: 0.05430107527 | AE54: 0.05611111111 | AF54: 0.05430107527 | AG54: 0.05430107527 | AH54: 0.05611111111 | AI54: 0.05430107527 | AJ54: 0.05611111111 | AK54: 0.05430107527 | AL54: 0.05430107527 | AM54: 0.06011904762 | AN54: 0.05430107527 | AO54: 0.05611111111 | AP54: 0.05430107527 | AQ54: 0.05611111111 | AR54: 0.05430107527 | AS54: 0.05430107527 | AT54: 0.05611111111 | AU54: 0.05430107527 | AV54: 0.05611111111 | AW54: 0.05430107527 | AX54: =+AL54 -> 0.05430107527 | AY54: =+AM54 -> 0.06011904762 | AZ54: 0.05430107527 | BA54: 0.05611111111 | BB54: 0.05430107527 | BC54: 0.05611111111 | BD54: 0.05430107527 | BE54: 0.05430107527 | BF54: 0.05611111111 | BG54: 0.05430107527 | BH54: 0.05611111111 | BI54: 0.05430107527
A55: Block 2 | B55: 0 | C55: 0 | D55: 0.0293255132 | E55: -0.02945281085 | F55: 0.111777767 | G55: 0.02333307051 | H55: 0.008503890145 | I55: 0.03519061584 | J55: 0.03080632868 | K55: 0.02981257614 | L55: 0.03080632868 | M55: 0.02981257614 | N55: 0.02981257614 | O55: 0.03300678073 | P55: 0.02981257614 | Q55: 0.03080632868 | R55: 0.02981257614 | S55: 0.03080632868 | T55: 0.02981257614 | U55: 0.02981257614 | V55: 0.03080632868 | W55: 0.02981257614 | X55: 0.03080632868 | Y55: 0.02981257614 | Z55: 0.02981257614 | AA55: 0.03186861588 | AB55: 0.02981257614 | AC55: 0.03080632868 | AD55: 0.02981257614 | AE55: 0.03080632868 | AF55: 0.02981257614 | AG55: 0.02981257614 | AH55: 0.03080632868 | AI55: 0.02981257614 | AJ55: 0.03080632868 | AK55: 0.02981257614 | AL55: 0.02981257614 | AM55: 0.03300678073 | AN55: 0.02981257614 | AO55: 0.03080632868 | AP55: 0.02981257614 | AQ55: 0.03080632868 | AR55: 0.02981257614 | AS55: 0.02981257614 | AT55: 0.03080632868 | AU55: 0.02981257614 | AV55: 0.03080632868 | AW55: 0.02981257614 | AX55: =+AL55 -> 0.02981257614 | AY55: 0.03300678073 | AZ55: 0.02981257614 | BA55: 0.03080632868 | BB55: 0.02981257614 | BC55: 0.03080632868 | BD55: 0.02981257614 | BE55: 0.02981257614 | BF55: 0.03080632868 | BG55: 0.02981257614 | BH55: 0.03080632868 | BI55: 0.02981257614
A57: NRW | B57: 2018-01-01 | C57: 2018-02-01 | D57: 2018-03-01 | E57: 2018-04-01 | F57: 2018-05-01 | G57: 2018-06-01 | H57: 2018-07-01 | I57: 2018-08-01 | J57: 2018-09-01 | K57: 2018-10-01 | L57: 2018-11-01 | M57: 2018-12-01 | N57: 2019-01-01 | O57: 2019-02-01 | P57: 2019-03-01 | Q57: 2019-04-01 | R57: 2019-05-01 | S57: 2019-06-01 | T57: 2019-07-01 | U57: 2019-08-01 | V57: 2019-09-01 | W57: 2019-10-01 | X57: 2019-11-01 | Y57: 2019-12-01 | Z57: 2020-01-01 | AA57: 2020-02-01 | AB57: 2020-03-01 | AC57: 2020-04-01 | AD57: 2020-05-01 | AE57: 2020-06-01 | AF57: 2020-07-01 | AG57: 2020-08-01 | AH57: 2020-09-01 | AI57: 2020-10-01 | AJ57: 2020-11-01 | AK57: 2020-12-01 | AL57: 2021-01-01 | AM57: 2021-02-01 | AN57: 2021-03-01 | AO57: 2021-04-01 | AP57: 2021-05-01 | AQ57: 2021-06-01 | AR57: 2021-07-01 | AS57: 2021-08-01 | AT57: 2021-09-01 | AU57: 2021-10-01 | AV57: 2021-11-01 | AW57: 2021-12-01 | AX57: 2022-01-01 | AY57: 2022-02-01 | AZ57: 2022-03-01 | BA57: 2022-04-01 | BB57: 2022-05-01 | BC57: 2022-06-01 | BD57: 2022-07-01 | BE57: 2022-08-01 | BF57: 2022-09-01 | BG57: 2022-10-01 | BH57: 2022-11-01 | BI57: 2022-12-01
A58: Central | B58: 247904.8897 | C58: 226245.7076 | D58: 226794.1568 | E58: 233478.1439 | F58: 245627.133 | G58: 277378.2102 | H58: 272820.3416 | I58: 284726.5555 | J58: 272618.8567 | K58: 234826.3912 | L58: 235343.5555 | M58: 253708.3996 | N58: 244834.607 | O58: 223397.7292 | P58: 224068.4936 | Q58: 230987.2378 | R58: 243231.3793 | S58: 274466.3195 | T58: 270074.8775 | U58: 281730.2434 | V58: 269754.8356 | W58: 232359.3975 | X58: 232870.8473 | Y58: 251043.2761 | Z58: 242450.228 | AA58: 221221.7922 | AB58: 221886.3133 | AC58: 228737.7396 | AD58: 240863.9627 | AE58: 271795.3792 | AF58: 267446.5165 | AG58: 278987.9027 | AH58: 267128.3812 | AI58: 230096.8828 | AJ58: 230602.8819 | AK58: 248599.0062 | AL58: 240433.764 | AM58: 219381.6451 | AN58: 220040.8913 | AO58: 226835.1791 | AP58: 238861.5634 | AQ58: 269536.3526 | AR58: 265223.0291 | AS58: 276667.9095 | AT58: 264905.9636 | AU58: 228182.8003 | AV58: 228684.5848 | AW58: 246531.8018
A59: Northern | B59: 3073.837717 | C59: 2762.559587 | D59: 2713.574502 | E59: 2737.739734 | F59: 2934.427984 | G59: 3267.401979 | H59: 2956.667563 | I59: 3057.580539 | J59: 2817.871857 | K59: 2505.693189 | L59: 2705.329118 | M59: 3227.889708 | N59: 3022.623344 | O59: 2728.990101 | P59: 2722.268768 | Q59: 2698.782972 | R59: 2892.156589 | S59: 3238.488384 | T59: 2940.610088 | U59: 2999.653097 | V59: 2780.924912 | W59: 2472.819955 | X59: 2669.931182 | Y59: 3185.732723 | Z59: 2986.272762 | AA59: 2696.112531 | AB59: 2689.536043 | AC59: 2666.131681 | AD59: 2856.580435 | AE59: 3198.371331 | AF59: 2903.941478 | AG59: 2962.703089 | AH59: 2746.95101 | AI59: 2442.699004 | AJ59: 2637.591987 | AK59: 3147.032734 | AL59: 2949.064493 | AM59: 2662.384677 | AN59: 2655.916569 | AO59: 2632.618436 | AP59: 2820.356632 | AQ59: 3157.439926 | AR59: 2866.527401 | AS59: 2924.878182 | AT59: 2712.356624 | AU59: 2411.814097 | AV59: 2604.40746 | AW59: 3107.718874
A60: East Rockcastle | B60: 0 | C60: 0 | D60: 133.9226691 | E60: 403.0601817 | F60: 593.8018572 | G60: 453.6254799 | H60: 553.8128534 | I60: 394.001654 | J60: 415.1633728 | K60: 379.4540564 | L60: 450.1243462 | M60: 497.7282262 | N60: 481.5102808 | O60: 472.6632273 | P60: 435.3445386 | Q60: 443.9834286 | R60: 411.0197516 | S60: 437.6124069 | T60: 408.6747738 | U60: 416.9624498 | V60: 414.509675 | W60: 378.8886548 | X60: 449.5149845 | Y60: 497.1202357 | Z60: 481.6315077 | AA60: 472.7674066 | AB60: 435.4384303 | AC60: 444.0200868 | AD60: 410.9899589 | AE60: 437.5589059 | AF60: 408.5834423 | AG60: 416.8686902 | AH60: 414.4360902 | AI60: 378.8737014 | AJ60: 449.5740193 | AK60: 497.2226125 | AL60: 481.7522511 | AM60: 472.8570605 | AN60: 435.512004 | AO60: 444.0365716 | AP60: 410.98064 | AQ60: 437.5141325 | AR60: 408.498197 | AS60: 416.7632376 | AT60: 414.3799947 | AU60: 378.8440692 | AV60: 449.6154198 | AW60: 497.3710756
B62: 2018-01-01 | C62: 2018-02-01 | D62: 2018-03-01 | E62: 2018-04-01 | F62: 2018-05-01 | G62: 2018-06-01 | H62: 2018-07-01 | I62: 2018-08-01 | J62: 2018-09-01 | K62: 2018-10-01 | L62: 2018-11-01 | M62: 2018-12-01 | N62: 2019-01-01 | O62: 2019-02-01 | P62: 2019-03-01 | Q62: 2019-04-01 | R62: 2019-05-01 | S62: 2019-06-01 | T62: 2019-07-01 | U62: 2019-08-01 | V62: 2019-09-01 | W62: 2019-10-01 | X62: 2019-11-01 | Y62: 2019-12-01 | Z62: 2020-01-01 | AA62: 2020-02-01 | AB62: 2020-03-01 | AC62: 2020-04-01 | AD62: 2020-05-01 | AE62: 2020-06-01 | AF62: 2020-07-01 | AG62: 2020-08-01 | AH62: 2020-09-01 | AI62: 2020-10-01 | AJ62: 2020-11-01 | AK62: 2020-12-01 | AL62: 2021-01-01 | AM62: 2021-02-01 | AN62: 2021-03-01 | AO62: 2021-04-01 | AP62: 2021-05-01 | AQ62: 2021-06-01 | AR62: 2021-07-01 | AS62: 2021-08-01 | AT62: 2021-09-01 | AU62: 2021-10-01 | AV62: 2021-11-01 | AW62: 2021-12-01
A63: TCJA Amortization | J63: 340.8951 | K63: 340.8951 | L63: 340.8951 | M63: 340.8951 | N63: 340.8951 | O63: 340.8951 | P63: 340.8951 | Q63: 340.8951 | R63: 340.8951 | S63: 340.8951

Sheet LinkOut
A1: KY American Water Revenue Link Out
A3: Customer Count
A4: Central | B4: 2018-01-01 | C4: 2018-02-01 | D4: 2018-03-01 | E4: 2018-04-01 | F4: 2018-05-01 | G4: 2018-06-01 | H4: 2018-07-01 | I4: 2018-08-01 | J4: 2018-09-01 | K4: 2018-10-01 | L4: 2018-11-01 | M4: 2018-12-01 | N4: 2019-01-01 | O4: 2019-02-01 | P4: 2019-03-01 | Q4: 2019-04-01 | R4: 2019-05-01 | S4: 2019-06-01 | T4: 2019-07-01 | U4: 2019-08-01 | V4: 2019-09-01 | W4: 2019-10-01 | X4: 2019-11-01 | Y4: 2019-12-01 | Z4: 2020-01-01 | AA4: 2020-02-01 | AB4: 2020-03-01 | AC4: 2020-04-01 | AD4: 2020-05-01 | AE4: 2020-06-01 | AF4: 2020-07-01 | AG4: 2020-08-01 | AH4: 2020-09-01 | AI4: 2020-10-01 | AJ4: 2020-11-01 | AK4: 2020-12-01 | AL4: 2021-01-01 | AM4: 2021-02-01 | AN4: 2021-03-01 | AO4: 2021-04-01 | AP4: 2021-05-01 | AQ4: 2021-06-01 | AR4: 2021-07-01 | AS4: 2021-08-01 | AT4: 2021-09-01 | AU4: 2021-10-01 | AV4: 2021-11-01 | AW4: 2021-12-01 | AX4: 2022-01-01 | AY4: 2022-02-01 | AZ4: 2022-03-01 | BA4: 2022-04-01 | BB4: 2022-05-01 | BC4: 2022-06-01 | BD4: 2022-07-01 | BE4: 2022-08-01 | BF4: 2022-09-01 | BG4: 2022-10-01 | BH4: 2022-11-01 | BI4: 2022-12-01
A5: Residential | B5: =+Central!I9 -> 115586 | C5: =+Central!J9 -> 115507 | D5: =+Central!K9 -> 115615 | E5: =+Central!L9 -> 115791 | F5: =+Central!M9 -> 115828 | G5: =+Central!N9 -> 115859 | H5: =+Central!O9 -> 115858 | I5: =+Central!P9 -> 116024 | J5: =+Central!Q9 -> 116153 | K5: =+Central!R9 -> 116202 | L5: =+Central!S9 -> 116181 | M5: =+Central!T9 -> 116237 | N5: =+Central!U9 -> 116317 | O5: =+Central!V9 -> 116353 | P5: =+Central!W9 -> 116473 | Q5: =+Central!X9 -> 116646 | R5: =+Central!Y9 -> 116722 | S5: =+Central!Z9 -> 116864 | T5: =+Central!AA9 -> 116861 | U5: =+Central!AB9 -> 117157 | V5: =+Central!AC9 -> 117282 | W5: =+Central!AD9 -> 117354 | X5: =+Central!AE9 -> 117331 | Y5: =+Central!AF9 -> 117379 | Z5: =+Central!AG9 -> 117300 | AA5: =+Central!AH9 -> 117335 | AB5: =+Central!AI9 -> 117451 | AC5: =+Central!AJ9 -> 117624 | AD5: =+Central!AK9 -> 117700 | AE5: =+Central!AL9 -> 117843 | AF5: =+Central!AM9 -> 117840 | AG5: =+Central!AN9 -> 118144 | AH5: =+Central!AO9 -> 118273 | AI5: =+Central!AP9 -> 118345 | AJ5: =+Central!AQ9 -> 118321 | AK5: =+Central!AR9 -> 118370 | AL5: =+Central!AS9 -> 118281 | AM5: =+Central!AT9 -> 118317 | AN5: =+Central!AU9 -> 118437 | AO5: =+Central!AV9 -> 118610 | AP5: =+Central!AW9 -> 118684 | AQ5: =+Central!AX9 -> 118830 | AR5: =+Central!AY9 -> 118828 | AS5: =+Central!AZ9 -> 119135 | AT5: =+Central!BA9 -> 119265 | AU5: =+Central!BB9 -> 119336 | AV5: =+Central!BC9 -> 119312 | AW5: =+Central!BD9 -> 119361 | AX5: =+Central!BE9 -> 119259 | AY5: =+Central!BF9 -> 119296 | AZ5: =+Central!BG9 -> 119416 | BA5: =+Central!BH9 -> 119591 | BB5: =+Central!BI9 -> 119666 | BC5: =+Central!BJ9 -> 119813 | BD5: =+Central!BK9 -> 119810 | BE5: =+Central!BL9 -> 120120 | BF5: =+Central!BM9 -> 120251 | BG5: =+Central!BN9 -> 120323 | BH5: =+Central!BO9 -> 120299 | BI5: =+Central!BP9 -> 120348
A6: Commercial | B6: =+Central!I10 -> 9023 | C6: =+Central!J10 -> 9006 | D6: =+Central!K10 -> 8997 | E6: =+Central!L10 -> 9012 | F6: =+Central!M10 -> 9035 | G6: =+Central!N10 -> 9047 | H6: =+Central!O10 -> 9045 | I6: =+Central!P10 -> 9062 | J6: =+Central!Q10 -> 9052 | K6: =+Central!R10 -> 9030 | L6: =+Central!S10 -> 9012 | M6: =+Central!T10 -> 9010 | N6: =+Central!U10 -> 9010 | O6: =+Central!V10 -> 9007 | P6: =+Central!W10 -> 8998 | Q6: =+Central!X10 -> 9013 | R6: =+Central!Y10 -> 9036 | S6: =+Central!Z10 -> 9049 | T6: =+Central!AA10 -> 9046 | U6: =+Central!AB10 -> 9063 | V6: =+Central!AC10 -> 9053 | W6: =+Central!AD10 -> 9031 | X6: =+Central!AE10 -> 9013 | Y6: =+Central!AF10 -> 9012 | Z6: =+Central!AG10 -> 9012 | AA6: =+Central!AH10 -> 9009 | AB6: =+Central!AI10 -> 9000 | AC6: =+Central!AJ10 -> 9015 | AD6: =+Central!AK10 -> 9038 | AE6: =+Central!AL10 -> 9050 | AF6: =+Central!AM10 -> 9047 | AG6: =+Central!AN10 -> 9064 | AH6: =+Central!AO10 -> 9054 | AI6: =+Central!AP10 -> 9032 | AJ6: =+Central!AQ10 -> 9014 | AK6: =+Central!AR10 -> 9012 | AL6: =+Central!AS10 -> 9012 | AM6: =+Central!AT10 -> 9009 | AN6: =+Central!AU10 -> 9000 | AO6: =+Central!AV10 -> 9015 | AP6: =+Central!AW10 -> 9038 | AQ6: =+Central!AX10 -> 9050.5 | AR6: =+Central!AY10 -> 9047.5 | AS6: =+Central!AZ10 -> 9064.5 | AT6: =+Central!BA10 -> 9054.5 | AU6: =+Central!BB10 -> 9032.5 | AV6: =+Central!BC10 -> 9014.5 | AW6: =+Central!BD10 -> 9013 | AX6: =+Central!BE10 -> 9012 | AY6: =+Central!BF10 -> 9009 | AZ6: =+Central!BG10 -> 9000 | BA6: =+Central!BH10 -> 9015 | BB6: =+Central!BI10 -> 9038 | BC6: =+Central!BJ10 -> 9050.5 | BD6: =+Central!BK10 -> 9047.5 | BE6: =+Central!BL10 -> 9064.5 | BF6: =+Central!BM10 -> 9054.5 | BG6: =+Central!BN10 -> 9032.5 | BH6: =+Central!BO10 -> 9014.5 | BI6: =+Central!BP10 -> 9013
A7: Industrial | B7: =+Central!I11 -> 30 | C7: =+Central!J11 -> 31 | D7: =+Central!K11 -> 31 | E7: =+Central!L11 -> 31 | F7: =+Central!M11 -> 30 | G7: =+Central!N11 -> 30 | H7: =+Central!O11 -> 29 | I7: =+Central!P11 -> 29 | J7: =+Central!Q11 -> 29 | K7: =+Central!R11 -> 29 | L7: =+Central!S11 -> 29 | M7: =+Central!T11 -> 29 | N7: =+Central!U11 -> 29 | O7: =+Central!V11 -> 29 | P7: =+Central!W11 -> 29 | Q7: =+Central!X11 -> 29 | R7: =+Central!Y11 -> 29 | S7: =+Central!Z11 -> 29 | T7: =+Central!AA11 -> 29 | U7: =+Central!AB11 -> 29 | V7: =+Central!AC11 -> 29 | W7: =+Central!AD11 -> 29 | X7: =+Central!AE11 -> 29 | Y7: =+Central!AF11 -> 29 | Z7: =+Central!AG11 -> 28 | AA7: =+Central!AH11 -> 28 | AB7: =+Central!AI11 -> 28 | AC7: =+Central!AJ11 -> 28 | AD7: =+Central!AK11 -> 28 | AE7: =+Central!AL11 -> 28 | AF7: =+Central!AM11 -> 28 | AG7: =+Central!AN11 -> 28 | AH7: =+Central!AO11 -> 28 | AI7: =+Central!AP11 -> 28 | AJ7: =+Central!AQ11 -> 28 | AK7: =+Central!AR11 -> 28 | AL7: =+Central!AS11 -> 28 | AM7: =+Central!AT11 -> 28 | AN7: =+Central!AU11 -> 28 | AO7: =+Central!AV11 -> 28 | AP7: =+Central!AW11 -> 28 | AQ7: =+Central!AX11 -> 28 | AR7: =+Central!AY11 -> 28 | AS7: =+Central!AZ11 -> 28 | AT7: =+Central!BA11 -> 28 | AU7: =+Central!BB11 -> 28 | AV7: =+Central!BC11 -> 28 | AW7: =+Central!BD11 -> 28 | AX7: =+Central!BE11 -> 28 | AY7: =+Central!BF11 -> 28 | AZ7: =+Central!BG11 -> 28 | BA7: =+Central!BH11 -> 28 | BB7: =+Central!BI11 -> 28 | BC7: =+Central!BJ11 -> 28 | BD7: =+Central!BK11 -> 28 | BE7: =+Central!BL11 -> 28 | BF7: =+Central!BM11 -> 28 | BG7: =+Central!BN11 -> 28 | BH7: =+Central!BO11 -> 28 | BI7: =+Central!BP11 -> 28
A8: Public Fire | B8: =+Central!I12 -> 56 | C8: =+Central!J12 -> 56 | D8: =+Central!K12 -> 56 | E8: =+Central!L12 -> 56 | F8: =+Central!M12 -> 56 | G8: =+Central!N12 -> 56 | H8: =+Central!O12 -> 56 | I8: =+Central!P12 -> 56 | J8: =+Central!Q12 -> 56 | K8: =+Central!R12 -> 56 | L8: =+Central!S12 -> 56 | M8: =+Central!T12 -> 56 | N8: =+Central!U12 -> 56 | O8: =+Central!V12 -> 56 | P8: =+Central!W12 -> 56 | Q8: =+Central!X12 -> 56 | R8: =+Central!Y12 -> 56 | S8: =+Central!Z12 -> 56 | T8: =+Central!AA12 -> 56 | U8: =+Central!AB12 -> 56 | V8: =+Central!AC12 -> 56 | W8: =+Central!AD12 -> 56 | X8: =+Central!AE12 -> 56 | Y8: =+Central!AF12 -> 56 | Z8: =+Central!AG12 -> 56 | AA8: =+Central!AH12 -> 56 | AB8: =+Central!AI12 -> 56 | AC8: =+Central!AJ12 -> 56 | AD8: =+Central!AK12 -> 56 | AE8: =+Central!AL12 -> 56 | AF8: =+Central!AM12 -> 56 | AG8: =+Central!AN12 -> 56 | AH8: =+Central!AO12 -> 56 | AI8: =+Central!AP12 -> 56 | AJ8: =+Central!AQ12 -> 56 | AK8: =+Central!AR12 -> 56 | AL8: =+Central!AS12 -> 56 | AM8: =+Central!AT12 -> 56 | AN8: =+Central!AU12 -> 56 | AO8: =+Central!AV12 -> 56 | AP8: =+Central!AW12 -> 56 | AQ8: =+Central!AX12 -> 56 | AR8: =+Central!AY12 -> 56 | AS8: =+Central!AZ12 -> 56 | AT8: =+Central!BA12 -> 56 | AU8: =+Central!BB12 -> 56 | AV8: =+Central!BC12 -> 56 | AW8: =+Central!BD12 -> 56 | AX8: =+Central!BE12 -> 56 | AY8: =+Central!BF12 -> 56 | AZ8: =+Central!BG12 -> 56 | BA8: =+Central!BH12 -> 56 | BB8: =+Central!BI12 -> 56 | BC8: =+Central!BJ12 -> 56 | BD8: =+Central!BK12 -> 56 | BE8: =+Central!BL12 -> 56 | BF8: =+Central!BM12 -> 56 | BG8: =+Central!BN12 -> 56 | BH8: =+Central!BO12 -> 56 | BI8: =+Central!BP12 -> 56
A9: Private Fire | B9: =+Central!I13 -> 2293 | C9: =+Central!J13 -> 2292 | D9: =+Central!K13 -> 2294 | E9: =+Central!L13 -> 2296 | F9: =+Central!M13 -> 2298 | G9: =+Central!N13 -> 2298 | H9: =+Central!O13 -> 2298 | I9: =+Central!P13 -> 2305 | J9: =+Central!Q13 -> 2305 | K9: =+Central!R13 -> 2305 | L9: =+Central!S13 -> 2305 | M9: =+Central!T13 -> 2305 | N9: =+Central!U13 -> 2305 | O9: =+Central!V13 -> 2305 | P9: =+Central!W13 -> 2305 | Q9: =+Central!X13 -> 2305 | R9: =+Central!Y13 -> 2305 | S9: =+Central!Z13 -> 2305 | T9: =+Central!AA13 -> 2305 | U9: =+Central!AB13 -> 2305 | V9: =+Central!AC13 -> 2305 | W9: =+Central!AD13 -> 2305 | X9: =+Central!AE13 -> 2305 | Y9: =+Central!AF13 -> 2305 | Z9: =+Central!AG13 -> 2305 | AA9: =+Central!AH13 -> 2305 | AB9: =+Central!AI13 -> 2305 | AC9: =+Central!AJ13 -> 2305 | AD9: =+Central!AK13 -> 2305 | AE9: =+Central!AL13 -> 2305 | AF9: =+Central!AM13 -> 2305 | AG9: =+Central!AN13 -> 2305 | AH9: =+Central!AO13 -> 2305 | AI9: =+Central!AP13 -> 2305 | AJ9: =+Central!AQ13 -> 2305 | AK9: =+Central!AR13 -> 2305 | AL9: =+Central!AS13 -> 2305 | AM9: =+Central!AT13 -> 2305 | AN9: =+Central!AU13 -> 2305 | AO9: =+Central!AV13 -> 2305 | AP9: =+Central!AW13 -> 2305 | AQ9: =+Central!AX13 -> 2305 | AR9: =+Central!AY13 -> 2305 | AS9: =+Central!AZ13 -> 2305 | AT9: =+Central!BA13 -> 2305 | AU9: =+Central!BB13 -> 2305 | AV9: =+Central!BC13 -> 2305 | AW9: =+Central!BD13 -> 2305 | AX9: =+Central!BE13 -> 2305 | AY9: =+Central!BF13 -> 2305 | AZ9: =+Central!BG13 -> 2305 | BA9: =+Central!BH13 -> 2305 | BB9: =+Central!BI13 -> 2305 | BC9: =+Central!BJ13 -> 2305 | BD9: =+Central!BK13 -> 2305 | BE9: =+Central!BL13 -> 2305 | BF9: =+Central!BM13 -> 2305 | BG9: =+Central!BN13 -> 2305 | BH9: =+Central!BO13 -> 2305 | BI9: =+Central!BP13 -> 2305
A10: OPA | B10: =+Central!I14 -> 717 | C10: =+Central!J14 -> 718 | D10: =+Central!K14 -> 713 | E10: =+Central!L14 -> 712 | F10: =+Central!M14 -> 712 | G10: =+Central!N14 -> 722 | H10: =+Central!O14 -> 740 | I10: =+Central!P14 -> 740 | J10: =+Central!Q14 -> 740 | K10: =+Central!R14 -> 740 | L10: =+Central!S14 -> 740 | M10: =+Central!T14 -> 740 | N10: =+Central!U14 -> 740 | O10: =+Central!V14 -> 740 | P10: =+Central!W14 -> 740 | Q10: =+Central!X14 -> 740 | R10: =+Central!Y14 -> 740 | S10: =+Central!Z14 -> 740 | T10: =+Central!AA14 -> 740 | U10: =+Central!AB14 -> 740 | V10: =+Central!AC14 -> 740 | W10: =+Central!AD14 -> 740 | X10: =+Central!AE14 -> 740 | Y10: =+Central!AF14 -> 740 | Z10: =+Central!AG14 -> 740 | AA10: =+Central!AH14 -> 740 | AB10: =+Central!AI14 -> 740 | AC10: =+Central!AJ14 -> 740 | AD10: =+Central!AK14 -> 740 | AE10: =+Central!AL14 -> 740 | AF10: =+Central!AM14 -> 740 | AG10: =+Central!AN14 -> 740 | AH10: =+Central!AO14 -> 740 | AI10: =+Central!AP14 -> 740 | AJ10: =+Central!AQ14 -> 740 | AK10: =+Central!AR14 -> 740 | AL10: =+Central!AS14 -> 740 | AM10: =+Central!AT14 -> 740 | AN10: =+Central!AU14 -> 740 | AO10: =+Central!AV14 -> 740 | AP10: =+Central!AW14 -> 740 | AQ10: =+Central!AX14 -> 740 | AR10: =+Central!AY14 -> 740 | AS10: =+Central!AZ14 -> 740 | AT10: =+Central!BA14 -> 740 | AU10: =+Central!BB14 -> 740 | AV10: =+Central!BC14 -> 740 | AW10: =+Central!BD14 -> 740 | AX10: =+Central!BE14 -> 740 | AY10: =+Central!BF14 -> 740 | AZ10: =+Central!BG14 -> 740 | BA10: =+Central!BH14 -> 740 | BB10: =+Central!BI14 -> 740 | BC10: =+Central!BJ14 -> 740 | BD10: =+Central!BK14 -> 740 | BE10: =+Central!BL14 -> 740 | BF10: =+Central!BM14 -> 740 | BG10: =+Central!BN14 -> 740 | BH10: =+Central!BO14 -> 740 | BI10: =+Central!BP14 -> 740
A11: SFR | B11: =+Central!I15+Central_SFR!I15 -> 14 | C11: =+Central!J15+Central_SFR!J15 -> 14 | D11: =+Central!K15+Central_SFR!K15 -> 14 | E11: =+Central!L15+Central_SFR!L15 -> 13 | F11: =+Central!M15+Central_SFR!M15 -> 13 | G11: =+Central!N15+Central_SFR!N15 -> 13 | H11: =+Central!O15+Central_SFR!O15 -> 13 | I11: =+Central!P15+Central_SFR!P15 -> 13 | J11: =+Central!Q15+Central_SFR!Q15 -> 13 | K11: =+Central!R15+Central_SFR!R15 -> 13 | L11: =+Central!S15+Central_SFR!S15 -> 13 | M11: =+Central!T15+Central_SFR!T15 -> 13 | N11: =+Central!U15+Central_SFR!U15 -> 13 | O11: =+Central!V15+Central_SFR!V15 -> 13 | P11: =+Central!W15+Central_SFR!W15 -> 13 | Q11: =+Central!X15+Central_SFR!X15 -> 13 | R11: =+Central!Y15+Central_SFR!Y15 -> 13 | S11: =+Central!Z15+Central_SFR!Z15 -> 13 | T11: =+Central!AA15+Central_SFR!AA15 -> 13 | U11: =+Central!AB15+Central_SFR!AB15 -> 13 | V11: =+Central!AC15+Central_SFR!AC15 -> 13 | W11: =+Central!AD15+Central_SFR!AD15 -> 13 | X11: =+Central!AE15+Central_SFR!AE15 -> 13 | Y11: =+Central!AF15+Central_SFR!AF15 -> 13 | Z11: =+Central!AG15+Central_SFR!AG15 -> 13 | AA11: =+Central!AH15+Central_SFR!AH15 -> 13 | AB11: =+Central!AI15+Central_SFR!AI15 -> 13 | AC11: =+Central!AJ15+Central_SFR!AJ15 -> 13 | AD11: =+Central!AK15+Central_SFR!AK15 -> 13 | AE11: =+Central!AL15+Central_SFR!AL15 -> 13 | AF11: =+Central!AM15+Central_SFR!AM15 -> 13 | AG11: =+Central!AN15+Central_SFR!AN15 -> 13 | AH11: =+Central!AO15+Central_SFR!AO15 -> 13 | AI11: =+Central!AP15+Central_SFR!AP15 -> 13 | AJ11: =+Central!AQ15+Central_SFR!AQ15 -> 13 | AK11: =+Central!AR15+Central_SFR!AR15 -> 13 | AL11: =+Central!AS15+Central_SFR!AS15 -> 13 | AM11: =+Central!AT15+Central_SFR!AT15 -> 13 | AN11: =+Central!AU15+Central_SFR!AU15 -> 13 | AO11: =+Central!AV15+Central_SFR!AV15 -> 13 | AP11: =+Central!AW15+Central_SFR!AW15 -> 13 | AQ11: =+Central!AX15+Central_SFR!AX15 -> 13 | AR11: =+Central!AY15+Central_SFR!AY15 -> 13 | AS11: =+Central!AZ15+Central_SFR!AZ15 -> 13 | AT11: =+Central!BA15+Central_SFR!BA15 -> 13 | AU11: =+Central!BB15+Central_SFR!BB15 -> 13 | AV11: =+Central!BC15+Central_SFR!BC15 -> 13 | AW11: =+Central!BD15+Central_SFR!BD15 -> 13 | AX11: =+Central!BE15+Central_SFR!BE15 -> 13 | AY11: =+Central!BF15+Central_SFR!BF15 -> 13 | AZ11: =+Central!BG15+Central_SFR!BG15 -> 13 | BA11: =+Central!BH15+Central_SFR!BH15 -> 13 | BB11: =+Central!BI15+Central_SFR!BI15 -> 13 | BC11: =+Central!BJ15+Central_SFR!BJ15 -> 13 | BD11: =+Central!BK15+Central_SFR!BK15 -> 13 | BE11: =+Central!BL15+Central_SFR!BL15 -> 13 | BF11: =+Central!BM15+Central_SFR!BM15 -> 13 | BG11: =+Central!BN15+Central_SFR!BN15 -> 13 | BH11: =+Central!BO15+Central_SFR!BO15 -> 13 | BI11: =+Central!BP15+Central_SFR!BP15 -> 13
A12: Misc Other Sales | B12: =+Central!I16 -> 35 | C12: =+Central!J16 -> 36 | D12: =+Central!K16 -> 34 | E12: =+Central!L16 -> 37 | F12: =+Central!M16 -> 36 | G12: =+Central!N16 -> 43 | H12: =+Central!O16 -> 43 | I12: =+Central!P16 -> 39 | J12: =+Central!Q16 -> 39 | K12: =+Central!R16 -> 39 | L12: =+Central!S16 -> 39 | M12: =+Central!T16 -> 39 | N12: =+Central!U16 -> 39 | O12: =+Central!V16 -> 39 | P12: =+Central!W16 -> 39 | Q12: =+Central!X16 -> 39 | R12: =+Central!Y16 -> 39 | S12: =+Central!Z16 -> 39 | T12: =+Central!AA16 -> 39 | U12: =+Central!AB16 -> 39 | V12: =+Central!AC16 -> 39 | W12: =+Central!AD16 -> 39 | X12: =+Central!AE16 -> 39 | Y12: =+Central!AF16 -> 39 | Z12: =+Central!AG16 -> 39 | AA12: =+Central!AH16 -> 39 | AB12: =+Central!AI16 -> 39 | AC12: =+Central!AJ16 -> 39 | AD12: =+Central!AK16 -> 39 | AE12: =+Central!AL16 -> 39 | AF12: =+Central!AM16 -> 39 | AG12: =+Central!AN16 -> 39 | AH12: =+Central!AO16 -> 39 | AI12: =+Central!AP16 -> 39 | AJ12: =+Central!AQ16 -> 39 | AK12: =+Central!AR16 -> 39 | AL12: =+Central!AS16 -> 39 | AM12: =+Central!AT16 -> 39 | AN12: =+Central!AU16 -> 39 | AO12: =+Central!AV16 -> 39 | AP12: =+Central!AW16 -> 39 | AQ12: =+Central!AX16 -> 39 | AR12: =+Central!AY16 -> 39 | AS12: =+Central!AZ16 -> 39 | AT12: =+Central!BA16 -> 39 | AU12: =+Central!BB16 -> 39 | AV12: =+Central!BC16 -> 39 | AW12: =+Central!BD16 -> 39 | AX12: =+Central!BE16 -> 39 | AY12: =+Central!BF16 -> 39 | AZ12: =+Central!BG16 -> 39 | BA12: =+Central!BH16 -> 39 | BB12: =+Central!BI16 -> 39 | BC12: =+Central!BJ16 -> 39 | BD12: =+Central!BK16 -> 39 | BE12: =+Central!BL16 -> 39 | BF12: =+Central!BM16 -> 39 | BG12: =+Central!BN16 -> 39 | BH12: =+Central!BO16 -> 39 | BI12: =+Central!BP16 -> 39
A13: Total | B13: =+SUM(B5:B12) -> 127754 | C13: =+SUM(C5:C12) -> 127660 | D13: 127754 | E13: 127948 | F13: 128008 | G13: 128068 | H13: 128082 | I13: 128268 | J13: 128387 | K13: 128414 | L13: 128375 | M13: 128429 | N13: 128509 | O13: 128542 | P13: 128653 | Q13: 128841 | R13: 128940 | S13: 129095 | T13: 129089 | U13: 129402 | V13: 129517 | W13: 129567 | X13: 129526 | Y13: 129573 | Z13: 129493 | AA13: 129525 | AB13: 129632 | AC13: 129820 | AD13: 129919 | AE13: 130074 | AF13: 130068 | AG13: 130389 | AH13: 130508 | AI13: 130558 | AJ13: 130516 | AK13: 130563 | AL13: 130474 | AM13: 130507 | AN13: 130618 | AO13: 130806 | AP13: 130903 | AQ13: 131061.5 | AR13: 131056.5 | AS13: 131380.5 | AT13: 131500.5 | AU13: 131549.5 | AV13: 131507.5 | AW13: 131555 | AX13: =+SUM(AX5:AX12) -> 131452 | AY13: 131486 | AZ13: 131597 | BA13: 131787 | BB13: 131885 | BC13: 132044.5 | BD13: 132038.5 | BE13: 132365.5 | BF13: 132486.5 | BG13: 132536.5 | BH13: 132494.5 | BI13: 132542
A15: Northern | B15: =+B$4 -> 2018-01-01 | C15: =+C$4 -> 2018-02-01 | D15: 2018-03-01 | E15: 2018-04-01 | F15: 2018-05-01 | G15: 2018-06-01 | H15: 2018-07-01 | I15: 2018-08-01 | J15: 2018-09-01 | K15: 2018-10-01 | L15: 2018-11-01 | M15: 2018-12-01 | N15: 2019-01-01 | O15: 2019-02-01 | P15: 2019-03-01 | Q15: 2019-04-01 | R15: 2019-05-01 | S15: 2019-06-01 | T15: 2019-07-01 | U15: 2019-08-01 | V15: 2019-09-01 | W15: 2019-10-01 | X15: 2019-11-01 | Y15: 2019-12-01 | Z15: 2020-01-01 | AA15: 2020-02-01 | AB15: 2020-03-01 | AC15: 2020-04-01 | AD15: 2020-05-01 | AE15: 2020-06-01 | AF15: 2020-07-01 | AG15: 2020-08-01 | AH15: 2020-09-01 | AI15: 2020-10-01 | AJ15: 2020-11-01 | AK15: 2020-12-01 | AL15: 2021-01-01 | AM15: 2021-02-01 | AN15: 2021-03-01 | AO15: 2021-04-01 | AP15: 2021-05-01 | AQ15: 2021-06-01 | AR15: 2021-07-01 | AS15: 2021-08-01 | AT15: 2021-09-01 | AU15: 2021-10-01 | AV15: 2021-11-01 | AW15: 2021-12-01 | AX15: 2022-01-01 | AY15: 2022-02-01 | AZ15: 2022-03-01 | BA15: 2022-04-01 | BB15: 2022-05-01 | BC15: 2022-06-01 | BD15: 2022-07-01 | BE15: 2022-08-01 | BF15: 2022-09-01 | BG15: 2022-10-01 | BH15: 2022-11-01 | BI15: 2022-12-01
A16: Residential | B16: =+Northern!I9 -> 2962 | C16: =+Northern!J9 -> 2961 | D16: =+Northern!K9 -> 2971 | E16: =+Northern!L9 -> 2978 | F16: =+Northern!M9 -> 2987 | G16: =+Northern!N9 -> 2994 | H16: =+Northern!O9 -> 2998 | I16: =+Northern!P9 -> 2998 | J16: =+Northern!Q9 -> 3004 | K16: =+Northern!R9 -> 2998 | L16: =+Northern!S9 -> 2989 | M16: =+Northern!T9 -> 2983 | N16: =+Northern!U9 -> 2981 | O16: =+Northern!V9 -> 2982 | P16: =+Northern!W9 -> 2985 | Q16: =+Northern!X9 -> 2990 | R16: =+Northern!Y9 -> 3002 | S16: =+Northern!Z9 -> 3007 | T16: =+Northern!AA9 -> 3011 | U16: =+Northern!AB9 -> 3016 | V16: =+Northern!AC9 -> 3021 | W16: =+Northern!AD9 -> 3015 | X16: =+Northern!AE9 -> 3008 | Y16: =+Northern!AF9 -> 3004 | Z16: =+Northern!AG9 -> 3001 | AA16: =+Northern!AH9 -> 3003 | AB16: =+Northern!AI9 -> 3011 | AC16: =+Northern!AJ9 -> 3018 | AD16: =+Northern!AK9 -> 3031 | AE16: =+Northern!AL9 -> 3036 | AF16: =+Northern!AM9 -> 3040 | AG16: =+Northern!AN9 -> 3039 | AH16: =+Northern!AO9 -> 3041 | AI16: =+Northern!AP9 -> 3036 | AJ16: =+Northern!AQ9 -> 3030 | AK16: =+Northern!AR9 -> 3025 | AL16: =+Northern!AS9 -> 3023 | AM16: =+Northern!AT9 -> 3024 | AN16: =+Northern!AU9 -> 3030 | AO16: =+Northern!AV9 -> 3038 | AP16: =+Northern!AW9 -> 3053 | AQ16: =+Northern!AX9 -> 3057 | AR16: =+Northern!AY9 -> 3060 | AS16: =+Northern!AZ9 -> 3059 | AT16: =+Northern!BA9 -> 3061 | AU16: =+Northern!BB9 -> 3057 | AV16: =+Northern!BC9 -> 3050 | AW16: =+Northern!BD9 -> 3046 | AX16: =+Northern!BE9 -> 3048 | AY16: =+Northern!BF9 -> 3049 | AZ16: =+Northern!BG9 -> 3055 | BA16: =+Northern!BH9 -> 3063 | BB16: =+Northern!BI9 -> 3078 | BC16: =+Northern!BJ9 -> 3082 | BD16: =+Northern!BK9 -> 3085 | BE16: =+Northern!BL9 -> 3084 | BF16: =+Northern!BM9 -> 3086 | BG16: =+Northern!BN9 -> 3082 | BH16: =+Northern!BO9 -> 3075 | BI16: =+Northern!BP9 -> 3071
A17: Commercial | B17: =+Northern!I10 -> 52 | C17: =+Northern!J10 -> 52 | D17: =+Northern!K10 -> 52 | E17: =+Northern!L10 -> 52 | F17: =+Northern!M10 -> 52 | G17: =+Northern!N10 -> 52 | H17: =+Northern!O10 -> 50 | I17: =+Northern!P10 -> 50 | J17: =+Northern!Q10 -> 50 | K17: =+Northern!R10 -> 50 | L17: =+Northern!S10 -> 50 | M17: =+Northern!T10 -> 51 | N17: =+Northern!U10 -> 51 | O17: =+Northern!V10 -> 51 | P17: =+Northern!W10 -> 51 | Q17: =+Northern!X10 -> 51 | R17: =+Northern!Y10 -> 51 | S17: =+Northern!Z10 -> 50 | T17: =+Northern!AA10 -> 49 | U17: =+Northern!AB10 -> 49 | V17: =+Northern!AC10 -> 49 | W17: =+Northern!AD10 -> 49 | X17: =+Northern!AE10 -> 49 | Y17: =+Northern!AF10 -> 49 | Z17: =+Northern!AG10 -> 49 | AA17: =+Northern!AH10 -> 49 | AB17: =+Northern!AI10 -> 49 | AC17: =+Northern!AJ10 -> 49 | AD17: =+Northern!AK10 -> 49 | AE17: =+Northern!AL10 -> 49 | AF17: =+Northern!AM10 -> 48 | AG17: =+Northern!AN10 -> 48 | AH17: =+Northern!AO10 -> 48 | AI17: =+Northern!AP10 -> 48 | AJ17: =+Northern!AQ10 -> 48 | AK17: =+Northern!AR10 -> 49 | AL17: =+Northern!AS10 -> 49 | AM17: =+Northern!AT10 -> 49 | AN17: =+Northern!AU10 -> 49 | AO17: =+Northern!AV10 -> 49 | AP17: =+Northern!AW10 -> 49 | AQ17: =+Northern!AX10 -> 48.5 | AR17: =+Northern!AY10 -> 47.5 | AS17: =+Northern!AZ10 -> 47.5 | AT17: =+Northern!BA10 -> 47.5 | AU17: =+Northern!BB10 -> 47.5 | AV17: =+Northern!BC10 -> 47.5 | AW17: =+Northern!BD10 -> 48 | AX17: =+Northern!BE10 -> 49 | AY17: =+Northern!BF10 -> 49 | AZ17: =+Northern!BG10 -> 49 | BA17: =+Northern!BH10 -> 49 | BB17: =+Northern!BI10 -> 49 | BC17: =+Northern!BJ10 -> 48.5 | BD17: =+Northern!BK10 -> 47.5 | BE17: =+Northern!BL10 -> 47.5 | BF17: =+Northern!BM10 -> 47.5 | BG17: =+Northern!BN10 -> 47.5 | BH17: =+Northern!BO10 -> 47.5 | BI17: =+Northern!BP10 -> 48
A18: Industrial | B18: =+Northern!I11 -> 0 | C18: =+Northern!J11 -> 0 | D18: =+Northern!K11 -> 0 | E18: =+Northern!L11 -> 0 | F18: =+Northern!M11 -> 0 | G18: =+Northern!N11 -> 0 | H18: =+Northern!O11 -> 0 | I18: =+Northern!P11 -> 0 | J18: =+Northern!Q11 -> 0 | K18: =+Northern!R11 -> 0 | L18: =+Northern!S11 -> 0 | M18: =+Northern!T11 -> 0 | N18: =+Northern!U11 -> 0 | O18: =+Northern!V11 -> 0 | P18: =+Northern!W11 -> 0 | Q18: =+Northern!X11 -> 0 | R18: =+Northern!Y11 -> 0 | S18: =+Northern!Z11 -> 0 | T18: =+Northern!AA11 -> 0 | U18: =+Northern!AB11 -> 0 | V18: =+Northern!AC11 -> 0 | W18: =+Northern!AD11 -> 0 | X18: =+Northern!AE11 -> 0 | Y18: =+Northern!AF11 -> 0 | Z18: =+Northern!AG11 -> 0 | AA18: =+Northern!AH11 -> 0 | AB18: =+Northern!AI11 -> 0 | AC18: =+Northern!AJ11 -> 0 | AD18: =+Northern!AK11 -> 0 | AE18: =+Northern!AL11 -> 0 | AF18: =+Northern!AM11 -> 0 | AG18: =+Northern!AN11 -> 0 | AH18: =+Northern!AO11 -> 0 | AI18: =+Northern!AP11 -> 0 | AJ18: =+Northern!AQ11 -> 0 | AK18: =+Northern!AR11 -> 0 | AL18: =+Northern!AS11 -> 0 | AM18: =+Northern!AT11 -> 0 | AN18: =+Northern!AU11 -> 0 | AO18: =+Northern!AV11 -> 0 | AP18: =+Northern!AW11 -> 0 | AQ18: =+Northern!AX11 -> 0 | AR18: =+Northern!AY11 -> 0 | AS18: =+Northern!AZ11 -> 0 | AT18: =+Northern!BA11 -> 0 | AU18: =+Northern!BB11 -> 0 | AV18: =+Northern!BC11 -> 0 | AW18: =+Northern!BD11 -> 0 | AX18: =+Northern!BE11 -> 0 | AY18: =+Northern!BF11 -> 0 | AZ18: =+Northern!BG11 -> 0 | BA18: =+Northern!BH11 -> 0 | BB18: =+Northern!BI11 -> 0 | BC18: =+Northern!BJ11 -> 0 | BD18: =+Northern!BK11 -> 0 | BE18: =+Northern!BL11 -> 0 | BF18: =+Northern!BM11 -> 0 | BG18: =+Northern!BN11 -> 0 | BH18: =+Northern!BO11 -> 0 | BI18: =+Northern!BP11 -> 0
A19: Public Fire | B19: =+Northern!I12 -> 0 | C19: =+Northern!J12 -> 0 | D19: =+Northern!K12 -> 0 | E19: =+Northern!L12 -> 0 | F19: =+Northern!M12 -> 0 | G19: =+Northern!N12 -> 0 | H19: =+Northern!O12 -> 0 | I19: =+Northern!P12 -> 0 | J19: =+Northern!Q12 -> 0 | K19: =+Northern!R12 -> 0 | L19: =+Northern!S12 -> 0 | M19: =+Northern!T12 -> 0 | N19: =+Northern!U12 -> 0 | O19: =+Northern!V12 -> 0 | P19: =+Northern!W12 -> 0 | Q19: =+Northern!X12 -> 0 | R19: =+Northern!Y12 -> 0 | S19: =+Northern!Z12 -> 0 | T19: =+Northern!AA12 -> 0 | U19: =+Northern!AB12 -> 0 | V19: =+Northern!AC12 -> 0 | W19: =+Northern!AD12 -> 0 | X19: =+Northern!AE12 -> 0 | Y19: =+Northern!AF12 -> 0 | Z19: =+Northern!AG12 -> 0 | AA19: =+Northern!AH12 -> 0 | AB19: =+Northern!AI12 -> 0 | AC19: =+Northern!AJ12 -> 0 | AD19: =+Northern!AK12 -> 0 | AE19: =+Northern!AL12 -> 0 | AF19: =+Northern!AM12 -> 0 | AG19: =+Northern!AN12 -> 0 | AH19: =+Northern!AO12 -> 0 | AI19: =+Northern!AP12 -> 0 | AJ19: =+Northern!AQ12 -> 0 | AK19: =+Northern!AR12 -> 0 | AL19: =+Northern!AS12 -> 0 | AM19: =+Northern!AT12 -> 0 | AN19: =+Northern!AU12 -> 0 | AO19: =+Northern!AV12 -> 0 | AP19: =+Northern!AW12 -> 0 | AQ19: =+Northern!AX12 -> 0 | AR19: =+Northern!AY12 -> 0 | AS19: =+Northern!AZ12 -> 0 | AT19: =+Northern!BA12 -> 0 | AU19: =+Northern!BB12 -> 0 | AV19: =+Northern!BC12 -> 0 | AW19: =+Northern!BD12 -> 0 | AX19: =+Northern!BE12 -> 0 | AY19: =+Northern!BF12 -> 0 | AZ19: =+Northern!BG12 -> 0 | BA19: =+Northern!BH12 -> 0 | BB19: =+Northern!BI12 -> 0 | BC19: =+Northern!BJ12 -> 0 | BD19: =+Northern!BK12 -> 0 | BE19: =+Northern!BL12 -> 0 | BF19: =+Northern!BM12 -> 0 | BG19: =+Northern!BN12 -> 0 | BH19: =+Northern!BO12 -> 0 | BI19: =+Northern!BP12 -> 0
A20: Private Fire | B20: =+Northern!I13 -> 0 | C20: =+Northern!J13 -> 0 | D20: =+Northern!K13 -> 0 | E20: =+Northern!L13 -> 0 | F20: =+Northern!M13 -> 0 | G20: =+Northern!N13 -> 0 | H20: =+Northern!O13 -> 0 | I20: =+Northern!P13 -> 0 | J20: =+Northern!Q13 -> 0 | K20: =+Northern!R13 -> 0 | L20: =+Northern!S13 -> 0 | M20: =+Northern!T13 -> 0 | N20: =+Northern!U13 -> 0 | O20: =+Northern!V13 -> 0 | P20: =+Northern!W13 -> 0 | Q20: =+Northern!X13 -> 0 | R20: =+Northern!Y13 -> 0 | S20: =+Northern!Z13 -> 0 | T20: =+Northern!AA13 -> 0 | U20: =+Northern!AB13 -> 0 | V20: =+Northern!AC13 -> 0 | W20: =+Northern!AD13 -> 0 | X20: =+Northern!AE13 -> 0 | Y20: =+Northern!AF13 -> 0 | Z20: =+Northern!AG13 -> 0 | AA20: =+Northern!AH13 -> 0 | AB20: =+Northern!AI13 -> 0 | AC20: =+Northern!AJ13 -> 0 | AD20: =+Northern!AK13 -> 0 | AE20: =+Northern!AL13 -> 0 | AF20: =+Northern!AM13 -> 0 | AG20: =+Northern!AN13 -> 0 | AH20: =+Northern!AO13 -> 0 | AI20: =+Northern!AP13 -> 0 | AJ20: =+Northern!AQ13 -> 0 | AK20: =+Northern!AR13 -> 0 | AL20: =+Northern!AS13 -> 0 | AM20: =+Northern!AT13 -> 0 | AN20: =+Northern!AU13 -> 0 | AO20: =+Northern!AV13 -> 0 | AP20: =+Northern!AW13 -> 0 | AQ20: =+Northern!AX13 -> 0 | AR20: =+Northern!AY13 -> 0 | AS20: =+Northern!AZ13 -> 0 | AT20: =+Northern!BA13 -> 0 | AU20: =+Northern!BB13 -> 0 | AV20: =+Northern!BC13 -> 0 | AW20: =+Northern!BD13 -> 0 | AX20: =+Northern!BE13 -> 0 | AY20: =+Northern!BF13 -> 0 | AZ20: =+Northern!BG13 -> 0 | BA20: =+Northern!BH13 -> 0 | BB20: =+Northern!BI13 -> 0 | BC20: =+Northern!BJ13 -> 0 | BD20: =+Northern!BK13 -> 0 | BE20: =+Northern!BL13 -> 0 | BF20: =+Northern!BM13 -> 0 | BG20: =+Northern!BN13 -> 0 | BH20: =+Northern!BO13 -> 0 | BI20: =+Northern!BP13 -> 0
A21: OPA | B21: =+Northern!I14 -> 8 | C21: =+Northern!J14 -> 8 | D21: =+Northern!K14 -> 8 | E21: =+Northern!L14 -> 8 | F21: =+Northern!M14 -> 8 | G21: =+Northern!N14 -> 8 | H21: =+Northern!O14 -> 8 | I21: =+Northern!P14 -> 8 | J21: =+Northern!Q14 -> 8 | K21: =+Northern!R14 -> 8 | L21: =+Northern!S14 -> 8 | M21: =+Northern!T14 -> 8 | N21: =+Northern!U14 -> 8 | O21: =+Northern!V14 -> 8 | P21: =+Northern!W14 -> 8 | Q21: =+Northern!X14 -> 8 | R21: =+Northern!Y14 -> 8 | S21: =+Northern!Z14 -> 8 | T21: =+Northern!AA14 -> 8 | U21: =+Northern!AB14 -> 8 | V21: =+Northern!AC14 -> 8 | W21: =+Northern!AD14 -> 8 | X21: =+Northern!AE14 -> 8 | Y21: =+Northern!AF14 -> 8 | Z21: =+Northern!AG14 -> 8 | AA21: =+Northern!AH14 -> 8 | AB21: =+Northern!AI14 -> 8 | AC21: =+Northern!AJ14 -> 8 | AD21: =+Northern!AK14 -> 8 | AE21: =+Northern!AL14 -> 8 | AF21: =+Northern!AM14 -> 8 | AG21: =+Northern!AN14 -> 8 | AH21: =+Northern!AO14 -> 8 | AI21: =+Northern!AP14 -> 8 | AJ21: =+Northern!AQ14 -> 8 | AK21: =+Northern!AR14 -> 8 | AL21: =+Northern!AS14 -> 8 | AM21: =+Northern!AT14 -> 8 | AN21: =+Northern!AU14 -> 8 | AO21: =+Northern!AV14 -> 8 | AP21: =+Northern!AW14 -> 8 | AQ21: =+Northern!AX14 -> 8 | AR21: =+Northern!AY14 -> 8 | AS21: =+Northern!AZ14 -> 8 | AT21: =+Northern!BA14 -> 8 | AU21: =+Northern!BB14 -> 8 | AV21: =+Northern!BC14 -> 8 | AW21: =+Northern!BD14 -> 8 | AX21: =+Northern!BE14 -> 8 | AY21: =+Northern!BF14 -> 8 | AZ21: =+Northern!BG14 -> 8 | BA21: =+Northern!BH14 -> 8 | BB21: =+Northern!BI14 -> 8 | BC21: =+Northern!BJ14 -> 8 | BD21: =+Northern!BK14 -> 8 | BE21: =+Northern!BL14 -> 8 | BF21: =+Northern!BM14 -> 8 | BG21: =+Northern!BN14 -> 8 | BH21: =+Northern!BO14 -> 8 | BI21: =+Northern!BP14 -> 8
A22: SFR | B22: =+Northern!I15 -> 1 | C22: =+Northern!J15 -> 1 | D22: =+Northern!K15 -> 1 | E22: =+Northern!L15 -> 1 | F22: =+Northern!M15 -> 1 | G22: =+Northern!N15 -> 1 | H22: =+Northern!O15 -> 1 | I22: =+Northern!P15 -> 1 | J22: =+Northern!Q15 -> 1 | K22: =+Northern!R15 -> 1 | L22: =+Northern!S15 -> 1 | M22: =+Northern!T15 -> 1 | N22: =+Northern!U15 -> 1 | O22: =+Northern!V15 -> 1 | P22: =+Northern!W15 -> 1 | Q22: =+Northern!X15 -> 1 | R22: =+Northern!Y15 -> 1 | S22: =+Northern!Z15 -> 1 | T22: =+Northern!AA15 -> 1 | U22: =+Northern!AB15 -> 1 | V22: =+Northern!AC15 -> 1 | W22: =+Northern!AD15 -> 1 | X22: =+Northern!AE15 -> 1 | Y22: =+Northern!AF15 -> 1 | Z22: =+Northern!AG15 -> 1 | AA22: =+Northern!AH15 -> 1 | AB22: =+Northern!AI15 -> 1 | AC22: =+Northern!AJ15 -> 1 | AD22: =+Northern!AK15 -> 1 | AE22: =+Northern!AL15 -> 1 | AF22: =+Northern!AM15 -> 1 | AG22: =+Northern!AN15 -> 1 | AH22: =+Northern!AO15 -> 1 | AI22: =+Northern!AP15 -> 1 | AJ22: =+Northern!AQ15 -> 1 | AK22: =+Northern!AR15 -> 1 | AL22: =+Northern!AS15 -> 1 | AM22: =+Northern!AT15 -> 1 | AN22: =+Northern!AU15 -> 1 | AO22: =+Northern!AV15 -> 1 | AP22: =+Northern!AW15 -> 1 | AQ22: =+Northern!AX15 -> 1 | AR22: =+Northern!AY15 -> 1 | AS22: =+Northern!AZ15 -> 1 | AT22: =+Northern!BA15 -> 1 | AU22: =+Northern!BB15 -> 1 | AV22: =+Northern!BC15 -> 1 | AW22: =+Northern!BD15 -> 1 | AX22: =+Northern!BE15 -> 1 | AY22: =+Northern!BF15 -> 1 | AZ22: =+Northern!BG15 -> 1 | BA22: =+Northern!BH15 -> 1 | BB22: =+Northern!BI15 -> 1 | BC22: =+Northern!BJ15 -> 1 | BD22: =+Northern!BK15 -> 1 | BE22: =+Northern!BL15 -> 1 | BF22: =+Northern!BM15 -> 1 | BG22: =+Northern!BN15 -> 1 | BH22: =+Northern!BO15 -> 1 | BI22: =+Northern!BP15 -> 1
A23: Misc Other Sales | B23: =+Northern!I16 -> 0 | C23: =+Northern!J16 -> 0 | D23: =+Northern!K16 -> 0 | E23: =+Northern!L16 -> 0 | F23: =+Northern!M16 -> 0 | G23: =+Northern!N16 -> 0 | H23: =+Northern!O16 -> 0 | I23: =+Northern!P16 -> 0 | J23: =+Northern!Q16 -> 0 | K23: =+Northern!R16 -> 0 | L23: =+Northern!S16 -> 0 | M23: =+Northern!T16 -> 0 | N23: =+Northern!U16 -> 0 | O23: =+Northern!V16 -> 0 | P23: =+Northern!W16 -> 0 | Q23: =+Northern!X16 -> 0 | R23: =+Northern!Y16 -> 0 | S23: =+Northern!Z16 -> 0 | T23: =+Northern!AA16 -> 0 | U23: =+Northern!AB16 -> 0 | V23: =+Northern!AC16 -> 0 | W23: =+Northern!AD16 -> 0 | X23: =+Northern!AE16 -> 0 | Y23: =+Northern!AF16 -> 0 | Z23: =+Northern!AG16 -> 0 | AA23: =+Northern!AH16 -> 0 | AB23: =+Northern!AI16 -> 0 | AC23: =+Northern!AJ16 -> 0 | AD23: =+Northern!AK16 -> 0 | AE23: =+Northern!AL16 -> 0 | AF23: =+Northern!AM16 -> 0 | AG23: =+Northern!AN16 -> 0 | AH23: =+Northern!AO16 -> 0 | AI23: =+Northern!AP16 -> 0 | AJ23: =+Northern!AQ16 -> 0 | AK23: =+Northern!AR16 -> 0 | AL23: =+Northern!AS16 -> 0 | AM23: =+Northern!AT16 -> 0 | AN23: =+Northern!AU16 -> 0 | AO23: =+Northern!AV16 -> 0 | AP23: =+Northern!AW16 -> 0 | AQ23: =+Northern!AX16 -> 0 | AR23: =+Northern!AY16 -> 0 | AS23: =+Northern!AZ16 -> 0 | AT23: =+Northern!BA16 -> 0 | AU23: =+Northern!BB16 -> 0 | AV23: =+Northern!BC16 -> 0 | AW23: =+Northern!BD16 -> 0 | AX23: =+Northern!BE16 -> 0 | AY23: =+Northern!BF16 -> 0 | AZ23: =+Northern!BG16 -> 0 | BA23: =+Northern!BH16 -> 0 | BB23: =+Northern!BI16 -> 0 | BC23: =+Northern!BJ16 -> 0 | BD23: =+Northern!BK16 -> 0 | BE23: =+Northern!BL16 -> 0 | BF23: =+Northern!BM16 -> 0 | BG23: =+Northern!BN16 -> 0 | BH23: =+Northern!BO16 -> 0 | BI23: =+Northern!BP16 -> 0
A24: Total | B24: =+SUM(B16:B23) -> 3023 | C24: =+SUM(C16:C23) -> 3022 | D24: 3032 | E24: 3039 | F24: 3048 | G24: 3055 | H24: 3057 | I24: 3057 | J24: 3063 | K24: 3057 | L24: 3048 | M24: 3043 | N24: 3041 | O24: 3042 | P24: 3045 | Q24: 3050 | R24: 3062 | S24: 3066 | T24: 3069 | U24: 3074 | V24: 3079 | W24: 3073 | X24: 3066 | Y24: 3062 | Z24: 3059 | AA24: 3061 | AB24: 3069 | AC24: 3076 | AD24: 3089 | AE24: 3094 | AF24: 3097 | AG24: 3096 | AH24: 3098 | AI24: 3093 | AJ24: 3087 | AK24: 3083 | AL24: 3081 | AM24: 3082 | AN24: 3088 | AO24: 3096 | AP24: 3111 | AQ24: 3114.5 | AR24: 3116.5 | AS24: 3115.5 | AT24: 3117.5 | AU24: 3113.5 | AV24: 3106.5 | AW24: 3103 | AX24: =+SUM(AX16:AX23) -> 3106 | AY24: 3107 | AZ24: 3113 | BA24: 3121 | BB24: 3136 | BC24: 3139.5 | BD24: 3141.5 | BE24: 3140.5 | BF24: 3142.5 | BG24: 3138.5 | BH24: 3131.5 | BI24: 3128
A26: Total Base ex East Rockcastle | B26: =+B$4 -> 2018-01-01 | C26: =+C$4 -> 2018-02-01 | D26: 2018-03-01 | E26: 2018-04-01 | F26: 2018-05-01 | G26: 2018-06-01 | H26: 2018-07-01 | I26: 2018-08-01 | J26: 2018-09-01 | K26: 2018-10-01 | L26: 2018-11-01 | M26: 2018-12-01 | N26: 2019-01-01 | O26: 2019-02-01 | P26: 2019-03-01 | Q26: 2019-04-01 | R26: 2019-05-01 | S26: 2019-06-01 | T26: 2019-07-01 | U26: 2019-08-01 | V26: 2019-09-01 | W26: 2019-10-01 | X26: 2019-11-01 | Y26: 2019-12-01 | Z26: 2020-01-01 | AA26: 2020-02-01 | AB26: 2020-03-01 | AC26: 2020-04-01 | AD26: 2020-05-01 | AE26: 2020-06-01 | AF26: 2020-07-01 | AG26: 2020-08-01 | AH26: 2020-09-01 | AI26: 2020-10-01 | AJ26: 2020-11-01 | AK26: 2020-12-01 | AL26: 2021-01-01 | AM26: 2021-02-01 | AN26: 2021-03-01 | AO26: 2021-04-01 | AP26: 2021-05-01 | AQ26: 2021-06-01 | AR26: 2021-07-01 | AS26: 2021-08-01 | AT26: 2021-09-01 | AU26: 2021-10-01 | AV26: 2021-11-01 | AW26: 2021-12-01 | AX26: 2022-01-01 | AY26: 2022-02-01 | AZ26: 2022-03-01 | BA26: 2022-04-01 | BB26: 2022-05-01 | BC26: 2022-06-01 | BD26: 2022-07-01 | BE26: 2022-08-01 | BF26: 2022-09-01 | BG26: 2022-10-01 | BH26: 2022-11-01 | BI26: 2022-12-01
A27: Residential | B27: =+B5+B16 -> 118548 | C27: =+C5+C16 -> 118468 | D27: 118586 | E27: 118769 | F27: 118815 | G27: 118853 | H27: 118856 | I27: 119022 | J27: 119157 | K27: 119200 | L27: 119170 | M27: 119220 | N27: 119298 | O27: 119335 | P27: 119458 | Q27: 119636 | R27: 119724 | S27: 119871 | T27: 119872 | U27: 120173 | V27: 120303 | W27: 120369 | X27: 120339 | Y27: 120383 | Z27: 120301 | AA27: 120338 | AB27: 120462 | AC27: 120642 | AD27: 120731 | AE27: 120879 | AF27: 120880 | AG27: 121183 | AH27: 121314 | AI27: 121381 | AJ27: 121351 | AK27: 121395 | AL27: 121304 | AM27: 121341 | AN27: 121467 | AO27: 121648 | AP27: 121737 | AQ27: 121887 | AR27: 121888 | AS27: 122194 | AT27: 122326 | AU27: 122393 | AV27: 122362 | AW27: 122407 | AX27: =+AX5+AX16 -> 122307 | AY27: 122345 | AZ27: 122471 | BA27: 122654 | BB27: 122744 | BC27: 122895 | BD27: 122895 | BE27: 123204 | BF27: 123337 | BG27: 123405 | BH27: 123374 | BI27: 123419
A28: Commercial | B28: =+B6+B17 -> 9075 | C28: 9058 | D28: 9049 | E28: 9064 | F28: 9087 | G28: 9099 | H28: 9095 | I28: 9112 | J28: 9102 | K28: 9080 | L28: 9062 | M28: 9061 | N28: 9061 | O28: 9058 | P28: 9049 | Q28: 9064 | R28: 9087 | S28: 9099 | T28: 9095 | U28: 9112 | V28: 9102 | W28: 9080 | X28: 9062 | Y28: 9061 | Z28: 9061 | AA28: 9058 | AB28: 9049 | AC28: 9064 | AD28: 9087 | AE28: 9099 | AF28: 9095 | AG28: 9112 | AH28: 9102 | AI28: 9080 | AJ28: 9062 | AK28: 9061 | AL28: 9061 | AM28: 9058 | AN28: 9049 | AO28: 9064 | AP28: 9087 | AQ28: 9099 | AR28: 9095 | AS28: 9112 | AT28: 9102 | AU28: 9080 | AV28: 9062 | AW28: 9061 | AX28: 9061 | AY28: 9058 | AZ28: 9049 | BA28: 9064 | BB28: 9087 | BC28: 9099 | BD28: 9095 | BE28: 9112 | BF28: 9102 | BG28: 9080 | BH28: 9062 | BI28: 9061
A29: Industrial | B29: 30 | C29: 31 | D29: 31 | E29: 31 | F29: 30 | G29: 30 | H29: 29 | I29: 29 | J29: 29 | K29: 29 | L29: 29 | M29: 29 | N29: 29 | O29: 29 | P29: 29 | Q29: 29 | R29: 29 | S29: 29 | T29: 29 | U29: 29 | V29: 29 | W29: 29 | X29: 29 | Y29: 29 | Z29: 28 | AA29: 28 | AB29: 28 | AC29: 28 | AD29: 28 | AE29: 28 | AF29: 28 | AG29: 28 | AH29: 28 | AI29: 28 | AJ29: 28 | AK29: 28 | AL29: 28 | AM29: 28 | AN29: 28 | AO29: 28 | AP29: 28 | AQ29: 28 | AR29: 28 | AS29: 28 | AT29: 28 | AU29: 28 | AV29: 28 | AW29: 28 | AX29: 28 | AY29: 28 | AZ29: 28 | BA29: 28 | BB29: 28 | BC29: 28 | BD29: 28 | BE29: 28 | BF29: 28 | BG29: 28 | BH29: 28 | BI29: 28
A30: Public Fire | B30: 56 | C30: 56 | D30: 56 | E30: 56 | F30: 56 | G30: 56 | H30: 56 | I30: 56 | J30: 56 | K30: 56 | L30: 56 | M30: 56 | N30: 56 | O30: 56 | P30: 56 | Q30: 56 | R30: 56 | S30: 56 | T30: 56 | U30: 56 | V30: 56 | W30: 56 | X30: 56 | Y30: 56 | Z30: 56 | AA30: 56 | AB30: 56 | AC30: 56 | AD30: 56 | AE30: 56 | AF30: 56 | AG30: 56 | AH30: 56 | AI30: 56 | AJ30: 56 | AK30: 56 | AL30: 56 | AM30: 56 | AN30: 56 | AO30: 56 | AP30: 56 | AQ30: 56 | AR30: 56 | AS30: 56 | AT30: 56 | AU30: 56 | AV30: 56 | AW30: 56 | AX30: 56 | AY30: 56 | AZ30: 56 | BA30: 56 | BB30: 56 | BC30: 56 | BD30: 56 | BE30: 56 | BF30: 56 | BG30: 56 | BH30: 56 | BI30: 56
A31: Private Fire | B31: 2293 | C31: 2292 | D31: 2294 | E31: 2296 | F31: 2298 | G31: 2298 | H31: 2298 | I31: 2305 | J31: 2305 | K31: 2305 | L31: 2305 | M31: 2305 | N31: 2305 | O31: 2305 | P31: 2305 | Q31: 2305 | R31: 2305 | S31: 2305 | T31: 2305 | U31: 2305 | V31: 2305 | W31: 2305 | X31: 2305 | Y31: 2305 | Z31: 2305 | AA31: 2305 | AB31: 2305 | AC31: 2305 | AD31: 2305 | AE31: 2305 | AF31: 2305 | AG31: 2305 | AH31: 2305 | AI31: 2305 | AJ31: 2305 | AK31: 2305 | AL31: 2305 | AM31: 2305 | AN31: 2305 | AO31: 2305 | AP31: 2305 | AQ31: 2305 | AR31: 2305 | AS31: 2305 | AT31: 2305 | AU31: 2305 | AV31: 2305 | AW31: 2305 | AX31: 2305 | AY31: 2305 | AZ31: 2305 | BA31: 2305 | BB31: 2305 | BC31: 2305 | BD31: 2305 | BE31: 2305 | BF31: 2305 | BG31: 2305 | BH31: 2305 | BI31: 2305
A32: OPA | B32: 725 | C32: 726 | D32: 721 | E32: 720 | F32: 720 | G32: 730 | H32: 748 | I32: 748 | J32: 748 | K32: 748 | L32: 748 | M32: 748 | N32: 748 | O32: 748 | P32: 748 | Q32: 748 | R32: 748 | S32: 748 | T32: 748 | U32: 748 | V32: 748 | W32: 748 | X32: 748 | Y32: 748 | Z32: 748 | AA32: 748 | AB32: 748 | AC32: 748 | AD32: 748 | AE32: 748 | AF32: 748 | AG32: 748 | AH32: 748 | AI32: 748 | AJ32: 748 | AK32: 748 | AL32: =+AL10+AL21 -> 748 | AM32: 748 | AN32: 748 | AO32: 748 | AP32: 748 | AQ32: 748 | AR32: 748 | AS32: 748 | AT32: 748 | AU32: 748 | AV32: 748 | AW32: 748 | AX32: =+AX10+AX21 -> 748 | AY32: 748 | AZ32: 748 | BA32: 748 | BB32: 748 | BC32: 748 | BD32: 748 | BE32: 748 | BF32: 748 | BG32: 748 | BH32: 748 | BI32: 748
A33: SFR | B33: 15 | C33: 15 | D33: 15 | E33: 14 | F33: 14 | G33: 14 | H33: 14 | I33: 14 | J33: 14 | K33: 14 | L33: 14 | M33: 14 | N33: 14 | O33: 14 | P33: 14 | Q33: 14 | R33: 14 | S33: 14 | T33: 14 | U33: 14 | V33: 14 | W33: 14 | X33: 14 | Y33: 14 | Z33: 14 | AA33: 14 | AB33: 14 | AC33: 14 | AD33: 14 | AE33: 14 | AF33: 14 | AG33: 14 | AH33: 14 | AI33: 14 | AJ33: 14 | AK33: 14 | AL33: 14 | AM33: 14 | AN33: 14 | AO33: 14 | AP33: 14 | AQ33: 14 | AR33: 14 | AS33: 14 | AT33: 14 | AU33: 14 | AV33: 14 | AW33: 14 | AX33: =+AX11+AX22 -> 14 | AY33: 14 | AZ33: 14 | BA33: 14 | BB33: 14 | BC33: 14 | BD33: 14 | BE33: 14 | BF33: 14 | BG33: 14 | BH33: 14 | BI33: 14
A34: Misc Other Sales | B34: 35 | C34: 36 | D34: 34 | E34: 37 | F34: 36 | G34: 43 | H34: 43 | I34: 39 | J34: 39 | K34: 39 | L34: 39 | M34: 39 | N34: 39 | O34: 39 | P34: 39 | Q34: 39 | R34: 39 | S34: 39 | T34: 39 | U34: 39 | V34: 39 | W34: 39 | X34: 39 | Y34: 39 | Z34: 39 | AA34: 39 | AB34: 39 | AC34: 39 | AD34: 39 | AE34: 39 | AF34: 39 | AG34: 39 | AH34: 39 | AI34: 39 | AJ34: 39 | AK34: 39 | AL34: 39 | AM34: 39 | AN34: 39 | AO34: 39 | AP34: 39 | AQ34: 39 | AR34: 39 | AS34: 39 | AT34: 39 | AU34: 39 | AV34: 39 | AW34: 39 | AX34: =+AX12+AX23 -> 39 | AY34: 39 | AZ34: 39 | BA34: 39 | BB34: 39 | BC34: 39 | BD34: 39 | BE34: 39 | BF34: 39 | BG34: 39 | BH34: 39 | BI34: 39
A35: Total | B35: =+SUM(B27:B34) -> 130777 | C35: =+SUM(C27:C34) -> 130682 | D35: 130786 | E35: 130987 | F35: 131056 | G35: 131123 | H35: 131139 | I35: 131325 | J35: 131450 | K35: 131471 | L35: 131423 | M35: 131472 | N35: 131550 | O35: 131584 | P35: 131698 | Q35: 131891 | R35: 132002 | S35: 132161 | T35: 132158 | U35: 132476 | V35: 132596 | W35: 132640 | X35: 132592 | Y35: 132635 | Z35: 132552 | AA35: 132586 | AB35: 132701 | AC35: 132896 | AD35: 133008 | AE35: 133168 | AF35: 133165 | AG35: 133485 | AH35: 133606 | AI35: 133651 | AJ35: 133603 | AK35: 133646 | AL35: 133555 | AM35: 133589 | AN35: 133706 | AO35: 133902 | AP35: 134014 | AQ35: 134176 | AR35: 134173 | AS35: 134496 | AT35: 134618 | AU35: 134663 | AV35: 134614 | AW35: 134658 | AX35: =+SUM(AX27:AX34) -> 134558 | AY35: 134593 | AZ35: 134710 | BA35: 134908 | BB35: 135021 | BC35: 135184 | BD35: 135180 | BE35: 135506 | BF35: 135629 | BG35: 135675 | BH35: 135626 | BI35: 135670
A37: East Rockcastle | B37: =+B$4 -> 2018-01-01 | C37: =+C$4 -> 2018-02-01 | D37: 2018-03-01 | E37: 2018-04-01 | F37: 2018-05-01 | G37: 2018-06-01 | H37: 2018-07-01 | I37: 2018-08-01 | J37: 2018-09-01 | K37: 2018-10-01 | L37: 2018-11-01 | M37: 2018-12-01 | N37: 2019-01-01 | O37: 2019-02-01 | P37: 2019-03-01 | Q37: 2019-04-01 | R37: 2019-05-01 | S37: 2019-06-01 | T37: 2019-07-01 | U37: 2019-08-01 | V37: 2019-09-01 | W37: 2019-10-01 | X37: 2019-11-01 | Y37: 2019-12-01 | Z37: 2020-01-01 | AA37: 2020-02-01 | AB37: 2020-03-01 | AC37: 2020-04-01 | AD37: 2020-05-01 | AE37: 2020-06-01 | AF37: 2020-07-01 | AG37: 2020-08-01 | AH37: 2020-09-01 | AI37: 2020-10-01 | AJ37: 2020-11-01 | AK37: 2020-12-01 | AL37: 2021-01-01 | AM37: 2021-02-01 | AN37: 2021-03-01 | AO37: 2021-04-01 | AP37: 2021-05-01 | AQ37: 2021-06-01 | AR37: 2021-07-01 | AS37: 2021-08-01 | AT37: 2021-09-01 | AU37: 2021-10-01 | AV37: 2021-11-01 | AW37: 2021-12-01 | AX37: 2022-01-01 | AY37: 2022-02-01 | AZ37: 2022-03-01 | BA37: 2022-04-01 | BB37: 2022-05-01 | BC37: 2022-06-01 | BD37: 2022-07-01 | BE37: 2022-08-01 | BF37: 2022-09-01 | BG37: 2022-10-01 | BH37: 2022-11-01 | BI37: 2022-12-01
A38: Residential | B38: =+'E Rockcastle'!I9 -> 578 | C38: =+'E Rockcastle'!J9 -> 578 | D38: =+'E Rockcastle'!K9 -> 584 | E38: =+'E Rockcastle'!L9 -> 590 | F38: =+'E Rockcastle'!M9 -> 599 | G38: =+'E Rockcastle'!N9 -> 599 | H38: =+'E Rockcastle'!O9 -> 594 | I38: =+'E Rockcastle'!P9 -> 595 | J38: =+'E Rockcastle'!Q9 -> 595 | K38: =+'E Rockcastle'!R9 -> 595 | L38: =+'E Rockcastle'!S9 -> 595 | M38: =+'E Rockcastle'!T9 -> 595 | N38: =+'E Rockcastle'!U9 -> 595 | O38: =+'E Rockcastle'!V9 -> 595 | P38: =+'E Rockcastle'!W9 -> 595 | Q38: =+'E Rockcastle'!X9 -> 595 | R38: =+'E Rockcastle'!Y9 -> 595 | S38: =+'E Rockcastle'!Z9 -> 595 | T38: =+'E Rockcastle'!AA9 -> 595 | U38: =+'E Rockcastle'!AB9 -> 595 | V38: =+'E Rockcastle'!AC9 -> 595 | W38: =+'E Rockcastle'!AD9 -> 595 | X38: =+'E Rockcastle'!AE9 -> 595 | Y38: =+'E Rockcastle'!AF9 -> 595 | Z38: =+'E Rockcastle'!AG9 -> 595 | AA38: =+'E Rockcastle'!AH9 -> 595 | AB38: =+'E Rockcastle'!AI9 -> 595 | AC38: =+'E Rockcastle'!AJ9 -> 595 | AD38: =+'E Rockcastle'!AK9 -> 595 | AE38: =+'E Rockcastle'!AL9 -> 595 | AF38: =+'E Rockcastle'!AM9 -> 595 | AG38: =+'E Rockcastle'!AN9 -> 595 | AH38: =+'E Rockcastle'!AO9 -> 595 | AI38: =+'E Rockcastle'!AP9 -> 595 | AJ38: =+'E Rockcastle'!AQ9 -> 595 | AK38: =+'E Rockcastle'!AR9 -> 595 | AL38: =+'E Rockcastle'!AS9 -> 595 | AM38: =+'E Rockcastle'!AT9 -> 595 | AN38: =+'E Rockcastle'!AU9 -> 595 | AO38: =+'E Rockcastle'!AV9 -> 595 | AP38: =+'E Rockcastle'!AW9 -> 595 | AQ38: =+'E Rockcastle'!AX9 -> 595 | AR38: =+'E Rockcastle'!AY9 -> 595 | AS38: =+'E Rockcastle'!AZ9 -> 595 | AT38: =+'E Rockcastle'!BA9 -> 595 | AU38: =+'E Rockcastle'!BB9 -> 595 | AV38: =+'E Rockcastle'!BC9 -> 595 | AW38: =+'E Rockcastle'!BD9 -> 595 | AX38: =+'E Rockcastle'!BE9 -> 595 | AY38: =+'E Rockcastle'!BF9 -> 595 | AZ38: =+'E Rockcastle'!BG9 -> 595 | BA38: =+'E Rockcastle'!BH9 -> 595 | BB38: =+'E Rockcastle'!BI9 -> 595 | BC38: =+'E Rockcastle'!BJ9 -> 595 | BD38: =+'E Rockcastle'!BK9 -> 595 | BE38: =+'E Rockcastle'!BL9 -> 595 | BF38: =+'E Rockcastle'!BM9 -> 595 | BG38: =+'E Rockcastle'!BN9 -> 595 | BH38: =+'E Rockcastle'!BO9 -> 595 | BI38: =+'E Rockcastle'!BP9 -> 595
A39: Commercial | B39: =+'E Rockcastle'!I10 -> 22 | C39: =+'E Rockcastle'!J10 -> 22 | D39: =+'E Rockcastle'!K10 -> 22 | E39: =+'E Rockcastle'!L10 -> 22 | F39: =+'E Rockcastle'!M10 -> 22 | G39: =+'E Rockcastle'!N10 -> 22 | H39: =+'E Rockcastle'!O10 -> 22 | I39: =+'E Rockcastle'!P10 -> 22 | J39: =+'E Rockcastle'!Q10 -> 22 | K39: =+'E Rockcastle'!R10 -> 22 | L39: =+'E Rockcastle'!S10 -> 22 | M39: =+'E Rockcastle'!T10 -> 22 | N39: =+'E Rockcastle'!U10 -> 22 | O39: =+'E Rockcastle'!V10 -> 22 | P39: =+'E Rockcastle'!W10 -> 22 | Q39: =+'E Rockcastle'!X10 -> 22 | R39: =+'E Rockcastle'!Y10 -> 22 | S39: =+'E Rockcastle'!Z10 -> 22 | T39: =+'E Rockcastle'!AA10 -> 22 | U39: =+'E Rockcastle'!AB10 -> 22 | V39: =+'E Rockcastle'!AC10 -> 22 | W39: =+'E Rockcastle'!AD10 -> 22 | X39: =+'E Rockcastle'!AE10 -> 22 | Y39: =+'E Rockcastle'!AF10 -> 22 | Z39: =+'E Rockcastle'!AG10 -> 22 | AA39: =+'E Rockcastle'!AH10 -> 22 | AB39: =+'E Rockcastle'!AI10 -> 22 | AC39: =+'E Rockcastle'!AJ10 -> 22 | AD39: =+'E Rockcastle'!AK10 -> 22 | AE39: =+'E Rockcastle'!AL10 -> 22 | AF39: =+'E Rockcastle'!AM10 -> 22 | AG39: =+'E Rockcastle'!AN10 -> 22 | AH39: =+'E Rockcastle'!AO10 -> 22 | AI39: =+'E Rockcastle'!AP10 -> 22 | AJ39: =+'E Rockcastle'!AQ10 -> 22 | AK39: =+'E Rockcastle'!AR10 -> 22 | AL39: =+'E Rockcastle'!AS10 -> 22 | AM39: =+'E Rockcastle'!AT10 -> 22 | AN39: =+'E Rockcastle'!AU10 -> 22 | AO39: =+'E Rockcastle'!AV10 -> 22 | AP39: =+'E Rockcastle'!AW10 -> 22 | AQ39: =+'E Rockcastle'!AX10 -> 22 | AR39: =+'E Rockcastle'!AY10 -> 22 | AS39: =+'E Rockcastle'!AZ10 -> 22 | AT39: =+'E Rockcastle'!BA10 -> 22 | AU39: =+'E Rockcastle'!BB10 -> 22 | AV39: =+'E Rockcastle'!BC10 -> 22 | AW39: =+'E Rockcastle'!BD10 -> 22 | AX39: =+'E Rockcastle'!BE10 -> 22 | AY39: =+'E Rockcastle'!BF10 -> 22 | AZ39: =+'E Rockcastle'!BG10 -> 22 | BA39: =+'E Rockcastle'!BH10 -> 22 | BB39: =+'E Rockcastle'!BI10 -> 22 | BC39: =+'E Rockcastle'!BJ10 -> 22 | BD39: =+'E Rockcastle'!BK10 -> 22 | BE39: =+'E Rockcastle'!BL10 -> 22 | BF39: =+'E Rockcastle'!BM10 -> 22 | BG39: =+'E Rockcastle'!BN10 -> 22 | BH39: =+'E Rockcastle'!BO10 -> 22 | BI39: =+'E Rockcastle'!BP10 -> 22
A40: Industrial | B40: =+'E Rockcastle'!I11 -> 0 | C40: =+'E Rockcastle'!J11 -> 0 | D40: =+'E Rockcastle'!K11 -> 0 | E40: =+'E Rockcastle'!L11 -> 0 | F40: =+'E Rockcastle'!M11 -> 0 | G40: =+'E Rockcastle'!N11 -> 0 | H40: =+'E Rockcastle'!O11 -> 0 | I40: =+'E Rockcastle'!P11 -> 0 | J40: =+'E Rockcastle'!Q11 -> 0 | K40: =+'E Rockcastle'!R11 -> 0 | L40: =+'E Rockcastle'!S11 -> 0 | M40: =+'E Rockcastle'!T11 -> 0 | N40: =+'E Rockcastle'!U11 -> 0 | O40: =+'E Rockcastle'!V11 -> 0 | P40: =+'E Rockcastle'!W11 -> 0 | Q40: =+'E Rockcastle'!X11 -> 0 | R40: =+'E Rockcastle'!Y11 -> 0 | S40: =+'E Rockcastle'!Z11 -> 0 | T40: =+'E Rockcastle'!AA11 -> 0 | U40: =+'E Rockcastle'!AB11 -> 0 | V40: =+'E Rockcastle'!AC11 -> 0 | W40: =+'E Rockcastle'!AD11 -> 0 | X40: =+'E Rockcastle'!AE11 -> 0 | Y40: =+'E Rockcastle'!AF11 -> 0 | Z40: =+'E Rockcastle'!AG11 -> 0 | AA40: =+'E Rockcastle'!AH11 -> 0 | AB40: =+'E Rockcastle'!AI11 -> 0 | AC40: =+'E Rockcastle'!AJ11 -> 0 | AD40: =+'E Rockcastle'!AK11 -> 0 | AE40: =+'E Rockcastle'!AL11 -> 0 | AF40: =+'E Rockcastle'!AM11 -> 0 | AG40: =+'E Rockcastle'!AN11 -> 0 | AH40: =+'E Rockcastle'!AO11 -> 0 | AI40: =+'E Rockcastle'!AP11 -> 0 | AJ40: =+'E Rockcastle'!AQ11 -> 0 | AK40: =+'E Rockcastle'!AR11 -> 0 | AL40: =+'E Rockcastle'!AS11 -> 0 | AM40: =+'E Rockcastle'!AT11 -> 0 | AN40: =+'E Rockcastle'!AU11 -> 0 | AO40: =+'E Rockcastle'!AV11 -> 0 | AP40: =+'E Rockcastle'!AW11 -> 0 | AQ40: =+'E Rockcastle'!AX11 -> 0 | AR40: =+'E Rockcastle'!AY11 -> 0 | AS40: =+'E Rockcastle'!AZ11 -> 0 | AT40: =+'E Rockcastle'!BA11 -> 0 | AU40: =+'E Rockcastle'!BB11 -> 0 | AV40: =+'E Rockcastle'!BC11 -> 0 | AW40: =+'E Rockcastle'!BD11 -> 0 | AX40: =+'E Rockcastle'!BE11 -> 0 | AY40: =+'E Rockcastle'!BF11 -> 0 | AZ40: =+'E Rockcastle'!BG11 -> 0 | BA40: =+'E Rockcastle'!BH11 -> 0 | BB40: =+'E Rockcastle'!BI11 -> 0 | BC40: =+'E Rockcastle'!BJ11 -> 0 | BD40: =+'E Rockcastle'!BK11 -> 0 | BE40: =+'E Rockcastle'!BL11 -> 0 | BF40: =+'E Rockcastle'!BM11 -> 0 | BG40: =+'E Rockcastle'!BN11 -> 0 | BH40: =+'E Rockcastle'!BO11 -> 0 | BI40: =+'E Rockcastle'!BP11 -> 0
A41: Public Fire | B41: =+'E Rockcastle'!I12 -> 0 | C41: =+'E Rockcastle'!J12 -> 0 | D41: =+'E Rockcastle'!K12 -> 0 | E41: =+'E Rockcastle'!L12 -> 0 | F41: =+'E Rockcastle'!M12 -> 0 | G41: =+'E Rockcastle'!N12 -> 0 | H41: =+'E Rockcastle'!O12 -> 0 | I41: =+'E Rockcastle'!P12 -> 0 | J41: =+'E Rockcastle'!Q12 -> 0 | K41: =+'E Rockcastle'!R12 -> 0 | L41: =+'E Rockcastle'!S12 -> 0 | M41: =+'E Rockcastle'!T12 -> 0 | N41: =+'E Rockcastle'!U12 -> 0 | O41: =+'E Rockcastle'!V12 -> 0 | P41: =+'E Rockcastle'!W12 -> 0 | Q41: =+'E Rockcastle'!X12 -> 0 | R41: =+'E Rockcastle'!Y12 -> 0 | S41: =+'E Rockcastle'!Z12 -> 0 | T41: =+'E Rockcastle'!AA12 -> 0 | U41: =+'E Rockcastle'!AB12 -> 0 | V41: =+'E Rockcastle'!AC12 -> 0 | W41: =+'E Rockcastle'!AD12 -> 0 | X41: =+'E Rockcastle'!AE12 -> 0 | Y41: =+'E Rockcastle'!AF12 -> 0 | Z41: =+'E Rockcastle'!AG12 -> 0 | AA41: =+'E Rockcastle'!AH12 -> 0 | AB41: =+'E Rockcastle'!AI12 -> 0 | AC41: =+'E Rockcastle'!AJ12 -> 0 | AD41: =+'E Rockcastle'!AK12 -> 0 | AE41: =+'E Rockcastle'!AL12 -> 0 | AF41: =+'E Rockcastle'!AM12 -> 0 | AG41: =+'E Rockcastle'!AN12 -> 0 | AH41: =+'E Rockcastle'!AO12 -> 0 | AI41: =+'E Rockcastle'!AP12 -> 0 | AJ41: =+'E Rockcastle'!AQ12 -> 0 | AK41: =+'E Rockcastle'!AR12 -> 0 | AL41: =+'E Rockcastle'!AS12 -> 0 | AM41: =+'E Rockcastle'!AT12 -> 0 | AN41: =+'E Rockcastle'!AU12 -> 0 | AO41: =+'E Rockcastle'!AV12 -> 0 | AP41: =+'E Rockcastle'!AW12 -> 0 | AQ41: =+'E Rockcastle'!AX12 -> 0 | AR41: =+'E Rockcastle'!AY12 -> 0 | AS41: =+'E Rockcastle'!AZ12 -> 0 | AT41: =+'E Rockcastle'!BA12 -> 0 | AU41: =+'E Rockcastle'!BB12 -> 0 | AV41: =+'E Rockcastle'!BC12 -> 0 | AW41: =+'E Rockcastle'!BD12 -> 0 | AX41: =+'E Rockcastle'!BE12 -> 0 | AY41: =+'E Rockcastle'!BF12 -> 0 | AZ41: =+'E Rockcastle'!BG12 -> 0 | BA41: =+'E Rockcastle'!BH12 -> 0 | BB41: =+'E Rockcastle'!BI12 -> 0 | BC41: =+'E Rockcastle'!BJ12 -> 0 | BD41: =+'E Rockcastle'!BK12 -> 0 | BE41: =+'E Rockcastle'!BL12 -> 0 | BF41: =+'E Rockcastle'!BM12 -> 0 | BG41: =+'E Rockcastle'!BN12 -> 0 | BH41: =+'E Rockcastle'!BO12 -> 0 | BI41: =+'E Rockcastle'!BP12 -> 0
A42: Private Fire | B42: =+'E Rockcastle'!I13 -> 0 | C42: =+'E Rockcastle'!J13 -> 0 | D42: =+'E Rockcastle'!K13 -> 0 | E42: =+'E Rockcastle'!L13 -> 0 | F42: =+'E Rockcastle'!M13 -> 0 | G42: =+'E Rockcastle'!N13 -> 0 | H42: =+'E Rockcastle'!O13 -> 0 | I42: =+'E Rockcastle'!P13 -> 0 | J42: =+'E Rockcastle'!Q13 -> 0 | K42: =+'E Rockcastle'!R13 -> 0 | L42: =+'E Rockcastle'!S13 -> 0 | M42: =+'E Rockcastle'!T13 -> 0 | N42: =+'E Rockcastle'!U13 -> 0 | O42: =+'E Rockcastle'!V13 -> 0 | P42: =+'E Rockcastle'!W13 -> 0 | Q42: =+'E Rockcastle'!X13 -> 0 | R42: =+'E Rockcastle'!Y13 -> 0 | S42: =+'E Rockcastle'!Z13 -> 0 | T42: =+'E Rockcastle'!AA13 -> 0 | U42: =+'E Rockcastle'!AB13 -> 0 | V42: =+'E Rockcastle'!AC13 -> 0 | W42: =+'E Rockcastle'!AD13 -> 0 | X42: =+'E Rockcastle'!AE13 -> 0 | Y42: =+'E Rockcastle'!AF13 -> 0 | Z42: =+'E Rockcastle'!AG13 -> 0 | AA42: =+'E Rockcastle'!AH13 -> 0 | AB42: =+'E Rockcastle'!AI13 -> 0 | AC42: =+'E Rockcastle'!AJ13 -> 0 | AD42: =+'E Rockcastle'!AK13 -> 0 | AE42: =+'E Rockcastle'!AL13 -> 0 | AF42: =+'E Rockcastle'!AM13 -> 0 | AG42: =+'E Rockcastle'!AN13 -> 0 | AH42: =+'E Rockcastle'!AO13 -> 0 | AI42: =+'E Rockcastle'!AP13 -> 0 | AJ42: =+'E Rockcastle'!AQ13 -> 0 | AK42: =+'E Rockcastle'!AR13 -> 0 | AL42: =+'E Rockcastle'!AS13 -> 0 | AM42: =+'E Rockcastle'!AT13 -> 0 | AN42: =+'E Rockcastle'!AU13 -> 0 | AO42: =+'E Rockcastle'!AV13 -> 0 | AP42: =+'E Rockcastle'!AW13 -> 0 | AQ42: =+'E Rockcastle'!AX13 -> 0 | AR42: =+'E Rockcastle'!AY13 -> 0 | AS42: =+'E Rockcastle'!AZ13 -> 0 | AT42: =+'E Rockcastle'!BA13 -> 0 | AU42: =+'E Rockcastle'!BB13 -> 0 | AV42: =+'E Rockcastle'!BC13 -> 0 | AW42: =+'E Rockcastle'!BD13 -> 0 | AX42: =+'E Rockcastle'!BE13 -> 0 | AY42: =+'E Rockcastle'!BF13 -> 0 | AZ42: =+'E Rockcastle'!BG13 -> 0 | BA42: =+'E Rockcastle'!BH13 -> 0 | BB42: =+'E Rockcastle'!BI13 -> 0 | BC42: =+'E Rockcastle'!BJ13 -> 0 | BD42: =+'E Rockcastle'!BK13 -> 0 | BE42: =+'E Rockcastle'!BL13 -> 0 | BF42: =+'E Rockcastle'!BM13 -> 0 | BG42: =+'E Rockcastle'!BN13 -> 0 | BH42: =+'E Rockcastle'!BO13 -> 0 | BI42: =+'E Rockcastle'!BP13 -> 0
A43: OPA | B43: =+'E Rockcastle'!I14 -> 0 | C43: =+'E Rockcastle'!J14 -> 0 | D43: =+'E Rockcastle'!K14 -> 0 | E43: =+'E Rockcastle'!L14 -> 0 | F43: =+'E Rockcastle'!M14 -> 0 | G43: =+'E Rockcastle'!N14 -> 0 | H43: =+'E Rockcastle'!O14 -> 0 | I43: =+'E Rockcastle'!P14 -> 0 | J43: =+'E Rockcastle'!Q14 -> 0 | K43: =+'E Rockcastle'!R14 -> 0 | L43: =+'E Rockcastle'!S14 -> 0 | M43: =+'E Rockcastle'!T14 -> 0 | N43: =+'E Rockcastle'!U14 -> 0 | O43: =+'E Rockcastle'!V14 -> 0 | P43: =+'E Rockcastle'!W14 -> 0 | Q43: =+'E Rockcastle'!X14 -> 0 | R43: =+'E Rockcastle'!Y14 -> 0 | S43: =+'E Rockcastle'!Z14 -> 0 | T43: =+'E Rockcastle'!AA14 -> 0 | U43: =+'E Rockcastle'!AB14 -> 0 | V43: =+'E Rockcastle'!AC14 -> 0 | W43: =+'E Rockcastle'!AD14 -> 0 | X43: =+'E Rockcastle'!AE14 -> 0 | Y43: =+'E Rockcastle'!AF14 -> 0 | Z43: =+'E Rockcastle'!AG14 -> 0 | AA43: =+'E Rockcastle'!AH14 -> 0 | AB43: =+'E Rockcastle'!AI14 -> 0 | AC43: =+'E Rockcastle'!AJ14 -> 0 | AD43: =+'E Rockcastle'!AK14 -> 0 | AE43: =+'E Rockcastle'!AL14 -> 0 | AF43: =+'E Rockcastle'!AM14 -> 0 | AG43: =+'E Rockcastle'!AN14 -> 0 | AH43: =+'E Rockcastle'!AO14 -> 0 | AI43: =+'E Rockcastle'!AP14 -> 0 | AJ43: =+'E Rockcastle'!AQ14 -> 0 | AK43: =+'E Rockcastle'!AR14 -> 0 | AL43: =+'E Rockcastle'!AS14 -> 0 | AM43: =+'E Rockcastle'!AT14 -> 0 | AN43: =+'E Rockcastle'!AU14 -> 0 | AO43: =+'E Rockcastle'!AV14 -> 0 | AP43: =+'E Rockcastle'!AW14 -> 0 | AQ43: =+'E Rockcastle'!AX14 -> 0 | AR43: =+'E Rockcastle'!AY14 -> 0 | AS43: =+'E Rockcastle'!AZ14 -> 0 | AT43: =+'E Rockcastle'!BA14 -> 0 | AU43: =+'E Rockcastle'!BB14 -> 0 | AV43: =+'E Rockcastle'!BC14 -> 0 | AW43: =+'E Rockcastle'!BD14 -> 0 | AX43: =+'E Rockcastle'!BE14 -> 0 | AY43: =+'E Rockcastle'!BF14 -> 0 | AZ43: =+'E Rockcastle'!BG14 -> 0 | BA43: =+'E Rockcastle'!BH14 -> 0 | BB43: =+'E Rockcastle'!BI14 -> 0 | BC43: =+'E Rockcastle'!BJ14 -> 0 | BD43: =+'E Rockcastle'!BK14 -> 0 | BE43: =+'E Rockcastle'!BL14 -> 0 | BF43: =+'E Rockcastle'!BM14 -> 0 | BG43: =+'E Rockcastle'!BN14 -> 0 | BH43: =+'E Rockcastle'!BO14 -> 0 | BI43: =+'E Rockcastle'!BP14 -> 0
A44: SFR | B44: =+'E Rockcastle'!I15 -> 0 | C44: =+'E Rockcastle'!J15 -> 0 | D44: =+'E Rockcastle'!K15 -> 0 | E44: =+'E Rockcastle'!L15 -> 0 | F44: =+'E Rockcastle'!M15 -> 0 | G44: =+'E Rockcastle'!N15 -> 0 | H44: =+'E Rockcastle'!O15 -> 0 | I44: =+'E Rockcastle'!P15 -> 0 | J44: =+'E Rockcastle'!Q15 -> 0 | K44: =+'E Rockcastle'!R15 -> 0 | L44: =+'E Rockcastle'!S15 -> 0 | M44: =+'E Rockcastle'!T15 -> 0 | N44: =+'E Rockcastle'!U15 -> 0 | O44: =+'E Rockcastle'!V15 -> 0 | P44: =+'E Rockcastle'!W15 -> 0 | Q44: =+'E Rockcastle'!X15 -> 0 | R44: =+'E Rockcastle'!Y15 -> 0 | S44: =+'E Rockcastle'!Z15 -> 0 | T44: =+'E Rockcastle'!AA15 -> 0 | U44: =+'E Rockcastle'!AB15 -> 0 | V44: =+'E Rockcastle'!AC15 -> 0 | W44: =+'E Rockcastle'!AD15 -> 0 | X44: =+'E Rockcastle'!AE15 -> 0 | Y44: =+'E Rockcastle'!AF15 -> 0 | Z44: =+'E Rockcastle'!AG15 -> 0 | AA44: =+'E Rockcastle'!AH15 -> 0 | AB44: =+'E Rockcastle'!AI15 -> 0 | AC44: =+'E Rockcastle'!AJ15 -> 0 | AD44: =+'E Rockcastle'!AK15 -> 0 | AE44: =+'E Rockcastle'!AL15 -> 0 | AF44: =+'E Rockcastle'!AM15 -> 0 | AG44: =+'E Rockcastle'!AN15 -> 0 | AH44: =+'E Rockcastle'!AO15 -> 0 | AI44: =+'E Rockcastle'!AP15 -> 0 | AJ44: =+'E Rockcastle'!AQ15 -> 0 | AK44: =+'E Rockcastle'!AR15 -> 0 | AL44: =+'E Rockcastle'!AS15 -> 0 | AM44: =+'E Rockcastle'!AT15 -> 0 | AN44: =+'E Rockcastle'!AU15 -> 0 | AO44: =+'E Rockcastle'!AV15 -> 0 | AP44: =+'E Rockcastle'!AW15 -> 0 | AQ44: =+'E Rockcastle'!AX15 -> 0 | AR44: =+'E Rockcastle'!AY15 -> 0 | AS44: =+'E Rockcastle'!AZ15 -> 0 | AT44: =+'E Rockcastle'!BA15 -> 0 | AU44: =+'E Rockcastle'!BB15 -> 0 | AV44: =+'E Rockcastle'!BC15 -> 0 | AW44: =+'E Rockcastle'!BD15 -> 0 | AX44: =+'E Rockcastle'!BE15 -> 0 | AY44: =+'E Rockcastle'!BF15 -> 0 | AZ44: =+'E Rockcastle'!BG15 -> 0 | BA44: =+'E Rockcastle'!BH15 -> 0 | BB44: =+'E Rockcastle'!BI15 -> 0 | BC44: =+'E Rockcastle'!BJ15 -> 0 | BD44: =+'E Rockcastle'!BK15 -> 0 | BE44: =+'E Rockcastle'!BL15 -> 0 | BF44: =+'E Rockcastle'!BM15 -> 0 | BG44: =+'E Rockcastle'!BN15 -> 0 | BH44: =+'E Rockcastle'!BO15 -> 0 | BI44: =+'E Rockcastle'!BP15 -> 0
A45: Misc Other Sales | B45: =+'E Rockcastle'!I16 -> 0 | C45: =+'E Rockcastle'!J16 -> 0 | D45: =+'E Rockcastle'!K16 -> 0 | E45: =+'E Rockcastle'!L16 -> 0 | F45: =+'E Rockcastle'!M16 -> 0 | G45: =+'E Rockcastle'!N16 -> 0 | H45: =+'E Rockcastle'!O16 -> 0 | I45: =+'E Rockcastle'!P16 -> 0 | J45: =+'E Rockcastle'!Q16 -> 0 | K45: =+'E Rockcastle'!R16 -> 0 | L45: =+'E Rockcastle'!S16 -> 0 | M45: =+'E Rockcastle'!T16 -> 0 | N45: =+'E Rockcastle'!U16 -> 0 | O45: =+'E Rockcastle'!V16 -> 0 | P45: =+'E Rockcastle'!W16 -> 0 | Q45: =+'E Rockcastle'!X16 -> 0 | R45: =+'E Rockcastle'!Y16 -> 0 | S45: =+'E Rockcastle'!Z16 -> 0 | T45: =+'E Rockcastle'!AA16 -> 0 | U45: =+'E Rockcastle'!AB16 -> 0 | V45: =+'E Rockcastle'!AC16 -> 0 | W45: =+'E Rockcastle'!AD16 -> 0 | X45: =+'E Rockcastle'!AE16 -> 0 | Y45: =+'E Rockcastle'!AF16 -> 0 | Z45: =+'E Rockcastle'!AG16 -> 0 | AA45: =+'E Rockcastle'!AH16 -> 0 | AB45: =+'E Rockcastle'!AI16 -> 0 | AC45: =+'E Rockcastle'!AJ16 -> 0 | AD45: =+'E Rockcastle'!AK16 -> 0 | AE45: =+'E Rockcastle'!AL16 -> 0 | AF45: =+'E Rockcastle'!AM16 -> 0 | AG45: =+'E Rockcastle'!AN16 -> 0 | AH45: =+'E Rockcastle'!AO16 -> 0 | AI45: =+'E Rockcastle'!AP16 -> 0 | AJ45: =+'E Rockcastle'!AQ16 -> 0 | AK45: =+'E Rockcastle'!AR16 -> 0 | AL45: =+'E Rockcastle'!AS16 -> 0 | AM45: =+'E Rockcastle'!AT16 -> 0 | AN45: =+'E Rockcastle'!AU16 -> 0 | AO45: =+'E Rockcastle'!AV16 -> 0 | AP45: =+'E Rockcastle'!AW16 -> 0 | AQ45: =+'E Rockcastle'!AX16 -> 0 | AR45: =+'E Rockcastle'!AY16 -> 0 | AS45: =+'E Rockcastle'!AZ16 -> 0 | AT45: =+'E Rockcastle'!BA16 -> 0 | AU45: =+'E Rockcastle'!BB16 -> 0 | AV45: =+'E Rockcastle'!BC16 -> 0 | AW45: =+'E Rockcastle'!BD16 -> 0 | AX45: =+'E Rockcastle'!BE16 -> 0 | AY45: =+'E Rockcastle'!BF16 -> 0 | AZ45: =+'E Rockcastle'!BG16 -> 0 | BA45: =+'E Rockcastle'!BH16 -> 0 | BB45: =+'E Rockcastle'!BI16 -> 0 | BC45: =+'E Rockcastle'!BJ16 -> 0 | BD45: =+'E Rockcastle'!BK16 -> 0 | BE45: =+'E Rockcastle'!BL16 -> 0 | BF45: =+'E Rockcastle'!BM16 -> 0 | BG45: =+'E Rockcastle'!BN16 -> 0 | BH45: =+'E Rockcastle'!BO16 -> 0 | BI45: =+'E Rockcastle'!BP16 -> 0
A46: Total | B46: =+SUM(B38:B45) -> 600 | C46: =+SUM(C38:C45) -> 600 | D46: 606 | E46: 612 | F46: 621 | G46: 621 | H46: 616 | I46: 617 | J46: 617 | K46: 617 | L46: 617 | M46: 617 | N46: 617 | O46: 617 | P46: 617 | Q46: 617 | R46: 617 | S46: 617 | T46: 617 | U46: 617 | V46: 617 | W46: 617 | X46: 617 | Y46: 617 | Z46: 617 | AA46: 617 | AB46: 617 | AC46: 617 | AD46: 617 | AE46: 617 | AF46: 617 | AG46: 617 | AH46: 617 | AI46: 617 | AJ46: 617 | AK46: 617 | AL46: 617 | AM46: 617 | AN46: 617 | AO46: 617 | AP46: 617 | AQ46: 617 | AR46: 617 | AS46: 617 | AT46: 617 | AU46: 617 | AV46: 617 | AW46: 617 | AX46: =+SUM(AX38:AX45) -> 617 | AY46: 617 | AZ46: 617 | BA46: 617 | BB46: 617 | BC46: 617 | BD46: 617 | BE46: 617 | BF46: 617 | BG46: 617 | BH46: 617 | BI46: 617
A48: Total Customer Count - All | B48: =+B$4 -> 2018-01-01 | C48: =+C$4 -> 2018-02-01 | D48: 2018-03-01 | E48: 2018-04-01 | F48: 2018-05-01 | G48: 2018-06-01 | H48: 2018-07-01 | I48: 2018-08-01 | J48: 2018-09-01 | K48: 2018-10-01 | L48: 2018-11-01 | M48: 2018-12-01 | N48: 2019-01-01 | O48: 2019-02-01 | P48: 2019-03-01 | Q48: 2019-04-01 | R48: 2019-05-01 | S48: 2019-06-01 | T48: 2019-07-01 | U48: 2019-08-01 | V48: 2019-09-01 | W48: 2019-10-01 | X48: 2019-11-01 | Y48: 2019-12-01 | Z48: 2020-01-01 | AA48: 2020-02-01 | AB48: 2020-03-01 | AC48: 2020-04-01 | AD48: 2020-05-01 | AE48: 2020-06-01 | AF48: 2020-07-01 | AG48: 2020-08-01 | AH48: 2020-09-01 | AI48: 2020-10-01 | AJ48: 2020-11-01 | AK48: 2020-12-01 | AL48: 2021-01-01 | AM48: 2021-02-01 | AN48: 2021-03-01 | AO48: 2021-04-01 | AP48: 2021-05-01 | AQ48: 2021-06-01 | AR48: 2021-07-01 | AS48: 2021-08-01 | AT48: 2021-09-01 | AU48: 2021-10-01 | AV48: 2021-11-01 | AW48: 2021-12-01 | AX48: 2022-01-01 | AY48: 2022-02-01 | AZ48: 2022-03-01 | BA48: 2022-04-01 | BB48: 2022-05-01 | BC48: 2022-06-01 | BD48: 2022-07-01 | BE48: 2022-08-01 | BF48: 2022-09-01 | BG48: 2022-10-01 | BH48: 2022-11-01 | BI48: 2022-12-01
A49: Residential | B49: =+B27+B38 -> 119126 | C49: =+C27+C38 -> 119046 | D49: 119170 | E49: 119359 | F49: 119414 | G49: 119452 | H49: 119450 | I49: 119617 | J49: 119752 | K49: 119795 | L49: 119765 | M49: 119815 | N49: 119893 | O49: 119930 | P49: 120053 | Q49: 120231 | R49: 120319 | S49: 120466 | T49: 120467 | U49: 120768 | V49: 120898 | W49: 120964 | X49: 120934 | Y49: 120978 | Z49: 120896 | AA49: 120933 | AB49: 121057 | AC49: 121237 | AD49: 121326 | AE49: 121474 | AF49: 121475 | AG49: 121778 | AH49: 121909 | AI49: 121976 | AJ49: 121946 | AK49: 121990 | AL49: 121899 | AM49: 121936 | AN49: 122062 | AO49: 122243 | AP49: 122332 | AQ49: 122482 | AR49: 122483 | AS49: 122789 | AT49: 122921 | AU49: 122988 | AV49: 122957 | AW49: 123002 | AX49: =+AX27+AX38 -> 122902 | AY49: 122940 | AZ49: 123066 | BA49: 123249 | BB49: 123339 | BC49: 123490 | BD49: 123490 | BE49: 123799 | BF49: 123932 | BG49: 124000 | BH49: 123969 | BI49: 124014
A50: Commercial | B50: =+B28+B39 -> 9097 | C50: 9080 | D50: 9071 | E50: 9086 | F50: 9109 | G50: 9121 | H50: 9117 | I50: 9134 | J50: 9124 | K50: 9102 | L50: 9084 | M50: 9083 | N50: 9083 | O50: 9080 | P50: 9071 | Q50: 9086 | R50: 9109 | S50: 9121 | T50: 9117 | U50: 9134 | V50: 9124 | W50: 9102 | X50: 9084 | Y50: 9083 | Z50: 9083 | AA50: 9080 | AB50: 9071 | AC50: 9086 | AD50: 9109 | AE50: 9121 | AF50: 9117 | AG50: 9134 | AH50: 9124 | AI50: 9102 | AJ50: 9084 | AK50: 9083 | AL50: 9083 | AM50: 9080 | AN50: 9071 | AO50: 9086 | AP50: 9109 | AQ50: 9121 | AR50: 9117 | AS50: 9134 | AT50: 9124 | AU50: 9102 | AV50: 9084 | AW50: 9083 | AX50: 9083 | AY50: 9080 | AZ50: 9071 | BA50: 9086 | BB50: 9109 | BC50: 9121 | BD50: 9117 | BE50: 9134 | BF50: 9124 | BG50: 9102 | BH50: 9084 | BI50: 9083
A51: Industrial | B51: 30 | C51: 31 | D51: 31 | E51: 31 | F51: 30 | G51: 30 | H51: 29 | I51: 29 | J51: 29 | K51: 29 | L51: 29 | M51: 29 | N51: 29 | O51: 29 | P51: 29 | Q51: 29 | R51: 29 | S51: 29 | T51: 29 | U51: 29 | V51: 29 | W51: 29 | X51: 29 | Y51: 29 | Z51: 28 | AA51: 28 | AB51: 28 | AC51: 28 | AD51: 28 | AE51: 28 | AF51: 28 | AG51: 28 | AH51: 28 | AI51: 28 | AJ51: 28 | AK51: 28 | AL51: 28 | AM51: 28 | AN51: 28 | AO51: 28 | AP51: 28 | AQ51: 28 | AR51: 28 | AS51: 28 | AT51: 28 | AU51: 28 | AV51: 28 | AW51: 28 | AX51: 28 | AY51: 28 | AZ51: 28 | BA51: 28 | BB51: 28 | BC51: 28 | BD51: 28 | BE51: 28 | BF51: 28 | BG51: 28 | BH51: 28 | BI51: 28
A52: Public Fire | B52: 56 | C52: 56 | D52: 56 | E52: 56 | F52: 56 | G52: 56 | H52: 56 | I52: 56 | J52: 56 | K52: 56 | L52: 56 | M52: 56 | N52: 56 | O52: 56 | P52: 56 | Q52: 56 | R52: 56 | S52: 56 | T52: 56 | U52: 56 | V52: 56 | W52: 56 | X52: 56 | Y52: 56 | Z52: 56 | AA52: 56 | AB52: 56 | AC52: 56 | AD52: 56 | AE52: 56 | AF52: 56 | AG52: 56 | AH52: 56 | AI52: 56 | AJ52: 56 | AK52: 56 | AL52: 56 | AM52: 56 | AN52: 56 | AO52: 56 | AP52: 56 | AQ52: 56 | AR52: 56 | AS52: 56 | AT52: 56 | AU52: 56 | AV52: 56 | AW52: 56 | AX52: 56 | AY52: 56 | AZ52: 56 | BA52: 56 | BB52: 56 | BC52: 56 | BD52: 56 | BE52: 56 | BF52: 56 | BG52: 56 | BH52: 56 | BI52: 56
A53: Private Fire | B53: 2293 | C53: 2292 | D53: 2294 | E53: 2296 | F53: 2298 | G53: 2298 | H53: 2298 | I53: 2305 | J53: 2305 | K53: 2305 | L53: 2305 | M53: 2305 | N53: 2305 | O53: 2305 | P53: 2305 | Q53: 2305 | R53: 2305 | S53: 2305 | T53: 2305 | U53: 2305 | V53: 2305 | W53: 2305 | X53: 2305 | Y53: 2305 | Z53: 2305 | AA53: 2305 | AB53: 2305 | AC53: 2305 | AD53: 2305 | AE53: 2305 | AF53: 2305 | AG53: 2305 | AH53: 2305 | AI53: 2305 | AJ53: 2305 | AK53: 2305 | AL53: 2305 | AM53: 2305 | AN53: 2305 | AO53: 2305 | AP53: 2305 | AQ53: 2305 | AR53: 2305 | AS53: 2305 | AT53: 2305 | AU53: 2305 | AV53: 2305 | AW53: 2305 | AX53: 2305 | AY53: 2305 | AZ53: 2305 | BA53: 2305 | BB53: 2305 | BC53: 2305 | BD53: 2305 | BE53: 2305 | BF53: 2305 | BG53: 2305 | BH53: 2305 | BI53: 2305
A54: OPA | B54: 725 | C54: 726 | D54: 721 | E54: 720 | F54: 720 | G54: 730 | H54: 748 | I54: 748 | J54: 748 | K54: 748 | L54: 748 | M54: 748 | N54: 748 | O54: 748 | P54: 748 | Q54: 748 | R54: 748 | S54: 748 | T54: 748 | U54: 748 | V54: 748 | W54: 748 | X54: 748 | Y54: 748 | Z54: 748 | AA54: 748 | AB54: 748 | AC54: 748 | AD54: 748 | AE54: 748 | AF54: 748 | AG54: 748 | AH54: 748 | AI54: 748 | AJ54: 748 | AK54: 748 | AL54: =+AL32+AL43 -> 748 | AM54: 748 | AN54: 748 | AO54: 748 | AP54: 748 | AQ54: 748 | AR54: 748 | AS54: 748 | AT54: 748 | AU54: 748 | AV54: 748 | AW54: 748 | AX54: =+AX32+AX43 -> 748 | AY54: 748 | AZ54: 748 | BA54: 748 | BB54: 748 | BC54: 748 | BD54: 748 | BE54: 748 | BF54: 748 | BG54: 748 | BH54: 748 | BI54: 748
A55: SFR | B55: 15 | C55: 15 | D55: 15 | E55: 14 | F55: 14 | G55: 14 | H55: 14 | I55: 14 | J55: 14 | K55: 14 | L55: 14 | M55: 14 | N55: 14 | O55: 14 | P55: 14 | Q55: 14 | R55: 14 | S55: 14 | T55: 14 | U55: 14 | V55: 14 | W55: 14 | X55: 14 | Y55: 14 | Z55: 14 | AA55: 14 | AB55: 14 | AC55: 14 | AD55: 14 | AE55: 14 | AF55: 14 | AG55: 14 | AH55: 14 | AI55: 14 | AJ55: 14 | AK55: 14 | AL55: 14 | AM55: 14 | AN55: 14 | AO55: 14 | AP55: 14 | AQ55: 14 | AR55: 14 | AS55: 14 | AT55: 14 | AU55: 14 | AV55: 14 | AW55: 14 | AX55: =+AX33+AX44 -> 14 | AY55: 14 | AZ55: 14 | BA55: 14 | BB55: 14 | BC55: 14 | BD55: 14 | BE55: 14 | BF55: 14 | BG55: 14 | BH55: 14 | BI55: 14
A56: Misc Other Sales | B56: 35 | C56: 36 | D56: 34 | E56: 37 | F56: 36 | G56: 43 | H56: 43 | I56: 39 | J56: 39 | K56: 39 | L56: 39 | M56: 39 | N56: 39 | O56: 39 | P56: 39 | Q56: 39 | R56: 39 | S56: 39 | T56: 39 | U56: 39 | V56: 39 | W56: 39 | X56: 39 | Y56: 39 | Z56: 39 | AA56: 39 | AB56: 39 | AC56: 39 | AD56: 39 | AE56: 39 | AF56: 39 | AG56: 39 | AH56: 39 | AI56: 39 | AJ56: 39 | AK56: 39 | AL56: 39 | AM56: 39 | AN56: 39 | AO56: 39 | AP56: 39 | AQ56: 39 | AR56: 39 | AS56: 39 | AT56: 39 | AU56: 39 | AV56: 39 | AW56: 39 | AX56: =+AX34+AX45 -> 39 | AY56: 39 | AZ56: 39 | BA56: 39 | BB56: 39 | BC56: 39 | BD56: 39 | BE56: 39 | BF56: 39 | BG56: 39 | BH56: 39 | BI56: 39
A57: Total | B57: =+SUM(B49:B56) -> 131377 | C57: =+SUM(C49:C56) -> 131282 | D57: 131392 | E57: 131599 | F57: 131677 | G57: 131744 | H57: 131755 | I57: 131942 | J57: 132067 | K57: 132088 | L57: 132040 | M57: 132089 | N57: 132167 | O57: 132201 | P57: 132315 | Q57: 132508 | R57: 132619 | S57: 132778 | T57: 132775 | U57: 133093 | V57: 133213 | W57: 133257 | X57: 133209 | Y57: 133252 | Z57: 133169 | AA57: 133203 | AB57: 133318 | AC57: 133513 | AD57: 133625 | AE57: 133785 | AF57: 133782 | AG57: 134102 | AH57: 134223 | AI57: 134268 | AJ57: 134220 | AK57: 134263 | AL57: 134172 | AM57: 134206 | AN57: 134323 | AO57: 134519 | AP57: 134631 | AQ57: 134793 | AR57: 134790 | AS57: 135113 | AT57: 135235 | AU57: 135280 | AV57: 135231 | AW57: 135275 | AX57: =+SUM(AX49:AX56) -> 135175 | AY57: 135210 | AZ57: 135327 | BA57: 135525 | BB57: 135638 | BC57: 135801 | BD57: 135797 | BE57: 136123 | BF57: 136246 | BG57: 136292 | BH57: 136243 | BI57: 136287
A59: Usage (000s Gallons)
A60: Central | B60: =+B$4 -> 2018-01-01 | C60: =+C$4 -> 2018-02-01 | D60: 2018-03-01 | E60: 2018-04-01 | F60: 2018-05-01 | G60: 2018-06-01 | H60: 2018-07-01 | I60: 2018-08-01 | J60: 2018-09-01 | K60: 2018-10-01 | L60: 2018-11-01 | M60: 2018-12-01 | N60: 2019-01-01 | O60: 2019-02-01 | P60: 2019-03-01 | Q60: 2019-04-01 | R60: 2019-05-01 | S60: 2019-06-01 | T60: 2019-07-01 | U60: 2019-08-01 | V60: 2019-09-01 | W60: 2019-10-01 | X60: 2019-11-01 | Y60: 2019-12-01 | Z60: 2020-01-01 | AA60: 2020-02-01 | AB60: 2020-03-01 | AC60: 2020-04-01 | AD60: 2020-05-01 | AE60: 2020-06-01 | AF60: 2020-07-01 | AG60: 2020-08-01 | AH60: 2020-09-01 | AI60: 2020-10-01 | AJ60: 2020-11-01 | AK60: 2020-12-01 | AL60: 2021-01-01 | AM60: 2021-02-01 | AN60: 2021-03-01 | AO60: 2021-04-01 | AP60: 2021-05-01 | AQ60: 2021-06-01 | AR60: 2021-07-01 | AS60: 2021-08-01 | AT60: 2021-09-01 | AU60: 2021-10-01 | AV60: 2021-11-01 | AW60: 2021-12-01 | AX60: 2022-01-01 | AY60: 2022-02-01 | AZ60: 2022-03-01 | BA60: 2022-04-01 | BB60: 2022-05-01 | BC60: 2022-06-01 | BD60: 2022-07-01 | BE60: 2022-08-01 | BF60: 2022-09-01 | BG60: 2022-10-01 | BH60: 2022-11-01 | BI60: 2022-12-01
A61: Residential | B61: =+Central!I1646 -> 432392.3404 | C61: =+Central!J1646 -> 396038.0503 | D61: =+Central!K1646 -> 428395.3084 | E61: =+Central!L1646 -> 423831.0389 | F61: =+Central!M1646 -> 480696.1447 | G61: =+Central!N1646 -> 503173.1403 | H61: =+Central!O1646 -> 518770.9293 | I61: =+Central!P1646 -> 527327.7188 | J61: =+Central!Q1646 -> 515890.878 | K61: =+Central!R1646 -> 487807.3169 | L61: =+Central!S1646 -> 426727.8967 | M61: =+Central!T1646 -> 432874.6142 | N61: =+Central!U1646 -> 427086.4325 | O61: =+Central!V1646 -> 391178.2477 | P61: =+Central!W1646 -> 423138.4483 | Q61: =+Central!X1646 -> 418630.1872 | R61: =+Central!Y1646 -> 474797.4984 | S61: =+Central!Z1646 -> 496998.6777 | T61: =+Central!AA1646 -> 512405.0654 | U61: =+Central!AB1646 -> 520856.8541 | V61: =+Central!AC1646 -> 509560.3554 | W61: =+Central!AD1646 -> 481821.4091 | X61: =+Central!AE1646 -> 421491.4975 | Y61: =+Central!AF1646 -> 427562.7883 | Z61: =+Central!AG1646 -> 421604.5695 | AA61: =+Central!AH1646 -> 386157.2838 | AB61: =+Central!AI1646 -> 417707.2597 | AC61: =+Central!AJ1646 -> 413256.8643 | AD61: =+Central!AK1646 -> 468703.2407 | AE61: =+Central!AL1646 -> 490619.457 | AF61: =+Central!AM1646 -> 505828.0961 | AG61: =+Central!AN1646 -> 514171.402 | AH61: =+Central!AO1646 -> 503019.8994 | AI61: =+Central!AP1646 -> 475636.996 | AJ61: =+Central!AQ1646 -> 416081.4483 | AK61: =+Central!AR1646 -> 422074.8111 | AL61: =+Central!AS1646 -> 415996.7087 | AM61: =+Central!AT1646 -> 381020.9156 | AN61: =+Central!AU1646 -> 412151.2379 | AO61: =+Central!AV1646 -> 407760.0383 | AP61: =+Central!AW1646 -> 462468.9095 | AQ61: =+Central!AX1646 -> 484093.613 | AR61: =+Central!AY1646 -> 499099.9586 | AS61: =+Central!AZ1646 -> 507332.2882 | AT61: =+Central!BA1646 -> 496329.1143 | AU61: =+Central!BB1646 -> 469310.4373 | AV61: =+Central!BC1646 -> 410547.0518 | AW61: =+Central!BD1646 -> 416460.6955 | AX61: =+Central!BE1646 -> 410237.6936 | AY61: =+Central!BF1646 -> 375746.1018 | AZ61: =+Central!BG1646 -> 406445.4591 | BA61: =+Central!BH1646 -> 402115.0508 | BB61: =+Central!BI1646 -> 456066.538 | BC61: =+Central!BJ1646 -> 477391.8715 | BD61: =+Central!BK1646 -> 492190.4707 | BE61: =+Central!BL1646 -> 500308.8328 | BF61: =+Central!BM1646 -> 489457.9857 | BG61: =+Central!BN1646 -> 462813.3525 | BH61: =+Central!BO1646 -> 404863.4811 | BI61: =+Central!BP1646 -> 410695.257
A62: Commercial | B62: =+Central!I1647 -> 277030.6714 | C62: =+Central!J1647 -> 262463.5108 | D62: =+Central!K1647 -> 288976.5599 | E62: =+Central!L1647 -> 293351.1126 | F62: =+Central!M1647 -> 326422.3526 | G62: =+Central!N1647 -> 345518.8619 | H62: =+Central!O1647 -> 369943.7753 | I62: =+Central!P1647 -> 376989.3242 | J62: =+Central!Q1647 -> 367596.2277 | K62: =+Central!R1647 -> 352139.9618 | L62: =+Central!S1647 -> 289865.2571 | M62: =+Central!T1647 -> 274192.7186 | N62: =+Central!U1647 -> 275340.1004 | O62: =+Central!V1647 -> 260861.8354 | P62: =+Central!W1647 -> 287213.0895 | Q62: =+Central!X1647 -> 291560.9466 | R62: =+Central!Y1647 -> 324430.3704 | S62: =+Central!Z1647 -> 343410.3438 | T62: =+Central!AA1647 -> 367686.205 | U62: =+Central!AB1647 -> 374688.7586 | V62: =+Central!AC1647 -> 365352.9832 | W62: =+Central!AD1647 -> 349991.0387 | X62: =+Central!AE1647 -> 288096.3635 | Y62: =+Central!AF1647 -> 272519.4661 | Z62: =+Central!AG1647 -> 273680.6172 | AA62: =+Central!AH1647 -> 259289.6132 | AB62: =+Central!AI1647 -> 285482.0475 | AC62: =+Central!AJ1647 -> 289803.7 | AD62: =+Central!AK1647 -> 322475.0187 | AE62: =+Central!AL1647 -> 341340.5993 | AF62: =+Central!AM1647 -> 365470.1491 | AG62: =+Central!AN1647 -> 372430.4981 | AH62: =+Central!AO1647 -> 363150.9897 | AI62: =+Central!AP1647 -> 347881.6321 | AJ62: =+Central!AQ1647 -> 286359.998 | AK62: =+Central!AR1647 -> 270876.983 | AL62: =+Central!AS1647 -> 272025.6247 | AM62: =+Central!AT1647 -> 257721.6455 | AN62: =+Central!AU1647 -> 283755.6897 | AO62: =+Central!AV1647 -> 288051.2084 | AP62: =+Central!AW1647 -> 320524.9582 | AQ62: =+Central!AX1647 -> 339276.4554 | AR62: =+Central!AY1647 -> 363260.0899 | AS62: =+Central!AZ1647 -> 370178.3485 | AT62: =+Central!BA1647 -> 360954.9548 | AU62: =+Central!BB1647 -> 345777.9336 | AV62: =+Central!BC1647 -> 284628.3311 | AW62: =+Central!BD1647 -> 269238.9445 | AX62: =+Central!BE1647 -> 270370.6538 | AY62: =+Central!BF1647 -> 256153.6982 | AZ62: =+Central!BG1647 -> 282029.3545 | BA62: =+Central!BH1647 -> 286298.7398 | BB62: =+Central!BI1647 -> 318574.9233 | BC62: =+Central!BJ1647 -> 337212.3386 | BD62: =+Central!BK1647 -> 361050.0595 | BE62: =+Central!BL1647 -> 367926.2283 | BF62: =+Central!BM1647 -> 358758.9486 | BG62: =+Central!BN1647 -> 343674.2626 | BH62: =+Central!BO1647 -> 282896.6868 | BI62: =+Central!BP1647 -> 267600.9274
A63: Industrial | B63: =+Central!I1648 -> 46192.6 | C63: =+Central!J1648 -> 46736.2 | D63: =+Central!K1648 -> 65096.2 | E63: =+Central!L1648 -> 48666.2 | F63: =+Central!M1648 -> 49350.272 | G63: =+Central!N1648 -> 62005.6 | H63: =+Central!O1648 -> 69119.974 | I63: =+Central!P1648 -> 56033.2 | J63: =+Central!Q1648 -> 58503.63639 | K63: =+Central!R1648 -> 58047.57717 | L63: =+Central!S1648 -> 49339.03432 | M63: =+Central!T1648 -> 44607.60944 | N63: =+Central!U1648 -> 46854.1516 | O63: =+Central!V1648 -> 44258.49378 | P63: =+Central!W1648 -> 48609.35047 | Q63: =+Central!X1648 -> 48917.72331 | R63: =+Central!Y1648 -> 52413.99433 | S63: =+Central!Z1648 -> 56492.5704 | T63: =+Central!AA1648 -> 59473.9479 | U63: =+Central!AB1648 -> 62370.3703 | V63: =+Central!AC1648 -> 57617.09717 | W63: =+Central!AD1648 -> 57167.94888 | X63: =+Central!AE1648 -> 48591.37159 | Y63: =+Central!AF1648 -> 43931.64471 | Z63: =+Central!AG1648 -> 45441.12373 | AA63: =+Central!AH1648 -> 42923.74578 | AB63: =+Central!AI1648 -> 47143.3893 | AC63: =+Central!AJ1648 -> 47442.46223 | AD63: =+Central!AK1648 -> 50833.29268 | AE63: =+Central!AL1648 -> 54788.86702 | AF63: =+Central!AM1648 -> 57680.33211 | AG63: =+Central!AN1648 -> 60489.40419 | AH63: =+Central!AO1648 -> 55879.48031 | AI63: =+Central!AP1648 -> 55443.87743 | AJ63: =+Central!AQ1648 -> 47125.95262 | AK63: =+Central!AR1648 -> 42606.75382 | AL63: =+Central!AS1648 -> 45441.12373 | AM63: =+Central!AT1648 -> 42923.74578 | AN63: =+Central!AU1648 -> 47143.3893 | AO63: =+Central!AV1648 -> 47442.46223 | AP63: =+Central!AW1648 -> 50833.29268 | AQ63: =+Central!AX1648 -> 54788.86702 | AR63: =+Central!AY1648 -> 57680.33211 | AS63: =+Central!AZ1648 -> 60489.40419 | AT63: =+Central!BA1648 -> 55879.48031 | AU63: =+Central!BB1648 -> 55443.87743 | AV63: =+Central!BC1648 -> 47125.95262 | AW63: =+Central!BD1648 -> 42606.75382 | AX63: =+Central!BE1648 -> 45441.12373 | AY63: =+Central!BF1648 -> 42923.74578 | AZ63: =+Central!BG1648 -> 47143.3893 | BA63: =+Central!BH1648 -> 47442.46223 | BB63: =+Central!BI1648 -> 50833.29268 | BC63: =+Central!BJ1648 -> 54788.86702 | BD63: =+Central!BK1648 -> 57680.33211 | BE63: =+Central!BL1648 -> 60489.40419 | BF63: =+Central!BM1648 -> 55879.48031 | BG63: =+Central!BN1648 -> 55443.87743 | BH63: =+Central!BO1648 -> 47125.95262 | BI63: =+Central!BP1648 -> 42606.75382
A64: OPA | B64: =+Central!I1651 -> 75384.27276 | C64: =+Central!J1651 -> 70022.45381 | D64: =+Central!K1651 -> 76678.2341 | E64: =+Central!L1651 -> 85146.30587 | F64: =+Central!M1651 -> 103804.442 | G64: =+Central!N1651 -> 115232.2042 | H64: =+Central!O1651 -> 127980.2335 | I64: =+Central!P1651 -> 132532.4391 | J64: =+Central!Q1651 -> 118428.7979 | K64: =+Central!R1651 -> 103013.8958 | L64: =+Central!S1651 -> 80926.54968 | M64: =+Central!T1651 -> 73306.45115 | N64: =+Central!U1651 -> 75425.58112 | O64: =+Central!V1651 -> 70060.82405 | P64: =+Central!W1651 -> 76720.25151 | Q64: =+Central!X1651 -> 85192.96353 | R64: =+Central!Y1651 -> 103861.3237 | S64: =+Central!Z1651 -> 115295.348 | T64: =+Central!AA1651 -> 128050.3628 | U64: =+Central!AB1651 -> 132605.0629 | V64: =+Central!AC1651 -> 118493.6934 | W64: =+Central!AD1651 -> 103070.3443 | X64: =+Central!AE1651 -> 80970.89504 | Y64: =+Central!AF1651 -> 73346.62092 | Z64: =+Central!AG1651 -> 75425.58112 | AA64: =+Central!AH1651 -> 70060.82405 | AB64: =+Central!AI1651 -> 76720.25151 | AC64: =+Central!AJ1651 -> 85192.96353 | AD64: =+Central!AK1651 -> 103861.3237 | AE64: =+Central!AL1651 -> 115295.348 | AF64: =+Central!AM1651 -> 128050.3628 | AG64: =+Central!AN1651 -> 132605.0629 | AH64: =+Central!AO1651 -> 118493.6934 | AI64: =+Central!AP1651 -> 103070.3443 | AJ64: =+Central!AQ1651 -> 80970.89504 | AK64: =+Central!AR1651 -> 73346.62092 | AL64: =+Central!AS1651 -> 75425.58112 | AM64: =+Central!AT1651 -> 70060.82405 | AN64: =+Central!AU1651 -> 76720.25151 | AO64: =+Central!AV1651 -> 85192.96353 | AP64: =+Central!AW1651 -> 103861.3237 | AQ64: =+Central!AX1651 -> 115295.348 | AR64: =+Central!AY1651 -> 128050.3628 | AS64: =+Central!AZ1651 -> 132605.0629 | AT64: =+Central!BA1651 -> 118493.6934 | AU64: =+Central!BB1651 -> 103070.3443 | AV64: =+Central!BC1651 -> 80970.89504 | AW64: =+Central!BD1651 -> 73346.62092 | AX64: =+Central!BE1651 -> 75425.58112 | AY64: =+Central!BF1651 -> 70060.82405 | AZ64: =+Central!BG1651 -> 76720.25151 | BA64: =+Central!BH1651 -> 85192.96353 | BB64: =+Central!BI1651 -> 103861.3237 | BC64: =+Central!BJ1651 -> 115295.348 | BD64: =+Central!BK1651 -> 128050.3628 | BE64: =+Central!BL1651 -> 132605.0629 | BF64: =+Central!BM1651 -> 118493.6934 | BG64: =+Central!BN1651 -> 103070.3443 | BH64: =+Central!BO1651 -> 80970.89504 | BI64: =+Central!BP1651 -> 73346.62092
A65: SFR | B65: =+Central!I1652+Central_SFR!I1652 -> 31943.47471 | C65: =+Central!J1652+Central_SFR!J1652 -> 29713.28166 | D65: =+Central!K1652+Central_SFR!K1652 -> 31437.94159 | E65: =+Central!L1652+Central_SFR!L1652 -> 32096.32184 | F65: =+Central!M1652+Central_SFR!M1652 -> 41541.42503 | G65: =+Central!N1652+Central_SFR!N1652 -> 44320.90668 | H65: =+Central!O1652+Central_SFR!O1652 -> 45671.2579 | I65: =+Central!P1652+Central_SFR!P1652 -> 47727.91866 | J65: =+Central!Q1652+Central_SFR!Q1652 -> 45319.36292 | K65: =+Central!R1652+Central_SFR!R1652 -> 41173.74176 | L65: =+Central!S1652+Central_SFR!S1652 -> 33546.60126 | M65: =+Central!T1652+Central_SFR!T1652 -> 33458.03986 | N65: =+Central!U1652+Central_SFR!U1652 -> 31610.80522 | O65: =+Central!V1652+Central_SFR!V1652 -> 29407.14502 | P65: =+Central!W1652+Central_SFR!W1652 -> 31108.10909 | Q65: =+Central!X1652+Central_SFR!X1652 -> 31758.13977 | R65: =+Central!Y1652+Central_SFR!Y1652 -> 41099.45491 | S65: =+Central!Z1652+Central_SFR!Z1652 -> 43840.21603 | T65: =+Central!AA1652+Central_SFR!AA1652 -> 45173.74968 | U65: =+Central!AB1652+Central_SFR!AB1652 -> 47204.8237 | V65: =+Central!AC1652+Central_SFR!AC1652 -> 44820.90693 | W65: =+Central!AD1652+Central_SFR!AD1652 -> 40719.97701 | X65: =+Central!AE1652+Central_SFR!AE1652 -> 33183.48053 | Y65: =+Central!AF1652+Central_SFR!AF1652 -> 33098.75411 | Z65: =+Central!AG1652+Central_SFR!AG1652 -> 31610.80522 | AA65: =+Central!AH1652+Central_SFR!AH1652 -> 29407.14502 | AB65: =+Central!AI1652+Central_SFR!AI1652 -> 31108.10909 | AC65: =+Central!AJ1652+Central_SFR!AJ1652 -> 31758.13977 | AD65: =+Central!AK1652+Central_SFR!AK1652 -> 41099.45491 | AE65: =+Central!AL1652+Central_SFR!AL1652 -> 43840.21603 | AF65: =+Central!AM1652+Central_SFR!AM1652 -> 45173.74968 | AG65: =+Central!AN1652+Central_SFR!AN1652 -> 47204.8237 | AH65: =+Central!AO1652+Central_SFR!AO1652 -> 44820.90693 | AI65: =+Central!AP1652+Central_SFR!AP1652 -> 40719.97701 | AJ65: =+Central!AQ1652+Central_SFR!AQ1652 -> 33183.48053 | AK65: =+Central!AR1652+Central_SFR!AR1652 -> 33098.75411 | AL65: =+Central!AS1652+Central_SFR!AS1652 -> 31610.80522 | AM65: =+Central!AT1652+Central_SFR!AT1652 -> 29407.14502 | AN65: =+Central!AU1652+Central_SFR!AU1652 -> 31108.10909 | AO65: =+Central!AV1652+Central_SFR!AV1652 -> 31758.13977 | AP65: =+Central!AW1652+Central_SFR!AW1652 -> 41099.45491 | AQ65: =+Central!AX1652+Central_SFR!AX1652 -> 43840.21603 | AR65: =+Central!AY1652+Central_SFR!AY1652 -> 45173.74968 | AS65: =+Central!AZ1652+Central_SFR!AZ1652 -> 47204.8237 | AT65: =+Central!BA1652+Central_SFR!BA1652 -> 44820.90693 | AU65: =+Central!BB1652+Central_SFR!BB1652 -> 40719.97701 | AV65: =+Central!BC1652+Central_SFR!BC1652 -> 33183.48053 | AW65: =+Central!BD1652+Central_SFR!BD1652 -> 33098.75411 | AX65: =+Central!BE1652+Central_SFR!BE1652 -> 31610.80522 | AY65: =+Central!BF1652+Central_SFR!BF1652 -> 29407.14502 | AZ65: =+Central!BG1652+Central_SFR!BG1652 -> 31108.10909 | BA65: =+Central!BH1652+Central_SFR!BH1652 -> 31758.13977 | BB65: =+Central!BI1652+Central_SFR!BI1652 -> 41099.45491 | BC65: =+Central!BJ1652+Central_SFR!BJ1652 -> 43840.21603 | BD65: =+Central!BK1652+Central_SFR!BK1652 -> 45173.74968 | BE65: =+Central!BL1652+Central_SFR!BL1652 -> 47204.8237 | BF65: =+Central!BM1652+Central_SFR!BM1652 -> 44820.90693 | BG65: =+Central!BN1652+Central_SFR!BN1652 -> 40719.97701 | BH65: =+Central!BO1652+Central_SFR!BO1652 -> 33183.48053 | BI65: =+Central!BP1652+Central_SFR!BP1652 -> 33098.75411
A66: Misc Other Sales | B66: =+Central!I1653 -> -15.6 | C66: =+Central!J1653 -> 977 | D66: =+Central!K1653 -> 181.504 | E66: =+Central!L1653 -> 410.4 | F66: =+Central!M1653 -> 2074.426 | G66: =+Central!N1653 -> 557.1 | H66: =+Central!O1653 -> 172 | I66: =+Central!P1653 -> 1055.6 | J66: =+Central!Q1653 -> 324.62891 | K66: =+Central!R1653 -> 209.13969 | L66: =+Central!S1653 -> 264.29009 | M66: =+Central!T1653 -> 150.492135 | N66: =+Central!U1653 -> 149.572315 | O66: =+Central!V1653 -> 338.08644 | P66: =+Central!W1653 -> 154.47423 | Q66: =+Central!X1653 -> 263.498085 | R66: =+Central!Y1653 -> 179.21119 | S66: =+Central!Z1653 -> 397.512905 | T66: =+Central!AA1653 -> 350.10671 | U66: =+Central!AB1653 -> 372.33314 | V66: =+Central!AC1653 -> 324.62891 | W66: =+Central!AD1653 -> 209.13969 | X66: =+Central!AE1653 -> 264.29009 | Y66: =+Central!AF1653 -> 150.492135 | Z66: =+Central!AG1653 -> 149.572315 | AA66: =+Central!AH1653 -> 338.08644 | AB66: =+Central!AI1653 -> 154.47423 | AC66: =+Central!AJ1653 -> 263.498085 | AD66: =+Central!AK1653 -> 179.21119 | AE66: =+Central!AL1653 -> 397.512905 | AF66: =+Central!AM1653 -> 350.10671 | AG66: =+Central!AN1653 -> 372.33314 | AH66: =+Central!AO1653 -> 324.62891 | AI66: =+Central!AP1653 -> 209.13969 | AJ66: =+Central!AQ1653 -> 264.29009 | AK66: =+Central!AR1653 -> 150.492135 | AL66: =+Central!AS1653 -> 149.572315 | AM66: =+Central!AT1653 -> 338.08644 | AN66: =+Central!AU1653 -> 154.47423 | AO66: =+Central!AV1653 -> 263.498085 | AP66: =+Central!AW1653 -> 179.21119 | AQ66: =+Central!AX1653 -> 397.512905 | AR66: =+Central!AY1653 -> 350.10671 | AS66: =+Central!AZ1653 -> 372.33314 | AT66: =+Central!BA1653 -> 324.62891 | AU66: =+Central!BB1653 -> 209.13969 | AV66: =+Central!BC1653 -> 264.29009 | AW66: =+Central!BD1653 -> 150.492135 | AX66: =+Central!BE1653 -> 149.572315 | AY66: =+Central!BF1653 -> 338.08644 | AZ66: =+Central!BG1653 -> 154.47423 | BA66: =+Central!BH1653 -> 263.498085 | BB66: =+Central!BI1653 -> 179.21119 | BC66: =+Central!BJ1653 -> 397.512905 | BD66: =+Central!BK1653 -> 350.10671 | BE66: =+Central!BL1653 -> 372.33314 | BF66: =+Central!BM1653 -> 324.62891 | BG66: =+Central!BN1653 -> 209.13969 | BH66: =+Central!BO1653 -> 264.29009 | BI66: =+Central!BP1653 -> 150.492135
A67: Total | B67: =+SUM(B61:B66) -> 862927.7592 | C67: =+SUM(C61:C66) -> 805950.4965 | D67: 890765.7481 | E67: 883501.3793 | F67: 1003889.062 | G67: 1070807.813 | H67: 1131658.17 | I67: 1141666.201 | J67: 1106063.532 | K67: 1042391.633 | L67: 880669.6292 | M67: 858589.9253 | N67: 856466.643 | O67: 796104.6323 | P67: 866943.7231 | Q67: 876323.4585 | R67: 996781.853 | S67: 1056434.669 | T67: 1113139.438 | U67: 1138098.203 | V67: 1096169.665 | W67: 1032979.858 | X67: 872597.8982 | Y67: 850609.7662 | Z67: 847912.2691 | AA67: 788176.6983 | AB67: 858315.5313 | AC67: 867717.6279 | AD67: 987151.5419 | AE67: 1046282 | AF67: 1102552.797 | AG67: 1127273.524 | AH67: 1085689.599 | AI67: 1022961.967 | AJ67: 863986.0645 | AK67: 842154.4151 | AL67: 840649.4158 | AM67: 781472.3624 | AN67: 851033.1518 | AO67: 860468.3103 | AP67: 978967.1502 | AQ67: 1037692.012 | AR67: 1093614.6 | AS67: 1118182.261 | AT67: 1076802.779 | AU67: 1014531.709 | AV67: 856720.0011 | AW67: 834902.261 | AX67: =+SUM(AX61:AX66) -> 833235.4297 | AY67: 774629.6013 | AZ67: 843601.0377 | BA67: 853070.8541 | BB67: 970614.7438 | BC67: 1028926.154 | BD67: 1084495.082 | BE67: 1108906.685 | BF67: 1067735.644 | BG67: 1005930.953 | BH67: 849304.7862 | BI67: 827498.8054
A69: Northern | B69: =+B$4 -> 2018-01-01 | C69: =+C$4 -> 2018-02-01 | D69: 2018-03-01 | E69: 2018-04-01 | F69: 2018-05-01 | G69: 2018-06-01 | H69: 2018-07-01 | I69: 2018-08-01 | J69: 2018-09-01 | K69: 2018-10-01 | L69: 2018-11-01 | M69: 2018-12-01 | N69: 2019-01-01 | O69: 2019-02-01 | P69: 2019-03-01 | Q69: 2019-04-01 | R69: 2019-05-01 | S69: 2019-06-01 | T69: 2019-07-01 | U69: 2019-08-01 | V69: 2019-09-01 | W69: 2019-10-01 | X69: 2019-11-01 | Y69: 2019-12-01 | Z69: 2020-01-01 | AA69: 2020-02-01 | AB69: 2020-03-01 | AC69: 2020-04-01 | AD69: 2020-05-01 | AE69: 2020-06-01 | AF69: 2020-07-01 | AG69: 2020-08-01 | AH69: 2020-09-01 | AI69: 2020-10-01 | AJ69: 2020-11-01 | AK69: 2020-12-01 | AL69: 2021-01-01 | AM69: 2021-02-01 | AN69: 2021-03-01 | AO69: 2021-04-01 | AP69: 2021-05-01 | AQ69: 2021-06-01 | AR69: 2021-07-01 | AS69: 2021-08-01 | AT69: 2021-09-01 | AU69: 2021-10-01 | AV69: 2021-11-01 | AW69: 2021-12-01 | AX69: 2022-01-01 | AY69: 2022-02-01 | AZ69: 2022-03-01 | BA69: 2022-04-01 | BB69: 2022-05-01 | BC69: 2022-06-01 | BD69: 2022-07-01 | BE69: 2022-08-01 | BF69: 2022-09-01 | BG69: 2022-10-01 | BH69: 2022-11-01 | BI69: 2022-12-01
A70: Residential | B70: =+Northern!I1646 -> 10053.13602 | C70: =+Northern!J1646 -> 9234.318838 | D70: =+Northern!K1646 -> 9958.271542 | E70: =+Northern!L1646 -> 9618.372683 | F70: =+Northern!M1646 -> 11186.90955 | G70: =+Northern!N1646 -> 11755.79862 | H70: =+Northern!O1646 -> 11415.59904 | I70: =+Northern!P1646 -> 11258.15423 | J70: =+Northern!Q1646 -> 10451.77425 | K70: =+Northern!R1646 -> 10293.94251 | L70: =+Northern!S1646 -> 9466.7153 | M70: =+Northern!T1646 -> 10317.04012 | N70: =+Northern!U1646 -> 9929.773491 | O70: =+Northern!V1646 -> 9121.004052 | P70: =+Northern!W1646 -> 9836.073097 | Q70: =+Northern!X1646 -> 9500.345154 | R70: =+Northern!Y1646 -> 11049.63443 | S70: =+Northern!Z1646 -> 11611.54263 | T70: =+Northern!AA1646 -> 11275.51766 | U70: =+Northern!AB1646 -> 11120.00486 | V70: =+Northern!AC1646 -> 10323.52001 | W70: =+Northern!AD1646 -> 10167.62503 | X70: =+Northern!AE1646 -> 9350.548766 | Y70: =+Northern!AF1646 -> 10190.43921 | Z70: =+Northern!AG1646 -> 9802.319999 | AA70: =+Northern!AH1646 -> 9003.931511 | AB70: =+Northern!AI1646 -> 9709.822295 | AC70: =+Northern!AJ1646 -> 9378.403584 | AD70: =+Northern!AK1646 -> 10907.80697 | AE70: =+Northern!AL1646 -> 11462.50281 | AF70: =+Northern!AM1646 -> 11130.79088 | AG70: =+Northern!AN1646 -> 10977.27416 | AH70: =+Northern!AO1646 -> 10191.01259 | AI70: =+Northern!AP1646 -> 10037.1186 | AJ70: =+Northern!AQ1646 -> 9230.529906 | AK70: =+Northern!AR1646 -> 10059.63995 | AL70: =+Northern!AS1646 -> 9671.937053 | AM70: =+Northern!AT1646 -> 8884.168116 | AN70: =+Northern!AU1646 -> 9580.669683 | AO70: =+Northern!AV1646 -> 9253.659249 | AP70: =+Northern!AW1646 -> 10762.71969 | AQ70: =+Northern!AX1646 -> 11310.03739 | AR70: =+Northern!AY1646 -> 10982.73763 | AS70: =+Northern!AZ1646 -> 10831.26288 | AT70: =+Northern!BA1646 -> 10055.45955 | AU70: =+Northern!BB1646 -> 9903.612541 | AV70: =+Northern!BC1646 -> 9107.752473 | AW70: =+Northern!BD1646 -> 9925.834328 | AX70: =+Northern!BE1646 -> 9538.039763 | AY70: =+Northern!BF1646 -> 8761.176618 | AZ70: =+Northern!BG1646 -> 9448.035889 | BA70: =+Northern!BH1646 -> 9125.552554 | BB70: =+Northern!BI1646 -> 10613.72172 | BC70: =+Northern!BJ1646 -> 11153.46241 | BD70: =+Northern!BK1646 -> 10830.69376 | BE70: =+Northern!BL1646 -> 10681.316 | BF70: =+Northern!BM1646 -> 9916.252819 | BG70: =+Northern!BN1646 -> 9766.50796 | BH70: =+Northern!BO1646 -> 8981.665696 | BI70: =+Northern!BP1646 -> 9788.422111
A71: Commercial | B71: =+Northern!I1647 -> 389.8728586 | C71: =+Northern!J1647 -> 368.5711966 | D71: =+Northern!K1647 -> 440.5907318 | E71: =+Northern!L1647 -> 461.8427089 | F71: =+Northern!M1647 -> 520.4943688 | G71: =+Northern!N1647 -> 645.6302482 | H71: =+Northern!O1647 -> 622.8424855 | I71: =+Northern!P1647 -> 641.6131394 | J71: =+Northern!Q1647 -> 595.3375817 | K71: =+Northern!R1647 -> 495.9813349 | L71: =+Northern!S1647 -> 410.3673907 | M71: =+Northern!T1647 -> 421.2484369 | N71: =+Northern!U1647 -> 387.4936716 | O71: =+Northern!V1647 -> 366.3220024 | P71: =+Northern!W1647 -> 437.9020406 | Q71: =+Northern!X1647 -> 459.0243282 | R71: =+Northern!Y1647 -> 517.3180682 | S71: =+Northern!Z1647 -> 641.6903098 | T71: =+Northern!AA1647 -> 619.0416087 | U71: =+Northern!AB1647 -> 637.6977152 | V71: =+Northern!AC1647 -> 591.7045527 | W71: =+Northern!AD1647 -> 492.9546243 | X71: =+Northern!AE1647 -> 407.8631365 | Y71: =+Northern!AF1647 -> 418.6777815 | Z71: =+Northern!AG1647 -> 385.1582356 | AA71: =+Northern!AH1647 -> 364.1141686 | AB71: =+Northern!AI1647 -> 435.2627918 | AC71: =+Northern!AJ1647 -> 456.2577747 | AD71: =+Northern!AK1647 -> 514.2001766 | AE71: =+Northern!AL1647 -> 637.8228229 | AF71: =+Northern!AM1647 -> 615.3106262 | AG71: =+Northern!AN1647 -> 633.8542918 | AH71: =+Northern!AO1647 -> 588.1383315 | AI71: =+Northern!AP1647 -> 489.9835718 | AJ71: =+Northern!AQ1647 -> 405.404933 | AK71: =+Northern!AR1647 -> 416.1543978 | AL71: =+Northern!AS1647 -> 382.8291191 | AM71: =+Northern!AT1647 -> 361.9123092 | AN71: =+Northern!AU1647 -> 432.6306847 | AO71: =+Northern!AV1647 -> 453.4987075 | AP71: =+Northern!AW1647 -> 511.0907219 | AQ71: =+Northern!AX1647 -> 633.9658014 | AR71: =+Northern!AY1647 -> 611.5897397 | AS71: =+Northern!AZ1647 -> 630.0212687 | AT71: =+Northern!BA1647 -> 584.5817604 | AU71: =+Northern!BB1647 -> 487.020559 | AV71: =+Northern!BC1647 -> 402.9533814 | AW71: =+Northern!BD1647 -> 413.6378424 | AX71: =+Northern!BE1647 -> 380.5000332 | AY71: =+Northern!BF1647 -> 359.7104786 | AZ71: =+Northern!BG1647 -> 429.9986121 | BA71: =+Northern!BH1647 -> 450.7396763 | BB71: =+Northern!BI1647 -> 507.9813079 | BC71: =+Northern!BJ1647 -> 630.1088303 | BD71: =+Northern!BK1647 -> 607.8689019 | BE71: =+Northern!BL1647 -> 626.1882957 | BF71: =+Northern!BM1647 -> 581.0252358 | BG71: =+Northern!BN1647 -> 484.057585 | BH71: =+Northern!BO1647 -> 400.5018619 | BI71: =+Northern!BP1647 -> 411.12132
A72: Industrial | B72: =+Northern!I1648 -> 0 | C72: =+Northern!J1648 -> 0 | D72: =+Northern!K1648 -> 0 | E72: =+Northern!L1648 -> 0 | F72: =+Northern!M1648 -> 0 | G72: =+Northern!N1648 -> 0 | H72: =+Northern!O1648 -> 0 | I72: =+Northern!P1648 -> 0 | J72: =+Northern!Q1648 -> 0 | K72: =+Northern!R1648 -> 0 | L72: =+Northern!S1648 -> 0 | M72: =+Northern!T1648 -> 0 | N72: =+Northern!U1648 -> 0 | O72: =+Northern!V1648 -> 0 | P72: =+Northern!W1648 -> 0 | Q72: =+Northern!X1648 -> 0 | R72: =+Northern!Y1648 -> 0 | S72: =+Northern!Z1648 -> 0 | T72: =+Northern!AA1648 -> 0 | U72: =+Northern!AB1648 -> 0 | V72: =+Northern!AC1648 -> 0 | W72: =+Northern!AD1648 -> 0 | X72: =+Northern!AE1648 -> 0 | Y72: =+Northern!AF1648 -> 0 | Z72: =+Northern!AG1648 -> 0 | AA72: =+Northern!AH1648 -> 0 | AB72: =+Northern!AI1648 -> 0 | AC72: =+Northern!AJ1648 -> 0 | AD72: =+Northern!AK1648 -> 0 | AE72: =+Northern!AL1648 -> 0 | AF72: =+Northern!AM1648 -> 0 | AG72: =+Northern!AN1648 -> 0 | AH72: =+Northern!AO1648 -> 0 | AI72: =+Northern!AP1648 -> 0 | AJ72: =+Northern!AQ1648 -> 0 | AK72: =+Northern!AR1648 -> 0 | AL72: =+Northern!AS1648 -> 0 | AM72: =+Northern!AT1648 -> 0 | AN72: =+Northern!AU1648 -> 0 | AO72: =+Northern!AV1648 -> 0 | AP72: =+Northern!AW1648 -> 0 | AQ72: =+Northern!AX1648 -> 0 | AR72: =+Northern!AY1648 -> 0 | AS72: =+Northern!AZ1648 -> 0 | AT72: =+Northern!BA1648 -> 0 | AU72: =+Northern!BB1648 -> 0 | AV72: =+Northern!BC1648 -> 0 | AW72: =+Northern!BD1648 -> 0 | AX72: =+Northern!BE1648 -> 0 | AY72: =+Northern!BF1648 -> 0 | AZ72: =+Northern!BG1648 -> 0 | BA72: =+Northern!BH1648 -> 0 | BB72: =+Northern!BI1648 -> 0 | BC72: =+Northern!BJ1648 -> 0 | BD72: =+Northern!BK1648 -> 0 | BE72: =+Northern!BL1648 -> 0 | BF72: =+Northern!BM1648 -> 0 | BG72: =+Northern!BN1648 -> 0 | BH72: =+Northern!BO1648 -> 0 | BI72: =+Northern!BP1648 -> 0
A73: OPA | B73: =+Northern!I1651 -> 211.4526625 | C73: =+Northern!J1651 -> 192.7236933 | D73: =+Northern!K1651 -> 217.0471078 | E73: =+Northern!L1651 -> 238.1726257 | F73: =+Northern!M1651 -> 236.4016801 | G73: =+Northern!N1651 -> 168.8744882 | H73: =+Northern!O1651 -> 183.3103199 | I73: =+Northern!P1651 -> 319.0019071 | J73: =+Northern!Q1651 -> 348.1660328 | K73: =+Northern!R1651 -> 299.8175128 | L73: =+Northern!S1651 -> 212.8658363 | M73: =+Northern!T1651 -> 149.0314006 | N73: =+Northern!U1651 -> 211.5685323 | O73: =+Northern!V1651 -> 192.8293002 | P73: =+Northern!W1651 -> 217.1660432 | Q73: =+Northern!X1651 -> 238.3031373 | R73: =+Northern!Y1651 -> 236.5312212 | S73: =+Northern!Z1651 -> 168.9670264 | T73: =+Northern!AA1651 -> 183.4107685 | U73: =+Northern!AB1651 -> 319.1767107 | V73: =+Northern!AC1651 -> 348.3568175 | W73: =+Northern!AD1651 -> 299.9818039 | X73: =+Northern!AE1651 -> 212.9824805 | Y73: =+Northern!AF1651 -> 149.1130654 | Z73: =+Northern!AG1651 -> 211.5685323 | AA73: =+Northern!AH1651 -> 192.8293002 | AB73: =+Northern!AI1651 -> 217.1660432 | AC73: =+Northern!AJ1651 -> 238.3031373 | AD73: =+Northern!AK1651 -> 236.5312212 | AE73: =+Northern!AL1651 -> 168.9670264 | AF73: =+Northern!AM1651 -> 183.4107685 | AG73: =+Northern!AN1651 -> 319.1767107 | AH73: =+Northern!AO1651 -> 348.3568175 | AI73: =+Northern!AP1651 -> 299.9818039 | AJ73: =+Northern!AQ1651 -> 212.9824805 | AK73: =+Northern!AR1651 -> 149.1130654 | AL73: =+Northern!AS1651 -> 211.5685323 | AM73: =+Northern!AT1651 -> 192.8293002 | AN73: =+Northern!AU1651 -> 217.1660432 | AO73: =+Northern!AV1651 -> 238.3031373 | AP73: =+Northern!AW1651 -> 236.5312212 | AQ73: =+Northern!AX1651 -> 168.9670264 | AR73: =+Northern!AY1651 -> 183.4107685 | AS73: =+Northern!AZ1651 -> 319.1767107 | AT73: =+Northern!BA1651 -> 348.3568175 | AU73: =+Northern!BB1651 -> 299.9818039 | AV73: =+Northern!BC1651 -> 212.9824805 | AW73: =+Northern!BD1651 -> 149.1130654 | AX73: =+Northern!BE1651 -> 211.5685323 | AY73: =+Northern!BF1651 -> 192.8293002 | AZ73: =+Northern!BG1651 -> 217.1660432 | BA73: =+Northern!BH1651 -> 238.3031373 | BB73: =+Northern!BI1651 -> 236.5312212 | BC73: =+Northern!BJ1651 -> 168.9670264 | BD73: =+Northern!BK1651 -> 183.4107685 | BE73: =+Northern!BL1651 -> 319.1767107 | BF73: =+Northern!BM1651 -> 348.3568175 | BG73: =+Northern!BN1651 -> 299.9818039 | BH73: =+Northern!BO1651 -> 212.9824805 | BI73: =+Northern!BP1651 -> 149.1130654
A74: SFR | B74: =+Northern!I1652 -> 45.20596594 | C74: =+Northern!J1652 -> 45.39627182 | D74: =+Northern!K1652 -> 42.03372678 | E74: =+Northern!L1652 -> 41.45462472 | F74: =+Northern!M1652 -> 49.33262326 | G74: =+Northern!N1652 -> 43.37514319 | H74: =+Northern!O1652 -> 42.49863276 | I74: =+Northern!P1652 -> 41.1913444 | J74: =+Northern!Q1652 -> 37.33297558 | K74: =+Northern!R1652 -> 33.00171285 | L74: =+Northern!S1652 -> 33.55447767 | M74: =+Northern!T1652 -> 36.3766435 | N74: =+Northern!U1652 -> 44.73517665 | O74: =+Northern!V1652 -> 44.92855297 | P74: =+Northern!W1652 -> 41.59272815 | Q74: =+Northern!X1652 -> 41.01783913 | R74: =+Northern!Y1652 -> 48.80776054 | S74: =+Northern!Z1652 -> 42.90471 | T74: =+Northern!AA1652 -> 42.03568473 | U74: =+Northern!AB1652 -> 40.73988989 | V74: =+Northern!AC1652 -> 36.92235981 | W74: =+Northern!AD1652 -> 32.63800983 | X74: =+Northern!AE1652 -> 33.19127168 | Y74: =+Northern!AF1652 -> 35.98601662 | Z74: =+Northern!AG1652 -> 44.73517665 | AA74: =+Northern!AH1652 -> 44.92855297 | AB74: =+Northern!AI1652 -> 41.59272815 | AC74: =+Northern!AJ1652 -> 41.01783913 | AD74: =+Northern!AK1652 -> 48.80776054 | AE74: =+Northern!AL1652 -> 42.90471 | AF74: =+Northern!AM1652 -> 42.03568473 | AG74: =+Northern!AN1652 -> 40.73988989 | AH74: =+Northern!AO1652 -> 36.92235981 | AI74: =+Northern!AP1652 -> 32.63800983 | AJ74: =+Northern!AQ1652 -> 33.19127168 | AK74: =+Northern!AR1652 -> 35.98601662 | AL74: =+Northern!AS1652 -> 44.73517665 | AM74: =+Northern!AT1652 -> 44.92855297 | AN74: =+Northern!AU1652 -> 41.59272815 | AO74: =+Northern!AV1652 -> 41.01783913 | AP74: =+Northern!AW1652 -> 48.80776054 | AQ74: =+Northern!AX1652 -> 42.90471 | AR74: =+Northern!AY1652 -> 42.03568473 | AS74: =+Northern!AZ1652 -> 40.73988989 | AT74: =+Northern!BA1652 -> 36.92235981 | AU74: =+Northern!BB1652 -> 32.63800983 | AV74: =+Northern!BC1652 -> 33.19127168 | AW74: =+Northern!BD1652 -> 35.98601662 | AX74: =+Northern!BE1652 -> 44.73517665 | AY74: =+Northern!BF1652 -> 44.92855297 | AZ74: =+Northern!BG1652 -> 41.59272815 | BA74: =+Northern!BH1652 -> 41.01783913 | BB74: =+Northern!BI1652 -> 48.80776054 | BC74: =+Northern!BJ1652 -> 42.90471 | BD74: =+Northern!BK1652 -> 42.03568473 | BE74: =+Northern!BL1652 -> 40.73988989 | BF74: =+Northern!BM1652 -> 36.92235981 | BG74: =+Northern!BN1652 -> 32.63800983 | BH74: =+Northern!BO1652 -> 33.19127168 | BI74: =+Northern!BP1652 -> 35.98601662
A75: Misc Other Sales | B75: =+Northern!I1653 -> 0 | C75: =+Northern!J1653 -> 0 | D75: =+Northern!K1653 -> 0 | E75: =+Northern!L1653 -> 0 | F75: =+Northern!M1653 -> 0 | G75: =+Northern!N1653 -> 0 | H75: =+Northern!O1653 -> 0 | I75: =+Northern!P1653 -> 0 | J75: =+Northern!Q1653 -> 0 | K75: =+Northern!R1653 -> 0 | L75: =+Northern!S1653 -> 0 | M75: =+Northern!T1653 -> 0 | N75: =+Northern!U1653 -> 0 | O75: =+Northern!V1653 -> 0 | P75: =+Northern!W1653 -> 0 | Q75: =+Northern!X1653 -> 0 | R75: =+Northern!Y1653 -> 0 | S75: =+Northern!Z1653 -> 0 | T75: =+Northern!AA1653 -> 0 | U75: =+Northern!AB1653 -> 0 | V75: =+Northern!AC1653 -> 0 | W75: =+Northern!AD1653 -> 0 | X75: =+Northern!AE1653 -> 0 | Y75: =+Northern!AF1653 -> 0 | Z75: =+Northern!AG1653 -> 0 | AA75: =+Northern!AH1653 -> 0 | AB75: =+Northern!AI1653 -> 0 | AC75: =+Northern!AJ1653 -> 0 | AD75: =+Northern!AK1653 -> 0 | AE75: =+Northern!AL1653 -> 0 | AF75: =+Northern!AM1653 -> 0 | AG75: =+Northern!AN1653 -> 0 | AH75: =+Northern!AO1653 -> 0 | AI75: =+Northern!AP1653 -> 0 | AJ75: =+Northern!AQ1653 -> 0 | AK75: =+Northern!AR1653 -> 0 | AL75: =+Northern!AS1653 -> 0 | AM75: =+Northern!AT1653 -> 0 | AN75: =+Northern!AU1653 -> 0 | AO75: =+Northern!AV1653 -> 0 | AP75: =+Northern!AW1653 -> 0 | AQ75: =+Northern!AX1653 -> 0 | AR75: =+Northern!AY1653 -> 0 | AS75: =+Northern!AZ1653 -> 0 | AT75: =+Northern!BA1653 -> 0 | AU75: =+Northern!BB1653 -> 0 | AV75: =+Northern!BC1653 -> 0 | AW75: =+Northern!BD1653 -> 0 | AX75: =+Northern!BE1653 -> 0 | AY75: =+Northern!BF1653 -> 0 | AZ75: =+Northern!BG1653 -> 0 | BA75: =+Northern!BH1653 -> 0 | BB75: =+Northern!BI1653 -> 0 | BC75: =+Northern!BJ1653 -> 0 | BD75: =+Northern!BK1653 -> 0 | BE75: =+Northern!BL1653 -> 0 | BF75: =+Northern!BM1653 -> 0 | BG75: =+Northern!BN1653 -> 0 | BH75: =+Northern!BO1653 -> 0 | BI75: =+Northern!BP1653 -> 0
A76: Total | B76: =+SUM(B70:B75) -> 10699.66751 | C76: =+SUM(C70:C75) -> 9841.01 | D76: 10657.94311 | E76: 10359.84264 | F76: 11993.13822 | G76: 12613.6785 | H76: 12264.25048 | I76: 12259.96062 | J76: 11432.61084 | K76: 11122.74307 | L76: 10123.503 | M76: 10923.6966 | N76: 10573.57087 | O76: 9725.083908 | P76: 10532.73391 | Q76: 10238.69046 | R76: 11852.29148 | S76: 12465.10468 | T76: 12120.00572 | U76: 12117.61917 | V76: 11300.50374 | W76: 10993.19947 | X76: 10004.58565 | Y76: 10794.21607 | Z76: 10443.78194 | AA76: 9605.803533 | AB76: 10403.84386 | AC76: 10113.98234 | AD76: 11707.34613 | AE76: 12312.19737 | AF76: 11971.54796 | AG76: 11971.04505 | AH76: 11164.4301 | AI76: 10859.72198 | AJ76: 9882.108591 | AK76: 10660.89343 | AL76: 10311.06988 | AM76: 9483.838279 | AN76: 10272.05914 | AO76: 9986.478933 | AP76: 11559.14939 | AQ76: 12155.87493 | AR76: 11819.77382 | AS76: 11821.20075 | AT76: 11025.32049 | AU76: 10723.25291 | AV76: 9756.879607 | AW76: 10524.57125 | AX76: =+SUM(AX70:AX75) -> 10174.84351 | AY76: 9358.64495 | AZ76: 10136.79327 | BA76: 9855.613206 | BB76: 11407.042 | BC76: 11995.44298 | BD76: 11664.00911 | BE76: 11667.4209 | BF76: 10882.55723 | BG76: 10583.18536 | BH76: 9628.34131 | BI76: 10384.64251
A78: Total Usage - Base | B78: =+B$4 -> 2018-01-01 | C78: =+C$4 -> 2018-02-01 | D78: 2018-03-01 | E78: 2018-04-01 | F78: 2018-05-01 | G78: 2018-06-01 | H78: 2018-07-01 | I78: 2018-08-01 | J78: 2018-09-01 | K78: 2018-10-01 | L78: 2018-11-01 | M78: 2018-12-01 | N78: 2019-01-01 | O78: 2019-02-01 | P78: 2019-03-01 | Q78: 2019-04-01 | R78: 2019-05-01 | S78: 2019-06-01 | T78: 2019-07-01 | U78: 2019-08-01 | V78: 2019-09-01 | W78: 2019-10-01 | X78: 2019-11-01 | Y78: 2019-12-01 | Z78: 2020-01-01 | AA78: 2020-02-01 | AB78: 2020-03-01 | AC78: 2020-04-01 | AD78: 2020-05-01 | AE78: 2020-06-01 | AF78: 2020-07-01 | AG78: 2020-08-01 | AH78: 2020-09-01 | AI78: 2020-10-01 | AJ78: 2020-11-01 | AK78: 2020-12-01 | AL78: 2021-01-01 | AM78: 2021-02-01 | AN78: 2021-03-01 | AO78: 2021-04-01 | AP78: 2021-05-01 | AQ78: 2021-06-01 | AR78: 2021-07-01 | AS78: 2021-08-01 | AT78: 2021-09-01 | AU78: 2021-10-01 | AV78: 2021-11-01 | AW78: 2021-12-01 | AX78: 2022-01-01 | AY78: 2022-02-01 | AZ78: 2022-03-01 | BA78: 2022-04-01 | BB78: 2022-05-01 | BC78: 2022-06-01 | BD78: 2022-07-01 | BE78: 2022-08-01 | BF78: 2022-09-01 | BG78: 2022-10-01 | BH78: 2022-11-01 | BI78: 2022-12-01
A79: Residential | B79: =+B61+B70 -> 442445.4764 | C79: =+C61+C70 -> 405272.3691 | D79: 438353.58 | E79: 433449.4116 | F79: 491883.0543 | G79: 514928.939 | H79: 530186.5283 | I79: 538585.873 | J79: 526342.6523 | K79: 498101.2595 | L79: 436194.612 | M79: 443191.6543 | N79: 437016.2059 | O79: 400299.2517 | P79: 432974.5214 | Q79: 428130.5323 | R79: 485847.1329 | S79: 508610.2203 | T79: 523680.583 | U79: 531976.859 | V79: 519883.8754 | W79: 491989.0341 | X79: 430842.0462 | Y79: 437753.2275 | Z79: 431406.8895 | AA79: 395161.2153 | AB79: 427417.082 | AC79: 422635.2679 | AD79: 479611.0477 | AE79: 502081.9598 | AF79: 516958.887 | AG79: 525148.6762 | AH79: 513210.912 | AI79: 485674.1146 | AJ79: 425311.9782 | AK79: 432134.451 | AL79: 425668.6458 | AM79: 389905.0838 | AN79: 421731.9076 | AO79: 417013.6975 | AP79: 473231.6292 | AQ79: 495403.6504 | AR79: 510082.6962 | AS79: 518163.5511 | AT79: 506384.5739 | AU79: 479214.0498 | AV79: 419654.8043 | AW79: 426386.5298 | AX79: =+AX61+AX70 -> 419775.7334 | AY79: 384507.2784 | AZ79: 415893.495 | BA79: 411240.6033 | BB79: 466680.2598 | BC79: 488545.3339 | BD79: 503021.1644 | BE79: 510990.1488 | BF79: 499374.2385 | BG79: 472579.8604 | BH79: 413845.1468 | BI79: 420483.6791
A80: Commercial | B80: =+B62+B71 -> 277420.5442 | C80: 262832.082 | D80: 289417.1507 | E80: 293812.9553 | F80: 326942.847 | G80: 346164.4921 | H80: 370566.6178 | I80: 377630.9373 | J80: 368191.5653 | K80: 352635.9432 | L80: 290275.6245 | M80: 274613.967 | N80: 275727.594 | O80: 261228.1574 | P80: 287650.9915 | Q80: 292019.9709 | R80: 324947.6885 | S80: 344052.0341 | T80: 368305.2466 | U80: 375326.4563 | V80: 365944.6877 | W80: 350483.9933 | X80: 288504.2266 | Y80: 272938.1439 | Z80: 274065.7755 | AA80: 259653.7274 | AB80: 285917.3103 | AC80: 290259.9577 | AD80: 322989.2189 | AE80: 341978.4221 | AF80: 366085.4597 | AG80: 373064.3524 | AH80: 363739.128 | AI80: 348371.6157 | AJ80: 286765.4029 | AK80: 271293.1374 | AL80: 272408.4538 | AM80: 258083.5578 | AN80: 284188.3204 | AO80: 288504.7071 | AP80: 321036.049 | AQ80: 339910.4212 | AR80: 363871.6796 | AS80: 370808.3697 | AT80: 361539.5365 | AU80: 346264.9541 | AV80: 285031.2844 | AW80: 269652.5823 | AX80: 270751.1538 | AY80: 256513.4087 | AZ80: 282459.3531 | BA80: 286749.4795 | BB80: 319082.9046 | BC80: 337842.4475 | BD80: 361657.9284 | BE80: 368552.4166 | BF80: 359339.9738 | BG80: 344158.3201 | BH80: 283297.1887 | BI80: 268012.0487
A81: Industrial | B81: 46192.6 | C81: 46736.2 | D81: 65096.2 | E81: 48666.2 | F81: 49350.272 | G81: 62005.6 | H81: 69119.974 | I81: 56033.2 | J81: 58503.63639 | K81: 58047.57717 | L81: 49339.03432 | M81: 44607.60944 | N81: 46854.1516 | O81: 44258.49378 | P81: 48609.35047 | Q81: 48917.72331 | R81: 52413.99433 | S81: 56492.5704 | T81: 59473.9479 | U81: 62370.3703 | V81: 57617.09717 | W81: 57167.94888 | X81: 48591.37159 | Y81: 43931.64471 | Z81: 45441.12373 | AA81: 42923.74578 | AB81: 47143.3893 | AC81: 47442.46223 | AD81: 50833.29268 | AE81: 54788.86702 | AF81: 57680.33211 | AG81: 60489.40419 | AH81: 55879.48031 | AI81: 55443.87743 | AJ81: 47125.95262 | AK81: 42606.75382 | AL81: 45441.12373 | AM81: 42923.74578 | AN81: 47143.3893 | AO81: 47442.46223 | AP81: 50833.29268 | AQ81: 54788.86702 | AR81: 57680.33211 | AS81: 60489.40419 | AT81: 55879.48031 | AU81: 55443.87743 | AV81: 47125.95262 | AW81: 42606.75382 | AX81: 45441.12373 | AY81: 42923.74578 | AZ81: 47143.3893 | BA81: 47442.46223 | BB81: 50833.29268 | BC81: 54788.86702 | BD81: 57680.33211 | BE81: 60489.40419 | BF81: 55879.48031 | BG81: 55443.87743 | BH81: 47125.95262 | BI81: 42606.75382
A82: OPA | B82: 75595.72542 | C82: 70215.17751 | D82: 76895.28121 | E82: 85384.4785 | F82: 104040.8437 | G82: 115401.0787 | H82: 128163.5438 | I82: 132851.441 | J82: 118776.9639 | K82: 103313.7133 | L82: 81139.41552 | M82: 73455.48255 | N82: 75637.14965 | O82: 70253.65335 | P82: 76937.41755 | Q82: 85431.26667 | R82: 104097.855 | S82: 115464.3151 | T82: 128233.7736 | U82: 132924.2396 | V82: 118842.0502 | W82: 103370.3261 | X82: 81183.87752 | Y82: 73495.73398 | Z82: 75637.14965 | AA82: 70253.65335 | AB82: 76937.41755 | AC82: 85431.26667 | AD82: 104097.855 | AE82: 115464.3151 | AF82: 128233.7736 | AG82: 132924.2396 | AH82: 118842.0502 | AI82: 103370.3261 | AJ82: 81183.87752 | AK82: 73495.73398 | AL82: 75637.14965 | AM82: 70253.65335 | AN82: 76937.41755 | AO82: 85431.26667 | AP82: 104097.855 | AQ82: 115464.3151 | AR82: 128233.7736 | AS82: 132924.2396 | AT82: 118842.0502 | AU82: 103370.3261 | AV82: 81183.87752 | AW82: 73495.73398 | AX82: 75637.14965 | AY82: 70253.65335 | AZ82: 76937.41755 | BA82: 85431.26667 | BB82: 104097.855 | BC82: 115464.3151 | BD82: 128233.7736 | BE82: 132924.2396 | BF82: 118842.0502 | BG82: 103370.3261 | BH82: 81183.87752 | BI82: 73495.73398
A83: SFR | B83: 31988.68067 | C83: 29758.67793 | D83: 31479.97532 | E83: 32137.77646 | F83: 41590.75765 | G83: 44364.28183 | H83: 45713.75653 | I83: 47769.11 | J83: 45356.6959 | K83: 41206.74347 | L83: 33580.15574 | M83: 33494.4165 | N83: 31655.5404 | O83: 29452.07357 | P83: 31149.70182 | Q83: 31799.15761 | R83: 41148.26267 | S83: 43883.12074 | T83: 45215.78537 | U83: 47245.56359 | V83: 44857.82929 | W83: 40752.61502 | X83: 33216.6718 | Y83: 33134.74013 | Z83: 31655.5404 | AA83: 29452.07357 | AB83: 31149.70182 | AC83: 31799.15761 | AD83: 41148.26267 | AE83: 43883.12074 | AF83: 45215.78537 | AG83: 47245.56359 | AH83: 44857.82929 | AI83: 40752.61502 | AJ83: 33216.6718 | AK83: 33134.74013 | AL83: 31655.5404 | AM83: 29452.07357 | AN83: 31149.70182 | AO83: 31799.15761 | AP83: 41148.26267 | AQ83: 43883.12074 | AR83: 45215.78537 | AS83: 47245.56359 | AT83: 44857.82929 | AU83: 40752.61502 | AV83: 33216.6718 | AW83: 33134.74013 | AX83: 31655.5404 | AY83: 29452.07357 | AZ83: 31149.70182 | BA83: 31799.15761 | BB83: 41148.26267 | BC83: 43883.12074 | BD83: 45215.78537 | BE83: 47245.56359 | BF83: 44857.82929 | BG83: 40752.61502 | BH83: 33216.6718 | BI83: 33134.74013
A84: Misc Other Sales | B84: -15.6 | C84: 977 | D84: 181.504 | E84: 410.4 | F84: 2074.426 | G84: 557.1 | H84: 172 | I84: 1055.6 | J84: 324.62891 | K84: 209.13969 | L84: 264.29009 | M84: 150.492135 | N84: 149.572315 | O84: 338.08644 | P84: 154.47423 | Q84: 263.498085 | R84: 179.21119 | S84: 397.512905 | T84: 350.10671 | U84: 372.33314 | V84: 324.62891 | W84: 209.13969 | X84: 264.29009 | Y84: 150.492135 | Z84: 149.572315 | AA84: 338.08644 | AB84: 154.47423 | AC84: 263.498085 | AD84: 179.21119 | AE84: 397.512905 | AF84: 350.10671 | AG84: 372.33314 | AH84: 324.62891 | AI84: 209.13969 | AJ84: 264.29009 | AK84: 150.492135 | AL84: =+AL66+AL75 -> 149.572315 | AM84: 338.08644 | AN84: 154.47423 | AO84: 263.498085 | AP84: 179.21119 | AQ84: 397.512905 | AR84: 350.10671 | AS84: 372.33314 | AT84: 324.62891 | AU84: 209.13969 | AV84: 264.29009 | AW84: 150.492135 | AX84: =+AX66+AX75 -> 149.572315 | AY84: 338.08644 | AZ84: 154.47423 | BA84: 263.498085 | BB84: 179.21119 | BC84: 397.512905 | BD84: 350.10671 | BE84: 372.33314 | BF84: 324.62891 | BG84: 209.13969 | BH84: 264.29009 | BI84: 150.492135
A85: Total | B85: =+SUM(B79:B84) -> 873627.4267 | C85: =+SUM(C79:C84) -> 815791.5065 | D85: 901423.6912 | E85: 893861.2219 | F85: 1015882.201 | G85: 1083421.492 | H85: 1143922.42 | I85: 1153926.161 | J85: 1117496.143 | K85: 1053514.376 | L85: 890793.1322 | M85: 869513.622 | N85: 867040.2139 | O85: 805829.7162 | P85: 877476.457 | Q85: 886562.1489 | R85: 1008634.144 | S85: 1068899.774 | T85: 1125259.443 | U85: 1150215.822 | V85: 1107470.169 | W85: 1043973.057 | X85: 882602.4838 | Y85: 861403.9823 | Z85: 858356.0511 | AA85: 797782.5018 | AB85: 868719.3752 | AC85: 877831.6102 | AD85: 998858.8881 | AE85: 1058594.198 | AF85: 1114524.345 | AG85: 1139244.569 | AH85: 1096854.029 | AI85: 1033821.689 | AJ85: 873868.1731 | AK85: 852815.3085 | AL85: 850960.4857 | AM85: 790956.2007 | AN85: 861305.2109 | AO85: 870454.7892 | AP85: 990526.2996 | AQ85: 1049847.887 | AR85: 1105434.374 | AS85: 1130003.461 | AT85: 1087828.099 | AU85: 1025254.962 | AV85: 866476.8807 | AW85: 845426.8322 | AX85: =+SUM(AX79:AX84) -> 843410.2732 | AY85: 783988.2462 | AZ85: 853737.831 | BA85: 862926.4674 | BB85: 982021.7858 | BC85: 1040921.597 | BD85: 1096159.091 | BE85: 1120574.106 | BF85: 1078618.201 | BG85: 1016514.139 | BH85: 858933.1275 | BI85: 837883.4479
A87: East Rockcastle | B87: =+B$4 -> 2018-01-01 | C87: =+C$4 -> 2018-02-01 | D87: 2018-03-01 | E87: 2018-04-01 | F87: 2018-05-01 | G87: 2018-06-01 | H87: 2018-07-01 | I87: 2018-08-01 | J87: 2018-09-01 | K87: 2018-10-01 | L87: 2018-11-01 | M87: 2018-12-01 | N87: 2019-01-01 | O87: 2019-02-01 | P87: 2019-03-01 | Q87: 2019-04-01 | R87: 2019-05-01 | S87: 2019-06-01 | T87: 2019-07-01 | U87: 2019-08-01 | V87: 2019-09-01 | W87: 2019-10-01 | X87: 2019-11-01 | Y87: 2019-12-01 | Z87: 2020-01-01 | AA87: 2020-02-01 | AB87: 2020-03-01 | AC87: 2020-04-01 | AD87: 2020-05-01 | AE87: 2020-06-01 | AF87: 2020-07-01 | AG87: 2020-08-01 | AH87: 2020-09-01 | AI87: 2020-10-01 | AJ87: 2020-11-01 | AK87: 2020-12-01 | AL87: 2021-01-01 | AM87: 2021-02-01 | AN87: 2021-03-01 | AO87: 2021-04-01 | AP87: 2021-05-01 | AQ87: 2021-06-01 | AR87: 2021-07-01 | AS87: 2021-08-01 | AT87: 2021-09-01 | AU87: 2021-10-01 | AV87: 2021-11-01 | AW87: 2021-12-01 | AX87: 2022-01-01 | AY87: 2022-02-01 | AZ87: 2022-03-01 | BA87: 2022-04-01 | BB87: 2022-05-01 | BC87: 2022-06-01 | BD87: 2022-07-01 | BE87: 2022-08-01 | BF87: 2022-09-01 | BG87: 2022-10-01 | BH87: 2022-11-01 | BI87: 2022-12-01
A88: Residential | B88: =+'E Rockcastle'!I1646 -> 0 | C88: =+'E Rockcastle'!J1646 -> 0 | D88: =+'E Rockcastle'!K1646 -> 502 | E88: =+'E Rockcastle'!L1646 -> 1425.053252 | F88: =+'E Rockcastle'!M1646 -> 2326.162272 | G88: =+'E Rockcastle'!N1646 -> 1713.503729 | H88: =+'E Rockcastle'!O1646 -> 2268.914831 | I88: =+'E Rockcastle'!P1646 -> 1526.525846 | J88: =+'E Rockcastle'!Q1646 -> 1627.026655 | K88: =+'E Rockcastle'!R1646 -> 1627.026655 | L88: =+'E Rockcastle'!S1646 -> 1627.026655 | M88: =+'E Rockcastle'!T1646 -> 1627.026655 | N88: =+'E Rockcastle'!U1646 -> 1627.026655 | O88: =+'E Rockcastle'!V1646 -> 1627.026655 | P88: =+'E Rockcastle'!W1646 -> 1627.026655 | Q88: =+'E Rockcastle'!X1646 -> 1627.026655 | R88: =+'E Rockcastle'!Y1646 -> 1627.026655 | S88: =+'E Rockcastle'!Z1646 -> 1627.026655 | T88: =+'E Rockcastle'!AA1646 -> 1627.026655 | U88: =+'E Rockcastle'!AB1646 -> 1627.026655 | V88: =+'E Rockcastle'!AC1646 -> 1627.026655 | W88: =+'E Rockcastle'!AD1646 -> 1627.026655 | X88: =+'E Rockcastle'!AE1646 -> 1627.026655 | Y88: =+'E Rockcastle'!AF1646 -> 1627.026655 | Z88: =+'E Rockcastle'!AG1646 -> 1627.026655 | AA88: =+'E Rockcastle'!AH1646 -> 1627.026655 | AB88: =+'E Rockcastle'!AI1646 -> 1627.026655 | AC88: =+'E Rockcastle'!AJ1646 -> 1627.026655 | AD88: =+'E Rockcastle'!AK1646 -> 1627.026655 | AE88: =+'E Rockcastle'!AL1646 -> 1627.026655 | AF88: =+'E Rockcastle'!AM1646 -> 1627.026655 | AG88: =+'E Rockcastle'!AN1646 -> 1627.026655 | AH88: =+'E Rockcastle'!AO1646 -> 1627.026655 | AI88: =+'E Rockcastle'!AP1646 -> 1627.026655 | AJ88: =+'E Rockcastle'!AQ1646 -> 1627.026655 | AK88: =+'E Rockcastle'!AR1646 -> 1627.026655 | AL88: =+'E Rockcastle'!AS1646 -> 1627.026655 | AM88: =+'E Rockcastle'!AT1646 -> 1627.026655 | AN88: =+'E Rockcastle'!AU1646 -> 1627.026655 | AO88: =+'E Rockcastle'!AV1646 -> 1627.026655 | AP88: =+'E Rockcastle'!AW1646 -> 1627.026655 | AQ88: =+'E Rockcastle'!AX1646 -> 1627.026655 | AR88: =+'E Rockcastle'!AY1646 -> 1627.026655 | AS88: =+'E Rockcastle'!AZ1646 -> 1627.026655 | AT88: =+'E Rockcastle'!BA1646 -> 1627.026655 | AU88: =+'E Rockcastle'!BB1646 -> 1627.026655 | AV88: =+'E Rockcastle'!BC1646 -> 1627.026655 | AW88: =+'E Rockcastle'!BD1646 -> 1627.026655 | AX88: =+'E Rockcastle'!BE1646 -> 1627.026655 | AY88: =+'E Rockcastle'!BF1646 -> 1627.026655 | AZ88: =+'E Rockcastle'!BG1646 -> 1627.026655 | BA88: =+'E Rockcastle'!BH1646 -> 1627.026655 | BB88: =+'E Rockcastle'!BI1646 -> 1627.026655 | BC88: =+'E Rockcastle'!BJ1646 -> 1627.026655 | BD88: =+'E Rockcastle'!BK1646 -> 1627.026655 | BE88: =+'E Rockcastle'!BL1646 -> 1627.026655 | BF88: =+'E Rockcastle'!BM1646 -> 1627.026655 | BG88: =+'E Rockcastle'!BN1646 -> 1627.026655 | BH88: =+'E Rockcastle'!BO1646 -> 1627.026655 | BI88: =+'E Rockcastle'!BP1646 -> 1627.026655
A89: Commercial | B89: =+'E Rockcastle'!I1647 -> 0 | C89: =+'E Rockcastle'!J1647 -> 0 | D89: =+'E Rockcastle'!K1647 -> 24 | E89: =+'E Rockcastle'!L1647 -> 100.1611448 | F89: =+'E Rockcastle'!M1647 -> 100.7324371 | G89: =+'E Rockcastle'!N1647 -> 37.69982654 | H89: =+'E Rockcastle'!O1647 -> 28.29965308 | I89: =+'E Rockcastle'!P1647 -> 53.3 | J89: =+'E Rockcastle'!Q1647 -> 57.36551026 | K89: =+'E Rockcastle'!R1647 -> 57.36551026 | L89: =+'E Rockcastle'!S1647 -> 57.36551026 | M89: =+'E Rockcastle'!T1647 -> 57.36551026 | N89: =+'E Rockcastle'!U1647 -> 57.36551026 | O89: =+'E Rockcastle'!V1647 -> 57.36551026 | P89: =+'E Rockcastle'!W1647 -> 57.36551026 | Q89: =+'E Rockcastle'!X1647 -> 57.36551026 | R89: =+'E Rockcastle'!Y1647 -> 57.36551026 | S89: =+'E Rockcastle'!Z1647 -> 57.36551026 | T89: =+'E Rockcastle'!AA1647 -> 57.36551026 | U89: =+'E Rockcastle'!AB1647 -> 57.36551026 | V89: =+'E Rockcastle'!AC1647 -> 57.36551026 | W89: =+'E Rockcastle'!AD1647 -> 57.36551026 | X89: =+'E Rockcastle'!AE1647 -> 57.36551026 | Y89: =+'E Rockcastle'!AF1647 -> 57.36551026 | Z89: =+'E Rockcastle'!AG1647 -> 57.36551026 | AA89: =+'E Rockcastle'!AH1647 -> 57.36551026 | AB89: =+'E Rockcastle'!AI1647 -> 57.36551026 | AC89: =+'E Rockcastle'!AJ1647 -> 57.36551026 | AD89: =+'E Rockcastle'!AK1647 -> 57.36551026 | AE89: =+'E Rockcastle'!AL1647 -> 57.36551026 | AF89: =+'E Rockcastle'!AM1647 -> 57.36551026 | AG89: =+'E Rockcastle'!AN1647 -> 57.36551026 | AH89: =+'E Rockcastle'!AO1647 -> 57.36551026 | AI89: =+'E Rockcastle'!AP1647 -> 57.36551026 | AJ89: =+'E Rockcastle'!AQ1647 -> 57.36551026 | AK89: =+'E Rockcastle'!AR1647 -> 57.36551026 | AL89: =+'E Rockcastle'!AS1647 -> 57.36551026 | AM89: =+'E Rockcastle'!AT1647 -> 57.36551026 | AN89: =+'E Rockcastle'!AU1647 -> 57.36551026 | AO89: =+'E Rockcastle'!AV1647 -> 57.36551026 | AP89: =+'E Rockcastle'!AW1647 -> 57.36551026 | AQ89: =+'E Rockcastle'!AX1647 -> 57.36551026 | AR89: =+'E Rockcastle'!AY1647 -> 57.36551026 | AS89: =+'E Rockcastle'!AZ1647 -> 57.36551026 | AT89: =+'E Rockcastle'!BA1647 -> 57.36551026 | AU89: =+'E Rockcastle'!BB1647 -> 57.36551026 | AV89: =+'E Rockcastle'!BC1647 -> 57.36551026 | AW89: =+'E Rockcastle'!BD1647 -> 57.36551026 | AX89: =+'E Rockcastle'!BE1647 -> 57.36551026 | AY89: =+'E Rockcastle'!BF1647 -> 57.36551026 | AZ89: =+'E Rockcastle'!BG1647 -> 57.36551026 | BA89: =+'E Rockcastle'!BH1647 -> 57.36551026 | BB89: =+'E Rockcastle'!BI1647 -> 57.36551026 | BC89: =+'E Rockcastle'!BJ1647 -> 57.36551026 | BD89: =+'E Rockcastle'!BK1647 -> 57.36551026 | BE89: =+'E Rockcastle'!BL1647 -> 57.36551026 | BF89: =+'E Rockcastle'!BM1647 -> 57.36551026 | BG89: =+'E Rockcastle'!BN1647 -> 57.36551026 | BH89: =+'E Rockcastle'!BO1647 -> 57.36551026 | BI89: =+'E Rockcastle'!BP1647 -> 57.36551026
A90: Industrial | B90: =+'E Rockcastle'!I1648 -> 0 | C90: =+'E Rockcastle'!J1648 -> 0 | D90: =+'E Rockcastle'!K1648 -> 0 | E90: =+'E Rockcastle'!L1648 -> 0 | F90: =+'E Rockcastle'!M1648 -> 0 | G90: =+'E Rockcastle'!N1648 -> 0 | H90: =+'E Rockcastle'!O1648 -> 0 | I90: =+'E Rockcastle'!P1648 -> 0 | J90: =+'E Rockcastle'!Q1648 -> 0 | K90: =+'E Rockcastle'!R1648 -> 0 | L90: =+'E Rockcastle'!S1648 -> 0 | M90: =+'E Rockcastle'!T1648 -> 0 | N90: =+'E Rockcastle'!U1648 -> 0 | O90: =+'E Rockcastle'!V1648 -> 0 | P90: =+'E Rockcastle'!W1648 -> 0 | Q90: =+'E Rockcastle'!X1648 -> 0 | R90: =+'E Rockcastle'!Y1648 -> 0 | S90: =+'E Rockcastle'!Z1648 -> 0 | T90: =+'E Rockcastle'!AA1648 -> 0 | U90: =+'E Rockcastle'!AB1648 -> 0 | V90: =+'E Rockcastle'!AC1648 -> 0 | W90: =+'E Rockcastle'!AD1648 -> 0 | X90: =+'E Rockcastle'!AE1648 -> 0 | Y90: =+'E Rockcastle'!AF1648 -> 0 | Z90: =+'E Rockcastle'!AG1648 -> 0 | AA90: =+'E Rockcastle'!AH1648 -> 0 | AB90: =+'E Rockcastle'!AI1648 -> 0 | AC90: =+'E Rockcastle'!AJ1648 -> 0 | AD90: =+'E Rockcastle'!AK1648 -> 0 | AE90: =+'E Rockcastle'!AL1648 -> 0 | AF90: =+'E Rockcastle'!AM1648 -> 0 | AG90: =+'E Rockcastle'!AN1648 -> 0 | AH90: =+'E Rockcastle'!AO1648 -> 0 | AI90: =+'E Rockcastle'!AP1648 -> 0 | AJ90: =+'E Rockcastle'!AQ1648 -> 0 | AK90: =+'E Rockcastle'!AR1648 -> 0 | AL90: =+'E Rockcastle'!AS1648 -> 0 | AM90: =+'E Rockcastle'!AT1648 -> 0 | AN90: =+'E Rockcastle'!AU1648 -> 0 | AO90: =+'E Rockcastle'!AV1648 -> 0 | AP90: =+'E Rockcastle'!AW1648 -> 0 | AQ90: =+'E Rockcastle'!AX1648 -> 0 | AR90: =+'E Rockcastle'!AY1648 -> 0 | AS90: =+'E Rockcastle'!AZ1648 -> 0 | AT90: =+'E Rockcastle'!BA1648 -> 0 | AU90: =+'E Rockcastle'!BB1648 -> 0 | AV90: =+'E Rockcastle'!BC1648 -> 0 | AW90: =+'E Rockcastle'!BD1648 -> 0 | AX90: =+'E Rockcastle'!BE1648 -> 0 | AY90: =+'E Rockcastle'!BF1648 -> 0 | AZ90: =+'E Rockcastle'!BG1648 -> 0 | BA90: =+'E Rockcastle'!BH1648 -> 0 | BB90: =+'E Rockcastle'!BI1648 -> 0 | BC90: =+'E Rockcastle'!BJ1648 -> 0 | BD90: =+'E Rockcastle'!BK1648 -> 0 | BE90: =+'E Rockcastle'!BL1648 -> 0 | BF90: =+'E Rockcastle'!BM1648 -> 0 | BG90: =+'E Rockcastle'!BN1648 -> 0 | BH90: =+'E Rockcastle'!BO1648 -> 0 | BI90: =+'E Rockcastle'!BP1648 -> 0
A91: OPA | B91: =+'E Rockcastle'!I1663 -> 0 | C91: =+'E Rockcastle'!J1663 -> 0 | D91: =+'E Rockcastle'!K1663 -> 0 | E91: =+'E Rockcastle'!L1663 -> 0 | F91: =+'E Rockcastle'!M1663 -> 0 | G91: =+'E Rockcastle'!N1663 -> 0 | H91: =+'E Rockcastle'!O1663 -> 0 | I91: =+'E Rockcastle'!P1663 -> 0 | J91: =+'E Rockcastle'!Q1663 -> 0 | K91: =+'E Rockcastle'!R1663 -> 0 | L91: =+'E Rockcastle'!S1663 -> 0 | M91: =+'E Rockcastle'!T1663 -> 0 | N91: =+'E Rockcastle'!U1663 -> 0 | O91: =+'E Rockcastle'!V1663 -> 0 | P91: =+'E Rockcastle'!W1663 -> 0 | Q91: =+'E Rockcastle'!X1663 -> 0 | R91: =+'E Rockcastle'!Y1663 -> 0 | S91: =+'E Rockcastle'!Z1663 -> 0 | T91: =+'E Rockcastle'!AA1663 -> 0 | U91: =+'E Rockcastle'!AB1663 -> 0 | V91: =+'E Rockcastle'!AC1663 -> 0 | W91: =+'E Rockcastle'!AD1663 -> 0 | X91: =+'E Rockcastle'!AE1663 -> 0 | Y91: =+'E Rockcastle'!AF1663 -> 0 | Z91: =+'E Rockcastle'!AG1663 -> 0 | AA91: =+'E Rockcastle'!AH1663 -> 0 | AB91: =+'E Rockcastle'!AI1663 -> 0 | AC91: =+'E Rockcastle'!AJ1663 -> 0 | AD91: =+'E Rockcastle'!AK1663 -> 0 | AE91: =+'E Rockcastle'!AL1663 -> 0 | AF91: =+'E Rockcastle'!AM1663 -> 0 | AG91: =+'E Rockcastle'!AN1663 -> 0 | AH91: =+'E Rockcastle'!AO1663 -> 0 | AI91: =+'E Rockcastle'!AP1663 -> 0 | AJ91: =+'E Rockcastle'!AQ1663 -> 0 | AK91: =+'E Rockcastle'!AR1663 -> 0 | AL91: =+'E Rockcastle'!AS1663 -> 0 | AM91: =+'E Rockcastle'!AT1663 -> 0 | AN91: =+'E Rockcastle'!AU1663 -> 0 | AO91: =+'E Rockcastle'!AV1663 -> 0 | AP91: =+'E Rockcastle'!AW1663 -> 0 | AQ91: =+'E Rockcastle'!AX1663 -> 0 | AR91: =+'E Rockcastle'!AY1663 -> 0 | AS91: =+'E Rockcastle'!AZ1663 -> 0 | AT91: =+'E Rockcastle'!BA1663 -> 0 | AU91: =+'E Rockcastle'!BB1663 -> 0 | AV91: =+'E Rockcastle'!BC1663 -> 0 | AW91: =+'E Rockcastle'!BD1663 -> 0 | AX91: =+'E Rockcastle'!BE1663 -> 0 | AY91: =+'E Rockcastle'!BF1663 -> 0 | AZ91: =+'E Rockcastle'!BG1663 -> 0 | BA91: =+'E Rockcastle'!BH1663 -> 0 | BB91: =+'E Rockcastle'!BI1663 -> 0 | BC91: =+'E Rockcastle'!BJ1663 -> 0 | BD91: =+'E Rockcastle'!BK1663 -> 0 | BE91: =+'E Rockcastle'!BL1663 -> 0 | BF91: =+'E Rockcastle'!BM1663 -> 0 | BG91: =+'E Rockcastle'!BN1663 -> 0 | BH91: =+'E Rockcastle'!BO1663 -> 0 | BI91: =+'E Rockcastle'!BP1663 -> 0
A92: SFR | B92: =+'E Rockcastle'!I1664 -> 0 | C92: =+'E Rockcastle'!J1664 -> 0 | D92: =+'E Rockcastle'!K1664 -> 0 | E92: =+'E Rockcastle'!L1664 -> 0 | F92: =+'E Rockcastle'!M1664 -> 0 | G92: =+'E Rockcastle'!N1664 -> 0 | H92: =+'E Rockcastle'!O1664 -> 0 | I92: =+'E Rockcastle'!P1664 -> 0 | J92: =+'E Rockcastle'!Q1664 -> 0 | K92: =+'E Rockcastle'!R1664 -> 0 | L92: =+'E Rockcastle'!S1664 -> 0 | M92: =+'E Rockcastle'!T1664 -> 0 | N92: =+'E Rockcastle'!U1664 -> 0 | O92: =+'E Rockcastle'!V1664 -> 0 | P92: =+'E Rockcastle'!W1664 -> 0 | Q92: =+'E Rockcastle'!X1664 -> 0 | R92: =+'E Rockcastle'!Y1664 -> 0 | S92: =+'E Rockcastle'!Z1664 -> 0 | T92: =+'E Rockcastle'!AA1664 -> 0 | U92: =+'E Rockcastle'!AB1664 -> 0 | V92: =+'E Rockcastle'!AC1664 -> 0 | W92: =+'E Rockcastle'!AD1664 -> 0 | X92: =+'E Rockcastle'!AE1664 -> 0 | Y92: =+'E Rockcastle'!AF1664 -> 0 | Z92: =+'E Rockcastle'!AG1664 -> 0 | AA92: =+'E Rockcastle'!AH1664 -> 0 | AB92: =+'E Rockcastle'!AI1664 -> 0 | AC92: =+'E Rockcastle'!AJ1664 -> 0 | AD92: =+'E Rockcastle'!AK1664 -> 0 | AE92: =+'E Rockcastle'!AL1664 -> 0 | AF92: =+'E Rockcastle'!AM1664 -> 0 | AG92: =+'E Rockcastle'!AN1664 -> 0 | AH92: =+'E Rockcastle'!AO1664 -> 0 | AI92: =+'E Rockcastle'!AP1664 -> 0 | AJ92: =+'E Rockcastle'!AQ1664 -> 0 | AK92: =+'E Rockcastle'!AR1664 -> 0 | AL92: =+'E Rockcastle'!AS1664 -> 0 | AM92: =+'E Rockcastle'!AT1664 -> 0 | AN92: =+'E Rockcastle'!AU1664 -> 0 | AO92: =+'E Rockcastle'!AV1664 -> 0 | AP92: =+'E Rockcastle'!AW1664 -> 0 | AQ92: =+'E Rockcastle'!AX1664 -> 0 | AR92: =+'E Rockcastle'!AY1664 -> 0 | AS92: =+'E Rockcastle'!AZ1664 -> 0 | AT92: =+'E Rockcastle'!BA1664 -> 0 | AU92: =+'E Rockcastle'!BB1664 -> 0 | AV92: =+'E Rockcastle'!BC1664 -> 0 | AW92: =+'E Rockcastle'!BD1664 -> 0 | AX92: =+'E Rockcastle'!BE1664 -> 0 | AY92: =+'E Rockcastle'!BF1664 -> 0 | AZ92: =+'E Rockcastle'!BG1664 -> 0 | BA92: =+'E Rockcastle'!BH1664 -> 0 | BB92: =+'E Rockcastle'!BI1664 -> 0 | BC92: =+'E Rockcastle'!BJ1664 -> 0 | BD92: =+'E Rockcastle'!BK1664 -> 0 | BE92: =+'E Rockcastle'!BL1664 -> 0 | BF92: =+'E Rockcastle'!BM1664 -> 0 | BG92: =+'E Rockcastle'!BN1664 -> 0 | BH92: =+'E Rockcastle'!BO1664 -> 0 | BI92: =+'E Rockcastle'!BP1664 -> 0
A93: Misc Other Sales | B93: =+'E Rockcastle'!I1665 -> 0 | C93: =+'E Rockcastle'!J1665 -> 0 | D93: =+'E Rockcastle'!K1665 -> 0 | E93: =+'E Rockcastle'!L1665 -> 0 | F93: =+'E Rockcastle'!M1665 -> 0 | G93: =+'E Rockcastle'!N1665 -> 0 | H93: =+'E Rockcastle'!O1665 -> 0 | I93: =+'E Rockcastle'!P1665 -> 0 | J93: =+'E Rockcastle'!Q1665 -> 0 | K93: =+'E Rockcastle'!R1665 -> 0 | L93: =+'E Rockcastle'!S1665 -> 0 | M93: =+'E Rockcastle'!T1665 -> 0 | N93: =+'E Rockcastle'!U1665 -> 0 | O93: =+'E Rockcastle'!V1665 -> 0 | P93: =+'E Rockcastle'!W1665 -> 0 | Q93: =+'E Rockcastle'!X1665 -> 0 | R93: =+'E Rockcastle'!Y1665 -> 0 | S93: =+'E Rockcastle'!Z1665 -> 0 | T93: =+'E Rockcastle'!AA1665 -> 0 | U93: =+'E Rockcastle'!AB1665 -> 0 | V93: =+'E Rockcastle'!AC1665 -> 0 | W93: =+'E Rockcastle'!AD1665 -> 0 | X93: =+'E Rockcastle'!AE1665 -> 0 | Y93: =+'E Rockcastle'!AF1665 -> 0 | Z93: =+'E Rockcastle'!AG1665 -> 0 | AA93: =+'E Rockcastle'!AH1665 -> 0 | AB93: =+'E Rockcastle'!AI1665 -> 0 | AC93: =+'E Rockcastle'!AJ1665 -> 0 | AD93: =+'E Rockcastle'!AK1665 -> 0 | AE93: =+'E Rockcastle'!AL1665 -> 0 | AF93: =+'E Rockcastle'!AM1665 -> 0 | AG93: =+'E Rockcastle'!AN1665 -> 0 | AH93: =+'E Rockcastle'!AO1665 -> 0 | AI93: =+'E Rockcastle'!AP1665 -> 0 | AJ93: =+'E Rockcastle'!AQ1665 -> 0 | AK93: =+'E Rockcastle'!AR1665 -> 0 | AL93: =+'E Rockcastle'!AS1665 -> 0 | AM93: =+'E Rockcastle'!AT1665 -> 0 | AN93: =+'E Rockcastle'!AU1665 -> 0 | AO93: =+'E Rockcastle'!AV1665 -> 0 | AP93: =+'E Rockcastle'!AW1665 -> 0 | AQ93: =+'E Rockcastle'!AX1665 -> 0 | AR93: =+'E Rockcastle'!AY1665 -> 0 | AS93: =+'E Rockcastle'!AZ1665 -> 0 | AT93: =+'E Rockcastle'!BA1665 -> 0 | AU93: =+'E Rockcastle'!BB1665 -> 0 | AV93: =+'E Rockcastle'!BC1665 -> 0 | AW93: =+'E Rockcastle'!BD1665 -> 0 | AX93: =+'E Rockcastle'!BE1665 -> 0 | AY93: =+'E Rockcastle'!BF1665 -> 0 | AZ93: =+'E Rockcastle'!BG1665 -> 0 | BA93: =+'E Rockcastle'!BH1665 -> 0 | BB93: =+'E Rockcastle'!BI1665 -> 0 | BC93: =+'E Rockcastle'!BJ1665 -> 0 | BD93: =+'E Rockcastle'!BK1665 -> 0 | BE93: =+'E Rockcastle'!BL1665 -> 0 | BF93: =+'E Rockcastle'!BM1665 -> 0 | BG93: =+'E Rockcastle'!BN1665 -> 0 | BH93: =+'E Rockcastle'!BO1665 -> 0 | BI93: =+'E Rockcastle'!BP1665 -> 0
A94: Total | B94: =+SUM(B88:B93) -> 0 | C94: =+SUM(C88:C93) -> 0 | D94: 526 | E94: 1525.214397 | F94: 2426.894709 | G94: 1751.203556 | H94: 2297.214484 | I94: 1579.825846 | J94: 1684.392165 | K94: 1684.392165 | L94: 1684.392165 | M94: 1684.392165 | N94: 1684.392165 | O94: 1684.392165 | P94: 1684.392165 | Q94: 1684.392165 | R94: 1684.392165 | S94: 1684.392165 | T94: 1684.392165 | U94: 1684.392165 | V94: 1684.392165 | W94: 1684.392165 | X94: 1684.392165 | Y94: 1684.392165 | Z94: 1684.392165 | AA94: 1684.392165 | AB94: 1684.392165 | AC94: 1684.392165 | AD94: 1684.392165 | AE94: 1684.392165 | AF94: 1684.392165 | AG94: 1684.392165 | AH94: 1684.392165 | AI94: 1684.392165 | AJ94: 1684.392165 | AK94: 1684.392165 | AL94: 1684.392165 | AM94: 1684.392165 | AN94: 1684.392165 | AO94: 1684.392165 | AP94: 1684.392165 | AQ94: 1684.392165 | AR94: 1684.392165 | AS94: 1684.392165 | AT94: 1684.392165 | AU94: 1684.392165 | AV94: 1684.392165 | AW94: 1684.392165 | AX94: =+SUM(AX88:AX93) -> 1684.392165 | AY94: 1684.392165 | AZ94: 1684.392165 | BA94: 1684.392165 | BB94: 1684.392165 | BC94: 1684.392165 | BD94: 1684.392165 | BE94: 1684.392165 | BF94: 1684.392165 | BG94: 1684.392165 | BH94: 1684.392165 | BI94: 1684.392165
A96: Residential
A97: Block 1 | B97: =+'E Rockcastle'!I1519 -> 0 | C97: =+'E Rockcastle'!J1519 -> 0 | D97: =+'E Rockcastle'!K1519 -> 226 | E97: =+'E Rockcastle'!L1519 -> 1690.8 | F97: =+'E Rockcastle'!M1519 -> 622.7 | G97: =+'E Rockcastle'!N1519 -> 1003.6 | H97: =+'E Rockcastle'!O1519 -> 933.6 | I97: =+'E Rockcastle'!P1519 -> 899.1 | J97: =+'E Rockcastle'!Q1519 -> 895.9666667 | K97: =+'E Rockcastle'!R1519 -> 895.9666667 | L97: =+'E Rockcastle'!S1519 -> 895.9666667 | M97: =+'E Rockcastle'!T1519 -> 895.9666667 | N97: =+'E Rockcastle'!U1519 -> 895.9666667 | O97: =+'E Rockcastle'!V1519 -> 895.9666667 | P97: =+'E Rockcastle'!W1519 -> 895.9666667 | Q97: =+'E Rockcastle'!X1519 -> 895.9666667 | R97: =+'E Rockcastle'!Y1519 -> 895.9666667 | S97: =+'E Rockcastle'!Z1519 -> 895.9666667 | T97: =+'E Rockcastle'!AA1519 -> 895.9666667 | U97: =+'E Rockcastle'!AB1519 -> 895.9666667 | V97: =+'E Rockcastle'!AC1519 -> 895.9666667 | W97: =+'E Rockcastle'!AD1519 -> 895.9666667 | X97: =+'E Rockcastle'!AE1519 -> 895.9666667 | Y97: =+'E Rockcastle'!AF1519 -> 895.9666667 | Z97: =+'E Rockcastle'!AG1519 -> 895.9666667 | AA97: =+'E Rockcastle'!AH1519 -> 895.9666667 | AB97: =+'E Rockcastle'!AI1519 -> 895.9666667 | AC97: =+'E Rockcastle'!AJ1519 -> 895.9666667 | AD97: =+'E Rockcastle'!AK1519 -> 895.9666667 | AE97: =+'E Rockcastle'!AL1519 -> 895.9666667 | AF97: =+'E Rockcastle'!AM1519 -> 895.9666667 | AG97: =+'E Rockcastle'!AN1519 -> 895.9666667 | AH97: =+'E Rockcastle'!AO1519 -> 895.9666667 | AI97: =+'E Rockcastle'!AP1519 -> 895.9666667 | AJ97: =+'E Rockcastle'!AQ1519 -> 895.9666667 | AK97: =+'E Rockcastle'!AR1519 -> 895.9666667 | AL97: =+'E Rockcastle'!AS1519 -> 895.9666667 | AM97: =+'E Rockcastle'!AT1519 -> 895.9666667 | AN97: =+'E Rockcastle'!AU1519 -> 895.9666667 | AO97: =+'E Rockcastle'!AV1519 -> 895.9666667 | AP97: =+'E Rockcastle'!AW1519 -> 895.9666667 | AQ97: =+'E Rockcastle'!AX1519 -> 895.9666667 | AR97: =+'E Rockcastle'!AY1519 -> 895.9666667 | AS97: =+'E Rockcastle'!AZ1519 -> 895.9666667 | AT97: =+'E Rockcastle'!BA1519 -> 895.9666667 | AU97: =+'E Rockcastle'!BB1519 -> 895.9666667 | AV97: =+'E Rockcastle'!BC1519 -> 895.9666667 | AW97: =+'E Rockcastle'!BD1519 -> 895.9666667 | AX97: =+'E Rockcastle'!BE1519 -> 895.9666667 | AY97: =+'E Rockcastle'!BF1519 -> 895.9666667 | AZ97: =+'E Rockcastle'!BG1519 -> 895.9666667 | BA97: =+'E Rockcastle'!BH1519 -> 895.9666667 | BB97: =+'E Rockcastle'!BI1519 -> 895.9666667 | BC97: =+'E Rockcastle'!BJ1519 -> 895.9666667 | BD97: =+'E Rockcastle'!BK1519 -> 895.9666667 | BE97: =+'E Rockcastle'!BL1519 -> 895.9666667 | BF97: =+'E Rockcastle'!BM1519 -> 895.9666667 | BG97: =+'E Rockcastle'!BN1519 -> 895.9666667 | BH97: =+'E Rockcastle'!BO1519 -> 895.9666667 | BI97: =+'E Rockcastle'!BP1519 -> 895.9666667
A98: Block 2 | B98: =+'E Rockcastle'!I1520 -> 0 | C98: =+'E Rockcastle'!J1520 -> 0 | D98: =+'E Rockcastle'!K1520 -> 276 | E98: =+'E Rockcastle'!L1520 -> -265.7467476 | F98: =+'E Rockcastle'!M1520 -> 1703.462272 | G98: =+'E Rockcastle'!N1520 -> 709.9037294 | H98: =+'E Rockcastle'!O1520 -> 1335.314831 | I98: =+'E Rockcastle'!P1520 -> 627.4258456 | J98: =+'E Rockcastle'!Q1520 -> 731.0599884 | K98: =+'E Rockcastle'!R1520 -> 731.0599884 | L98: =+'E Rockcastle'!S1520 -> 731.0599884 | M98: =+'E Rockcastle'!T1520 -> 731.0599884 | N98: =+'E Rockcastle'!U1520 -> 731.0599884 | O98: =+'E Rockcastle'!V1520 -> 731.0599884 | P98: =+'E Rockcastle'!W1520 -> 731.0599884 | Q98: =+'E Rockcastle'!X1520 -> 731.0599884 | R98: =+'E Rockcastle'!Y1520 -> 731.0599884 | S98: =+'E Rockcastle'!Z1520 -> 731.0599884 | T98: =+'E Rockcastle'!AA1520 -> 731.0599884 | U98: =+'E Rockcastle'!AB1520 -> 731.0599884 | V98: =+'E Rockcastle'!AC1520 -> 731.0599884 | W98: =+'E Rockcastle'!AD1520 -> 731.0599884 | X98: =+'E Rockcastle'!AE1520 -> 731.0599884 | Y98: =+'E Rockcastle'!AF1520 -> 731.0599884 | Z98: =+'E Rockcastle'!AG1520 -> 731.0599884 | AA98: =+'E Rockcastle'!AH1520 -> 731.0599884 | AB98: =+'E Rockcastle'!AI1520 -> 731.0599884 | AC98: =+'E Rockcastle'!AJ1520 -> 731.0599884 | AD98: =+'E Rockcastle'!AK1520 -> 731.0599884 | AE98: =+'E Rockcastle'!AL1520 -> 731.0599884 | AF98: =+'E Rockcastle'!AM1520 -> 731.0599884 | AG98: =+'E Rockcastle'!AN1520 -> 731.0599884 | AH98: =+'E Rockcastle'!AO1520 -> 731.0599884 | AI98: =+'E Rockcastle'!AP1520 -> 731.0599884 | AJ98: =+'E Rockcastle'!AQ1520 -> 731.0599884 | AK98: =+'E Rockcastle'!AR1520 -> 731.0599884 | AL98: =+'E Rockcastle'!AS1520 -> 731.0599884 | AM98: =+'E Rockcastle'!AT1520 -> 731.0599884 | AN98: =+'E Rockcastle'!AU1520 -> 731.0599884 | AO98: =+'E Rockcastle'!AV1520 -> 731.0599884 | AP98: =+'E Rockcastle'!AW1520 -> 731.0599884 | AQ98: =+'E Rockcastle'!AX1520 -> 731.0599884 | AR98: =+'E Rockcastle'!AY1520 -> 731.0599884 | AS98: =+'E Rockcastle'!AZ1520 -> 731.0599884 | AT98: =+'E Rockcastle'!BA1520 -> 731.0599884 | AU98: =+'E Rockcastle'!BB1520 -> 731.0599884 | AV98: =+'E Rockcastle'!BC1520 -> 731.0599884 | AW98: =+'E Rockcastle'!BD1520 -> 731.0599884 | AX98: =+'E Rockcastle'!BE1520 -> 731.0599884 | AY98: =+'E Rockcastle'!BF1520 -> 731.0599884 | AZ98: =+'E Rockcastle'!BG1520 -> 731.0599884 | BA98: =+'E Rockcastle'!BH1520 -> 731.0599884 | BB98: =+'E Rockcastle'!BI1520 -> 731.0599884 | BC98: =+'E Rockcastle'!BJ1520 -> 731.0599884 | BD98: =+'E Rockcastle'!BK1520 -> 731.0599884 | BE98: =+'E Rockcastle'!BL1520 -> 731.0599884 | BF98: =+'E Rockcastle'!BM1520 -> 731.0599884 | BG98: =+'E Rockcastle'!BN1520 -> 731.0599884 | BH98: =+'E Rockcastle'!BO1520 -> 731.0599884 | BI98: =+'E Rockcastle'!BP1520 -> 731.0599884
A99: Commercial
A100: Block 1 | B100: =+'E Rockcastle'!I1528 -> 0 | C100: =+'E Rockcastle'!J1528 -> 0 | D100: =+'E Rockcastle'!K1528 -> 4 | E100: =+'E Rockcastle'!L1528 -> 119.6 | F100: =+'E Rockcastle'!M1528 -> 24.5 | G100: =+'E Rockcastle'!N1528 -> 22.3 | H100: =+'E Rockcastle'!O1528 -> 22.5 | I100: =+'E Rockcastle'!P1528 -> 29.3 | J100: =+'E Rockcastle'!Q1528 -> 37.03333333 | K100: =+'E Rockcastle'!R1528 -> 37.03333333 | L100: =+'E Rockcastle'!S1528 -> 37.03333333 | M100: =+'E Rockcastle'!T1528 -> 37.03333333 | N100: =+'E Rockcastle'!U1528 -> 37.03333333 | O100: =+'E Rockcastle'!V1528 -> 37.03333333 | P100: =+'E Rockcastle'!W1528 -> 37.03333333 | Q100: =+'E Rockcastle'!X1528 -> 37.03333333 | R100: =+'E Rockcastle'!Y1528 -> 37.03333333 | S100: =+'E Rockcastle'!Z1528 -> 37.03333333 | T100: =+'E Rockcastle'!AA1528 -> 37.03333333 | U100: =+'E Rockcastle'!AB1528 -> 37.03333333 | V100: =+'E Rockcastle'!AC1528 -> 37.03333333 | W100: =+'E Rockcastle'!AD1528 -> 37.03333333 | X100: =+'E Rockcastle'!AE1528 -> 37.03333333 | Y100: =+'E Rockcastle'!AF1528 -> 37.03333333 | Z100: =+'E Rockcastle'!AG1528 -> 37.03333333 | AA100: =+'E Rockcastle'!AH1528 -> 37.03333333 | AB100: =+'E Rockcastle'!AI1528 -> 37.03333333 | AC100: =+'E Rockcastle'!AJ1528 -> 37.03333333 | AD100: =+'E Rockcastle'!AK1528 -> 37.03333333 | AE100: =+'E Rockcastle'!AL1528 -> 37.03333333 | AF100: =+'E Rockcastle'!AM1528 -> 37.03333333 | AG100: =+'E Rockcastle'!AN1528 -> 37.03333333 | AH100: =+'E Rockcastle'!AO1528 -> 37.03333333 | AI100: =+'E Rockcastle'!AP1528 -> 37.03333333 | AJ100: =+'E Rockcastle'!AQ1528 -> 37.03333333 | AK100: =+'E Rockcastle'!AR1528 -> 37.03333333 | AL100: =+'E Rockcastle'!AS1528 -> 37.03333333 | AM100: =+'E Rockcastle'!AT1528 -> 37.03333333 | AN100: =+'E Rockcastle'!AU1528 -> 37.03333333 | AO100: =+'E Rockcastle'!AV1528 -> 37.03333333 | AP100: =+'E Rockcastle'!AW1528 -> 37.03333333 | AQ100: =+'E Rockcastle'!AX1528 -> 37.03333333 | AR100: =+'E Rockcastle'!AY1528 -> 37.03333333 | AS100: =+'E Rockcastle'!AZ1528 -> 37.03333333 | AT100: =+'E Rockcastle'!BA1528 -> 37.03333333 | AU100: =+'E Rockcastle'!BB1528 -> 37.03333333 | AV100: =+'E Rockcastle'!BC1528 -> 37.03333333 | AW100: =+'E Rockcastle'!BD1528 -> 37.03333333 | AX100: =+'E Rockcastle'!BE1528 -> 37.03333333 | AY100: =+'E Rockcastle'!BF1528 -> 37.03333333 | AZ100: =+'E Rockcastle'!BG1528 -> 37.03333333 | BA100: =+'E Rockcastle'!BH1528 -> 37.03333333 | BB100: =+'E Rockcastle'!BI1528 -> 37.03333333 | BC100: =+'E Rockcastle'!BJ1528 -> 37.03333333 | BD100: =+'E Rockcastle'!BK1528 -> 37.03333333 | BE100: =+'E Rockcastle'!BL1528 -> 37.03333333 | BF100: =+'E Rockcastle'!BM1528 -> 37.03333333 | BG100: =+'E Rockcastle'!BN1528 -> 37.03333333 | BH100: =+'E Rockcastle'!BO1528 -> 37.03333333 | BI100: =+'E Rockcastle'!BP1528 -> 37.03333333
A101: Block 2 | B101: =+'E Rockcastle'!I1529 -> 0 | C101: =+'E Rockcastle'!J1529 -> 0 | D101: =+'E Rockcastle'!K1529 -> 20 | E101: =+'E Rockcastle'!L1529 -> -19.43885516 | F101: =+'E Rockcastle'!M1529 -> 76.23243712 | G101: =+'E Rockcastle'!N1529 -> 15.39982654 | H101: =+'E Rockcastle'!O1529 -> 5.799653079 | I101: =+'E Rockcastle'!P1529 -> 24 | J101: =+'E Rockcastle'!Q1529 -> 20.33217693 | K101: =+'E Rockcastle'!R1529 -> 20.33217693 | L101: =+'E Rockcastle'!S1529 -> 20.33217693 | M101: =+'E Rockcastle'!T1529 -> 20.33217693 | N101: =+'E Rockcastle'!U1529 -> 20.33217693 | O101: =+'E Rockcastle'!V1529 -> 20.33217693 | P101: =+'E Rockcastle'!W1529 -> 20.33217693 | Q101: =+'E Rockcastle'!X1529 -> 20.33217693 | R101: =+'E Rockcastle'!Y1529 -> 20.33217693 | S101: =+'E Rockcastle'!Z1529 -> 20.33217693 | T101: =+'E Rockcastle'!AA1529 -> 20.33217693 | U101: =+'E Rockcastle'!AB1529 -> 20.33217693 | V101: =+'E Rockcastle'!AC1529 -> 20.33217693 | W101: =+'E Rockcastle'!AD1529 -> 20.33217693 | X101: =+'E Rockcastle'!AE1529 -> 20.33217693 | Y101: =+'E Rockcastle'!AF1529 -> 20.33217693 | Z101: =+'E Rockcastle'!AG1529 -> 20.33217693 | AA101: =+'E Rockcastle'!AH1529 -> 20.33217693 | AB101: =+'E Rockcastle'!AI1529 -> 20.33217693 | AC101: =+'E Rockcastle'!AJ1529 -> 20.33217693 | AD101: =+'E Rockcastle'!AK1529 -> 20.33217693 | AE101: =+'E Rockcastle'!AL1529 -> 20.33217693 | AF101: =+'E Rockcastle'!AM1529 -> 20.33217693 | AG101: =+'E Rockcastle'!AN1529 -> 20.33217693 | AH101: =+'E Rockcastle'!AO1529 -> 20.33217693 | AI101: =+'E Rockcastle'!AP1529 -> 20.33217693 | AJ101: =+'E Rockcastle'!AQ1529 -> 20.33217693 | AK101: =+'E Rockcastle'!AR1529 -> 20.33217693 | AL101: =+'E Rockcastle'!AS1529 -> 20.33217693 | AM101: =+'E Rockcastle'!AT1529 -> 20.33217693 | AN101: =+'E Rockcastle'!AU1529 -> 20.33217693 | AO101: =+'E Rockcastle'!AV1529 -> 20.33217693 | AP101: =+'E Rockcastle'!AW1529 -> 20.33217693 | AQ101: =+'E Rockcastle'!AX1529 -> 20.33217693 | AR101: =+'E Rockcastle'!AY1529 -> 20.33217693 | AS101: =+'E Rockcastle'!AZ1529 -> 20.33217693 | AT101: =+'E Rockcastle'!BA1529 -> 20.33217693 | AU101: =+'E Rockcastle'!BB1529 -> 20.33217693 | AV101: =+'E Rockcastle'!BC1529 -> 20.33217693 | AW101: =+'E Rockcastle'!BD1529 -> 20.33217693 | AX101: =+'E Rockcastle'!BE1529 -> 20.33217693 | AY101: =+'E Rockcastle'!BF1529 -> 20.33217693 | AZ101: =+'E Rockcastle'!BG1529 -> 20.33217693 | BA101: =+'E Rockcastle'!BH1529 -> 20.33217693 | BB101: =+'E Rockcastle'!BI1529 -> 20.33217693 | BC101: =+'E Rockcastle'!BJ1529 -> 20.33217693 | BD101: =+'E Rockcastle'!BK1529 -> 20.33217693 | BE101: =+'E Rockcastle'!BL1529 -> 20.33217693 | BF101: =+'E Rockcastle'!BM1529 -> 20.33217693 | BG101: =+'E Rockcastle'!BN1529 -> 20.33217693 | BH101: =+'E Rockcastle'!BO1529 -> 20.33217693 | BI101: =+'E Rockcastle'!BP1529 -> 20.33217693
A104: Total Usage All Combined | B104: =+B$4 -> 2018-01-01 | C104: =+C$4 -> 2018-02-01 | D104: 2018-03-01 | E104: 2018-04-01 | F104: 2018-05-01 | G104: 2018-06-01 | H104: 2018-07-01 | I104: 2018-08-01 | J104: 2018-09-01 | K104: 2018-10-01 | L104: 2018-11-01 | M104: 2018-12-01 | N104: 2019-01-01 | O104: 2019-02-01 | P104: 2019-03-01 | Q104: 2019-04-01 | R104: 2019-05-01 | S104: 2019-06-01 | T104: 2019-07-01 | U104: 2019-08-01 | V104: 2019-09-01 | W104: 2019-10-01 | X104: 2019-11-01 | Y104: 2019-12-01 | Z104: 2020-01-01 | AA104: 2020-02-01 | AB104: 2020-03-01 | AC104: 2020-04-01 | AD104: 2020-05-01 | AE104: 2020-06-01 | AF104: 2020-07-01 | AG104: 2020-08-01 | AH104: 2020-09-01 | AI104: 2020-10-01 | AJ104: 2020-11-01 | AK104: 2020-12-01 | AL104: 2021-01-01 | AM104: 2021-02-01 | AN104: 2021-03-01 | AO104: 2021-04-01 | AP104: 2021-05-01 | AQ104: 2021-06-01 | AR104: 2021-07-01 | AS104: 2021-08-01 | AT104: 2021-09-01 | AU104: 2021-10-01 | AV104: 2021-11-01 | AW104: 2021-12-01 | AX104: 2022-01-01 | AY104: 2022-02-01 | AZ104: 2022-03-01 | BA104: 2022-04-01 | BB104: 2022-05-01 | BC104: 2022-06-01 | BD104: 2022-07-01 | BE104: 2022-08-01 | BF104: 2022-09-01 | BG104: 2022-10-01 | BH104: 2022-11-01 | BI104: 2022-12-01
A105: Residential | B105: =+B79+B88 -> 442445.4764 | C105: 405272.3691 | D105: 438855.58 | E105: 434874.4649 | F105: 494209.2166 | G105: 516642.4427 | H105: 532455.4431 | I105: 540112.3988 | J105: 527969.6789 | K105: 499728.2861 | L105: 437821.6387 | M105: 444818.6809 | N105: 438643.2326 | O105: 401926.2784 | P105: 434601.5481 | Q105: 429757.559 | R105: 487474.1595 | S105: 510237.247 | T105: 525307.6097 | U105: 533603.8856 | V105: 521510.9021 | W105: 493616.0608 | X105: 432469.0729 | Y105: 439380.2541 | Z105: 433033.9162 | AA105: 396788.242 | AB105: 429044.1086 | AC105: 424262.2945 | AD105: 481238.0743 | AE105: 503708.9864 | AF105: 518585.9137 | AG105: 526775.7028 | AH105: 514837.9386 | AI105: 487301.1413 | AJ105: 426939.0048 | AK105: 433761.4777 | AL105: 427295.6724 | AM105: 391532.1104 | AN105: 423358.9343 | AO105: 418640.7242 | AP105: 474858.6558 | AQ105: 497030.6771 | AR105: 511709.7228 | AS105: 519790.5777 | AT105: 508011.6005 | AU105: 480841.0765 | AV105: 421281.8309 | AW105: 428013.5565 | AX105: =+AX79+AX88 -> 421402.76 | AY105: 386134.305 | AZ105: 417520.5216 | BA105: 412867.63 | BB105: 468307.2864 | BC105: 490172.3605 | BD105: 504648.1911 | BE105: 512617.1755 | BF105: 501001.2652 | BG105: 474206.8871 | BH105: 415472.1735 | BI105: 422110.7057
A106: Commercial | B106: =+B80+B89 -> 277420.5442 | C106: 262832.082 | D106: 289441.1507 | E106: 293913.1165 | F106: 327043.5794 | G106: 346202.1919 | H106: 370594.9175 | I106: 377684.2373 | J106: 368248.9308 | K106: 352693.3087 | L106: 290332.99 | M106: 274671.3325 | N106: 275784.9595 | O106: 261285.5229 | P106: 287708.3571 | Q106: 292077.3364 | R106: 325005.054 | S106: 344109.3996 | T106: 368362.6121 | U106: 375383.8218 | V106: 366002.0532 | W106: 350541.3588 | X106: 288561.5921 | Y106: 272995.5094 | Z106: 274123.141 | AA106: 259711.0929 | AB106: 285974.6758 | AC106: 290317.3232 | AD106: 323046.5844 | AE106: 342035.7876 | AF106: 366142.8252 | AG106: 373121.7179 | AH106: 363796.4935 | AI106: 348428.9812 | AJ106: 286822.7684 | AK106: 271350.5029 | AL106: 272465.8193 | AM106: 258140.9233 | AN106: 284245.6859 | AO106: 288562.0726 | AP106: 321093.4145 | AQ106: 339967.7868 | AR106: 363929.0451 | AS106: 370865.7353 | AT106: 361596.902 | AU106: 346322.3197 | AV106: 285088.6499 | AW106: 269709.9479 | AX106: =+AX80+AX89 -> 270808.5193 | AY106: 256570.7742 | AZ106: 282516.7186 | BA106: 286806.845 | BB106: 319140.2701 | BC106: 337899.813 | BD106: 361715.2939 | BE106: 368609.7821 | BF106: 359397.3393 | BG106: 344215.6857 | BH106: 283354.5542 | BI106: 268069.4142
A107: Industrial | B107: =+B81+B90 -> 46192.6 | C107: 46736.2 | D107: 65096.2 | E107: 48666.2 | F107: 49350.272 | G107: 62005.6 | H107: 69119.974 | I107: 56033.2 | J107: 58503.63639 | K107: 58047.57717 | L107: 49339.03432 | M107: 44607.60944 | N107: 46854.1516 | O107: 44258.49378 | P107: 48609.35047 | Q107: 48917.72331 | R107: 52413.99433 | S107: 56492.5704 | T107: 59473.9479 | U107: 62370.3703 | V107: 57617.09717 | W107: 57167.94888 | X107: 48591.37159 | Y107: 43931.64471 | Z107: 45441.12373 | AA107: 42923.74578 | AB107: 47143.3893 | AC107: 47442.46223 | AD107: 50833.29268 | AE107: 54788.86702 | AF107: 57680.33211 | AG107: 60489.40419 | AH107: 55879.48031 | AI107: 55443.87743 | AJ107: 47125.95262 | AK107: 42606.75382 | AL107: 45441.12373 | AM107: 42923.74578 | AN107: 47143.3893 | AO107: 47442.46223 | AP107: 50833.29268 | AQ107: 54788.86702 | AR107: 57680.33211 | AS107: 60489.40419 | AT107: 55879.48031 | AU107: 55443.87743 | AV107: 47125.95262 | AW107: 42606.75382 | AX107: =+AX81+AX90 -> 45441.12373 | AY107: 42923.74578 | AZ107: 47143.3893 | BA107: 47442.46223 | BB107: 50833.29268 | BC107: 54788.86702 | BD107: 57680.33211 | BE107: 60489.40419 | BF107: 55879.48031 | BG107: 55443.87743 | BH107: 47125.95262 | BI107: 42606.75382
A108: OPA | B108: =+B82+B91 -> 75595.72542 | C108: 70215.17751 | D108: 76895.28121 | E108: 85384.4785 | F108: 104040.8437 | G108: 115401.0787 | H108: 128163.5438 | I108: 132851.441 | J108: 118776.9639 | K108: 103313.7133 | L108: 81139.41552 | M108: 73455.48255 | N108: 75637.14965 | O108: 70253.65335 | P108: 76937.41755 | Q108: 85431.26667 | R108: 104097.855 | S108: 115464.3151 | T108: 128233.7736 | U108: 132924.2396 | V108: 118842.0502 | W108: 103370.3261 | X108: 81183.87752 | Y108: 73495.73398 | Z108: 75637.14965 | AA108: 70253.65335 | AB108: 76937.41755 | AC108: 85431.26667 | AD108: 104097.855 | AE108: 115464.3151 | AF108: 128233.7736 | AG108: 132924.2396 | AH108: 118842.0502 | AI108: 103370.3261 | AJ108: 81183.87752 | AK108: 73495.73398 | AL108: 75637.14965 | AM108: 70253.65335 | AN108: 76937.41755 | AO108: 85431.26667 | AP108: 104097.855 | AQ108: 115464.3151 | AR108: 128233.7736 | AS108: 132924.2396 | AT108: 118842.0502 | AU108: 103370.3261 | AV108: 81183.87752 | AW108: 73495.73398 | AX108: =+AX82+AX91 -> 75637.14965 | AY108: 70253.65335 | AZ108: 76937.41755 | BA108: 85431.26667 | BB108: 104097.855 | BC108: 115464.3151 | BD108: 128233.7736 | BE108: 132924.2396 | BF108: 118842.0502 | BG108: 103370.3261 | BH108: 81183.87752 | BI108: 73495.73398
A109: SFR | B109: =+B83+B92 -> 31988.68067 | C109: 29758.67793 | D109: 31479.97532 | E109: 32137.77646 | F109: 41590.75765 | G109: 44364.28183 | H109: 45713.75653 | I109: 47769.11 | J109: 45356.6959 | K109: 41206.74347 | L109: 33580.15574 | M109: 33494.4165 | N109: 31655.5404 | O109: 29452.07357 | P109: 31149.70182 | Q109: 31799.15761 | R109: 41148.26267 | S109: 43883.12074 | T109: 45215.78537 | U109: 47245.56359 | V109: 44857.82929 | W109: 40752.61502 | X109: 33216.6718 | Y109: 33134.74013 | Z109: 31655.5404 | AA109: 29452.07357 | AB109: 31149.70182 | AC109: 31799.15761 | AD109: 41148.26267 | AE109: 43883.12074 | AF109: 45215.78537 | AG109: 47245.56359 | AH109: 44857.82929 | AI109: 40752.61502 | AJ109: 33216.6718 | AK109: 33134.74013 | AL109: 31655.5404 | AM109: 29452.07357 | AN109: 31149.70182 | AO109: 31799.15761 | AP109: 41148.26267 | AQ109: 43883.12074 | AR109: 45215.78537 | AS109: 47245.56359 | AT109: 44857.82929 | AU109: 40752.61502 | AV109: 33216.6718 | AW109: 33134.74013 | AX109: =+AX83+AX92 -> 31655.5404 | AY109: 29452.07357 | AZ109: 31149.70182 | BA109: 31799.15761 | BB109: 41148.26267 | BC109: 43883.12074 | BD109: 45215.78537 | BE109: 47245.56359 | BF109: 44857.82929 | BG109: 40752.61502 | BH109: 33216.6718 | BI109: 33134.74013
A110: Misc Other Sales | B110: =+B84+B93 -> -15.6 | C110: 977 | D110: 181.504 | E110: 410.4 | F110: 2074.426 | G110: 557.1 | H110: 172 | I110: 1055.6 | J110: 324.62891 | K110: 209.13969 | L110: 264.29009 | M110: 150.492135 | N110: 149.572315 | O110: 338.08644 | P110: 154.47423 | Q110: 263.498085 | R110: 179.21119 | S110: 397.512905 | T110: 350.10671 | U110: 372.33314 | V110: 324.62891 | W110: 209.13969 | X110: 264.29009 | Y110: 150.492135 | Z110: 149.572315 | AA110: 338.08644 | AB110: 154.47423 | AC110: 263.498085 | AD110: 179.21119 | AE110: 397.512905 | AF110: 350.10671 | AG110: 372.33314 | AH110: 324.62891 | AI110: 209.13969 | AJ110: 264.29009 | AK110: 150.492135 | AL110: =+AL84+AL93 -> 149.572315 | AM110: 338.08644 | AN110: 154.47423 | AO110: 263.498085 | AP110: 179.21119 | AQ110: 397.512905 | AR110: 350.10671 | AS110: 372.33314 | AT110: 324.62891 | AU110: 209.13969 | AV110: 264.29009 | AW110: 150.492135 | AX110: =+AX84+AX93 -> 149.572315 | AY110: 338.08644 | AZ110: 154.47423 | BA110: 263.498085 | BB110: 179.21119 | BC110: 397.512905 | BD110: 350.10671 | BE110: 372.33314 | BF110: 324.62891 | BG110: 209.13969 | BH110: 264.29009 | BI110: 150.492135
A111: Total | B111: =+SUM(B105:B110) -> 873627.4267 | C111: =+SUM(C105:C110) -> 815791.5065 | D111: 901949.6912 | E111: 895386.4363 | F111: 1018309.095 | G111: 1085172.695 | H111: 1146219.635 | I111: 1155505.987 | J111: 1119180.535 | K111: 1055198.768 | L111: 892477.5244 | M111: 871198.0141 | N111: 868724.6061 | O111: 807514.1084 | P111: 879160.8492 | Q111: 888246.5411 | R111: 1010318.537 | S111: 1070584.166 | T111: 1126943.835 | U111: 1151900.214 | V111: 1109154.561 | W111: 1045657.449 | X111: 884286.876 | Y111: 863088.3745 | Z111: 860040.4432 | AA111: 799466.894 | AB111: 870403.7674 | AC111: 879516.0024 | AD111: 1000543.28 | AE111: 1060278.59 | AF111: 1116208.737 | AG111: 1140928.961 | AH111: 1098538.421 | AI111: 1035506.081 | AJ111: 875552.5653 | AK111: 854499.7007 | AL111: 852644.8778 | AM111: 792640.5928 | AN111: 862989.6031 | AO111: 872139.1814 | AP111: 992210.6918 | AQ111: 1051532.28 | AR111: 1107118.766 | AS111: 1131687.854 | AT111: 1089512.491 | AU111: 1026939.354 | AV111: 868161.2729 | AW111: 847111.2244 | AX111: =+SUM(AX105:AX110) -> 845094.6654 | AY111: 785672.6384 | AZ111: 855422.2232 | BA111: 864610.8595 | BB111: 983706.178 | BC111: 1042605.989 | BD111: 1097843.483 | BE111: 1122258.498 | BF111: 1080302.593 | BG111: 1018198.531 | BH111: 860617.5197 | BI111: 839567.84
A113: Fixed Charges ( $000)
A114: Central | B114: =+B$4 -> 2018-01-01 | C114: =+C$4 -> 2018-02-01 | D114: 2018-03-01 | E114: 2018-04-01 | F114: 2018-05-01 | G114: 2018-06-01 | H114: 2018-07-01 | I114: 2018-08-01 | J114: 2018-09-01 | K114: 2018-10-01 | L114: 2018-11-01 | M114: 2018-12-01 | N114: 2019-01-01 | O114: 2019-02-01 | P114: 2019-03-01 | Q114: 2019-04-01 | R114: 2019-05-01 | S114: 2019-06-01 | T114: 2019-07-01 | U114: 2019-08-01 | V114: 2019-09-01 | W114: 2019-10-01 | X114: 2019-11-01 | Y114: 2019-12-01 | Z114: 2020-01-01 | AA114: 2020-02-01 | AB114: 2020-03-01 | AC114: 2020-04-01 | AD114: 2020-05-01 | AE114: 2020-06-01 | AF114: 2020-07-01 | AG114: 2020-08-01 | AH114: 2020-09-01 | AI114: 2020-10-01 | AJ114: 2020-11-01 | AK114: 2020-12-01 | AL114: 2021-01-01 | AM114: 2021-02-01 | AN114: 2021-03-01 | AO114: 2021-04-01 | AP114: 2021-05-01 | AQ114: 2021-06-01 | AR114: 2021-07-01 | AS114: 2021-08-01 | AT114: 2021-09-01 | AU114: 2021-10-01 | AV114: 2021-11-01 | AW114: 2021-12-01 | AX114: 2022-01-01 | AY114: 2022-02-01 | AZ114: 2022-03-01 | BA114: 2022-04-01 | BB114: 2022-05-01 | BC114: 2022-06-01 | BD114: 2022-07-01 | BE114: 2022-08-01 | BF114: 2022-09-01 | BG114: 2022-10-01 | BH114: 2022-11-01 | BI114: 2022-12-01
A115: Residential | B115: =+Central!I1378 -> 1484.00313 | C115: =+Central!J1378 -> 1482.99768 | D115: =+Central!K1378 -> 1484.38408 | E115: =+Central!L1378 -> 1486.63854 | F115: =+Central!M1378 -> 1487.11941 | G115: =+Central!N1378 -> 1487.52534 | H115: =+Central!O1378 -> 1487.51285 | I115: =+Central!P1378 -> 1489.64241 | J115: =+Central!Q1378 -> 1491.2911 | K115: =+Central!R1378 -> 1491.92185 | L115: =+Central!S1378 -> 1491.65956 | M115: =+Central!T1378 -> 1492.37774 | N115: =+Central!U1378 -> 1493.39568 | O115: =+Central!V1378 -> 1493.86406 | P115: =+Central!W1378 -> 1495.40034 | Q115: =+Central!X1378 -> 1497.61733 | R115: =+Central!Y1378 -> 1498.58531 | S115: =+Central!Z1378 -> 1500.38388 | T115: =+Central!AA1378 -> 1500.34641 | U115: =+Central!AB1378 -> 1504.12466 | V115: =+Central!AC1378 -> 1505.72339 | W115: =+Central!AD1378 -> 1506.64141 | X115: =+Central!AE1378 -> 1506.35414 | Y115: =+Central!AF1378 -> 1506.9724 | Z115: =+Central!AG1378 -> 1505.96695 | AA115: =+Central!AH1378 -> 1506.42284 | AB115: =+Central!AI1378 -> 1507.90916 | AC115: =+Central!AJ1378 -> 1510.12615 | AD115: =+Central!AK1378 -> 1511.09413 | AE115: =+Central!AL1378 -> 1512.90519 | AF115: =+Central!AM1378 -> 1512.86772 | AG115: =+Central!AN1378 -> 1516.74589 | AH115: =+Central!AO1378 -> 1518.39458 | AI115: =+Central!AP1378 -> 1519.3126 | AJ115: =+Central!AQ1378 -> 1519.01284 | AK115: =+Central!AR1378 -> 1519.64359 | AL115: =+Central!AS1378 -> 1518.4945 | AM115: =+Central!AT1378 -> 1518.96288 | AN115: =+Central!AU1378 -> 1520.49916 | AO115: =+Central!AV1378 -> 1522.71615 | AP115: =+Central!AW1378 -> 1523.65915 | AQ115: =+Central!AX1378 -> 1525.53891 | AR115: =+Central!AY1378 -> 1525.51393 | AS115: =+Central!AZ1378 -> 1529.42957 | AT115: =+Central!BA1378 -> 1531.09075 | AU115: =+Central!BB1378 -> 1531.99628 | AV115: =+Central!BC1378 -> 1531.69652 | AW115: =+Central!BD1378 -> 1532.32727 | AX115: =+Central!BE1378 -> 1531.01581 | AY115: =+Central!BF1378 -> 1531.49668 | AZ115: =+Central!BG1378 -> 1533.03296 | BA115: =+Central!BH1378 -> 1535.27493 | BB115: =+Central!BI1378 -> 1536.23042 | BC115: =+Central!BJ1378 -> 1538.12267 | BD115: =+Central!BK1378 -> 1538.0852 | BE115: =+Central!BL1378 -> 1542.03831 | BF115: =+Central!BM1378 -> 1543.71198 | BG115: =+Central!BN1378 -> 1544.63 | BH115: =+Central!BO1378 -> 1544.33024 | BI115: =+Central!BP1378 -> 1544.96099
A116: Commercial | B116: =+Central!I1379 -> 401.62046 | C116: =+Central!J1379 -> 400.93898 | D116: =+Central!K1379 -> 400.59824 | E116: =+Central!L1379 -> 401.15705 | F116: =+Central!M1379 -> 402.0566 | G116: =+Central!N1379 -> 402.56771 | H116: =+Central!O1379 -> 402.52001 | I116: =+Central!P1379 -> 403.20149 | J116: =+Central!Q1379 -> 402.81305 | K116: =+Central!R1379 -> 401.9135 | L116: =+Central!S1379 -> 401.18432 | M116: =+Central!T1379 -> 401.13662 | N116: =+Central!U1379 -> 401.13662 | O116: =+Central!V1379 -> 400.97988 | P116: =+Central!W1379 -> 400.63914 | Q116: =+Central!X1379 -> 401.19795 | R116: =+Central!Y1379 -> 402.0975 | S116: =+Central!Z1379 -> 402.60861 | T116: =+Central!AA1379 -> 402.45187 | U116: =+Central!AB1379 -> 403.13335 | V116: =+Central!AC1379 -> 402.74491 | W116: =+Central!AD1379 -> 401.84536 | X116: =+Central!AE1379 -> 401.11618 | Y116: =+Central!AF1379 -> 401.11618 | Z116: =+Central!AG1379 -> 401.11618 | AA116: =+Central!AH1379 -> 400.95944 | AB116: =+Central!AI1379 -> 400.6187 | AC116: =+Central!AJ1379 -> 401.17751 | AD116: =+Central!AK1379 -> 402.07706 | AE116: =+Central!AL1379 -> 402.58817 | AF116: =+Central!AM1379 -> 402.43143 | AG116: =+Central!AN1379 -> 403.11291 | AH116: =+Central!AO1379 -> 402.72447 | AI116: =+Central!AP1379 -> 401.82492 | AJ116: =+Central!AQ1379 -> 401.09574 | AK116: =+Central!AR1379 -> 401.04804 | AL116: =+Central!AS1379 -> 401.04804 | AM116: =+Central!AT1379 -> 400.8913 | AN116: =+Central!AU1379 -> 400.55056 | AO116: =+Central!AV1379 -> 401.10937 | AP116: =+Central!AW1379 -> 402.00892 | AQ116: =+Central!AX1379 -> 402.52003 | AR116: =+Central!AY1379 -> 402.36329 | AS116: =+Central!AZ1379 -> 403.04477 | AT116: =+Central!BA1379 -> 402.65633 | AU116: =+Central!BB1379 -> 401.75678 | AV116: =+Central!BC1379 -> 401.0276 | AW116: =+Central!BD1379 -> 401.01397 | AX116: =+Central!BE1379 -> 401.01397 | AY116: =+Central!BF1379 -> 400.85723 | AZ116: =+Central!BG1379 -> 400.51649 | BA116: =+Central!BH1379 -> 401.0753 | BB116: =+Central!BI1379 -> 401.97485 | BC116: =+Central!BJ1379 -> 402.48596 | BD116: =+Central!BK1379 -> 402.32922 | BE116: =+Central!BL1379 -> 403.0107 | BF116: =+Central!BM1379 -> 402.62226 | BG116: =+Central!BN1379 -> 401.72271 | BH116: =+Central!BO1379 -> 400.99353 | BI116: =+Central!BP1379 -> 400.9799
A117: Industrial | B117: =+Central!I1380 -> 12.29448 | C117: =+Central!J1380 -> 12.29448 | D117: =+Central!K1380 -> 12.29448 | E117: =+Central!L1380 -> 12.29448 | F117: =+Central!M1380 -> 12.29448 | G117: =+Central!N1380 -> 12.29448 | H117: =+Central!O1380 -> 12.29448 | I117: =+Central!P1380 -> 12.29448 | J117: =+Central!Q1380 -> 12.29448 | K117: =+Central!R1380 -> 12.29448 | L117: =+Central!S1380 -> 12.29448 | M117: =+Central!T1380 -> 12.29448 | N117: =+Central!U1380 -> 12.29448 | O117: =+Central!V1380 -> 12.29448 | P117: =+Central!W1380 -> 12.29448 | Q117: =+Central!X1380 -> 12.29448 | R117: =+Central!Y1380 -> 12.29448 | S117: =+Central!Z1380 -> 12.29448 | T117: =+Central!AA1380 -> 12.29448 | U117: =+Central!AB1380 -> 12.29448 | V117: =+Central!AC1380 -> 12.29448 | W117: =+Central!AD1380 -> 12.29448 | X117: =+Central!AE1380 -> 12.29448 | Y117: =+Central!AF1380 -> 12.29448 | Z117: =+Central!AG1380 -> 12.29448 | AA117: =+Central!AH1380 -> 12.29448 | AB117: =+Central!AI1380 -> 12.29448 | AC117: =+Central!AJ1380 -> 12.29448 | AD117: =+Central!AK1380 -> 12.29448 | AE117: =+Central!AL1380 -> 12.29448 | AF117: =+Central!AM1380 -> 12.29448 | AG117: =+Central!AN1380 -> 12.29448 | AH117: =+Central!AO1380 -> 12.29448 | AI117: =+Central!AP1380 -> 12.29448 | AJ117: =+Central!AQ1380 -> 12.29448 | AK117: =+Central!AR1380 -> 12.29448 | AL117: =+Central!AS1380 -> 12.29448 | AM117: =+Central!AT1380 -> 12.29448 | AN117: =+Central!AU1380 -> 12.29448 | AO117: =+Central!AV1380 -> 12.29448 | AP117: =+Central!AW1380 -> 12.29448 | AQ117: =+Central!AX1380 -> 12.29448 | AR117: =+Central!AY1380 -> 12.29448 | AS117: =+Central!AZ1380 -> 12.29448 | AT117: =+Central!BA1380 -> 12.29448 | AU117: =+Central!BB1380 -> 12.29448 | AV117: =+Central!BC1380 -> 12.29448 | AW117: =+Central!BD1380 -> 12.29448 | AX117: =+Central!BE1380 -> 12.29448 | AY117: =+Central!BF1380 -> 12.29448 | AZ117: =+Central!BG1380 -> 12.29448 | BA117: =+Central!BH1380 -> 12.29448 | BB117: =+Central!BI1380 -> 12.29448 | BC117: =+Central!BJ1380 -> 12.29448 | BD117: =+Central!BK1380 -> 12.29448 | BE117: =+Central!BL1380 -> 12.29448 | BF117: =+Central!BM1380 -> 12.29448 | BG117: =+Central!BN1380 -> 12.29448 | BH117: =+Central!BO1380 -> 12.29448 | BI117: =+Central!BP1380 -> 12.29448
A118: Public Fire | B118: =+Central!I1381 -> 299.3298 | C118: =+Central!J1381 -> 299.3298 | D118: =+Central!K1381 -> 299.3298 | E118: =+Central!L1381 -> 299.3298 | F118: =+Central!M1381 -> 299.3298 | G118: =+Central!N1381 -> 299.3298 | H118: =+Central!O1381 -> 299.3298 | I118: =+Central!P1381 -> 299.3298 | J118: =+Central!Q1381 -> 299.3298 | K118: =+Central!R1381 -> 299.3298 | L118: =+Central!S1381 -> 299.3298 | M118: =+Central!T1381 -> 299.3298 | N118: =+Central!U1381 -> 299.3298 | O118: =+Central!V1381 -> 299.3298 | P118: =+Central!W1381 -> 299.3298 | Q118: =+Central!X1381 -> 299.3298 | R118: =+Central!Y1381 -> 299.3298 | S118: =+Central!Z1381 -> 299.3298 | T118: =+Central!AA1381 -> 299.3298 | U118: =+Central!AB1381 -> 299.3298 | V118: =+Central!AC1381 -> 299.3298 | W118: =+Central!AD1381 -> 299.3298 | X118: =+Central!AE1381 -> 299.3298 | Y118: =+Central!AF1381 -> 299.3298 | Z118: =+Central!AG1381 -> 299.3298 | AA118: =+Central!AH1381 -> 299.3298 | AB118: =+Central!AI1381 -> 299.3298 | AC118: =+Central!AJ1381 -> 299.3298 | AD118: =+Central!AK1381 -> 299.3298 | AE118: =+Central!AL1381 -> 299.3298 | AF118: =+Central!AM1381 -> 299.3298 | AG118: =+Central!AN1381 -> 299.3298 | AH118: =+Central!AO1381 -> 299.3298 | AI118: =+Central!AP1381 -> 299.3298 | AJ118: =+Central!AQ1381 -> 299.3298 | AK118: =+Central!AR1381 -> 299.3298 | AL118: =+Central!AS1381 -> 299.3298 | AM118: =+Central!AT1381 -> 299.3298 | AN118: =+Central!AU1381 -> 299.3298 | AO118: =+Central!AV1381 -> 299.3298 | AP118: =+Central!AW1381 -> 299.3298 | AQ118: =+Central!AX1381 -> 299.3298 | AR118: =+Central!AY1381 -> 299.3298 | AS118: =+Central!AZ1381 -> 299.3298 | AT118: =+Central!BA1381 -> 299.3298 | AU118: =+Central!BB1381 -> 299.3298 | AV118: =+Central!BC1381 -> 299.3298 | AW118: =+Central!BD1381 -> 299.3298 | AX118: =+Central!BE1381 -> 299.3298 | AY118: =+Central!BF1381 -> 299.3298 | AZ118: =+Central!BG1381 -> 299.3298 | BA118: =+Central!BH1381 -> 299.3298 | BB118: =+Central!BI1381 -> 299.3298 | BC118: =+Central!BJ1381 -> 299.3298 | BD118: =+Central!BK1381 -> 299.3298 | BE118: =+Central!BL1381 -> 299.3298 | BF118: =+Central!BM1381 -> 299.3298 | BG118: =+Central!BN1381 -> 299.3298 | BH118: =+Central!BO1381 -> 299.3298 | BI118: =+Central!BP1381 -> 299.3298
A119: Private Fire | B119: =+Central!I1382 -> 221.10387 | C119: =+Central!J1382 -> 221.10387 | D119: =+Central!K1382 -> 221.24826 | E119: =+Central!L1382 -> 221.39265 | F119: =+Central!M1382 -> 221.53704 | G119: =+Central!N1382 -> 221.53704 | H119: =+Central!O1382 -> 221.53704 | I119: =+Central!P1382 -> 222.06003 | J119: =+Central!Q1382 -> 222.06003 | K119: =+Central!R1382 -> 222.06003 | L119: =+Central!S1382 -> 222.06003 | M119: =+Central!T1382 -> 222.06003 | N119: =+Central!U1382 -> 222.06003 | O119: =+Central!V1382 -> 222.06003 | P119: =+Central!W1382 -> 222.06003 | Q119: =+Central!X1382 -> 222.06003 | R119: =+Central!Y1382 -> 222.06003 | S119: =+Central!Z1382 -> 222.06003 | T119: =+Central!AA1382 -> 222.06003 | U119: =+Central!AB1382 -> 222.06003 | V119: =+Central!AC1382 -> 222.06003 | W119: =+Central!AD1382 -> 222.06003 | X119: =+Central!AE1382 -> 222.06003 | Y119: =+Central!AF1382 -> 222.06003 | Z119: =+Central!AG1382 -> 222.06003 | AA119: =+Central!AH1382 -> 222.06003 | AB119: =+Central!AI1382 -> 222.06003 | AC119: =+Central!AJ1382 -> 222.06003 | AD119: =+Central!AK1382 -> 222.06003 | AE119: =+Central!AL1382 -> 222.06003 | AF119: =+Central!AM1382 -> 222.06003 | AG119: =+Central!AN1382 -> 222.06003 | AH119: =+Central!AO1382 -> 222.06003 | AI119: =+Central!AP1382 -> 222.06003 | AJ119: =+Central!AQ1382 -> 222.06003 | AK119: =+Central!AR1382 -> 222.06003 | AL119: =+Central!AS1382 -> 222.06003 | AM119: =+Central!AT1382 -> 222.06003 | AN119: =+Central!AU1382 -> 222.06003 | AO119: =+Central!AV1382 -> 222.06003 | AP119: =+Central!AW1382 -> 222.06003 | AQ119: =+Central!AX1382 -> 222.06003 | AR119: =+Central!AY1382 -> 222.06003 | AS119: =+Central!AZ1382 -> 222.06003 | AT119: =+Central!BA1382 -> 222.06003 | AU119: =+Central!BB1382 -> 222.06003 | AV119: =+Central!BC1382 -> 222.06003 | AW119: =+Central!BD1382 -> 222.06003 | AX119: =+Central!BE1382 -> 222.06003 | AY119: =+Central!BF1382 -> 222.06003 | AZ119: =+Central!BG1382 -> 222.06003 | BA119: =+Central!BH1382 -> 222.06003 | BB119: =+Central!BI1382 -> 222.06003 | BC119: =+Central!BJ1382 -> 222.06003 | BD119: =+Central!BK1382 -> 222.06003 | BE119: =+Central!BL1382 -> 222.06003 | BF119: =+Central!BM1382 -> 222.06003 | BG119: =+Central!BN1382 -> 222.06003 | BH119: =+Central!BO1382 -> 222.06003 | BI119: =+Central!BP1382 -> 222.06003
A120: OPA | B120: =+Central!I1383 -> 78.14821 | C120: =+Central!J1383 -> 78.25725 | D120: =+Central!K1383 -> 77.88243 | E120: =+Central!L1383 -> 77.77339 | F120: =+Central!M1383 -> 77.77339 | G120: =+Central!N1383 -> 78.74113 | H120: =+Central!O1383 -> 80.3086 | I120: =+Central!P1383 -> 80.3086 | J120: =+Central!Q1383 -> 80.3086 | K120: =+Central!R1383 -> 80.3086 | L120: =+Central!S1383 -> 80.3086 | M120: =+Central!T1383 -> 80.3086 | N120: =+Central!U1383 -> 80.3086 | O120: =+Central!V1383 -> 80.3086 | P120: =+Central!W1383 -> 80.3086 | Q120: =+Central!X1383 -> 80.3086 | R120: =+Central!Y1383 -> 80.3086 | S120: =+Central!Z1383 -> 80.3086 | T120: =+Central!AA1383 -> 80.3086 | U120: =+Central!AB1383 -> 80.3086 | V120: =+Central!AC1383 -> 80.3086 | W120: =+Central!AD1383 -> 80.3086 | X120: =+Central!AE1383 -> 80.3086 | Y120: =+Central!AF1383 -> 80.3086 | Z120: =+Central!AG1383 -> 80.3086 | AA120: =+Central!AH1383 -> 80.3086 | AB120: =+Central!AI1383 -> 80.3086 | AC120: =+Central!AJ1383 -> 80.3086 | AD120: =+Central!AK1383 -> 80.3086 | AE120: =+Central!AL1383 -> 80.3086 | AF120: =+Central!AM1383 -> 80.3086 | AG120: =+Central!AN1383 -> 80.3086 | AH120: =+Central!AO1383 -> 80.3086 | AI120: =+Central!AP1383 -> 80.3086 | AJ120: =+Central!AQ1383 -> 80.3086 | AK120: =+Central!AR1383 -> 80.3086 | AL120: =+Central!AS1383 -> 80.3086 | AM120: =+Central!AT1383 -> 80.3086 | AN120: =+Central!AU1383 -> 80.3086 | AO120: =+Central!AV1383 -> 80.3086 | AP120: =+Central!AW1383 -> 80.3086 | AQ120: =+Central!AX1383 -> 80.3086 | AR120: =+Central!AY1383 -> 80.3086 | AS120: =+Central!AZ1383 -> 80.3086 | AT120: =+Central!BA1383 -> 80.3086 | AU120: =+Central!BB1383 -> 80.3086 | AV120: =+Central!BC1383 -> 80.3086 | AW120: =+Central!BD1383 -> 80.3086 | AX120: =+Central!BE1383 -> 80.3086 | AY120: =+Central!BF1383 -> 80.3086 | AZ120: =+Central!BG1383 -> 80.3086 | BA120: =+Central!BH1383 -> 80.3086 | BB120: =+Central!BI1383 -> 80.3086 | BC120: =+Central!BJ1383 -> 80.3086 | BD120: =+Central!BK1383 -> 80.3086 | BE120: =+Central!BL1383 -> 80.3086 | BF120: =+Central!BM1383 -> 80.3086 | BG120: =+Central!BN1383 -> 80.3086 | BH120: =+Central!BO1383 -> 80.3086 | BI120: =+Central!BP1383 -> 80.3086
A121: SFR | B121: =+Central!I1384 -> 5.54763 | C121: =+Central!J1384 -> 5.54763 | D121: =+Central!K1384 -> 5.54763 | E121: =+Central!L1384 -> 5.54763 | F121: =+Central!M1384 -> 5.54763 | G121: =+Central!N1384 -> 5.54763 | H121: =+Central!O1384 -> 5.54763 | I121: =+Central!P1384 -> 5.54763 | J121: =+Central!Q1384 -> 5.54763 | K121: =+Central!R1384 -> 5.54763 | L121: =+Central!S1384 -> 5.54763 | M121: =+Central!T1384 -> 5.54763 | N121: =+Central!U1384 -> 5.54763 | O121: =+Central!V1384 -> 5.54763 | P121: =+Central!W1384 -> 5.54763 | Q121: =+Central!X1384 -> 5.54763 | R121: =+Central!Y1384 -> 5.54763 | S121: =+Central!Z1384 -> 5.54763 | T121: =+Central!AA1384 -> 5.54763 | U121: =+Central!AB1384 -> 5.54763 | V121: =+Central!AC1384 -> 5.54763 | W121: =+Central!AD1384 -> 5.54763 | X121: =+Central!AE1384 -> 5.54763 | Y121: =+Central!AF1384 -> 5.54763 | Z121: =+Central!AG1384 -> 5.54763 | AA121: =+Central!AH1384 -> 5.54763 | AB121: =+Central!AI1384 -> 5.54763 | AC121: =+Central!AJ1384 -> 5.54763 | AD121: =+Central!AK1384 -> 5.54763 | AE121: =+Central!AL1384 -> 5.54763 | AF121: =+Central!AM1384 -> 5.54763 | AG121: =+Central!AN1384 -> 5.54763 | AH121: =+Central!AO1384 -> 5.54763 | AI121: =+Central!AP1384 -> 5.54763 | AJ121: =+Central!AQ1384 -> 5.54763 | AK121: =+Central!AR1384 -> 5.54763 | AL121: =+Central!AS1384 -> 5.54763 | AM121: =+Central!AT1384 -> 5.54763 | AN121: =+Central!AU1384 -> 5.54763 | AO121: =+Central!AV1384 -> 5.54763 | AP121: =+Central!AW1384 -> 5.54763 | AQ121: =+Central!AX1384 -> 5.54763 | AR121: =+Central!AY1384 -> 5.54763 | AS121: =+Central!AZ1384 -> 5.54763 | AT121: =+Central!BA1384 -> 5.54763 | AU121: =+Central!BB1384 -> 5.54763 | AV121: =+Central!BC1384 -> 5.54763 | AW121: =+Central!BD1384 -> 5.54763 | AX121: =+Central!BE1384 -> 5.54763 | AY121: =+Central!BF1384 -> 5.54763 | AZ121: =+Central!BG1384 -> 5.54763 | BA121: =+Central!BH1384 -> 5.54763 | BB121: =+Central!BI1384 -> 5.54763 | BC121: =+Central!BJ1384 -> 5.54763 | BD121: =+Central!BK1384 -> 5.54763 | BE121: =+Central!BL1384 -> 5.54763 | BF121: =+Central!BM1384 -> 5.54763 | BG121: =+Central!BN1384 -> 5.54763 | BH121: =+Central!BO1384 -> 5.54763 | BI121: =+Central!BP1384 -> 5.54763
A122: Misc Other Sales | B122: =+Central!I1385 -> 3.61894 | C122: =+Central!J1385 -> 3.65301 | D122: =+Central!K1385 -> 3.41447 | E122: =+Central!L1385 -> 3.68708 | F122: =+Central!M1385 -> 3.65301 | G122: =+Central!N1385 -> 4.41633 | H122: =+Central!O1385 -> 4.41633 | I122: =+Central!P1385 -> 4.14372 | J122: =+Central!Q1385 -> 4.14372 | K122: =+Central!R1385 -> 4.14372 | L122: =+Central!S1385 -> 4.14372 | M122: =+Central!T1385 -> 4.14372 | N122: =+Central!U1385 -> 4.14372 | O122: =+Central!V1385 -> 4.14372 | P122: =+Central!W1385 -> 4.14372 | Q122: =+Central!X1385 -> 4.14372 | R122: =+Central!Y1385 -> 4.14372 | S122: =+Central!Z1385 -> 4.14372 | T122: =+Central!AA1385 -> 4.14372 | U122: =+Central!AB1385 -> 4.14372 | V122: =+Central!AC1385 -> 4.14372 | W122: =+Central!AD1385 -> 4.14372 | X122: =+Central!AE1385 -> 4.14372 | Y122: =+Central!AF1385 -> 4.14372 | Z122: =+Central!AG1385 -> 4.14372 | AA122: =+Central!AH1385 -> 4.14372 | AB122: =+Central!AI1385 -> 4.14372 | AC122: =+Central!AJ1385 -> 4.14372 | AD122: =+Central!AK1385 -> 4.14372 | AE122: =+Central!AL1385 -> 4.14372 | AF122: =+Central!AM1385 -> 4.14372 | AG122: =+Central!AN1385 -> 4.14372 | AH122: =+Central!AO1385 -> 4.14372 | AI122: =+Central!AP1385 -> 4.14372 | AJ122: =+Central!AQ1385 -> 4.14372 | AK122: =+Central!AR1385 -> 4.14372 | AL122: =+Central!AS1385 -> 4.14372 | AM122: =+Central!AT1385 -> 4.14372 | AN122: =+Central!AU1385 -> 4.14372 | AO122: =+Central!AV1385 -> 4.14372 | AP122: =+Central!AW1385 -> 4.14372 | AQ122: =+Central!AX1385 -> 4.14372 | AR122: =+Central!AY1385 -> 4.14372 | AS122: =+Central!AZ1385 -> 4.14372 | AT122: =+Central!BA1385 -> 4.14372 | AU122: =+Central!BB1385 -> 4.14372 | AV122: =+Central!BC1385 -> 4.14372 | AW122: =+Central!BD1385 -> 4.14372 | AX122: =+Central!BE1385 -> 4.14372 | AY122: =+Central!BF1385 -> 4.14372 | AZ122: =+Central!BG1385 -> 4.14372 | BA122: =+Central!BH1385 -> 4.14372 | BB122: =+Central!BI1385 -> 4.14372 | BC122: =+Central!BJ1385 -> 4.14372 | BD122: =+Central!BK1385 -> 4.14372 | BE122: =+Central!BL1385 -> 4.14372 | BF122: =+Central!BM1385 -> 4.14372 | BG122: =+Central!BN1385 -> 4.14372 | BH122: =+Central!BO1385 -> 4.14372 | BI122: =+Central!BP1385 -> 4.14372
A123: Total | B123: =+SUM(B115:B122) -> 2505.66652 | C123: =+SUM(C115:C122) -> 2504.1227 | D123: 2504.69939 | E123: 2507.82062 | F123: 2509.31136 | G123: 2511.95946 | H123: 2513.46674 | I123: 2516.52816 | J123: 2517.78841 | K123: 2517.51961 | L123: 2516.52814 | M123: 2517.19862 | N123: 2518.21656 | O123: 2518.5282 | P123: 2519.72374 | Q123: 2522.49954 | R123: 2524.36707 | S123: 2526.67675 | T123: 2526.48254 | U123: 2530.94227 | V123: 2532.15256 | W123: 2532.17103 | X123: 2531.15458 | Y123: 2531.77284 | Z123: 2530.76739 | AA123: 2531.06654 | AB123: 2532.21212 | AC123: 2534.98792 | AD123: 2536.85545 | AE123: 2539.17762 | AF123: 2538.98341 | AG123: 2543.54306 | AH123: 2544.80331 | AI123: 2544.82178 | AJ123: 2543.79284 | AK123: 2544.37589 | AL123: 2543.2268 | AM123: 2543.53844 | AN123: 2544.73398 | AO123: 2547.50978 | AP123: 2549.35233 | AQ123: 2551.7432 | AR123: 2551.56148 | AS123: 2556.1586 | AT123: 2557.43134 | AU123: 2557.43732 | AV123: 2556.40838 | AW123: 2557.0255 | AX123: =+SUM(AX115:AX122) -> 2555.71404 | AY123: 2556.03817 | AZ123: 2557.23371 | BA123: 2560.03449 | BB123: 2561.88953 | BC123: 2564.29289 | BD123: 2564.09868 | BE123: 2568.73327 | BF123: 2570.0185 | BG123: 2570.03697 | BH123: 2569.00803 | BI123: 2569.62515
A125: Northern | B125: =+B$4 -> 2018-01-01 | C125: =+C$4 -> 2018-02-01 | D125: 2018-03-01 | E125: 2018-04-01 | F125: 2018-05-01 | G125: 2018-06-01 | H125: 2018-07-01 | I125: 2018-08-01 | J125: 2018-09-01 | K125: 2018-10-01 | L125: 2018-11-01 | M125: 2018-12-01 | N125: 2019-01-01 | O125: 2019-02-01 | P125: 2019-03-01 | Q125: 2019-04-01 | R125: 2019-05-01 | S125: 2019-06-01 | T125: 2019-07-01 | U125: 2019-08-01 | V125: 2019-09-01 | W125: 2019-10-01 | X125: 2019-11-01 | Y125: 2019-12-01 | Z125: 2020-01-01 | AA125: 2020-02-01 | AB125: 2020-03-01 | AC125: 2020-04-01 | AD125: 2020-05-01 | AE125: 2020-06-01 | AF125: 2020-07-01 | AG125: 2020-08-01 | AH125: 2020-09-01 | AI125: 2020-10-01 | AJ125: 2020-11-01 | AK125: 2020-12-01 | AL125: 2021-01-01 | AM125: 2021-02-01 | AN125: 2021-03-01 | AO125: 2021-04-01 | AP125: 2021-05-01 | AQ125: 2021-06-01 | AR125: 2021-07-01 | AS125: 2021-08-01 | AT125: 2021-09-01 | AU125: 2021-10-01 | AV125: 2021-11-01 | AW125: 2021-12-01 | AX125: 2022-01-01 | AY125: 2022-02-01 | AZ125: 2022-03-01 | BA125: 2022-04-01 | BB125: 2022-05-01 | BC125: 2022-06-01 | BD125: 2022-07-01 | BE125: 2022-08-01 | BF125: 2022-09-01 | BG125: 2022-10-01 | BH125: 2022-11-01 | BI125: 2022-12-01
A126: Residential | B126: =+Northern!I1378 -> 49.76031 | C126: =+Northern!J1378 -> 49.74782 | D126: =+Northern!K1378 -> 49.87272 | E126: =+Northern!L1378 -> 49.96015 | F126: =+Northern!M1378 -> 50.07256 | G126: =+Northern!N1378 -> 50.15999 | H126: =+Northern!O1378 -> 50.20995 | I126: =+Northern!P1378 -> 50.20995 | J126: =+Northern!Q1378 -> 50.28489 | K126: =+Northern!R1378 -> 50.20995 | L126: =+Northern!S1378 -> 50.09754 | M126: =+Northern!T1378 -> 50.0226 | N126: =+Northern!U1378 -> 49.99762 | O126: =+Northern!V1378 -> 50.01011 | P126: =+Northern!W1378 -> 50.04758 | Q126: =+Northern!X1378 -> 50.11003 | R126: =+Northern!Y1378 -> 50.25991 | S126: =+Northern!Z1378 -> 50.32236 | T126: =+Northern!AA1378 -> 50.37232 | U126: =+Northern!AB1378 -> 50.43477 | V126: =+Northern!AC1378 -> 50.49722 | W126: =+Northern!AD1378 -> 50.42228 | X126: =+Northern!AE1378 -> 50.33485 | Y126: =+Northern!AF1378 -> 50.28489 | Z126: =+Northern!AG1378 -> 50.24742 | AA126: =+Northern!AH1378 -> 50.2724 | AB126: =+Northern!AI1378 -> 50.37232 | AC126: =+Northern!AJ1378 -> 50.45975 | AD126: =+Northern!AK1378 -> 50.62212 | AE126: =+Northern!AL1378 -> 50.68457 | AF126: =+Northern!AM1378 -> 50.73453 | AG126: =+Northern!AN1378 -> 50.72204 | AH126: =+Northern!AO1378 -> 50.74702 | AI126: =+Northern!AP1378 -> 50.68457 | AJ126: =+Northern!AQ1378 -> 50.60963 | AK126: =+Northern!AR1378 -> 50.54718 | AL126: =+Northern!AS1378 -> 50.5222 | AM126: =+Northern!AT1378 -> 50.53469 | AN126: =+Northern!AU1378 -> 50.60963 | AO126: =+Northern!AV1378 -> 50.70955 | AP126: =+Northern!AW1378 -> 50.8969 | AQ126: =+Northern!AX1378 -> 50.94686 | AR126: =+Northern!AY1378 -> 50.98433 | AS126: =+Northern!AZ1378 -> 50.97184 | AT126: =+Northern!BA1378 -> 50.99682 | AU126: =+Northern!BB1378 -> 50.94686 | AV126: =+Northern!BC1378 -> 50.85943 | AW126: =+Northern!BD1378 -> 50.80947 | AX126: =+Northern!BE1378 -> 50.83445 | AY126: =+Northern!BF1378 -> 50.84694 | AZ126: =+Northern!BG1378 -> 50.92188 | BA126: =+Northern!BH1378 -> 51.0218 | BB126: =+Northern!BI1378 -> 51.20915 | BC126: =+Northern!BJ1378 -> 51.25911 | BD126: =+Northern!BK1378 -> 51.29658 | BE126: =+Northern!BL1378 -> 51.28409 | BF126: =+Northern!BM1378 -> 51.30907 | BG126: =+Northern!BN1378 -> 51.25911 | BH126: =+Northern!BO1378 -> 51.17168 | BI126: =+Northern!BP1378 -> 51.12172
A127: Commercial | B127: =+Northern!I1379 -> 5.07712 | C127: =+Northern!J1379 -> 5.07712 | D127: =+Northern!K1379 -> 5.07712 | E127: =+Northern!L1379 -> 5.07712 | F127: =+Northern!M1379 -> 5.07712 | G127: =+Northern!N1379 -> 5.07712 | H127: =+Northern!O1379 -> 5.06349 | I127: =+Northern!P1379 -> 5.06349 | J127: =+Northern!Q1379 -> 5.06349 | K127: =+Northern!R1379 -> 5.06349 | L127: =+Northern!S1379 -> 5.06349 | M127: =+Northern!T1379 -> 5.07712 | N127: =+Northern!U1379 -> 5.07712 | O127: =+Northern!V1379 -> 5.07712 | P127: =+Northern!W1379 -> 5.07712 | Q127: =+Northern!X1379 -> 5.07712 | R127: =+Northern!Y1379 -> 5.07712 | S127: =+Northern!Z1379 -> 5.06349 | T127: =+Northern!AA1379 -> 5.04986 | U127: =+Northern!AB1379 -> 5.04986 | V127: =+Northern!AC1379 -> 5.04986 | W127: =+Northern!AD1379 -> 5.04986 | X127: =+Northern!AE1379 -> 5.04986 | Y127: =+Northern!AF1379 -> 5.04986 | Z127: =+Northern!AG1379 -> 5.04986 | AA127: =+Northern!AH1379 -> 5.04986 | AB127: =+Northern!AI1379 -> 5.04986 | AC127: =+Northern!AJ1379 -> 5.04986 | AD127: =+Northern!AK1379 -> 5.04986 | AE127: =+Northern!AL1379 -> 5.04986 | AF127: =+Northern!AM1379 -> 5.03623 | AG127: =+Northern!AN1379 -> 5.03623 | AH127: =+Northern!AO1379 -> 5.03623 | AI127: =+Northern!AP1379 -> 5.03623 | AJ127: =+Northern!AQ1379 -> 5.03623 | AK127: =+Northern!AR1379 -> 5.04986 | AL127: =+Northern!AS1379 -> 5.04986 | AM127: =+Northern!AT1379 -> 5.04986 | AN127: =+Northern!AU1379 -> 5.04986 | AO127: =+Northern!AV1379 -> 5.04986 | AP127: =+Northern!AW1379 -> 5.04986 | AQ127: =+Northern!AX1379 -> 5.04986 | AR127: =+Northern!AY1379 -> 5.03623 | AS127: =+Northern!AZ1379 -> 5.03623 | AT127: =+Northern!BA1379 -> 5.03623 | AU127: =+Northern!BB1379 -> 5.03623 | AV127: =+Northern!BC1379 -> 5.03623 | AW127: =+Northern!BD1379 -> 5.03623 | AX127: =+Northern!BE1379 -> 5.04986 | AY127: =+Northern!BF1379 -> 5.04986 | AZ127: =+Northern!BG1379 -> 5.04986 | BA127: =+Northern!BH1379 -> 5.04986 | BB127: =+Northern!BI1379 -> 5.04986 | BC127: =+Northern!BJ1379 -> 5.04986 | BD127: =+Northern!BK1379 -> 5.03623 | BE127: =+Northern!BL1379 -> 5.03623 | BF127: =+Northern!BM1379 -> 5.03623 | BG127: =+Northern!BN1379 -> 5.03623 | BH127: =+Northern!BO1379 -> 5.03623 | BI127: =+Northern!BP1379 -> 5.03623
A128: Industrial | B128: =+Northern!I1380 -> 0 | C128: =+Northern!J1380 -> 0 | D128: =+Northern!K1380 -> 0 | E128: =+Northern!L1380 -> 0 | F128: =+Northern!M1380 -> 0 | G128: =+Northern!N1380 -> 0 | H128: =+Northern!O1380 -> 0 | I128: =+Northern!P1380 -> 0 | J128: =+Northern!Q1380 -> 0 | K128: =+Northern!R1380 -> 0 | L128: =+Northern!S1380 -> 0 | M128: =+Northern!T1380 -> 0 | N128: =+Northern!U1380 -> 0 | O128: =+Northern!V1380 -> 0 | P128: =+Northern!W1380 -> 0 | Q128: =+Northern!X1380 -> 0 | R128: =+Northern!Y1380 -> 0 | S128: =+Northern!Z1380 -> 0 | T128: =+Northern!AA1380 -> 0 | U128: =+Northern!AB1380 -> 0 | V128: =+Northern!AC1380 -> 0 | W128: =+Northern!AD1380 -> 0 | X128: =+Northern!AE1380 -> 0 | Y128: =+Northern!AF1380 -> 0 | Z128: =+Northern!AG1380 -> 0 | AA128: =+Northern!AH1380 -> 0 | AB128: =+Northern!AI1380 -> 0 | AC128: =+Northern!AJ1380 -> 0 | AD128: =+Northern!AK1380 -> 0 | AE128: =+Northern!AL1380 -> 0 | AF128: =+Northern!AM1380 -> 0 | AG128: =+Northern!AN1380 -> 0 | AH128: =+Northern!AO1380 -> 0 | AI128: =+Northern!AP1380 -> 0 | AJ128: =+Northern!AQ1380 -> 0 | AK128: =+Northern!AR1380 -> 0 | AL128: =+Northern!AS1380 -> 0 | AM128: =+Northern!AT1380 -> 0 | AN128: =+Northern!AU1380 -> 0 | AO128: =+Northern!AV1380 -> 0 | AP128: =+Northern!AW1380 -> 0 | AQ128: =+Northern!AX1380 -> 0 | AR128: =+Northern!AY1380 -> 0 | AS128: =+Northern!AZ1380 -> 0 | AT128: =+Northern!BA1380 -> 0 | AU128: =+Northern!BB1380 -> 0 | AV128: =+Northern!BC1380 -> 0 | AW128: =+Northern!BD1380 -> 0 | AX128: =+Northern!BE1380 -> 0 | AY128: =+Northern!BF1380 -> 0 | AZ128: =+Northern!BG1380 -> 0 | BA128: =+Northern!BH1380 -> 0 | BB128: =+Northern!BI1380 -> 0 | BC128: =+Northern!BJ1380 -> 0 | BD128: =+Northern!BK1380 -> 0 | BE128: =+Northern!BL1380 -> 0 | BF128: =+Northern!BM1380 -> 0 | BG128: =+Northern!BN1380 -> 0 | BH128: =+Northern!BO1380 -> 0 | BI128: =+Northern!BP1380 -> 0
A129: Public Fire | B129: =+Northern!I1381 -> 0 | C129: =+Northern!J1381 -> 0 | D129: =+Northern!K1381 -> 0 | E129: =+Northern!L1381 -> 0 | F129: =+Northern!M1381 -> 0 | G129: =+Northern!N1381 -> 0 | H129: =+Northern!O1381 -> 0 | I129: =+Northern!P1381 -> 0 | J129: =+Northern!Q1381 -> 0 | K129: =+Northern!R1381 -> 0 | L129: =+Northern!S1381 -> 0 | M129: =+Northern!T1381 -> 0 | N129: =+Northern!U1381 -> 0 | O129: =+Northern!V1381 -> 0 | P129: =+Northern!W1381 -> 0 | Q129: =+Northern!X1381 -> 0 | R129: =+Northern!Y1381 -> 0 | S129: =+Northern!Z1381 -> 0 | T129: =+Northern!AA1381 -> 0 | U129: =+Northern!AB1381 -> 0 | V129: =+Northern!AC1381 -> 0 | W129: =+Northern!AD1381 -> 0 | X129: =+Northern!AE1381 -> 0 | Y129: =+Northern!AF1381 -> 0 | Z129: =+Northern!AG1381 -> 0 | AA129: =+Northern!AH1381 -> 0 | AB129: =+Northern!AI1381 -> 0 | AC129: =+Northern!AJ1381 -> 0 | AD129: =+Northern!AK1381 -> 0 | AE129: =+Northern!AL1381 -> 0 | AF129: =+Northern!AM1381 -> 0 | AG129: =+Northern!AN1381 -> 0 | AH129: =+Northern!AO1381 -> 0 | AI129: =+Northern!AP1381 -> 0 | AJ129: =+Northern!AQ1381 -> 0 | AK129: =+Northern!AR1381 -> 0 | AL129: =+Northern!AS1381 -> 0 | AM129: =+Northern!AT1381 -> 0 | AN129: =+Northern!AU1381 -> 0 | AO129: =+Northern!AV1381 -> 0 | AP129: =+Northern!AW1381 -> 0 | AQ129: =+Northern!AX1381 -> 0 | AR129: =+Northern!AY1381 -> 0 | AS129: =+Northern!AZ1381 -> 0 | AT129: =+Northern!BA1381 -> 0 | AU129: =+Northern!BB1381 -> 0 | AV129: =+Northern!BC1381 -> 0 | AW129: =+Northern!BD1381 -> 0 | AX129: =+Northern!BE1381 -> 0 | AY129: =+Northern!BF1381 -> 0 | AZ129: =+Northern!BG1381 -> 0 | BA129: =+Northern!BH1381 -> 0 | BB129: =+Northern!BI1381 -> 0 | BC129: =+Northern!BJ1381 -> 0 | BD129: =+Northern!BK1381 -> 0 | BE129: =+Northern!BL1381 -> 0 | BF129: =+Northern!BM1381 -> 0 | BG129: =+Northern!BN1381 -> 0 | BH129: =+Northern!BO1381 -> 0 | BI129: =+Northern!BP1381 -> 0
A130: Private Fire | B130: =+Northern!I1382 -> 0 | C130: =+Northern!J1382 -> 0 | D130: =+Northern!K1382 -> 0 | E130: =+Northern!L1382 -> 0 | F130: =+Northern!M1382 -> 0 | G130: =+Northern!N1382 -> 0 | H130: =+Northern!O1382 -> 0 | I130: =+Northern!P1382 -> 0 | J130: =+Northern!Q1382 -> 0 | K130: =+Northern!R1382 -> 0 | L130: =+Northern!S1382 -> 0 | M130: =+Northern!T1382 -> 0 | N130: =+Northern!U1382 -> 0 | O130: =+Northern!V1382 -> 0 | P130: =+Northern!W1382 -> 0 | Q130: =+Northern!X1382 -> 0 | R130: =+Northern!Y1382 -> 0 | S130: =+Northern!Z1382 -> 0 | T130: =+Northern!AA1382 -> 0 | U130: =+Northern!AB1382 -> 0 | V130: =+Northern!AC1382 -> 0 | W130: =+Northern!AD1382 -> 0 | X130: =+Northern!AE1382 -> 0 | Y130: =+Northern!AF1382 -> 0 | Z130: =+Northern!AG1382 -> 0 | AA130: =+Northern!AH1382 -> 0 | AB130: =+Northern!AI1382 -> 0 | AC130: =+Northern!AJ1382 -> 0 | AD130: =+Northern!AK1382 -> 0 | AE130: =+Northern!AL1382 -> 0 | AF130: =+Northern!AM1382 -> 0 | AG130: =+Northern!AN1382 -> 0 | AH130: =+Northern!AO1382 -> 0 | AI130: =+Northern!AP1382 -> 0 | AJ130: =+Northern!AQ1382 -> 0 | AK130: =+Northern!AR1382 -> 0 | AL130: =+Northern!AS1382 -> 0 | AM130: =+Northern!AT1382 -> 0 | AN130: =+Northern!AU1382 -> 0 | AO130: =+Northern!AV1382 -> 0 | AP130: =+Northern!AW1382 -> 0 | AQ130: =+Northern!AX1382 -> 0 | AR130: =+Northern!AY1382 -> 0 | AS130: =+Northern!AZ1382 -> 0 | AT130: =+Northern!BA1382 -> 0 | AU130: =+Northern!BB1382 -> 0 | AV130: =+Northern!BC1382 -> 0 | AW130: =+Northern!BD1382 -> 0 | AX130: =+Northern!BE1382 -> 0 | AY130: =+Northern!BF1382 -> 0 | AZ130: =+Northern!BG1382 -> 0 | BA130: =+Northern!BH1382 -> 0 | BB130: =+Northern!BI1382 -> 0 | BC130: =+Northern!BJ1382 -> 0 | BD130: =+Northern!BK1382 -> 0 | BE130: =+Northern!BL1382 -> 0 | BF130: =+Northern!BM1382 -> 0 | BG130: =+Northern!BN1382 -> 0 | BH130: =+Northern!BO1382 -> 0 | BI130: =+Northern!BP1382 -> 0
A131: OPA | B131: =+Northern!I1383 -> 1.19945 | C131: =+Northern!J1383 -> 1.19945 | D131: =+Northern!K1383 -> 1.19945 | E131: =+Northern!L1383 -> 1.19945 | F131: =+Northern!M1383 -> 1.19945 | G131: =+Northern!N1383 -> 1.19945 | H131: =+Northern!O1383 -> 1.19945 | I131: =+Northern!P1383 -> 1.19945 | J131: =+Northern!Q1383 -> 1.19945 | K131: =+Northern!R1383 -> 1.19945 | L131: =+Northern!S1383 -> 1.19945 | M131: =+Northern!T1383 -> 1.19945 | N131: =+Northern!U1383 -> 1.19945 | O131: =+Northern!V1383 -> 1.19945 | P131: =+Northern!W1383 -> 1.19945 | Q131: =+Northern!X1383 -> 1.19945 | R131: =+Northern!Y1383 -> 1.19945 | S131: =+Northern!Z1383 -> 1.19945 | T131: =+Northern!AA1383 -> 1.19945 | U131: =+Northern!AB1383 -> 1.19945 | V131: =+Northern!AC1383 -> 1.19945 | W131: =+Northern!AD1383 -> 1.19945 | X131: =+Northern!AE1383 -> 1.19945 | Y131: =+Northern!AF1383 -> 1.19945 | Z131: =+Northern!AG1383 -> 1.19945 | AA131: =+Northern!AH1383 -> 1.19945 | AB131: =+Northern!AI1383 -> 1.19945 | AC131: =+Northern!AJ1383 -> 1.19945 | AD131: =+Northern!AK1383 -> 1.19945 | AE131: =+Northern!AL1383 -> 1.19945 | AF131: =+Northern!AM1383 -> 1.19945 | AG131: =+Northern!AN1383 -> 1.19945 | AH131: =+Northern!AO1383 -> 1.19945 | AI131: =+Northern!AP1383 -> 1.19945 | AJ131: =+Northern!AQ1383 -> 1.19945 | AK131: =+Northern!AR1383 -> 1.19945 | AL131: =+Northern!AS1383 -> 1.19945 | AM131: =+Northern!AT1383 -> 1.19945 | AN131: =+Northern!AU1383 -> 1.19945 | AO131: =+Northern!AV1383 -> 1.19945 | AP131: =+Northern!AW1383 -> 1.19945 | AQ131: =+Northern!AX1383 -> 1.19945 | AR131: =+Northern!AY1383 -> 1.19945 | AS131: =+Northern!AZ1383 -> 1.19945 | AT131: =+Northern!BA1383 -> 1.19945 | AU131: =+Northern!BB1383 -> 1.19945 | AV131: =+Northern!BC1383 -> 1.19945 | AW131: =+Northern!BD1383 -> 1.19945 | AX131: =+Northern!BE1383 -> 1.19945 | AY131: =+Northern!BF1383 -> 1.19945 | AZ131: =+Northern!BG1383 -> 1.19945 | BA131: =+Northern!BH1383 -> 1.19945 | BB131: =+Northern!BI1383 -> 1.19945 | BC131: =+Northern!BJ1383 -> 1.19945 | BD131: =+Northern!BK1383 -> 1.19945 | BE131: =+Northern!BL1383 -> 1.19945 | BF131: =+Northern!BM1383 -> 1.19945 | BG131: =+Northern!BN1383 -> 1.19945 | BH131: =+Northern!BO1383 -> 1.19945 | BI131: =+Northern!BP1383 -> 1.19945
A132: SFR | B132: =+Northern!I1384 -> 0.10904 | C132: =+Northern!J1384 -> 0.10904 | D132: =+Northern!K1384 -> 0.10904 | E132: =+Northern!L1384 -> 0.10904 | F132: =+Northern!M1384 -> 0.10904 | G132: =+Northern!N1384 -> 0.10904 | H132: =+Northern!O1384 -> 0.10904 | I132: =+Northern!P1384 -> 0.10904 | J132: =+Northern!Q1384 -> 0.10904 | K132: =+Northern!R1384 -> 0.10904 | L132: =+Northern!S1384 -> 0.10904 | M132: =+Northern!T1384 -> 0.10904 | N132: =+Northern!U1384 -> 0.10904 | O132: =+Northern!V1384 -> 0.10904 | P132: =+Northern!W1384 -> 0.10904 | Q132: =+Northern!X1384 -> 0.10904 | R132: =+Northern!Y1384 -> 0.10904 | S132: =+Northern!Z1384 -> 0.10904 | T132: =+Northern!AA1384 -> 0.10904 | U132: =+Northern!AB1384 -> 0.10904 | V132: =+Northern!AC1384 -> 0.10904 | W132: =+Northern!AD1384 -> 0.10904 | X132: =+Northern!AE1384 -> 0.10904 | Y132: =+Northern!AF1384 -> 0.10904 | Z132: =+Northern!AG1384 -> 0.10904 | AA132: =+Northern!AH1384 -> 0.10904 | AB132: =+Northern!AI1384 -> 0.10904 | AC132: =+Northern!AJ1384 -> 0.10904 | AD132: =+Northern!AK1384 -> 0.10904 | AE132: =+Northern!AL1384 -> 0.10904 | AF132: =+Northern!AM1384 -> 0.10904 | AG132: =+Northern!AN1384 -> 0.10904 | AH132: =+Northern!AO1384 -> 0.10904 | AI132: =+Northern!AP1384 -> 0.10904 | AJ132: =+Northern!AQ1384 -> 0.10904 | AK132: =+Northern!AR1384 -> 0.10904 | AL132: =+Northern!AS1384 -> 0.10904 | AM132: =+Northern!AT1384 -> 0.10904 | AN132: =+Northern!AU1384 -> 0.10904 | AO132: =+Northern!AV1384 -> 0.10904 | AP132: =+Northern!AW1384 -> 0.10904 | AQ132: =+Northern!AX1384 -> 0.10904 | AR132: =+Northern!AY1384 -> 0.10904 | AS132: =+Northern!AZ1384 -> 0.10904 | AT132: =+Northern!BA1384 -> 0.10904 | AU132: =+Northern!BB1384 -> 0.10904 | AV132: =+Northern!BC1384 -> 0.10904 | AW132: =+Northern!BD1384 -> 0.10904 | AX132: =+Northern!BE1384 -> 0.10904 | AY132: =+Northern!BF1384 -> 0.10904 | AZ132: =+Northern!BG1384 -> 0.10904 | BA132: =+Northern!BH1384 -> 0.10904 | BB132: =+Northern!BI1384 -> 0.10904 | BC132: =+Northern!BJ1384 -> 0.10904 | BD132: =+Northern!BK1384 -> 0.10904 | BE132: =+Northern!BL1384 -> 0.10904 | BF132: =+Northern!BM1384 -> 0.10904 | BG132: =+Northern!BN1384 -> 0.10904 | BH132: =+Northern!BO1384 -> 0.10904 | BI132: =+Northern!BP1384 -> 0.10904
A133: Misc Other Sales | B133: =+Northern!I1385 -> 0 | C133: =+Northern!J1385 -> 0 | D133: =+Northern!K1385 -> 0 | E133: =+Northern!L1385 -> 0 | F133: =+Northern!M1385 -> 0 | G133: =+Northern!N1385 -> 0 | H133: =+Northern!O1385 -> 0 | I133: =+Northern!P1385 -> 0 | J133: =+Northern!Q1385 -> 0 | K133: =+Northern!R1385 -> 0 | L133: =+Northern!S1385 -> 0 | M133: =+Northern!T1385 -> 0 | N133: =+Northern!U1385 -> 0 | O133: =+Northern!V1385 -> 0 | P133: =+Northern!W1385 -> 0 | Q133: =+Northern!X1385 -> 0 | R133: =+Northern!Y1385 -> 0 | S133: =+Northern!Z1385 -> 0 | T133: =+Northern!AA1385 -> 0 | U133: =+Northern!AB1385 -> 0 | V133: =+Northern!AC1385 -> 0 | W133: =+Northern!AD1385 -> 0 | X133: =+Northern!AE1385 -> 0 | Y133: =+Northern!AF1385 -> 0 | Z133: =+Northern!AG1385 -> 0 | AA133: =+Northern!AH1385 -> 0 | AB133: =+Northern!AI1385 -> 0 | AC133: =+Northern!AJ1385 -> 0 | AD133: =+Northern!AK1385 -> 0 | AE133: =+Northern!AL1385 -> 0 | AF133: =+Northern!AM1385 -> 0 | AG133: =+Northern!AN1385 -> 0 | AH133: =+Northern!AO1385 -> 0 | AI133: =+Northern!AP1385 -> 0 | AJ133: =+Northern!AQ1385 -> 0 | AK133: =+Northern!AR1385 -> 0 | AL133: =+Northern!AS1385 -> 0 | AM133: =+Northern!AT1385 -> 0 | AN133: =+Northern!AU1385 -> 0 | AO133: =+Northern!AV1385 -> 0 | AP133: =+Northern!AW1385 -> 0 | AQ133: =+Northern!AX1385 -> 0 | AR133: =+Northern!AY1385 -> 0 | AS133: =+Northern!AZ1385 -> 0 | AT133: =+Northern!BA1385 -> 0 | AU133: =+Northern!BB1385 -> 0 | AV133: =+Northern!BC1385 -> 0 | AW133: =+Northern!BD1385 -> 0 | AX133: =+Northern!BE1385 -> 0 | AY133: =+Northern!BF1385 -> 0 | AZ133: =+Northern!BG1385 -> 0 | BA133: =+Northern!BH1385 -> 0 | BB133: =+Northern!BI1385 -> 0 | BC133: =+Northern!BJ1385 -> 0 | BD133: =+Northern!BK1385 -> 0 | BE133: =+Northern!BL1385 -> 0 | BF133: =+Northern!BM1385 -> 0 | BG133: =+Northern!BN1385 -> 0 | BH133: =+Northern!BO1385 -> 0 | BI133: =+Northern!BP1385 -> 0
A134: Total | B134: =+SUM(B126:B133) -> 56.14592 | C134: =+SUM(C126:C133) -> 56.13343 | D134: 56.25833 | E134: 56.34576 | F134: 56.45817 | G134: 56.5456 | H134: 56.58193 | I134: 56.58193 | J134: 56.65687 | K134: 56.58193 | L134: 56.46952 | M134: 56.40821 | N134: 56.38323 | O134: 56.39572 | P134: 56.43319 | Q134: 56.49564 | R134: 56.64552 | S134: 56.69434 | T134: 56.73067 | U134: 56.79312 | V134: 56.85557 | W134: 56.78063 | X134: 56.6932 | Y134: 56.64324 | Z134: 56.60577 | AA134: 56.63075 | AB134: 56.73067 | AC134: 56.8181 | AD134: 56.98047 | AE134: 57.04292 | AF134: 57.07925 | AG134: 57.06676 | AH134: 57.09174 | AI134: 57.02929 | AJ134: 56.95435 | AK134: 56.90553 | AL134: 56.88055 | AM134: 56.89304 | AN134: 56.96798 | AO134: 57.0679 | AP134: 57.25525 | AQ134: 57.30521 | AR134: 57.32905 | AS134: 57.31656 | AT134: 57.34154 | AU134: 57.29158 | AV134: 57.20415 | AW134: 57.15419 | AX134: =+SUM(AX126:AX133) -> 57.1928 | AY134: 57.20529 | AZ134: 57.28023 | BA134: 57.38015 | BB134: 57.5675 | BC134: 57.61746 | BD134: 57.6413 | BE134: 57.62881 | BF134: 57.65379 | BG134: 57.60383 | BH134: 57.5164 | BI134: 57.46644
A136: Total Fixed Charges - Base | B136: =+B$4 -> 2018-01-01 | C136: =+C$4 -> 2018-02-01 | D136: 2018-03-01 | E136: 2018-04-01 | F136: 2018-05-01 | G136: 2018-06-01 | H136: 2018-07-01 | I136: 2018-08-01 | J136: 2018-09-01 | K136: 2018-10-01 | L136: 2018-11-01 | M136: 2018-12-01 | N136: 2019-01-01 | O136: 2019-02-01 | P136: 2019-03-01 | Q136: 2019-04-01 | R136: 2019-05-01 | S136: 2019-06-01 | T136: 2019-07-01 | U136: 2019-08-01 | V136: 2019-09-01 | W136: 2019-10-01 | X136: 2019-11-01 | Y136: 2019-12-01 | Z136: 2020-01-01 | AA136: 2020-02-01 | AB136: 2020-03-01 | AC136: 2020-04-01 | AD136: 2020-05-01 | AE136: 2020-06-01 | AF136: 2020-07-01 | AG136: 2020-08-01 | AH136: 2020-09-01 | AI136: 2020-10-01 | AJ136: 2020-11-01 | AK136: 2020-12-01 | AL136: 2021-01-01 | AM136: 2021-02-01 | AN136: 2021-03-01 | AO136: 2021-04-01 | AP136: 2021-05-01 | AQ136: 2021-06-01 | AR136: 2021-07-01 | AS136: 2021-08-01 | AT136: 2021-09-01 | AU136: 2021-10-01 | AV136: 2021-11-01 | AW136: 2021-12-01 | AX136: 2022-01-01 | AY136: 2022-02-01 | AZ136: 2022-03-01 | BA136: 2022-04-01 | BB136: 2022-05-01 | BC136: 2022-06-01 | BD136: 2022-07-01 | BE136: 2022-08-01 | BF136: 2022-09-01 | BG136: 2022-10-01 | BH136: 2022-11-01 | BI136: 2022-12-01
A137: Residential | B137: =+B115+B126 -> 1533.76344 | C137: =+C115+C126 -> 1532.7455 | D137: 1534.2568 | E137: 1536.59869 | F137: 1537.19197 | G137: 1537.68533 | H137: 1537.7228 | I137: 1539.85236 | J137: 1541.57599 | K137: 1542.1318 | L137: 1541.7571 | M137: 1542.40034 | N137: 1543.3933 | O137: 1543.87417 | P137: 1545.44792 | Q137: 1547.72736 | R137: 1548.84522 | S137: 1550.70624 | T137: 1550.71873 | U137: 1554.55943 | V137: 1556.22061 | W137: 1557.06369 | X137: 1556.68899 | Y137: 1557.25729 | Z137: 1556.21437 | AA137: 1556.69524 | AB137: 1558.28148 | AC137: 1560.5859 | AD137: 1561.71625 | AE137: 1563.58976 | AF137: 1563.60225 | AG137: 1567.46793 | AH137: 1569.1416 | AI137: 1569.99717 | AJ137: 1569.62247 | AK137: 1570.19077 | AL137: 1569.0167 | AM137: 1569.49757 | AN137: 1571.10879 | AO137: 1573.4257 | AP137: 1574.55605 | AQ137: 1576.48577 | AR137: 1576.49826 | AS137: 1580.40141 | AT137: 1582.08757 | AU137: 1582.94314 | AV137: 1582.55595 | AW137: 1583.13674 | AX137: =+AX115+AX126 -> 1581.85026 | AY137: 1582.34362 | AZ137: 1583.95484 | BA137: 1586.29673 | BB137: 1587.43957 | BC137: 1589.38178 | BD137: 1589.38178 | BE137: 1593.3224 | BF137: 1595.02105 | BG137: 1595.88911 | BH137: 1595.50192 | BI137: 1596.08271
A138: Commercial | B138: =+B116+B127 -> 406.69758 | C138: 406.0161 | D138: 405.67536 | E138: 406.23417 | F138: 407.13372 | G138: 407.64483 | H138: 407.5835 | I138: 408.26498 | J138: 407.87654 | K138: 406.97699 | L138: 406.24781 | M138: 406.21374 | N138: 406.21374 | O138: 406.057 | P138: 405.71626 | Q138: 406.27507 | R138: 407.17462 | S138: 407.6721 | T138: 407.50173 | U138: 408.18321 | V138: 407.79477 | W138: 406.89522 | X138: 406.16604 | Y138: 406.16604 | Z138: 406.16604 | AA138: 406.0093 | AB138: 405.66856 | AC138: 406.22737 | AD138: 407.12692 | AE138: 407.63803 | AF138: 407.46766 | AG138: 408.14914 | AH138: 407.7607 | AI138: 406.86115 | AJ138: 406.13197 | AK138: 406.0979 | AL138: 406.0979 | AM138: 405.94116 | AN138: 405.60042 | AO138: 406.15923 | AP138: 407.05878 | AQ138: 407.56989 | AR138: 407.39952 | AS138: 408.081 | AT138: 407.69256 | AU138: 406.79301 | AV138: 406.06383 | AW138: 406.0502 | AX138: 406.06383 | AY138: 405.90709 | AZ138: 405.56635 | BA138: 406.12516 | BB138: 407.02471 | BC138: 407.53582 | BD138: 407.36545 | BE138: 408.04693 | BF138: 407.65849 | BG138: 406.75894 | BH138: 406.02976 | BI138: 406.01613
A139: Industrial | B139: 12.29448 | C139: 12.29448 | D139: 12.29448 | E139: 12.29448 | F139: 12.29448 | G139: 12.29448 | H139: 12.29448 | I139: 12.29448 | J139: 12.29448 | K139: 12.29448 | L139: 12.29448 | M139: 12.29448 | N139: 12.29448 | O139: 12.29448 | P139: 12.29448 | Q139: 12.29448 | R139: 12.29448 | S139: 12.29448 | T139: 12.29448 | U139: 12.29448 | V139: 12.29448 | W139: 12.29448 | X139: 12.29448 | Y139: 12.29448 | Z139: 12.29448 | AA139: 12.29448 | AB139: 12.29448 | AC139: 12.29448 | AD139: 12.29448 | AE139: 12.29448 | AF139: 12.29448 | AG139: 12.29448 | AH139: 12.29448 | AI139: 12.29448 | AJ139: 12.29448 | AK139: 12.29448 | AL139: 12.29448 | AM139: 12.29448 | AN139: 12.29448 | AO139: 12.29448 | AP139: 12.29448 | AQ139: 12.29448 | AR139: 12.29448 | AS139: 12.29448 | AT139: 12.29448 | AU139: 12.29448 | AV139: 12.29448 | AW139: 12.29448 | AX139: 12.29448 | AY139: 12.29448 | AZ139: 12.29448 | BA139: 12.29448 | BB139: 12.29448 | BC139: 12.29448 | BD139: 12.29448 | BE139: 12.29448 | BF139: 12.29448 | BG139: 12.29448 | BH139: 12.29448 | BI139: 12.29448
A140: Public Fire | B140: 299.3298 | C140: 299.3298 | D140: 299.3298 | E140: 299.3298 | F140: 299.3298 | G140: 299.3298 | H140: 299.3298 | I140: 299.3298 | J140: 299.3298 | K140: 299.3298 | L140: 299.3298 | M140: 299.3298 | N140: 299.3298 | O140: 299.3298 | P140: 299.3298 | Q140: 299.3298 | R140: 299.3298 | S140: 299.3298 | T140: 299.3298 | U140: 299.3298 | V140: 299.3298 | W140: 299.3298 | X140: 299.3298 | Y140: 299.3298 | Z140: 299.3298 | AA140: 299.3298 | AB140: 299.3298 | AC140: 299.3298 | AD140: 299.3298 | AE140: 299.3298 | AF140: 299.3298 | AG140: 299.3298 | AH140: 299.3298 | AI140: 299.3298 | AJ140: 299.3298 | AK140: 299.3298 | AL140: 299.3298 | AM140: 299.3298 | AN140: 299.3298 | AO140: 299.3298 | AP140: 299.3298 | AQ140: 299.3298 | AR140: 299.3298 | AS140: 299.3298 | AT140: 299.3298 | AU140: 299.3298 | AV140: 299.3298 | AW140: 299.3298 | AX140: 299.3298 | AY140: 299.3298 | AZ140: 299.3298 | BA140: 299.3298 | BB140: 299.3298 | BC140: 299.3298 | BD140: 299.3298 | BE140: 299.3298 | BF140: 299.3298 | BG140: 299.3298 | BH140: 299.3298 | BI140: 299.3298
A141: Private Fire | B141: 221.10387 | C141: 221.10387 | D141: 221.24826 | E141: 221.39265 | F141: 221.53704 | G141: 221.53704 | H141: 221.53704 | I141: 222.06003 | J141: 222.06003 | K141: 222.06003 | L141: 222.06003 | M141: 222.06003 | N141: 222.06003 | O141: 222.06003 | P141: 222.06003 | Q141: 222.06003 | R141: 222.06003 | S141: 222.06003 | T141: 222.06003 | U141: 222.06003 | V141: 222.06003 | W141: 222.06003 | X141: 222.06003 | Y141: 222.06003 | Z141: 222.06003 | AA141: 222.06003 | AB141: 222.06003 | AC141: 222.06003 | AD141: 222.06003 | AE141: 222.06003 | AF141: 222.06003 | AG141: 222.06003 | AH141: 222.06003 | AI141: 222.06003 | AJ141: 222.06003 | AK141: 222.06003 | AL141: 222.06003 | AM141: 222.06003 | AN141: 222.06003 | AO141: 222.06003 | AP141: 222.06003 | AQ141: 222.06003 | AR141: 222.06003 | AS141: 222.06003 | AT141: 222.06003 | AU141: 222.06003 | AV141: 222.06003 | AW141: 222.06003 | AX141: 222.06003 | AY141: 222.06003 | AZ141: 222.06003 | BA141: 222.06003 | BB141: 222.06003 | BC141: 222.06003 | BD141: 222.06003 | BE141: 222.06003 | BF141: 222.06003 | BG141: 222.06003 | BH141: 222.06003 | BI141: 222.06003
A142: OPA | B142: =+B120+B131 -> 79.34766 | C142: 79.4567 | D142: 79.08188 | E142: 78.97284 | F142: 78.97284 | G142: 79.94058 | H142: 81.50805 | I142: 81.50805 | J142: 81.50805 | K142: 81.50805 | L142: 81.50805 | M142: 81.50805 | N142: 81.50805 | O142: 81.50805 | P142: 81.50805 | Q142: 81.50805 | R142: 81.50805 | S142: 81.50805 | T142: 81.50805 | U142: 81.50805 | V142: 81.50805 | W142: 81.50805 | X142: 81.50805 | Y142: 81.50805 | Z142: 81.50805 | AA142: 81.50805 | AB142: 81.50805 | AC142: 81.50805 | AD142: 81.50805 | AE142: 81.50805 | AF142: 81.50805 | AG142: 81.50805 | AH142: 81.50805 | AI142: 81.50805 | AJ142: 81.50805 | AK142: 81.50805 | AL142: =+AL120+AL131 -> 81.50805 | AM142: 81.50805 | AN142: 81.50805 | AO142: 81.50805 | AP142: 81.50805 | AQ142: 81.50805 | AR142: 81.50805 | AS142: 81.50805 | AT142: 81.50805 | AU142: 81.50805 | AV142: 81.50805 | AW142: 81.50805 | AX142: =+AX120+AX131 -> 81.50805 | AY142: 81.50805 | AZ142: 81.50805 | BA142: 81.50805 | BB142: 81.50805 | BC142: 81.50805 | BD142: 81.50805 | BE142: 81.50805 | BF142: 81.50805 | BG142: 81.50805 | BH142: 81.50805 | BI142: 81.50805
A143: SFR | B143: 5.65667 | C143: 5.65667 | D143: 5.65667 | E143: 5.65667 | F143: 5.65667 | G143: 5.65667 | H143: 5.65667 | I143: 5.65667 | J143: 5.65667 | K143: 5.65667 | L143: 5.65667 | M143: 5.65667 | N143: 5.65667 | O143: 5.65667 | P143: 5.65667 | Q143: 5.65667 | R143: 5.65667 | S143: 5.65667 | T143: 5.65667 | U143: 5.65667 | V143: 5.65667 | W143: 5.65667 | X143: 5.65667 | Y143: 5.65667 | Z143: 5.65667 | AA143: 5.65667 | AB143: 5.65667 | AC143: 5.65667 | AD143: 5.65667 | AE143: 5.65667 | AF143: 5.65667 | AG143: 5.65667 | AH143: 5.65667 | AI143: 5.65667 | AJ143: 5.65667 | AK143: 5.65667 | AL143: 5.65667 | AM143: 5.65667 | AN143: 5.65667 | AO143: 5.65667 | AP143: 5.65667 | AQ143: 5.65667 | AR143: 5.65667 | AS143: 5.65667 | AT143: 5.65667 | AU143: 5.65667 | AV143: 5.65667 | AW143: 5.65667 | AX143: =+AX121+AX132 -> 5.65667 | AY143: 5.65667 | AZ143: 5.65667 | BA143: 5.65667 | BB143: 5.65667 | BC143: 5.65667 | BD143: 5.65667 | BE143: 5.65667 | BF143: 5.65667 | BG143: 5.65667 | BH143: 5.65667 | BI143: 5.65667
A144: Misc Other Sales | B144: 3.61894 | C144: 3.65301 | D144: 3.41447 | E144: 3.68708 | F144: 3.65301 | G144: 4.41633 | H144: 4.41633 | I144: 4.14372 | J144: 4.14372 | K144: 4.14372 | L144: 4.14372 | M144: 4.14372 | N144: 4.14372 | O144: 4.14372 | P144: 4.14372 | Q144: 4.14372 | R144: 4.14372 | S144: 4.14372 | T144: 4.14372 | U144: 4.14372 | V144: 4.14372 | W144: 4.14372 | X144: 4.14372 | Y144: 4.14372 | Z144: 4.14372 | AA144: 4.14372 | AB144: 4.14372 | AC144: 4.14372 | AD144: 4.14372 | AE144: 4.14372 | AF144: 4.14372 | AG144: 4.14372 | AH144: 4.14372 | AI144: 4.14372 | AJ144: 4.14372 | AK144: 4.14372 | AL144: 4.14372 | AM144: 4.14372 | AN144: 4.14372 | AO144: 4.14372 | AP144: 4.14372 | AQ144: 4.14372 | AR144: 4.14372 | AS144: 4.14372 | AT144: 4.14372 | AU144: 4.14372 | AV144: 4.14372 | AW144: 4.14372 | AX144: =+AX122+AX133 -> 4.14372 | AY144: 4.14372 | AZ144: 4.14372 | BA144: 4.14372 | BB144: 4.14372 | BC144: 4.14372 | BD144: 4.14372 | BE144: 4.14372 | BF144: 4.14372 | BG144: 4.14372 | BH144: 4.14372 | BI144: 4.14372
A145: Total | B145: =+SUM(B137:B144) -> 2561.81244 | C145: =+SUM(C137:C144) -> 2560.25613 | D145: 2560.95772 | E145: 2564.16638 | F145: 2565.76953 | G145: 2568.50506 | H145: 2570.04867 | I145: 2573.11009 | J145: 2574.44528 | K145: 2574.10154 | L145: 2572.99766 | M145: 2573.60683 | N145: 2574.59979 | O145: 2574.92392 | P145: 2576.15693 | Q145: 2578.99518 | R145: 2581.01259 | S145: 2583.37109 | T145: 2583.21321 | U145: 2587.73539 | V145: 2589.00813 | W145: 2588.95166 | X145: 2587.84778 | Y145: 2588.41608 | Z145: 2587.37316 | AA145: 2587.69729 | AB145: 2588.94279 | AC145: 2591.80602 | AD145: 2593.83592 | AE145: 2596.22054 | AF145: 2596.06266 | AG145: 2600.60982 | AH145: 2601.89505 | AI145: 2601.85107 | AJ145: 2600.74719 | AK145: 2601.28142 | AL145: 2600.10735 | AM145: 2600.43148 | AN145: 2601.70196 | AO145: 2604.57768 | AP145: 2606.60758 | AQ145: 2609.04841 | AR145: 2608.89053 | AS145: 2613.47516 | AT145: 2614.77288 | AU145: 2614.7289 | AV145: 2613.61253 | AW145: 2614.17969 | AX145: =+SUM(AX137:AX144) -> 2612.90684 | AY145: 2613.24346 | AZ145: 2614.51394 | BA145: 2617.41464 | BB145: 2619.45703 | BC145: 2621.91035 | BD145: 2621.73998 | BE145: 2626.36208 | BF145: 2627.67229 | BG145: 2627.6408 | BH145: 2626.52443 | BI145: 2627.09159
A147: East Rockcastle | B147: =+B$4 -> 2018-01-01 | C147: =+C$4 -> 2018-02-01 | D147: 2018-03-01 | E147: 2018-04-01 | F147: 2018-05-01 | G147: 2018-06-01 | H147: 2018-07-01 | I147: 2018-08-01 | J147: 2018-09-01 | K147: 2018-10-01 | L147: 2018-11-01 | M147: 2018-12-01 | N147: 2019-01-01 | O147: 2019-02-01 | P147: 2019-03-01 | Q147: 2019-04-01 | R147: 2019-05-01 | S147: 2019-06-01 | T147: 2019-07-01 | U147: 2019-08-01 | V147: 2019-09-01 | W147: 2019-10-01 | X147: 2019-11-01 | Y147: 2019-12-01 | Z147: 2020-01-01 | AA147: 2020-02-01 | AB147: 2020-03-01 | AC147: 2020-04-01 | AD147: 2020-05-01 | AE147: 2020-06-01 | AF147: 2020-07-01 | AG147: 2020-08-01 | AH147: 2020-09-01 | AI147: 2020-10-01 | AJ147: 2020-11-01 | AK147: 2020-12-01 | AL147: 2021-01-01 | AM147: 2021-02-01 | AN147: 2021-03-01 | AO147: 2021-04-01 | AP147: 2021-05-01 | AQ147: 2021-06-01 | AR147: 2021-07-01 | AS147: 2021-08-01 | AT147: 2021-09-01 | AU147: 2021-10-01 | AV147: 2021-11-01 | AW147: 2021-12-01 | AX147: 2022-01-01 | AY147: 2022-02-01 | AZ147: 2022-03-01 | BA147: 2022-04-01 | BB147: 2022-05-01 | BC147: 2022-06-01 | BD147: 2022-07-01 | BE147: 2022-08-01 | BF147: 2022-09-01 | BG147: 2022-10-01 | BH147: 2022-11-01 | BI147: 2022-12-01
A148: Residential | B148: =+'E Rockcastle'!I1378 -> 16.85488 | C148: =+'E Rockcastle'!J1378 -> 16.85488 | D148: =+'E Rockcastle'!K1378 -> 17.02456 | E148: =+'E Rockcastle'!L1378 -> 17.19424 | F148: =+'E Rockcastle'!M1378 -> 17.44876 | G148: =+'E Rockcastle'!N1378 -> 17.44876 | H148: =+'E Rockcastle'!O1378 -> 17.30736 | I148: =+'E Rockcastle'!P1378 -> 17.33564 | J148: =+'E Rockcastle'!Q1378 -> 17.33564 | K148: =+'E Rockcastle'!R1378 -> 17.33564 | L148: =+'E Rockcastle'!S1378 -> 17.33564 | M148: =+'E Rockcastle'!T1378 -> 17.33564 | N148: =+'E Rockcastle'!U1378 -> 17.33564 | O148: =+'E Rockcastle'!V1378 -> 17.33564 | P148: =+'E Rockcastle'!W1378 -> 17.33564 | Q148: =+'E Rockcastle'!X1378 -> 17.33564 | R148: =+'E Rockcastle'!Y1378 -> 17.33564 | S148: =+'E Rockcastle'!Z1378 -> 17.33564 | T148: =+'E Rockcastle'!AA1378 -> 17.33564 | U148: =+'E Rockcastle'!AB1378 -> 17.33564 | V148: =+'E Rockcastle'!AC1378 -> 17.33564 | W148: =+'E Rockcastle'!AD1378 -> 17.33564 | X148: =+'E Rockcastle'!AE1378 -> 17.33564 | Y148: =+'E Rockcastle'!AF1378 -> 17.33564 | Z148: =+'E Rockcastle'!AG1378 -> 17.33564 | AA148: =+'E Rockcastle'!AH1378 -> 17.33564 | AB148: =+'E Rockcastle'!AI1378 -> 17.33564 | AC148: =+'E Rockcastle'!AJ1378 -> 17.33564 | AD148: =+'E Rockcastle'!AK1378 -> 17.33564 | AE148: =+'E Rockcastle'!AL1378 -> 17.33564 | AF148: =+'E Rockcastle'!AM1378 -> 17.33564 | AG148: =+'E Rockcastle'!AN1378 -> 17.33564 | AH148: =+'E Rockcastle'!AO1378 -> 17.33564 | AI148: =+'E Rockcastle'!AP1378 -> 17.33564 | AJ148: =+'E Rockcastle'!AQ1378 -> 17.33564 | AK148: =+'E Rockcastle'!AR1378 -> 17.33564 | AL148: =+'E Rockcastle'!AS1378 -> 17.33564 | AM148: =+'E Rockcastle'!AT1378 -> 17.33564 | AN148: =+'E Rockcastle'!AU1378 -> 17.33564 | AO148: =+'E Rockcastle'!AV1378 -> 17.33564 | AP148: =+'E Rockcastle'!AW1378 -> 17.33564 | AQ148: =+'E Rockcastle'!AX1378 -> 17.33564 | AR148: =+'E Rockcastle'!AY1378 -> 17.33564 | AS148: =+'E Rockcastle'!AZ1378 -> 17.33564 | AT148: =+'E Rockcastle'!BA1378 -> 17.33564 | AU148: =+'E Rockcastle'!BB1378 -> 17.33564 | AV148: =+'E Rockcastle'!BC1378 -> 17.33564 | AW148: =+'E Rockcastle'!BD1378 -> 17.33564 | AX148: =+'E Rockcastle'!BE1378 -> 17.33564 | AY148: =+'E Rockcastle'!BF1378 -> 17.33564 | AZ148: =+'E Rockcastle'!BG1378 -> 17.33564 | BA148: =+'E Rockcastle'!BH1378 -> 17.33564 | BB148: =+'E Rockcastle'!BI1378 -> 17.33564 | BC148: =+'E Rockcastle'!BJ1378 -> 17.33564 | BD148: =+'E Rockcastle'!BK1378 -> 17.33564 | BE148: =+'E Rockcastle'!BL1378 -> 17.33564 | BF148: =+'E Rockcastle'!BM1378 -> 17.33564 | BG148: =+'E Rockcastle'!BN1378 -> 17.33564 | BH148: =+'E Rockcastle'!BO1378 -> 17.33564 | BI148: =+'E Rockcastle'!BP1378 -> 17.33564
A149: Commercial | B149: =+'E Rockcastle'!I1379 -> 0.62216 | C149: =+'E Rockcastle'!J1379 -> 0.62216 | D149: =+'E Rockcastle'!K1379 -> 0.62216 | E149: =+'E Rockcastle'!L1379 -> 0.62216 | F149: =+'E Rockcastle'!M1379 -> 0.62216 | G149: =+'E Rockcastle'!N1379 -> 0.62216 | H149: =+'E Rockcastle'!O1379 -> 0.62216 | I149: =+'E Rockcastle'!P1379 -> 0.62216 | J149: =+'E Rockcastle'!Q1379 -> 0.62216 | K149: =+'E Rockcastle'!R1379 -> 0.62216 | L149: =+'E Rockcastle'!S1379 -> 0.62216 | M149: =+'E Rockcastle'!T1379 -> 0.62216 | N149: =+'E Rockcastle'!U1379 -> 0.62216 | O149: =+'E Rockcastle'!V1379 -> 0.62216 | P149: =+'E Rockcastle'!W1379 -> 0.62216 | Q149: =+'E Rockcastle'!X1379 -> 0.62216 | R149: =+'E Rockcastle'!Y1379 -> 0.62216 | S149: =+'E Rockcastle'!Z1379 -> 0.62216 | T149: =+'E Rockcastle'!AA1379 -> 0.62216 | U149: =+'E Rockcastle'!AB1379 -> 0.62216 | V149: =+'E Rockcastle'!AC1379 -> 0.62216 | W149: =+'E Rockcastle'!AD1379 -> 0.62216 | X149: =+'E Rockcastle'!AE1379 -> 0.62216 | Y149: =+'E Rockcastle'!AF1379 -> 0.62216 | Z149: =+'E Rockcastle'!AG1379 -> 0.62216 | AA149: =+'E Rockcastle'!AH1379 -> 0.62216 | AB149: =+'E Rockcastle'!AI1379 -> 0.62216 | AC149: =+'E Rockcastle'!AJ1379 -> 0.62216 | AD149: =+'E Rockcastle'!AK1379 -> 0.62216 | AE149: =+'E Rockcastle'!AL1379 -> 0.62216 | AF149: =+'E Rockcastle'!AM1379 -> 0.62216 | AG149: =+'E Rockcastle'!AN1379 -> 0.62216 | AH149: =+'E Rockcastle'!AO1379 -> 0.62216 | AI149: =+'E Rockcastle'!AP1379 -> 0.62216 | AJ149: =+'E Rockcastle'!AQ1379 -> 0.62216 | AK149: =+'E Rockcastle'!AR1379 -> 0.62216 | AL149: =+'E Rockcastle'!AS1379 -> 0.62216 | AM149: =+'E Rockcastle'!AT1379 -> 0.62216 | AN149: =+'E Rockcastle'!AU1379 -> 0.62216 | AO149: =+'E Rockcastle'!AV1379 -> 0.62216 | AP149: =+'E Rockcastle'!AW1379 -> 0.62216 | AQ149: =+'E Rockcastle'!AX1379 -> 0.62216 | AR149: =+'E Rockcastle'!AY1379 -> 0.62216 | AS149: =+'E Rockcastle'!AZ1379 -> 0.62216 | AT149: =+'E Rockcastle'!BA1379 -> 0.62216 | AU149: =+'E Rockcastle'!BB1379 -> 0.62216 | AV149: =+'E Rockcastle'!BC1379 -> 0.62216 | AW149: =+'E Rockcastle'!BD1379 -> 0.62216 | AX149: =+'E Rockcastle'!BE1379 -> 0.62216 | AY149: =+'E Rockcastle'!BF1379 -> 0.62216 | AZ149: =+'E Rockcastle'!BG1379 -> 0.62216 | BA149: =+'E Rockcastle'!BH1379 -> 0.62216 | BB149: =+'E Rockcastle'!BI1379 -> 0.62216 | BC149: =+'E Rockcastle'!BJ1379 -> 0.62216 | BD149: =+'E Rockcastle'!BK1379 -> 0.62216 | BE149: =+'E Rockcastle'!BL1379 -> 0.62216 | BF149: =+'E Rockcastle'!BM1379 -> 0.62216 | BG149: =+'E Rockcastle'!BN1379 -> 0.62216 | BH149: =+'E Rockcastle'!BO1379 -> 0.62216 | BI149: =+'E Rockcastle'!BP1379 -> 0.62216
A150: Industrial | B150: =+'E Rockcastle'!I1380 -> 0 | C150: =+'E Rockcastle'!J1380 -> 0 | D150: =+'E Rockcastle'!K1380 -> 0 | E150: =+'E Rockcastle'!L1380 -> 0 | F150: =+'E Rockcastle'!M1380 -> 0 | G150: =+'E Rockcastle'!N1380 -> 0 | H150: =+'E Rockcastle'!O1380 -> 0 | I150: =+'E Rockcastle'!P1380 -> 0 | J150: =+'E Rockcastle'!Q1380 -> 0 | K150: =+'E Rockcastle'!R1380 -> 0 | L150: =+'E Rockcastle'!S1380 -> 0 | M150: =+'E Rockcastle'!T1380 -> 0 | N150: =+'E Rockcastle'!U1380 -> 0 | O150: =+'E Rockcastle'!V1380 -> 0 | P150: =+'E Rockcastle'!W1380 -> 0 | Q150: =+'E Rockcastle'!X1380 -> 0 | R150: =+'E Rockcastle'!Y1380 -> 0 | S150: =+'E Rockcastle'!Z1380 -> 0 | T150: =+'E Rockcastle'!AA1380 -> 0 | U150: =+'E Rockcastle'!AB1380 -> 0 | V150: =+'E Rockcastle'!AC1380 -> 0 | W150: =+'E Rockcastle'!AD1380 -> 0 | X150: =+'E Rockcastle'!AE1380 -> 0 | Y150: =+'E Rockcastle'!AF1380 -> 0 | Z150: =+'E Rockcastle'!AG1380 -> 0 | AA150: =+'E Rockcastle'!AH1380 -> 0 | AB150: =+'E Rockcastle'!AI1380 -> 0 | AC150: =+'E Rockcastle'!AJ1380 -> 0 | AD150: =+'E Rockcastle'!AK1380 -> 0 | AE150: =+'E Rockcastle'!AL1380 -> 0 | AF150: =+'E Rockcastle'!AM1380 -> 0 | AG150: =+'E Rockcastle'!AN1380 -> 0 | AH150: =+'E Rockcastle'!AO1380 -> 0 | AI150: =+'E Rockcastle'!AP1380 -> 0 | AJ150: =+'E Rockcastle'!AQ1380 -> 0 | AK150: =+'E Rockcastle'!AR1380 -> 0 | AL150: =+'E Rockcastle'!AS1380 -> 0 | AM150: =+'E Rockcastle'!AT1380 -> 0 | AN150: =+'E Rockcastle'!AU1380 -> 0 | AO150: =+'E Rockcastle'!AV1380 -> 0 | AP150: =+'E Rockcastle'!AW1380 -> 0 | AQ150: =+'E Rockcastle'!AX1380 -> 0 | AR150: =+'E Rockcastle'!AY1380 -> 0 | AS150: =+'E Rockcastle'!AZ1380 -> 0 | AT150: =+'E Rockcastle'!BA1380 -> 0 | AU150: =+'E Rockcastle'!BB1380 -> 0 | AV150: =+'E Rockcastle'!BC1380 -> 0 | AW150: =+'E Rockcastle'!BD1380 -> 0 | AX150: =+'E Rockcastle'!BE1380 -> 0 | AY150: =+'E Rockcastle'!BF1380 -> 0 | AZ150: =+'E Rockcastle'!BG1380 -> 0 | BA150: =+'E Rockcastle'!BH1380 -> 0 | BB150: =+'E Rockcastle'!BI1380 -> 0 | BC150: =+'E Rockcastle'!BJ1380 -> 0 | BD150: =+'E Rockcastle'!BK1380 -> 0 | BE150: =+'E Rockcastle'!BL1380 -> 0 | BF150: =+'E Rockcastle'!BM1380 -> 0 | BG150: =+'E Rockcastle'!BN1380 -> 0 | BH150: =+'E Rockcastle'!BO1380 -> 0 | BI150: =+'E Rockcastle'!BP1380 -> 0
A151: Public Fire | B151: =+'E Rockcastle'!I1381 -> 0 | C151: =+'E Rockcastle'!J1381 -> 0 | D151: =+'E Rockcastle'!K1381 -> 0 | E151: =+'E Rockcastle'!L1381 -> 0 | F151: =+'E Rockcastle'!M1381 -> 0 | G151: =+'E Rockcastle'!N1381 -> 0 | H151: =+'E Rockcastle'!O1381 -> 0 | I151: =+'E Rockcastle'!P1381 -> 0 | J151: =+'E Rockcastle'!Q1381 -> 0 | K151: =+'E Rockcastle'!R1381 -> 0 | L151: =+'E Rockcastle'!S1381 -> 0 | M151: =+'E Rockcastle'!T1381 -> 0 | N151: =+'E Rockcastle'!U1381 -> 0 | O151: =+'E Rockcastle'!V1381 -> 0 | P151: =+'E Rockcastle'!W1381 -> 0 | Q151: =+'E Rockcastle'!X1381 -> 0 | R151: =+'E Rockcastle'!Y1381 -> 0 | S151: =+'E Rockcastle'!Z1381 -> 0 | T151: =+'E Rockcastle'!AA1381 -> 0 | U151: =+'E Rockcastle'!AB1381 -> 0 | V151: =+'E Rockcastle'!AC1381 -> 0 | W151: =+'E Rockcastle'!AD1381 -> 0 | X151: =+'E Rockcastle'!AE1381 -> 0 | Y151: =+'E Rockcastle'!AF1381 -> 0 | Z151: =+'E Rockcastle'!AG1381 -> 0 | AA151: =+'E Rockcastle'!AH1381 -> 0 | AB151: =+'E Rockcastle'!AI1381 -> 0 | AC151: =+'E Rockcastle'!AJ1381 -> 0 | AD151: =+'E Rockcastle'!AK1381 -> 0 | AE151: =+'E Rockcastle'!AL1381 -> 0 | AF151: =+'E Rockcastle'!AM1381 -> 0 | AG151: =+'E Rockcastle'!AN1381 -> 0 | AH151: =+'E Rockcastle'!AO1381 -> 0 | AI151: =+'E Rockcastle'!AP1381 -> 0 | AJ151: =+'E Rockcastle'!AQ1381 -> 0 | AK151: =+'E Rockcastle'!AR1381 -> 0 | AL151: =+'E Rockcastle'!AS1381 -> 0 | AM151: =+'E Rockcastle'!AT1381 -> 0 | AN151: =+'E Rockcastle'!AU1381 -> 0 | AO151: =+'E Rockcastle'!AV1381 -> 0 | AP151: =+'E Rockcastle'!AW1381 -> 0 | AQ151: =+'E Rockcastle'!AX1381 -> 0 | AR151: =+'E Rockcastle'!AY1381 -> 0 | AS151: =+'E Rockcastle'!AZ1381 -> 0 | AT151: =+'E Rockcastle'!BA1381 -> 0 | AU151: =+'E Rockcastle'!BB1381 -> 0 | AV151: =+'E Rockcastle'!BC1381 -> 0 | AW151: =+'E Rockcastle'!BD1381 -> 0 | AX151: =+'E Rockcastle'!BE1381 -> 0 | AY151: =+'E Rockcastle'!BF1381 -> 0 | AZ151: =+'E Rockcastle'!BG1381 -> 0 | BA151: =+'E Rockcastle'!BH1381 -> 0 | BB151: =+'E Rockcastle'!BI1381 -> 0 | BC151: =+'E Rockcastle'!BJ1381 -> 0 | BD151: =+'E Rockcastle'!BK1381 -> 0 | BE151: =+'E Rockcastle'!BL1381 -> 0 | BF151: =+'E Rockcastle'!BM1381 -> 0 | BG151: =+'E Rockcastle'!BN1381 -> 0 | BH151: =+'E Rockcastle'!BO1381 -> 0 | BI151: =+'E Rockcastle'!BP1381 -> 0
A152: Private Fire | B152: =+'E Rockcastle'!I1382 -> 0 | C152: =+'E Rockcastle'!J1382 -> 0 | D152: =+'E Rockcastle'!K1382 -> 0 | E152: =+'E Rockcastle'!L1382 -> 0 | F152: =+'E Rockcastle'!M1382 -> 0 | G152: =+'E Rockcastle'!N1382 -> 0 | H152: =+'E Rockcastle'!O1382 -> 0 | I152: =+'E Rockcastle'!P1382 -> 0 | J152: =+'E Rockcastle'!Q1382 -> 0 | K152: =+'E Rockcastle'!R1382 -> 0 | L152: =+'E Rockcastle'!S1382 -> 0 | M152: =+'E Rockcastle'!T1382 -> 0 | N152: =+'E Rockcastle'!U1382 -> 0 | O152: =+'E Rockcastle'!V1382 -> 0 | P152: =+'E Rockcastle'!W1382 -> 0 | Q152: =+'E Rockcastle'!X1382 -> 0 | R152: =+'E Rockcastle'!Y1382 -> 0 | S152: =+'E Rockcastle'!Z1382 -> 0 | T152: =+'E Rockcastle'!AA1382 -> 0 | U152: =+'E Rockcastle'!AB1382 -> 0 | V152: =+'E Rockcastle'!AC1382 -> 0 | W152: =+'E Rockcastle'!AD1382 -> 0 | X152: =+'E Rockcastle'!AE1382 -> 0 | Y152: =+'E Rockcastle'!AF1382 -> 0 | Z152: =+'E Rockcastle'!AG1382 -> 0 | AA152: =+'E Rockcastle'!AH1382 -> 0 | AB152: =+'E Rockcastle'!AI1382 -> 0 | AC152: =+'E Rockcastle'!AJ1382 -> 0 | AD152: =+'E Rockcastle'!AK1382 -> 0 | AE152: =+'E Rockcastle'!AL1382 -> 0 | AF152: =+'E Rockcastle'!AM1382 -> 0 | AG152: =+'E Rockcastle'!AN1382 -> 0 | AH152: =+'E Rockcastle'!AO1382 -> 0 | AI152: =+'E Rockcastle'!AP1382 -> 0 | AJ152: =+'E Rockcastle'!AQ1382 -> 0 | AK152: =+'E Rockcastle'!AR1382 -> 0 | AL152: =+'E Rockcastle'!AS1382 -> 0 | AM152: =+'E Rockcastle'!AT1382 -> 0 | AN152: =+'E Rockcastle'!AU1382 -> 0 | AO152: =+'E Rockcastle'!AV1382 -> 0 | AP152: =+'E Rockcastle'!AW1382 -> 0 | AQ152: =+'E Rockcastle'!AX1382 -> 0 | AR152: =+'E Rockcastle'!AY1382 -> 0 | AS152: =+'E Rockcastle'!AZ1382 -> 0 | AT152: =+'E Rockcastle'!BA1382 -> 0 | AU152: =+'E Rockcastle'!BB1382 -> 0 | AV152: =+'E Rockcastle'!BC1382 -> 0 | AW152: =+'E Rockcastle'!BD1382 -> 0 | AX152: =+'E Rockcastle'!BE1382 -> 0 | AY152: =+'E Rockcastle'!BF1382 -> 0 | AZ152: =+'E Rockcastle'!BG1382 -> 0 | BA152: =+'E Rockcastle'!BH1382 -> 0 | BB152: =+'E Rockcastle'!BI1382 -> 0 | BC152: =+'E Rockcastle'!BJ1382 -> 0 | BD152: =+'E Rockcastle'!BK1382 -> 0 | BE152: =+'E Rockcastle'!BL1382 -> 0 | BF152: =+'E Rockcastle'!BM1382 -> 0 | BG152: =+'E Rockcastle'!BN1382 -> 0 | BH152: =+'E Rockcastle'!BO1382 -> 0 | BI152: =+'E Rockcastle'!BP1382 -> 0
A153: OPA | B153: =+'E Rockcastle'!I1383 -> 0 | C153: =+'E Rockcastle'!J1383 -> 0 | D153: =+'E Rockcastle'!K1383 -> 0 | E153: =+'E Rockcastle'!L1383 -> 0 | F153: =+'E Rockcastle'!M1383 -> 0 | G153: =+'E Rockcastle'!N1383 -> 0 | H153: =+'E Rockcastle'!O1383 -> 0 | I153: =+'E Rockcastle'!P1383 -> 0 | J153: =+'E Rockcastle'!Q1383 -> 0 | K153: =+'E Rockcastle'!R1383 -> 0 | L153: =+'E Rockcastle'!S1383 -> 0 | M153: =+'E Rockcastle'!T1383 -> 0 | N153: =+'E Rockcastle'!U1383 -> 0 | O153: =+'E Rockcastle'!V1383 -> 0 | P153: =+'E Rockcastle'!W1383 -> 0 | Q153: =+'E Rockcastle'!X1383 -> 0 | R153: =+'E Rockcastle'!Y1383 -> 0 | S153: =+'E Rockcastle'!Z1383 -> 0 | T153: =+'E Rockcastle'!AA1383 -> 0 | U153: =+'E Rockcastle'!AB1383 -> 0 | V153: =+'E Rockcastle'!AC1383 -> 0 | W153: =+'E Rockcastle'!AD1383 -> 0 | X153: =+'E Rockcastle'!AE1383 -> 0 | Y153: =+'E Rockcastle'!AF1383 -> 0 | Z153: =+'E Rockcastle'!AG1383 -> 0 | AA153: =+'E Rockcastle'!AH1383 -> 0 | AB153: =+'E Rockcastle'!AI1383 -> 0 | AC153: =+'E Rockcastle'!AJ1383 -> 0 | AD153: =+'E Rockcastle'!AK1383 -> 0 | AE153: =+'E Rockcastle'!AL1383 -> 0 | AF153: =+'E Rockcastle'!AM1383 -> 0 | AG153: =+'E Rockcastle'!AN1383 -> 0 | AH153: =+'E Rockcastle'!AO1383 -> 0 | AI153: =+'E Rockcastle'!AP1383 -> 0 | AJ153: =+'E Rockcastle'!AQ1383 -> 0 | AK153: =+'E Rockcastle'!AR1383 -> 0 | AL153: =+'E Rockcastle'!AS1383 -> 0 | AM153: =+'E Rockcastle'!AT1383 -> 0 | AN153: =+'E Rockcastle'!AU1383 -> 0 | AO153: =+'E Rockcastle'!AV1383 -> 0 | AP153: =+'E Rockcastle'!AW1383 -> 0 | AQ153: =+'E Rockcastle'!AX1383 -> 0 | AR153: =+'E Rockcastle'!AY1383 -> 0 | AS153: =+'E Rockcastle'!AZ1383 -> 0 | AT153: =+'E Rockcastle'!BA1383 -> 0 | AU153: =+'E Rockcastle'!BB1383 -> 0 | AV153: =+'E Rockcastle'!BC1383 -> 0 | AW153: =+'E Rockcastle'!BD1383 -> 0 | AX153: =+'E Rockcastle'!BE1383 -> 0 | AY153: =+'E Rockcastle'!BF1383 -> 0 | AZ153: =+'E Rockcastle'!BG1383 -> 0 | BA153: =+'E Rockcastle'!BH1383 -> 0 | BB153: =+'E Rockcastle'!BI1383 -> 0 | BC153: =+'E Rockcastle'!BJ1383 -> 0 | BD153: =+'E Rockcastle'!BK1383 -> 0 | BE153: =+'E Rockcastle'!BL1383 -> 0 | BF153: =+'E Rockcastle'!BM1383 -> 0 | BG153: =+'E Rockcastle'!BN1383 -> 0 | BH153: =+'E Rockcastle'!BO1383 -> 0 | BI153: =+'E Rockcastle'!BP1383 -> 0
A154: SFR | B154: =+'E Rockcastle'!I1384 -> 0 | C154: =+'E Rockcastle'!J1384 -> 0 | D154: =+'E Rockcastle'!K1384 -> 0 | E154: =+'E Rockcastle'!L1384 -> 0 | F154: =+'E Rockcastle'!M1384 -> 0 | G154: =+'E Rockcastle'!N1384 -> 0 | H154: =+'E Rockcastle'!O1384 -> 0 | I154: =+'E Rockcastle'!P1384 -> 0 | J154: =+'E Rockcastle'!Q1384 -> 0 | K154: =+'E Rockcastle'!R1384 -> 0 | L154: =+'E Rockcastle'!S1384 -> 0 | M154: =+'E Rockcastle'!T1384 -> 0 | N154: =+'E Rockcastle'!U1384 -> 0 | O154: =+'E Rockcastle'!V1384 -> 0 | P154: =+'E Rockcastle'!W1384 -> 0 | Q154: =+'E Rockcastle'!X1384 -> 0 | R154: =+'E Rockcastle'!Y1384 -> 0 | S154: =+'E Rockcastle'!Z1384 -> 0 | T154: =+'E Rockcastle'!AA1384 -> 0 | U154: =+'E Rockcastle'!AB1384 -> 0 | V154: =+'E Rockcastle'!AC1384 -> 0 | W154: =+'E Rockcastle'!AD1384 -> 0 | X154: =+'E Rockcastle'!AE1384 -> 0 | Y154: =+'E Rockcastle'!AF1384 -> 0 | Z154: =+'E Rockcastle'!AG1384 -> 0 | AA154: =+'E Rockcastle'!AH1384 -> 0 | AB154: =+'E Rockcastle'!AI1384 -> 0 | AC154: =+'E Rockcastle'!AJ1384 -> 0 | AD154: =+'E Rockcastle'!AK1384 -> 0 | AE154: =+'E Rockcastle'!AL1384 -> 0 | AF154: =+'E Rockcastle'!AM1384 -> 0 | AG154: =+'E Rockcastle'!AN1384 -> 0 | AH154: =+'E Rockcastle'!AO1384 -> 0 | AI154: =+'E Rockcastle'!AP1384 -> 0 | AJ154: =+'E Rockcastle'!AQ1384 -> 0 | AK154: =+'E Rockcastle'!AR1384 -> 0 | AL154: =+'E Rockcastle'!AS1384 -> 0 | AM154: =+'E Rockcastle'!AT1384 -> 0 | AN154: =+'E Rockcastle'!AU1384 -> 0 | AO154: =+'E Rockcastle'!AV1384 -> 0 | AP154: =+'E Rockcastle'!AW1384 -> 0 | AQ154: =+'E Rockcastle'!AX1384 -> 0 | AR154: =+'E Rockcastle'!AY1384 -> 0 | AS154: =+'E Rockcastle'!AZ1384 -> 0 | AT154: =+'E Rockcastle'!BA1384 -> 0 | AU154: =+'E Rockcastle'!BB1384 -> 0 | AV154: =+'E Rockcastle'!BC1384 -> 0 | AW154: =+'E Rockcastle'!BD1384 -> 0 | AX154: =+'E Rockcastle'!BE1384 -> 0 | AY154: =+'E Rockcastle'!BF1384 -> 0 | AZ154: =+'E Rockcastle'!BG1384 -> 0 | BA154: =+'E Rockcastle'!BH1384 -> 0 | BB154: =+'E Rockcastle'!BI1384 -> 0 | BC154: =+'E Rockcastle'!BJ1384 -> 0 | BD154: =+'E Rockcastle'!BK1384 -> 0 | BE154: =+'E Rockcastle'!BL1384 -> 0 | BF154: =+'E Rockcastle'!BM1384 -> 0 | BG154: =+'E Rockcastle'!BN1384 -> 0 | BH154: =+'E Rockcastle'!BO1384 -> 0 | BI154: =+'E Rockcastle'!BP1384 -> 0
A155: Misc Other Sales | B155: =+'E Rockcastle'!I1385 -> 0 | C155: =+'E Rockcastle'!J1385 -> 0 | D155: =+'E Rockcastle'!K1385 -> 0 | E155: =+'E Rockcastle'!L1385 -> 0 | F155: =+'E Rockcastle'!M1385 -> 0 | G155: =+'E Rockcastle'!N1385 -> 0 | H155: =+'E Rockcastle'!O1385 -> 0 | I155: =+'E Rockcastle'!P1385 -> 0 | J155: =+'E Rockcastle'!Q1385 -> 0 | K155: =+'E Rockcastle'!R1385 -> 0 | L155: =+'E Rockcastle'!S1385 -> 0 | M155: =+'E Rockcastle'!T1385 -> 0 | N155: =+'E Rockcastle'!U1385 -> 0 | O155: =+'E Rockcastle'!V1385 -> 0 | P155: =+'E Rockcastle'!W1385 -> 0 | Q155: =+'E Rockcastle'!X1385 -> 0 | R155: =+'E Rockcastle'!Y1385 -> 0 | S155: =+'E Rockcastle'!Z1385 -> 0 | T155: =+'E Rockcastle'!AA1385 -> 0 | U155: =+'E Rockcastle'!AB1385 -> 0 | V155: =+'E Rockcastle'!AC1385 -> 0 | W155: =+'E Rockcastle'!AD1385 -> 0 | X155: =+'E Rockcastle'!AE1385 -> 0 | Y155: =+'E Rockcastle'!AF1385 -> 0 | Z155: =+'E Rockcastle'!AG1385 -> 0 | AA155: =+'E Rockcastle'!AH1385 -> 0 | AB155: =+'E Rockcastle'!AI1385 -> 0 | AC155: =+'E Rockcastle'!AJ1385 -> 0 | AD155: =+'E Rockcastle'!AK1385 -> 0 | AE155: =+'E Rockcastle'!AL1385 -> 0 | AF155: =+'E Rockcastle'!AM1385 -> 0 | AG155: =+'E Rockcastle'!AN1385 -> 0 | AH155: =+'E Rockcastle'!AO1385 -> 0 | AI155: =+'E Rockcastle'!AP1385 -> 0 | AJ155: =+'E Rockcastle'!AQ1385 -> 0 | AK155: =+'E Rockcastle'!AR1385 -> 0 | AL155: =+'E Rockcastle'!AS1385 -> 0 | AM155: =+'E Rockcastle'!AT1385 -> 0 | AN155: =+'E Rockcastle'!AU1385 -> 0 | AO155: =+'E Rockcastle'!AV1385 -> 0 | AP155: =+'E Rockcastle'!AW1385 -> 0 | AQ155: =+'E Rockcastle'!AX1385 -> 0 | AR155: =+'E Rockcastle'!AY1385 -> 0 | AS155: =+'E Rockcastle'!AZ1385 -> 0 | AT155: =+'E Rockcastle'!BA1385 -> 0 | AU155: =+'E Rockcastle'!BB1385 -> 0 | AV155: =+'E Rockcastle'!BC1385 -> 0 | AW155: =+'E Rockcastle'!BD1385 -> 0 | AX155: =+'E Rockcastle'!BE1385 -> 0 | AY155: =+'E Rockcastle'!BF1385 -> 0 | AZ155: =+'E Rockcastle'!BG1385 -> 0 | BA155: =+'E Rockcastle'!BH1385 -> 0 | BB155: =+'E Rockcastle'!BI1385 -> 0 | BC155: =+'E Rockcastle'!BJ1385 -> 0 | BD155: =+'E Rockcastle'!BK1385 -> 0 | BE155: =+'E Rockcastle'!BL1385 -> 0 | BF155: =+'E Rockcastle'!BM1385 -> 0 | BG155: =+'E Rockcastle'!BN1385 -> 0 | BH155: =+'E Rockcastle'!BO1385 -> 0 | BI155: =+'E Rockcastle'!BP1385 -> 0
A156: Total | B156: =+SUM(B148:B155) -> 17.47704 | C156: =+SUM(C148:C155) -> 17.47704 | D156: 17.64672 | E156: 17.8164 | F156: 18.07092 | G156: 18.07092 | H156: 17.92952 | I156: 17.9578 | J156: 17.9578 | K156: 17.9578 | L156: 17.9578 | M156: 17.9578 | N156: 17.9578 | O156: 17.9578 | P156: 17.9578 | Q156: 17.9578 | R156: 17.9578 | S156: 17.9578 | T156: 17.9578 | U156: 17.9578 | V156: 17.9578 | W156: 17.9578 | X156: 17.9578 | Y156: 17.9578 | Z156: 17.9578 | AA156: 17.9578 | AB156: 17.9578 | AC156: 17.9578 | AD156: 17.9578 | AE156: 17.9578 | AF156: 17.9578 | AG156: 17.9578 | AH156: 17.9578 | AI156: 17.9578 | AJ156: 17.9578 | AK156: 17.9578 | AL156: 17.9578 | AM156: 17.9578 | AN156: 17.9578 | AO156: 17.9578 | AP156: 17.9578 | AQ156: 17.9578 | AR156: 17.9578 | AS156: 17.9578 | AT156: 17.9578 | AU156: 17.9578 | AV156: 17.9578 | AW156: 17.9578 | AX156: =+SUM(AX148:AX155) -> 17.9578 | AY156: 17.9578 | AZ156: 17.9578 | BA156: 17.9578 | BB156: 17.9578 | BC156: 17.9578 | BD156: 17.9578 | BE156: 17.9578 | BF156: 17.9578 | BG156: 17.9578 | BH156: 17.9578 | BI156: 17.9578
A158: Total Fixed Charges - All | B158: =+B$4 -> 2018-01-01 | C158: =+C$4 -> 2018-02-01 | D158: 2018-03-01 | E158: 2018-04-01 | F158: 2018-05-01 | G158: 2018-06-01 | H158: 2018-07-01 | I158: 2018-08-01 | J158: 2018-09-01 | K158: 2018-10-01 | L158: 2018-11-01 | M158: 2018-12-01 | N158: 2019-01-01 | O158: 2019-02-01 | P158: 2019-03-01 | Q158: 2019-04-01 | R158: 2019-05-01 | S158: 2019-06-01 | T158: 2019-07-01 | U158: 2019-08-01 | V158: 2019-09-01 | W158: 2019-10-01 | X158: 2019-11-01 | Y158: 2019-12-01 | Z158: 2020-01-01 | AA158: 2020-02-01 | AB158: 2020-03-01 | AC158: 2020-04-01 | AD158: 2020-05-01 | AE158: 2020-06-01 | AF158: 2020-07-01 | AG158: 2020-08-01 | AH158: 2020-09-01 | AI158: 2020-10-01 | AJ158: 2020-11-01 | AK158: 2020-12-01 | AL158: 2021-01-01 | AM158: 2021-02-01 | AN158: 2021-03-01 | AO158: 2021-04-01 | AP158: 2021-05-01 | AQ158: 2021-06-01 | AR158: 2021-07-01 | AS158: 2021-08-01 | AT158: 2021-09-01 | AU158: 2021-10-01 | AV158: 2021-11-01 | AW158: 2021-12-01 | AX158: 2022-01-01 | AY158: 2022-02-01 | AZ158: 2022-03-01 | BA158: 2022-04-01 | BB158: 2022-05-01 | BC158: 2022-06-01 | BD158: 2022-07-01 | BE158: 2022-08-01 | BF158: 2022-09-01 | BG158: 2022-10-01 | BH158: 2022-11-01 | BI158: 2022-12-01
A159: Residential | B159: =+B137+B148 -> 1550.61832 | C159: =+C137+C148 -> 1549.60038 | D159: 1551.28136 | E159: 1553.79293 | F159: 1554.64073 | G159: 1555.13409 | H159: 1555.03016 | I159: 1557.188 | J159: 1558.91163 | K159: 1559.46744 | L159: 1559.09274 | M159: 1559.73598 | N159: 1560.72894 | O159: 1561.20981 | P159: 1562.78356 | Q159: 1565.063 | R159: 1566.18086 | S159: 1568.04188 | T159: 1568.05437 | U159: 1571.89507 | V159: 1573.55625 | W159: 1574.39933 | X159: 1574.02463 | Y159: 1574.59293 | Z159: 1573.55001 | AA159: 1574.03088 | AB159: 1575.61712 | AC159: 1577.92154 | AD159: 1579.05189 | AE159: 1580.9254 | AF159: 1580.93789 | AG159: 1584.80357 | AH159: 1586.47724 | AI159: 1587.33281 | AJ159: 1586.95811 | AK159: 1587.52641 | AL159: 1586.35234 | AM159: 1586.83321 | AN159: 1588.44443 | AO159: 1590.76134 | AP159: 1591.89169 | AQ159: 1593.82141 | AR159: 1593.8339 | AS159: 1597.73705 | AT159: 1599.42321 | AU159: 1600.27878 | AV159: 1599.89159 | AW159: 1600.47238 | AX159: =+AX137+AX148 -> 1599.1859 | AY159: 1599.67926 | AZ159: 1601.29048 | BA159: 1603.63237 | BB159: 1604.77521 | BC159: 1606.71742 | BD159: 1606.71742 | BE159: 1610.65804 | BF159: 1612.35669 | BG159: 1613.22475 | BH159: 1612.83756 | BI159: 1613.41835
A160: Commercial | B160: =+B138+B149 -> 407.31974 | C160: 406.63826 | D160: 406.29752 | E160: 406.85633 | F160: 407.75588 | G160: 408.26699 | H160: 408.20566 | I160: 408.88714 | J160: =+J138+J149 -> 408.4987 | K160: 407.59915 | L160: 406.86997 | M160: 406.8359 | N160: 406.8359 | O160: 406.67916 | P160: 406.33842 | Q160: 406.89723 | R160: 407.79678 | S160: 408.29426 | T160: 408.12389 | U160: 408.80537 | V160: 408.41693 | W160: 407.51738 | X160: 406.7882 | Y160: 406.7882 | Z160: 406.7882 | AA160: 406.63146 | AB160: 406.29072 | AC160: 406.84953 | AD160: 407.74908 | AE160: 408.26019 | AF160: 408.08982 | AG160: 408.7713 | AH160: 408.38286 | AI160: 407.48331 | AJ160: 406.75413 | AK160: 406.72006 | AL160: 406.72006 | AM160: 406.56332 | AN160: 406.22258 | AO160: 406.78139 | AP160: 407.68094 | AQ160: 408.19205 | AR160: 408.02168 | AS160: 408.70316 | AT160: 408.31472 | AU160: 407.41517 | AV160: 406.68599 | AW160: 406.67236 | AX160: 406.68599 | AY160: 406.52925 | AZ160: 406.18851 | BA160: 406.74732 | BB160: 407.64687 | BC160: 408.15798 | BD160: 407.98761 | BE160: 408.66909 | BF160: 408.28065 | BG160: 407.3811 | BH160: 406.65192 | BI160: 406.63829
A161: Industrial | B161: 12.29448 | C161: 12.29448 | D161: 12.29448 | E161: 12.29448 | F161: 12.29448 | G161: 12.29448 | H161: 12.29448 | I161: 12.29448 | J161: 12.29448 | K161: 12.29448 | L161: 12.29448 | M161: 12.29448 | N161: 12.29448 | O161: 12.29448 | P161: 12.29448 | Q161: 12.29448 | R161: 12.29448 | S161: 12.29448 | T161: 12.29448 | U161: 12.29448 | V161: 12.29448 | W161: 12.29448 | X161: 12.29448 | Y161: 12.29448 | Z161: 12.29448 | AA161: 12.29448 | AB161: 12.29448 | AC161: 12.29448 | AD161: 12.29448 | AE161: 12.29448 | AF161: 12.29448 | AG161: 12.29448 | AH161: 12.29448 | AI161: 12.29448 | AJ161: 12.29448 | AK161: 12.29448 | AL161: 12.29448 | AM161: 12.29448 | AN161: 12.29448 | AO161: 12.29448 | AP161: 12.29448 | AQ161: 12.29448 | AR161: 12.29448 | AS161: 12.29448 | AT161: 12.29448 | AU161: 12.29448 | AV161: 12.29448 | AW161: 12.29448 | AX161: 12.29448 | AY161: 12.29448 | AZ161: 12.29448 | BA161: 12.29448 | BB161: 12.29448 | BC161: 12.29448 | BD161: 12.29448 | BE161: 12.29448 | BF161: 12.29448 | BG161: 12.29448 | BH161: 12.29448 | BI161: 12.29448
A162: Public Fire | B162: 299.3298 | C162: 299.3298 | D162: 299.3298 | E162: 299.3298 | F162: 299.3298 | G162: 299.3298 | H162: 299.3298 | I162: 299.3298 | J162: 299.3298 | K162: 299.3298 | L162: 299.3298 | M162: 299.3298 | N162: 299.3298 | O162: 299.3298 | P162: 299.3298 | Q162: 299.3298 | R162: 299.3298 | S162: 299.3298 | T162: 299.3298 | U162: 299.3298 | V162: 299.3298 | W162: 299.3298 | X162: 299.3298 | Y162: 299.3298 | Z162: 299.3298 | AA162: 299.3298 | AB162: 299.3298 | AC162: 299.3298 | AD162: 299.3298 | AE162: 299.3298 | AF162: 299.3298 | AG162: 299.3298 | AH162: 299.3298 | AI162: 299.3298 | AJ162: 299.3298 | AK162: 299.3298 | AL162: 299.3298 | AM162: 299.3298 | AN162: 299.3298 | AO162: 299.3298 | AP162: 299.3298 | AQ162: 299.3298 | AR162: 299.3298 | AS162: 299.3298 | AT162: 299.3298 | AU162: 299.3298 | AV162: 299.3298 | AW162: 299.3298 | AX162: 299.3298 | AY162: 299.3298 | AZ162: 299.3298 | BA162: 299.3298 | BB162: 299.3298 | BC162: 299.3298 | BD162: 299.3298 | BE162: 299.3298 | BF162: 299.3298 | BG162: 299.3298 | BH162: 299.3298 | BI162: 299.3298
A163: Private Fire | B163: 221.10387 | C163: 221.10387 | D163: 221.24826 | E163: 221.39265 | F163: 221.53704 | G163: 221.53704 | H163: 221.53704 | I163: 222.06003 | J163: 222.06003 | K163: 222.06003 | L163: 222.06003 | M163: 222.06003 | N163: 222.06003 | O163: 222.06003 | P163: 222.06003 | Q163: 222.06003 | R163: 222.06003 | S163: 222.06003 | T163: 222.06003 | U163: 222.06003 | V163: 222.06003 | W163: 222.06003 | X163: 222.06003 | Y163: 222.06003 | Z163: 222.06003 | AA163: 222.06003 | AB163: 222.06003 | AC163: 222.06003 | AD163: 222.06003 | AE163: 222.06003 | AF163: 222.06003 | AG163: 222.06003 | AH163: 222.06003 | AI163: 222.06003 | AJ163: 222.06003 | AK163: 222.06003 | AL163: 222.06003 | AM163: 222.06003 | AN163: 222.06003 | AO163: 222.06003 | AP163: 222.06003 | AQ163: 222.06003 | AR163: 222.06003 | AS163: 222.06003 | AT163: 222.06003 | AU163: 222.06003 | AV163: 222.06003 | AW163: 222.06003 | AX163: 222.06003 | AY163: 222.06003 | AZ163: 222.06003 | BA163: 222.06003 | BB163: 222.06003 | BC163: 222.06003 | BD163: 222.06003 | BE163: 222.06003 | BF163: 222.06003 | BG163: 222.06003 | BH163: 222.06003 | BI163: 222.06003
A164: OPA | B164: =+B142+B153 -> 79.34766 | C164: 79.4567 | D164: 79.08188 | E164: 78.97284 | F164: 78.97284 | G164: 79.94058 | H164: 81.50805 | I164: 81.50805 | J164: 81.50805 | K164: 81.50805 | L164: 81.50805 | M164: 81.50805 | N164: 81.50805 | O164: 81.50805 | P164: 81.50805 | Q164: 81.50805 | R164: 81.50805 | S164: 81.50805 | T164: 81.50805 | U164: 81.50805 | V164: 81.50805 | W164: 81.50805 | X164: 81.50805 | Y164: 81.50805 | Z164: 81.50805 | AA164: 81.50805 | AB164: 81.50805 | AC164: 81.50805 | AD164: 81.50805 | AE164: 81.50805 | AF164: 81.50805 | AG164: 81.50805 | AH164: 81.50805 | AI164: 81.50805 | AJ164: 81.50805 | AK164: 81.50805 | AL164: =+AL142+AL153 -> 81.50805 | AM164: 81.50805 | AN164: 81.50805 | AO164: 81.50805 | AP164: 81.50805 | AQ164: 81.50805 | AR164: 81.50805 | AS164: 81.50805 | AT164: 81.50805 | AU164: 81.50805 | AV164: 81.50805 | AW164: 81.50805 | AX164: =+AX142+AX153 -> 81.50805 | AY164: 81.50805 | AZ164: 81.50805 | BA164: 81.50805 | BB164: 81.50805 | BC164: 81.50805 | BD164: 81.50805 | BE164: 81.50805 | BF164: 81.50805 | BG164: 81.50805 | BH164: 81.50805 | BI164: 81.50805
A165: SFR | B165: 5.65667 | C165: 5.65667 | D165: 5.65667 | E165: 5.65667 | F165: 5.65667 | G165: 5.65667 | H165: 5.65667 | I165: 5.65667 | J165: 5.65667 | K165: 5.65667 | L165: 5.65667 | M165: 5.65667 | N165: 5.65667 | O165: 5.65667 | P165: 5.65667 | Q165: 5.65667 | R165: 5.65667 | S165: 5.65667 | T165: 5.65667 | U165: 5.65667 | V165: 5.65667 | W165: 5.65667 | X165: 5.65667 | Y165: 5.65667 | Z165: 5.65667 | AA165: 5.65667 | AB165: 5.65667 | AC165: 5.65667 | AD165: 5.65667 | AE165: 5.65667 | AF165: 5.65667 | AG165: 5.65667 | AH165: 5.65667 | AI165: 5.65667 | AJ165: 5.65667 | AK165: 5.65667 | AL165: 5.65667 | AM165: 5.65667 | AN165: 5.65667 | AO165: 5.65667 | AP165: 5.65667 | AQ165: 5.65667 | AR165: 5.65667 | AS165: 5.65667 | AT165: 5.65667 | AU165: 5.65667 | AV165: 5.65667 | AW165: 5.65667 | AX165: =+AX143+AX154 -> 5.65667 | AY165: 5.65667 | AZ165: 5.65667 | BA165: 5.65667 | BB165: 5.65667 | BC165: 5.65667 | BD165: 5.65667 | BE165: 5.65667 | BF165: 5.65667 | BG165: 5.65667 | BH165: 5.65667 | BI165: 5.65667
A166: Misc Other Sales | B166: 3.61894 | C166: 3.65301 | D166: 3.41447 | E166: 3.68708 | F166: 3.65301 | G166: 4.41633 | H166: 4.41633 | I166: 4.14372 | J166: 4.14372 | K166: 4.14372 | L166: 4.14372 | M166: 4.14372 | N166: 4.14372 | O166: 4.14372 | P166: 4.14372 | Q166: 4.14372 | R166: 4.14372 | S166: 4.14372 | T166: 4.14372 | U166: 4.14372 | V166: 4.14372 | W166: 4.14372 | X166: 4.14372 | Y166: 4.14372 | Z166: 4.14372 | AA166: 4.14372 | AB166: 4.14372 | AC166: 4.14372 | AD166: 4.14372 | AE166: 4.14372 | AF166: 4.14372 | AG166: 4.14372 | AH166: 4.14372 | AI166: 4.14372 | AJ166: 4.14372 | AK166: 4.14372 | AL166: 4.14372 | AM166: 4.14372 | AN166: 4.14372 | AO166: 4.14372 | AP166: 4.14372 | AQ166: 4.14372 | AR166: 4.14372 | AS166: 4.14372 | AT166: 4.14372 | AU166: 4.14372 | AV166: 4.14372 | AW166: 4.14372 | AX166: =+AX144+AX155 -> 4.14372 | AY166: 4.14372 | AZ166: 4.14372 | BA166: 4.14372 | BB166: 4.14372 | BC166: 4.14372 | BD166: 4.14372 | BE166: 4.14372 | BF166: 4.14372 | BG166: 4.14372 | BH166: 4.14372 | BI166: 4.14372
A167: Total | B167: =+SUM(B159:B166) -> 2579.28948 | C167: =+SUM(C159:C166) -> 2577.73317 | D167: 2578.60444 | E167: 2581.98278 | F167: 2583.84045 | G167: 2586.57598 | H167: 2587.97819 | I167: 2591.06789 | J167: 2592.40308 | K167: 2592.05934 | L167: 2590.95546 | M167: 2591.56463 | N167: 2592.55759 | O167: 2592.88172 | P167: 2594.11473 | Q167: 2596.95298 | R167: 2598.97039 | S167: 2601.32889 | T167: 2601.17101 | U167: 2605.69319 | V167: 2606.96593 | W167: 2606.90946 | X167: 2605.80558 | Y167: 2606.37388 | Z167: 2605.33096 | AA167: 2605.65509 | AB167: 2606.90059 | AC167: 2609.76382 | AD167: 2611.79372 | AE167: 2614.17834 | AF167: 2614.02046 | AG167: 2618.56762 | AH167: 2619.85285 | AI167: 2619.80887 | AJ167: 2618.70499 | AK167: 2619.23922 | AL167: 2618.06515 | AM167: 2618.38928 | AN167: 2619.65976 | AO167: 2622.53548 | AP167: 2624.56538 | AQ167: 2627.00621 | AR167: 2626.84833 | AS167: 2631.43296 | AT167: 2632.73068 | AU167: 2632.6867 | AV167: 2631.57033 | AW167: 2632.13749 | AX167: =+SUM(AX159:AX166) -> 2630.86464 | AY167: 2631.20126 | AZ167: 2632.47174 | BA167: 2635.37244 | BB167: 2637.41483 | BC167: 2639.86815 | BD167: 2639.69778 | BE167: 2644.31988 | BF167: 2645.63009 | BG167: 2645.5986 | BH167: 2644.48223 | BI167: 2645.04939
A169: Volumetric Charges ( $000s)
A170: Central | B170: =+B$4 -> 2018-01-01 | C170: =+C$4 -> 2018-02-01 | D170: 2018-03-01 | E170: 2018-04-01 | F170: 2018-05-01 | G170: 2018-06-01 | H170: 2018-07-01 | I170: 2018-08-01 | J170: 2018-09-01 | K170: 2018-10-01 | L170: 2018-11-01 | M170: 2018-12-01 | N170: 2019-01-01 | O170: 2019-02-01 | P170: 2019-03-01 | Q170: 2019-04-01 | R170: 2019-05-01 | S170: 2019-06-01 | T170: 2019-07-01 | U170: 2019-08-01 | V170: 2019-09-01 | W170: 2019-10-01 | X170: 2019-11-01 | Y170: 2019-12-01 | Z170: 2020-01-01 | AA170: 2020-02-01 | AB170: 2020-03-01 | AC170: 2020-04-01 | AD170: 2020-05-01 | AE170: 2020-06-01 | AF170: 2020-07-01 | AG170: 2020-08-01 | AH170: 2020-09-01 | AI170: 2020-10-01 | AJ170: 2020-11-01 | AK170: 2020-12-01 | AL170: 2021-01-01 | AM170: 2021-02-01 | AN170: 2021-03-01 | AO170: 2021-04-01 | AP170: 2021-05-01 | AQ170: 2021-06-01 | AR170: 2021-07-01 | AS170: 2021-08-01 | AT170: 2021-09-01 | AU170: 2021-10-01 | AV170: 2021-11-01 | AW170: 2021-12-01 | AX170: 2022-01-01 | AY170: 2022-02-01 | AZ170: 2022-03-01 | BA170: 2022-04-01 | BB170: 2022-05-01 | BC170: 2022-06-01 | BD170: 2022-07-01 | BE170: 2022-08-01 | BF170: 2022-09-01 | BG170: 2022-10-01 | BH170: 2022-11-01 | BI170: 2022-12-01
A171: Residential | B171: =+Central!I2007 -> 2187.47285 | C171: =+Central!J2007 -> 2003.556496 | D171: =+Central!K2007 -> 2167.251865 | E171: =+Central!L2007 -> 2144.161226 | F171: =+Central!M2007 -> 2431.841796 | G171: =+Central!N2007 -> 2545.552917 | H171: =+Central!O2007 -> 2624.462131 | I171: =+Central!P2007 -> 2667.750929 | J171: =+Central!Q2007 -> 2609.891952 | K171: =+Central!R2007 -> 2467.817216 | L171: =+Central!S2007 -> 2158.816429 | M171: =+Central!T2007 -> 2189.912673 | N171: =+Central!U2007 -> 2160.630262 | O171: =+Central!V2007 -> 1978.970755 | P171: =+Central!W2007 -> 2140.65741 | Q171: =+Central!X2007 -> 2117.850117 | R171: =+Central!Y2007 -> 2402.000545 | S171: =+Central!Z2007 -> 2514.31631 | T171: =+Central!AA2007 -> 2592.257226 | U171: =+Central!AB2007 -> 2635.014825 | V171: =+Central!AC2007 -> 2577.865838 | W171: =+Central!AD2007 -> 2437.534509 | X171: =+Central!AE2007 -> 2132.325486 | Y171: =+Central!AF2007 -> 2163.040146 | Z171: =+Central!AG2007 -> 2132.897517 | AA171: =+Central!AH2007 -> 1953.569699 | AB171: =+Central!AI2007 -> 2113.181027 | AC171: =+Central!AJ2007 -> 2090.666476 | AD171: =+Central!AK2007 -> 2371.169695 | AE171: =+Central!AL2007 -> 2482.043833 | AF171: =+Central!AM2007 -> 2558.984338 | AG171: =+Central!AN2007 -> 2601.193123 | AH171: =+Central!AO2007 -> 2544.777671 | AI171: =+Central!AP2007 -> 2406.247563 | AJ171: =+Central!AQ2007 -> 2104.956047 | AK171: =+Central!AR2007 -> 2135.276469 | AL171: =+Central!AS2007 -> 2104.527349 | AM171: =+Central!AT2007 -> 1927.584812 | AN171: =+Central!AU2007 -> 2085.073113 | AO171: =+Central!AV2007 -> 2062.858034 | AP171: =+Central!AW2007 -> 2339.630213 | AQ171: =+Central!AX2007 -> 2449.029588 | AR171: =+Central!AY2007 -> 2524.94669 | AS171: =+Central!AZ2007 -> 2566.594046 | AT171: =+Central!BA2007 -> 2510.928989 | AU171: =+Central!BB2007 -> 2374.241502 | AV171: =+Central!BC2007 -> 2076.957535 | AW171: =+Central!BD2007 -> 2106.874658 | AX171: =+Central!BE2007 -> 2075.392492 | AY171: =+Central!BF2007 -> 1900.899529 | AZ171: =+Central!BG2007 -> 2056.207578 | BA171: =+Central!BH2007 -> 2034.300042 | BB171: =+Central!BI2007 -> 2307.240616 | BC171: =+Central!BJ2007 -> 2415.125478 | BD171: =+Central!BK2007 -> 2489.991591 | BE171: =+Central!BL2007 -> 2531.062385 | BF171: =+Central!BM2007 -> 2476.16795 | BG171: =+Central!BN2007 -> 2341.37275 | BH171: =+Central!BO2007 -> 2048.204351 | BI171: =+Central!BP2007 -> 2077.707305
A172: Commercial | B172: =+Central!I2008 -> 1222.259322 | C172: =+Central!J2008 -> 1157.989009 | D172: =+Central!K2008 -> 1274.964582 | E172: =+Central!L2008 -> 1294.265109 | F172: =+Central!M2008 -> 1440.17542 | G172: =+Central!N2008 -> 1524.429219 | H172: =+Central!O2008 -> 1632.191937 | I172: =+Central!P2008 -> 1663.276898 | J172: =+Central!Q2008 -> 1621.834556 | K172: =+Central!R2008 -> 1553.641512 | L172: =+Central!S2008 -> 1278.885515 | M172: =+Central!T2008 -> 1209.738274 | N172: =+Central!U2008 -> 1214.800523 | O172: =+Central!V2008 -> 1150.922418 | P172: =+Central!W2008 -> 1267.184151 | Q172: =+Central!X2008 -> 1286.366896 | R172: =+Central!Y2008 -> 1431.386794 | S172: =+Central!Z2008 -> 1515.126437 | T172: =+Central!AA2008 -> 1622.231536 | U172: =+Central!AB2008 -> 1653.126803 | V172: =+Central!AC2008 -> 1611.937362 | W172: =+Central!AD2008 -> 1544.160463 | X172: =+Central!AE2008 -> 1271.081156 | Y172: =+Central!AF2008 -> 1202.355884 | Z172: =+Central!AG2008 -> 1207.478883 | AA172: =+Central!AH2008 -> 1143.985773 | AB172: =+Central!AI2008 -> 1259.546794 | AC172: =+Central!AJ2008 -> 1278.613924 | AD172: =+Central!AK2008 -> 1422.759783 | AE172: =+Central!AL2008 -> 1505.994724 | AF172: =+Central!AM2008 -> 1612.454298 | AG172: =+Central!AN2008 -> 1643.163358 | AH172: =+Central!AO2008 -> 1602.222166 | AI172: =+Central!AP2008 -> 1534.853761 | AJ172: =+Central!AQ2008 -> 1263.420311 | AK172: =+Central!AR2008 -> 1195.109249 | AL172: =+Central!AS2008 -> 1200.177056 | AM172: =+Central!AT2008 -> 1137.0679 | AN172: =+Central!AU2008 -> 1251.930103 | AO172: =+Central!AV2008 -> 1270.881931 | AP172: =+Central!AW2008 -> 1414.156116 | AQ172: =+Central!AX2008 -> 1496.887721 | AR172: =+Central!AY2008 -> 1602.703516 | AS172: =+Central!AZ2008 -> 1633.226873 | AT172: =+Central!BA2008 -> 1592.53326 | AU172: =+Central!BB2008 -> 1525.572243 | AV172: =+Central!BC2008 -> 1255.780197 | AW172: =+Central!BD2008 -> 1187.882223 | AX172: =+Central!BE2008 -> 1192.875324 | AY172: =+Central!BF2008 -> 1130.150117 | AZ172: =+Central!BG2008 -> 1244.313512 | BA172: =+Central!BH2008 -> 1263.15004 | BB172: =+Central!BI2008 -> 1405.552561 | BC172: =+Central!BJ2008 -> 1487.780838 | BD172: =+Central!BK2008 -> 1592.952863 | BE172: =+Central!BL2008 -> 1623.290519 | BF172: =+Central!BM2008 -> 1582.844481 | BG172: =+Central!BN2008 -> 1516.290846 | BH172: =+Central!BO2008 -> 1248.140182 | BI172: =+Central!BP2008 -> 1180.655292
A173: Industrial | B173: =+Central!I2009 -> 177.1024284 | C173: =+Central!J2009 -> 179.1865908 | D173: =+Central!K2009 -> 249.5788308 | E173: =+Central!L2009 -> 186.5862108 | F173: =+Central!M2009 -> 189.2089428 | G173: =+Central!N2009 -> 237.7294704 | H173: =+Central!O2009 -> 265.0059803 | I173: =+Central!P2009 -> 214.8312888 | J173: =+Central!Q2009 -> 224.3029419 | K173: =+Central!R2009 -> 222.5544109 | L173: =+Central!S2009 -> 189.1658576 | M173: =+Central!T2009 -> 171.0255746 | N173: =+Central!U2009 -> 179.6388172 | O173: =+Central!V2009 -> 169.6870651 | P173: =+Central!W2009 -> 186.3682497 | Q173: =+Central!X2009 -> 187.5505512 | R173: =+Central!Y2009 -> 200.9552542 | S173: =+Central!Z2009 -> 216.5925149 | T173: =+Central!AA2009 -> 228.0231162 | U173: =+Central!AB2009 -> 239.1279997 | V173: =+Central!AC2009 -> 220.9039506 | W173: =+Central!AD2009 -> 219.181916 | X173: =+Central!AE2009 -> 186.2993187 | Y173: =+Central!AF2009 -> 168.4339258 | Z173: =+Central!AG2009 -> 174.2212684 | AA173: =+Central!AH2009 -> 164.5696413 | AB173: =+Central!AI2009 -> 180.7477546 | AC173: =+Central!AJ2009 -> 181.8944002 | AD173: =+Central!AK2009 -> 194.8948441 | AE173: =+Central!AL2009 -> 210.0605162 | AF173: =+Central!AM2009 -> 221.1463933 | AG173: =+Central!AN2009 -> 231.9163756 | AH173: =+Central!AO2009 -> 214.2419275 | AI173: =+Central!AP2009 -> 212.5718261 | AJ173: =+Central!AQ2009 -> 180.6809024 | AK173: =+Central!AR2009 -> 163.3542942 | AL173: =+Central!AS2009 -> 174.2212684 | AM173: =+Central!AT2009 -> 164.5696413 | AN173: =+Central!AU2009 -> 180.7477546 | AO173: =+Central!AV2009 -> 181.8944002 | AP173: =+Central!AW2009 -> 194.8948441 | AQ173: =+Central!AX2009 -> 210.0605162 | AR173: =+Central!AY2009 -> 221.1463933 | AS173: =+Central!AZ2009 -> 231.9163756 | AT173: =+Central!BA2009 -> 214.2419275 | AU173: =+Central!BB2009 -> 212.5718261 | AV173: =+Central!BC2009 -> 180.6809024 | AW173: =+Central!BD2009 -> 163.3542942 | AX173: =+Central!BE2009 -> 174.2212684 | AY173: =+Central!BF2009 -> 164.5696413 | AZ173: =+Central!BG2009 -> 180.7477546 | BA173: =+Central!BH2009 -> 181.8944002 | BB173: =+Central!BI2009 -> 194.8948441 | BC173: =+Central!BJ2009 -> 210.0605162 | BD173: =+Central!BK2009 -> 221.1463933 | BE173: =+Central!BL2009 -> 231.9163756 | BF173: =+Central!BM2009 -> 214.2419275 | BG173: =+Central!BN2009 -> 212.5718261 | BH173: =+Central!BO2009 -> 180.6809024 | BI173: =+Central!BP2009 -> 163.3542942
A174: OPA | B174: =+Central!I2012 -> 305.5324575 | C174: =+Central!J2012 -> 283.8010053 | D174: =+Central!K2012 -> 310.7768828 | E174: =+Central!L2012 -> 345.0979777 | F174: =+Central!M2012 -> 420.7194033 | G174: =+Central!N2012 -> 467.0361236 | H174: =+Central!O2012 -> 518.7038862 | I174: =+Central!P2012 -> 537.1539755 | J174: =+Central!Q2012 -> 479.9919179 | K174: =+Central!R2012 -> 417.5153195 | L174: =+Central!S2012 -> 327.9953059 | M174: =+Central!T2012 -> 297.1110465 | N174: =+Central!U2012 -> 305.6998803 | O174: =+Central!V2012 -> 283.9565199 | P174: =+Central!W2012 -> 310.9471794 | Q174: =+Central!X2012 -> 345.2870812 | R174: =+Central!Y2012 -> 420.9499451 | S174: =+Central!Z2012 -> 467.2920456 | T174: =+Central!AA2012 -> 518.9881206 | U174: =+Central!AB2012 -> 537.4483201 | V174: =+Central!AC2012 -> 480.2549392 | W174: =+Central!AD2012 -> 417.7441055 | X174: =+Central!AE2012 -> 328.1750376 | Y174: =+Central!AF2012 -> 297.2738546 | Z174: =+Central!AG2012 -> 305.6998803 | AA174: =+Central!AH2012 -> 283.9565199 | AB174: =+Central!AI2012 -> 310.9471794 | AC174: =+Central!AJ2012 -> 345.2870812 | AD174: =+Central!AK2012 -> 420.9499451 | AE174: =+Central!AL2012 -> 467.2920456 | AF174: =+Central!AM2012 -> 518.9881206 | AG174: =+Central!AN2012 -> 537.4483201 | AH174: =+Central!AO2012 -> 480.2549392 | AI174: =+Central!AP2012 -> 417.7441055 | AJ174: =+Central!AQ2012 -> 328.1750376 | AK174: =+Central!AR2012 -> 297.2738546 | AL174: =+Central!AS2012 -> 305.6998803 | AM174: =+Central!AT2012 -> 283.9565199 | AN174: =+Central!AU2012 -> 310.9471794 | AO174: =+Central!AV2012 -> 345.2870812 | AP174: =+Central!AW2012 -> 420.9499451 | AQ174: =+Central!AX2012 -> 467.2920456 | AR174: =+Central!AY2012 -> 518.9881206 | AS174: =+Central!AZ2012 -> 537.4483201 | AT174: =+Central!BA2012 -> 480.2549392 | AU174: =+Central!BB2012 -> 417.7441055 | AV174: =+Central!BC2012 -> 328.1750376 | AW174: =+Central!BD2012 -> 297.2738546 | AX174: =+Central!BE2012 -> 305.6998803 | AY174: =+Central!BF2012 -> 283.9565199 | AZ174: =+Central!BG2012 -> 310.9471794 | BA174: =+Central!BH2012 -> 345.2870812 | BB174: =+Central!BI2012 -> 420.9499451 | BC174: =+Central!BJ2012 -> 467.2920456 | BD174: =+Central!BK2012 -> 518.9881206 | BE174: =+Central!BL2012 -> 537.4483201 | BF174: =+Central!BM2012 -> 480.2549392 | BG174: =+Central!BN2012 -> 417.7441055 | BH174: =+Central!BO2012 -> 328.1750376 | BI174: =+Central!BP2012 -> 297.2738546
A175: SFR | B175: =+Central!I2013+Central_SFR!I2013 -> 121.3931121 | C175: =+Central!J2013+Central_SFR!J2013 -> 112.9178263 | D175: =+Central!K2013+Central_SFR!K2013 -> 119.4719611 | E175: =+Central!L2013+Central_SFR!L2013 -> 121.973969 | F175: =+Central!M2013+Central_SFR!M2013 -> 157.8676994 | G175: =+Central!N2013+Central_SFR!N2013 -> 168.4304178 | H175: =+Central!O2013+Central_SFR!O2013 -> 173.5620867 | I175: =+Central!P2013+Central_SFR!P2013 -> 181.3779068 | J175: =+Central!Q2013+Central_SFR!Q2013 -> 172.2247987 | K175: =+Central!R2013+Central_SFR!R2013 -> 156.470412 | L175: =+Central!S2013+Central_SFR!S2013 -> 127.4853898 | M175: =+Central!T2013+Central_SFR!T2013 -> 127.1488346 | N175: =+Central!U2013+Central_SFR!U2013 -> 120.1288856 | O175: =+Central!V2013+Central_SFR!V2013 -> 111.7544313 | P175: =+Central!W2013+Central_SFR!W2013 -> 118.2185159 | Q175: =+Central!X2013+Central_SFR!X2013 -> 120.6887934 | R175: =+Central!Y2013+Central_SFR!Y2013 -> 156.1881035 | S175: =+Central!Z2013+Central_SFR!Z2013 -> 166.6036743 | T175: =+Central!AA2013+Central_SFR!AA2013 -> 171.6714323 | U175: =+Central!AB2013+Central_SFR!AB2013 -> 179.3900164 | V175: =+Central!AC2013+Central_SFR!AC2013 -> 170.3305425 | W175: =+Central!AD2013+Central_SFR!AD2013 -> 154.7459936 | X175: =+Central!AE2013+Central_SFR!AE2013 -> 126.1054412 | Y175: =+Central!AF2013+Central_SFR!AF2013 -> 125.7834598 | Z175: =+Central!AG2013+Central_SFR!AG2013 -> 120.1288856 | AA175: =+Central!AH2013+Central_SFR!AH2013 -> 111.7544313 | AB175: =+Central!AI2013+Central_SFR!AI2013 -> 118.2185159 | AC175: =+Central!AJ2013+Central_SFR!AJ2013 -> 120.6887934 | AD175: =+Central!AK2013+Central_SFR!AK2013 -> 156.1881035 | AE175: =+Central!AL2013+Central_SFR!AL2013 -> 166.6036743 | AF175: =+Central!AM2013+Central_SFR!AM2013 -> 171.6714323 | AG175: =+Central!AN2013+Central_SFR!AN2013 -> 179.3900164 | AH175: =+Central!AO2013+Central_SFR!AO2013 -> 170.3305425 | AI175: =+Central!AP2013+Central_SFR!AP2013 -> 154.7459936 | AJ175: =+Central!AQ2013+Central_SFR!AQ2013 -> 126.1054412 | AK175: =+Central!AR2013+Central_SFR!AR2013 -> 125.7834598 | AL175: =+Central!AS2013+Central_SFR!AS2013 -> 120.1288856 | AM175: =+Central!AT2013+Central_SFR!AT2013 -> 111.7544313 | AN175: =+Central!AU2013+Central_SFR!AU2013 -> 118.2185159 | AO175: =+Central!AV2013+Central_SFR!AV2013 -> 120.6887934 | AP175: =+Central!AW2013+Central_SFR!AW2013 -> 156.1881035 | AQ175: =+Central!AX2013+Central_SFR!AX2013 -> 166.6036743 | AR175: =+Central!AY2013+Central_SFR!AY2013 -> 171.6714323 | AS175: =+Central!AZ2013+Central_SFR!AZ2013 -> 179.3900164 | AT175: =+Central!BA2013+Central_SFR!BA2013 -> 170.3305425 | AU175: =+Central!BB2013+Central_SFR!BB2013 -> 154.7459936 | AV175: =+Central!BC2013+Central_SFR!BC2013 -> 126.1054412 | AW175: =+Central!BD2013+Central_SFR!BD2013 -> 125.7834598 | AX175: =+Central!BE2013+Central_SFR!BE2013 -> 120.1288856 | AY175: =+Central!BF2013+Central_SFR!BF2013 -> 111.7544313 | AZ175: =+Central!BG2013+Central_SFR!BG2013 -> 118.2185159 | BA175: =+Central!BH2013+Central_SFR!BH2013 -> 120.6887934 | BB175: =+Central!BI2013+Central_SFR!BI2013 -> 156.1881035 | BC175: =+Central!BJ2013+Central_SFR!BJ2013 -> 166.6036743 | BD175: =+Central!BK2013+Central_SFR!BK2013 -> 171.6714323 | BE175: =+Central!BL2013+Central_SFR!BL2013 -> 179.3900164 | BF175: =+Central!BM2013+Central_SFR!BM2013 -> 170.3305425 | BG175: =+Central!BN2013+Central_SFR!BN2013 -> 154.7459936 | BH175: =+Central!BO2013+Central_SFR!BO2013 -> 126.1054412 | BI175: =+Central!BP2013+Central_SFR!BP2013 -> 125.7834598
A176: Misc Other Sales | B176: =+Central!I2014 -> -0.0522288 | C176: =+Central!J2014 -> 3.270996 | D176: =+Central!K2014 -> 0.607675392 | E176: =+Central!L2014 -> 1.3740192 | F176: =+Central!M2014 -> 6.945178248 | G176: =+Central!N2014 -> 1.8651708 | H176: =+Central!O2014 -> 0.575856 | I176: =+Central!P2014 -> 3.5341488 | J176: =+Central!Q2014 -> 1.086857591 | K176: =+Central!R2014 -> 0.7001996821 | L176: =+Central!S2014 -> 0.8848432213 | M176: =+Central!T2014 -> 0.503847668 | N176: =+Central!U2014 -> 0.5007681106 | O176: =+Central!V2014 -> 1.131913401 | P176: =+Central!W2014 -> 0.517179722 | Q176: =+Central!X2014 -> 0.8821915886 | R176: =+Central!Y2014 -> 0.5999990641 | S176: =+Central!Z2014 -> 1.330873206 | T176: =+Central!AA2014 -> 1.172157265 | U176: =+Central!AB2014 -> 1.246571353 | V176: =+Central!AC2014 -> 1.086857591 | W176: =+Central!AD2014 -> 0.7001996821 | X176: =+Central!AE2014 -> 0.8848432213 | Y176: =+Central!AF2014 -> 0.503847668 | Z176: =+Central!AG2014 -> 0.5007681106 | AA176: =+Central!AH2014 -> 1.131913401 | AB176: =+Central!AI2014 -> 0.517179722 | AC176: =+Central!AJ2014 -> 0.8821915886 | AD176: =+Central!AK2014 -> 0.5999990641 | AE176: =+Central!AL2014 -> 1.330873206 | AF176: =+Central!AM2014 -> 1.172157265 | AG176: =+Central!AN2014 -> 1.246571353 | AH176: =+Central!AO2014 -> 1.086857591 | AI176: =+Central!AP2014 -> 0.7001996821 | AJ176: =+Central!AQ2014 -> 0.8848432213 | AK176: =+Central!AR2014 -> 0.503847668 | AL176: =+Central!AS2014 -> 0.5007681106 | AM176: =+Central!AT2014 -> 1.131913401 | AN176: =+Central!AU2014 -> 0.517179722 | AO176: =+Central!AV2014 -> 0.8821915886 | AP176: =+Central!AW2014 -> 0.5999990641 | AQ176: =+Central!AX2014 -> 1.330873206 | AR176: =+Central!AY2014 -> 1.172157265 | AS176: =+Central!AZ2014 -> 1.246571353 | AT176: =+Central!BA2014 -> 1.086857591 | AU176: =+Central!BB2014 -> 0.7001996821 | AV176: =+Central!BC2014 -> 0.8848432213 | AW176: =+Central!BD2014 -> 0.503847668 | AX176: =+Central!BE2014 -> 0.5007681106 | AY176: =+Central!BF2014 -> 1.131913401 | AZ176: =+Central!BG2014 -> 0.517179722 | BA176: =+Central!BH2014 -> 0.8821915886 | BB176: =+Central!BI2014 -> 0.5999990641 | BC176: =+Central!BJ2014 -> 1.330873206 | BD176: =+Central!BK2014 -> 1.172157265 | BE176: =+Central!BL2014 -> 1.246571353 | BF176: =+Central!BM2014 -> 1.086857591 | BG176: =+Central!BN2014 -> 0.7001996821 | BH176: =+Central!BO2014 -> 0.8848432213 | BI176: =+Central!BP2014 -> 0.503847668
A177: Total | B177: =+SUM(B171:B176) -> 4013.707941 | C177: =+SUM(C171:C176) -> 3740.721924 | D177: 4122.651798 | E177: 4093.458511 | F177: 4646.75844 | G177: 4945.043318 | H177: 5214.501877 | I177: 5267.925147 | J177: 5109.333024 | K177: 4818.69907 | L177: 4083.23334 | M177: 3995.440251 | N177: 3981.399136 | O177: 3696.423102 | P177: 4023.892686 | Q177: 4058.625631 | R177: 4612.080641 | S177: 4881.261855 | T177: 5134.343589 | U177: 5245.354535 | V177: 5062.37949 | W177: 4774.067186 | X177: 4044.871282 | Y177: 3957.391118 | Z177: 3940.927203 | AA177: 3658.967978 | AB177: 3983.15845 | AC177: 4018.032867 | AD177: 4566.562369 | AE177: 4833.325666 | AF177: 5084.41674 | AG177: 5194.357764 | AH177: 5012.914104 | AI177: 4726.863449 | AJ177: 4004.222582 | AK177: 3917.301174 | AL177: 3905.255208 | AM177: 3626.065218 | AN177: 3947.433845 | AO177: 3982.492431 | AP177: 4526.419221 | AQ177: 4791.204419 | AR177: 5040.62831 | AS177: 5149.822203 | AT177: 4969.376517 | AU177: 4685.57587 | AV177: 3968.583956 | AW177: 3881.672338 | AX177: =+SUM(AX171:AX176) -> 3868.818619 | AY177: 3592.462151 | AZ177: 3910.951719 | BA177: 3946.202548 | BB177: 4485.426069 | BC177: 4748.193425 | BD177: 4995.922557 | BE177: 5104.354188 | BF177: 4924.926698 | BG177: 4643.425721 | BH177: 3932.190758 | BI177: 3845.278053
A179: Northern | B179: =+B$4 -> 2018-01-01 | C179: =+C$4 -> 2018-02-01 | D179: 2018-03-01 | E179: 2018-04-01 | F179: 2018-05-01 | G179: 2018-06-01 | H179: 2018-07-01 | I179: 2018-08-01 | J179: 2018-09-01 | K179: 2018-10-01 | L179: 2018-11-01 | M179: 2018-12-01 | N179: 2019-01-01 | O179: 2019-02-01 | P179: 2019-03-01 | Q179: 2019-04-01 | R179: 2019-05-01 | S179: 2019-06-01 | T179: 2019-07-01 | U179: 2019-08-01 | V179: 2019-09-01 | W179: 2019-10-01 | X179: 2019-11-01 | Y179: 2019-12-01 | Z179: 2020-01-01 | AA179: 2020-02-01 | AB179: 2020-03-01 | AC179: 2020-04-01 | AD179: 2020-05-01 | AE179: 2020-06-01 | AF179: 2020-07-01 | AG179: 2020-08-01 | AH179: 2020-09-01 | AI179: 2020-10-01 | AJ179: 2020-11-01 | AK179: 2020-12-01 | AL179: 2021-01-01 | AM179: 2021-02-01 | AN179: 2021-03-01 | AO179: 2021-04-01 | AP179: 2021-05-01 | AQ179: 2021-06-01 | AR179: 2021-07-01 | AS179: 2021-08-01 | AT179: 2021-09-01 | AU179: 2021-10-01 | AV179: 2021-11-01 | AW179: 2021-12-01 | AX179: 2022-01-01 | AY179: 2022-02-01 | AZ179: 2022-03-01 | BA179: 2022-04-01 | BB179: 2022-05-01 | BC179: 2022-06-01 | BD179: 2022-07-01 | BE179: 2022-08-01 | BF179: 2022-09-01 | BG179: 2022-10-01 | BH179: 2022-11-01 | BI179: 2022-12-01
A180: Residential | B180: =+Northern!I2007 -> 50.85881514 | C180: =+Northern!J2007 -> 46.716419 | D180: =+Northern!K2007 -> 50.37889573 | E180: =+Northern!L2007 -> 48.6593474 | F180: =+Northern!M2007 -> 56.59457541 | G180: =+Northern!N2007 -> 59.47258524 | H180: =+Northern!O2007 -> 57.75151554 | I180: =+Northern!P2007 -> 56.95500223 | J180: =+Northern!Q2007 -> 52.87552595 | K180: =+Northern!R2007 -> 52.07705516 | L180: =+Northern!S2007 -> 47.8921127 | M180: =+Northern!T2007 -> 52.19390598 | N180: =+Northern!U2007 -> 50.23472409 | O180: =+Northern!V2007 -> 46.1431595 | P180: =+Northern!W2007 -> 49.7606938 | Q180: =+Northern!X2007 -> 48.06224613 | R180: =+Northern!Y2007 -> 55.90010056 | S180: =+Northern!Z2007 -> 58.74279419 | T180: =+Northern!AA2007 -> 57.04284382 | U180: =+Northern!AB2007 -> 56.25610456 | V180: =+Northern!AC2007 -> 52.22668774 | W180: =+Northern!AD2007 -> 51.43801503 | X180: =+Northern!AE2007 -> 47.30442621 | Y180: =+Northern!AF2007 -> 51.55343197 | Z180: =+Northern!AG2007 -> 49.58993688 | AA180: =+Northern!AH2007 -> 45.55088951 | AB180: =+Northern!AI2007 -> 49.12199099 | AC180: =+Northern!AJ2007 -> 47.44534373 | AD180: =+Northern!AK2007 -> 55.18259548 | AE180: =+Northern!AL2007 -> 57.98880174 | AF180: =+Northern!AM2007 -> 56.31067106 | AG180: =+Northern!AN2007 -> 55.53402999 | AH180: =+Northern!AO2007 -> 51.5563327 | AI180: =+Northern!AP2007 -> 50.77778299 | AJ180: =+Northern!AQ2007 -> 46.69725079 | AK180: =+Northern!AR2007 -> 50.89171849 | AL180: =+Northern!AS2007 -> 48.93032955 | AM180: =+Northern!AT2007 -> 44.9450065 | AN180: =+Northern!AU2007 -> 48.46860792 | AO180: =+Northern!AV2007 -> 46.81426214 | AP180: =+Northern!AW2007 -> 54.44859889 | AQ180: =+Northern!AX2007 -> 57.21747915 | AR180: =+Northern!AY2007 -> 55.56166968 | AS180: =+Northern!AZ2007 -> 54.79535889 | AT180: =+Northern!BA2007 -> 50.87056988 | AU180: =+Northern!BB2007 -> 50.10237584 | AV180: =+Northern!BC2007 -> 46.07611976 | AW180: =+Northern!BD2007 -> 50.21479586 | AX180: =+Northern!BE2007 -> 48.25294316 | AY180: =+Northern!BF2007 -> 44.32279251 | AZ180: =+Northern!BG2007 -> 47.79761356 | BA180: =+Northern!BH2007 -> 46.16617037 | BB180: =+Northern!BI2007 -> 53.69481816 | BC180: =+Northern!BJ2007 -> 56.42536633 | BD180: =+Northern!BK2007 -> 54.79247971 | BE180: =+Northern!BL2007 -> 54.03677765 | BF180: =+Northern!BM2007 -> 50.16632301 | BG180: =+Northern!BN2007 -> 49.40876377 | BH180: =+Northern!BO2007 -> 45.43824676 | BI180: =+Northern!BP2007 -> 49.51962746
A181: Commercial | B181: =+Northern!I2008 -> 1.720119052 | C181: =+Northern!J2008 -> 1.626136119 | D181: =+Northern!K2008 -> 1.943886309 | E181: =+Northern!L2008 -> 2.037650032 | F181: =+Northern!M2008 -> 2.296421155 | G181: =+Northern!N2008 -> 2.848520655 | H181: =+Northern!O2008 -> 2.747981046 | I181: =+Northern!P2008 -> 2.830797171 | J181: =+Northern!Q2008 -> 2.626629411 | K181: =+Northern!R2008 -> 2.188269649 | L181: =+Northern!S2008 -> 1.810540928 | M181: =+Northern!T2008 -> 1.858548104 | N181: =+Northern!U2008 -> 1.709622079 | O181: =+Northern!V2008 -> 1.616212674 | P181: =+Northern!W2008 -> 1.932023803 | Q181: =+Northern!X2008 -> 2.025215336 | R181: =+Northern!Y2008 -> 2.282407317 | S181: =+Northern!Z2008 -> 2.831137647 | T181: =+Northern!AA2008 -> 2.731211577 | U181: =+Northern!AB2008 -> 2.81352232 | V181: =+Northern!AC2008 -> 2.610600487 | W181: =+Northern!AD2008 -> 2.174915802 | X181: =+Northern!AE2008 -> 1.799492158 | Y181: =+Northern!AF2008 -> 1.847206372 | Z181: =+Northern!AG2008 -> 1.699318135 | AA181: =+Northern!AH2008 -> 1.606471712 | AB181: =+Northern!AI2008 -> 1.920379437 | AC181: =+Northern!AJ2008 -> 2.013009302 | AD181: =+Northern!AK2008 -> 2.268651179 | AE181: =+Northern!AL2008 -> 2.814074295 | AF181: =+Northern!AM2008 -> 2.714750483 | AG181: =+Northern!AN2008 -> 2.796565135 | AH181: =+Northern!AO2008 -> 2.594866318 | AI181: =+Northern!AP2008 -> 2.161807519 | AJ181: =+Northern!AQ2008 -> 1.788646564 | AK181: =+Northern!AR2008 -> 1.836073203 | AL181: =+Northern!AS2008 -> 1.689042074 | AM181: =+Northern!AT2008 -> 1.596757108 | AN181: =+Northern!AU2008 -> 1.908766581 | AO181: =+Northern!AV2008 -> 2.000836297 | AP181: =+Northern!AW2008 -> 2.254932265 | AQ181: =+Northern!AX2008 -> 2.797057116 | AR181: =+Northern!AY2008 -> 2.698333931 | AS181: =+Northern!AZ2008 -> 2.779653837 | AT181: =+Northern!BA2008 -> 2.579174727 | AU181: =+Northern!BB2008 -> 2.148734706 | AV181: =+Northern!BC2008 -> 1.777830319 | AW181: =+Northern!BD2008 -> 1.824970161 | AX181: =+Northern!BE2008 -> 1.678766146 | AY181: =+Northern!BF2008 -> 1.587042631 | AZ181: =+Northern!BG2008 -> 1.897153877 | BA181: =+Northern!BH2008 -> 1.988663452 | BB181: =+Northern!BI2008 -> 2.241213531 | BC181: =+Northern!BJ2008 -> 2.780040159 | BD181: =+Northern!BK2008 -> 2.681917595 | BE181: =+Northern!BL2008 -> 2.76274276 | BF181: =+Northern!BM2008 -> 2.563483341 | BG181: =+Northern!BN2008 -> 2.135662065 | BH181: =+Northern!BO2008 -> 1.767014215 | BI181: =+Northern!BP2008 -> 1.813867264
A182: Industrial | B182: =+Northern!I2009 -> 0 | C182: =+Northern!J2009 -> 0 | D182: =+Northern!K2009 -> 0 | E182: =+Northern!L2009 -> 0 | F182: =+Northern!M2009 -> 0 | G182: =+Northern!N2009 -> 0 | H182: =+Northern!O2009 -> 0 | I182: =+Northern!P2009 -> 0 | J182: =+Northern!Q2009 -> 0 | K182: =+Northern!R2009 -> 0 | L182: =+Northern!S2009 -> 0 | M182: =+Northern!T2009 -> 0 | N182: =+Northern!U2009 -> 0 | O182: =+Northern!V2009 -> 0 | P182: =+Northern!W2009 -> 0 | Q182: =+Northern!X2009 -> 0 | R182: =+Northern!Y2009 -> 0 | S182: =+Northern!Z2009 -> 0 | T182: =+Northern!AA2009 -> 0 | U182: =+Northern!AB2009 -> 0 | V182: =+Northern!AC2009 -> 0 | W182: =+Northern!AD2009 -> 0 | X182: =+Northern!AE2009 -> 0 | Y182: =+Northern!AF2009 -> 0 | Z182: =+Northern!AG2009 -> 0 | AA182: =+Northern!AH2009 -> 0 | AB182: =+Northern!AI2009 -> 0 | AC182: =+Northern!AJ2009 -> 0 | AD182: =+Northern!AK2009 -> 0 | AE182: =+Northern!AL2009 -> 0 | AF182: =+Northern!AM2009 -> 0 | AG182: =+Northern!AN2009 -> 0 | AH182: =+Northern!AO2009 -> 0 | AI182: =+Northern!AP2009 -> 0 | AJ182: =+Northern!AQ2009 -> 0 | AK182: =+Northern!AR2009 -> 0 | AL182: =+Northern!AS2009 -> 0 | AM182: =+Northern!AT2009 -> 0 | AN182: =+Northern!AU2009 -> 0 | AO182: =+Northern!AV2009 -> 0 | AP182: =+Northern!AW2009 -> 0 | AQ182: =+Northern!AX2009 -> 0 | AR182: =+Northern!AY2009 -> 0 | AS182: =+Northern!AZ2009 -> 0 | AT182: =+Northern!BA2009 -> 0 | AU182: =+Northern!BB2009 -> 0 | AV182: =+Northern!BC2009 -> 0 | AW182: =+Northern!BD2009 -> 0 | AX182: =+Northern!BE2009 -> 0 | AY182: =+Northern!BF2009 -> 0 | AZ182: =+Northern!BG2009 -> 0 | BA182: =+Northern!BH2009 -> 0 | BB182: =+Northern!BI2009 -> 0 | BC182: =+Northern!BJ2009 -> 0 | BD182: =+Northern!BK2009 -> 0 | BE182: =+Northern!BL2009 -> 0 | BF182: =+Northern!BM2009 -> 0 | BG182: =+Northern!BN2009 -> 0 | BH182: =+Northern!BO2009 -> 0 | BI182: =+Northern!BP2009 -> 0
A183: OPA | B183: =+Northern!I2012 -> 0.857017641 | C183: =+Northern!J2012 -> 0.781109129 | D183: =+Northern!K2012 -> 0.8796919281 | E183: =+Northern!L2012 -> 0.9653136521 | F183: =+Northern!M2012 -> 0.9581360094 | G183: =+Northern!N2012 -> 0.6844483005 | H183: =+Northern!O2012 -> 0.7429567265 | I183: =+Northern!P2012 -> 1.292914729 | J183: =+Northern!Q2012 -> 1.411116931 | K183: =+Northern!R2012 -> 1.215160379 | L183: =+Northern!S2012 -> 0.8627452345 | M183: =+Northern!T2012 -> 0.6040242667 | N183: =+Northern!U2012 -> 0.8574872614 | O183: =+Northern!V2012 -> 0.7815371537 | P183: =+Northern!W2012 -> 0.8801739733 | Q183: =+Northern!X2012 -> 0.9658426155 | R183: =+Northern!Y2012 -> 0.9586610397 | S183: =+Northern!Z2012 -> 0.6848233579 | T183: =+Northern!AA2012 -> 0.7433638448 | U183: =+Northern!AB2012 -> 1.293623208 | V183: =+Northern!AC2012 -> 1.411890181 | W183: =+Northern!AD2012 -> 1.215826251 | X183: =+Northern!AE2012 -> 0.8632179934 | Y183: =+Northern!AF2012 -> 0.6043552542 | Z183: =+Northern!AG2012 -> 0.8574872614 | AA183: =+Northern!AH2012 -> 0.7815371537 | AB183: =+Northern!AI2012 -> 0.8801739733 | AC183: =+Northern!AJ2012 -> 0.9658426155 | AD183: =+Northern!AK2012 -> 0.9586610397 | AE183: =+Northern!AL2012 -> 0.6848233579 | AF183: =+Northern!AM2012 -> 0.7433638448 | AG183: =+Northern!AN2012 -> 1.293623208 | AH183: =+Northern!AO2012 -> 1.411890181 | AI183: =+Northern!AP2012 -> 1.215826251 | AJ183: =+Northern!AQ2012 -> 0.8632179934 | AK183: =+Northern!AR2012 -> 0.6043552542 | AL183: =+Northern!AS2012 -> 0.8574872614 | AM183: =+Northern!AT2012 -> 0.7815371537 | AN183: =+Northern!AU2012 -> 0.8801739733 | AO183: =+Northern!AV2012 -> 0.9658426155 | AP183: =+Northern!AW2012 -> 0.9586610397 | AQ183: =+Northern!AX2012 -> 0.6848233579 | AR183: =+Northern!AY2012 -> 0.7433638448 | AS183: =+Northern!AZ2012 -> 1.293623208 | AT183: =+Northern!BA2012 -> 1.411890181 | AU183: =+Northern!BB2012 -> 1.215826251 | AV183: =+Northern!BC2012 -> 0.8632179934 | AW183: =+Northern!BD2012 -> 0.6043552542 | AX183: =+Northern!BE2012 -> 0.8574872614 | AY183: =+Northern!BF2012 -> 0.7815371537 | AZ183: =+Northern!BG2012 -> 0.8801739733 | BA183: =+Northern!BH2012 -> 0.9658426155 | BB183: =+Northern!BI2012 -> 0.9586610397 | BC183: =+Northern!BJ2012 -> 0.6848233579 | BD183: =+Northern!BK2012 -> 0.7433638448 | BE183: =+Northern!BL2012 -> 1.293623208 | BF183: =+Northern!BM2012 -> 1.411890181 | BG183: =+Northern!BN2012 -> 1.215826251 | BH183: =+Northern!BO2012 -> 0.8632179934 | BI183: =+Northern!BP2012 -> 0.6043552542
A184: SFR | B184: =+Northern!I2013 -> 0.1734552913 | C184: =+Northern!J2013 -> 0.174185495 | D184: =+Northern!K2013 -> 0.1612834097 | E184: =+Northern!L2013 -> 0.159061395 | F184: =+Northern!M2013 -> 0.1892892755 | G184: =+Northern!N2013 -> 0.1664304244 | H184: =+Northern!O2013 -> 0.1630672539 | I184: =+Northern!P2013 -> 0.1580511885 | J184: =+Northern!Q2013 -> 0.1432466273 | K184: =+Northern!R2013 -> 0.1266275722 | L184: =+Northern!S2013 -> 0.1287485308 | M184: =+Northern!T2013 -> 0.1395771811 | N184: =+Northern!U2013 -> 0.1716488728 | O184: =+Northern!V2013 -> 0.1723908577 | P184: =+Northern!W2013 -> 0.1595912979 | Q184: =+Northern!X2013 -> 0.1573854488 | R184: =+Northern!Y2013 -> 0.1872753772 | S184: =+Northern!Z2013 -> 0.1646253723 | T184: =+Northern!AA2013 -> 0.1612909223 | U184: =+Northern!AB2013 -> 0.1563189575 | V184: =+Northern!AC2013 -> 0.1416710946 | W184: =+Northern!AD2013 -> 0.1252320437 | X184: =+Northern!AE2013 -> 0.1273549094 | Y184: =+Northern!AF2013 -> 0.1380783458 | Z184: =+Northern!AG2013 -> 0.1716488728 | AA184: =+Northern!AH2013 -> 0.1723908577 | AB184: =+Northern!AI2013 -> 0.1595912979 | AC184: =+Northern!AJ2013 -> 0.1573854488 | AD184: =+Northern!AK2013 -> 0.1872753772 | AE184: =+Northern!AL2013 -> 0.1646253723 | AF184: =+Northern!AM2013 -> 0.1612909223 | AG184: =+Northern!AN2013 -> 0.1563189575 | AH184: =+Northern!AO2013 -> 0.1416710946 | AI184: =+Northern!AP2013 -> 0.1252320437 | AJ184: =+Northern!AQ2013 -> 0.1273549094 | AK184: =+Northern!AR2013 -> 0.1380783458 | AL184: =+Northern!AS2013 -> 0.1716488728 | AM184: =+Northern!AT2013 -> 0.1723908577 | AN184: =+Northern!AU2013 -> 0.1595912979 | AO184: =+Northern!AV2013 -> 0.1573854488 | AP184: =+Northern!AW2013 -> 0.1872753772 | AQ184: =+Northern!AX2013 -> 0.1646253723 | AR184: =+Northern!AY2013 -> 0.1612909223 | AS184: =+Northern!AZ2013 -> 0.1563189575 | AT184: =+Northern!BA2013 -> 0.1416710946 | AU184: =+Northern!BB2013 -> 0.1252320437 | AV184: =+Northern!BC2013 -> 0.1273549094 | AW184: =+Northern!BD2013 -> 0.1380783458 | AX184: =+Northern!BE2013 -> 0.1716488728 | AY184: =+Northern!BF2013 -> 0.1723908577 | AZ184: =+Northern!BG2013 -> 0.1595912979 | BA184: =+Northern!BH2013 -> 0.1573854488 | BB184: =+Northern!BI2013 -> 0.1872753772 | BC184: =+Northern!BJ2013 -> 0.1646253723 | BD184: =+Northern!BK2013 -> 0.1612909223 | BE184: =+Northern!BL2013 -> 0.1563189575 | BF184: =+Northern!BM2013 -> 0.1416710946 | BG184: =+Northern!BN2013 -> 0.1252320437 | BH184: =+Northern!BO2013 -> 0.1273549094 | BI184: =+Northern!BP2013 -> 0.1380783458
A185: Misc Other Sales | B185: =+Northern!I2014 -> 0 | C185: =+Northern!J2014 -> 0 | D185: =+Northern!K2014 -> 0 | E185: =+Northern!L2014 -> 0 | F185: =+Northern!M2014 -> 0 | G185: =+Northern!N2014 -> 0 | H185: =+Northern!O2014 -> 0 | I185: =+Northern!P2014 -> 0 | J185: =+Northern!Q2014 -> 0 | K185: =+Northern!R2014 -> 0 | L185: =+Northern!S2014 -> 0 | M185: =+Northern!T2014 -> 0 | N185: =+Northern!U2014 -> 0 | O185: =+Northern!V2014 -> 0 | P185: =+Northern!W2014 -> 0 | Q185: =+Northern!X2014 -> 0 | R185: =+Northern!Y2014 -> 0 | S185: =+Northern!Z2014 -> 0 | T185: =+Northern!AA2014 -> 0 | U185: =+Northern!AB2014 -> 0 | V185: =+Northern!AC2014 -> 0 | W185: =+Northern!AD2014 -> 0 | X185: =+Northern!AE2014 -> 0 | Y185: =+Northern!AF2014 -> 0 | Z185: =+Northern!AG2014 -> 0 | AA185: =+Northern!AH2014 -> 0 | AB185: =+Northern!AI2014 -> 0 | AC185: =+Northern!AJ2014 -> 0 | AD185: =+Northern!AK2014 -> 0 | AE185: =+Northern!AL2014 -> 0 | AF185: =+Northern!AM2014 -> 0 | AG185: =+Northern!AN2014 -> 0 | AH185: =+Northern!AO2014 -> 0 | AI185: =+Northern!AP2014 -> 0 | AJ185: =+Northern!AQ2014 -> 0 | AK185: =+Northern!AR2014 -> 0 | AL185: =+Northern!AS2014 -> 0 | AM185: =+Northern!AT2014 -> 0 | AN185: =+Northern!AU2014 -> 0 | AO185: =+Northern!AV2014 -> 0 | AP185: =+Northern!AW2014 -> 0 | AQ185: =+Northern!AX2014 -> 0 | AR185: =+Northern!AY2014 -> 0 | AS185: =+Northern!AZ2014 -> 0 | AT185: =+Northern!BA2014 -> 0 | AU185: =+Northern!BB2014 -> 0 | AV185: =+Northern!BC2014 -> 0 | AW185: =+Northern!BD2014 -> 0 | AX185: =+Northern!BE2014 -> 0 | AY185: =+Northern!BF2014 -> 0 | AZ185: =+Northern!BG2014 -> 0 | BA185: =+Northern!BH2014 -> 0 | BB185: =+Northern!BI2014 -> 0 | BC185: =+Northern!BJ2014 -> 0 | BD185: =+Northern!BK2014 -> 0 | BE185: =+Northern!BL2014 -> 0 | BF185: =+Northern!BM2014 -> 0 | BG185: =+Northern!BN2014 -> 0 | BH185: =+Northern!BO2014 -> 0 | BI185: =+Northern!BP2014 -> 0
